Workbook

Sheet Cover
A1: Standard cap and floor financial model
B2: Regime design model
C3: =MID(CELL("filename"),SEARCH("[",CELL("filename"))+1,SEARCH("]",CELL("filename"))-SEARCH("[",CELL("filename"))-1) -> Cap and floor financial model - IFA2 FPA.xlsm
C4: DISCLAIMER: The inputs used in this model are purely illustrative. No inference should be made about the regulatory settlement for any interconnector's costs, e.g. capital expenditure or operating expenditure, and hence the level of the cap and floor. This illustrative nature extends to the cost of capital inputs, since under our proposed methodology these will be only known at financial close.
B6: Model key
E8: Sample | G8: Calculated value
E9: Sample | G9: Import
E10: Sample | G10: Export
E11: Sample | G11: Formula change in cells to the right
E12: Sample | G12: Initial inputs
E13: Sample | G13: Updated inputs
E14: Sample | G14: Notes and instructions
E15: Sample | G15: Cell intentionally blank
B17: Contents
E19: INTERFACE >
E20: Cover | G20: Model key and content directory
E21: Input | G21: Inputs
E22: CALCULATION >
E23: Pre_Op_RAV | G23: Pre-operational RAV balances
E24: Finance | G24: RAV IDC and transaction costs
E25: Op_RAV | G25: Operational RAV balances, return and depreciation
E26: AllowancesCap | G26: Cap allowances and annuitisation
E27: AllowancesFloor | G27: Floor allowances and annuitisation
E28: Deductions | G28: Tax depreciation and interest calculations
E29: TaxCap | G29: Tax allowance calculation with cap returns
E30: TaxFloor | G30: Tax allowance calculation with floor returns
E31: Availability | G31: Availability incentive calculations
E32: Assessment | G32: Assessment of the cap and the floor
E33: OUTPUTS >
E34: Output | G34: Cap and floor values and adjustments
E35: DATA >
E36: Download from BoE
E37: Download from iBoxx
E38: Market data
E39: RPI and currency
B43: End of sheet

Sheet Input
A1: Input | H1: Licence
E2: Parameter | G2: Units | H2: Terminology | I2: Constant | K2: Annual values
B4: Variables set after financial close
C6: Actual value
E8: Project year | K8: =- $I$115 + 1 -> -10 | L8: =K8 + 1 -> -9 | M8: =L8 + 1 -> -8 | N8: =M8 + 1 -> -7 | O8: =N8 + 1 -> -6 | P8: =O8 + 1 -> -5 | Q8: =P8 + 1 -> -4 | R8: =Q8 + 1 -> -3 | S8: =R8 + 1 -> -2 | T8: =S8 + 1 -> -1 | U8: =T8 + 1 -> 0 | V8: =U8 + 1 -> 1 | W8: =V8 + 1 -> 2 | X8: =W8 + 1 -> 3 | Y8: =X8 + 1 -> 4 | Z8: =Y8 + 1 -> 5 | AA8: =Z8 + 1 -> 6 | AB8: =AA8 + 1 -> 7 | AC8: =AB8 + 1 -> 8 | AD8: =AC8 + 1 -> 9 | AE8: =AD8 + 1 -> 10 | AF8: =AE8 + 1 -> 11 | AG8: =AF8 + 1 -> 12 | AH8: =AG8 + 1 -> 13 | AI8: =AH8 + 1 -> 14 | AJ8: =AI8 + 1 -> 15 | AK8: =AJ8 + 1 -> 16 | AL8: =AK8 + 1 -> 17 | AM8: =AL8 + 1 -> 18 | AN8: =AM8 + 1 -> 19 | AO8: =AN8 + 1 -> 20 | AP8: =AO8 + 1 -> 21 | AQ8: =AP8 + 1 -> 22 | AR8: =AQ8 + 1 -> 23 | AS8: =AR8 + 1 -> 24 | AT8: =AS8 + 1 -> 25 | AU8: =AT8 + 1 -> 26 | AV8: =AU8 + 1 -> 27 | AW8: =AV8 + 1 -> 28 | AX8: =AW8 + 1 -> 29
E9: Year commencing | K9: =$I$106 -> 2009-04-01 | L9: =+K10+1 -> 2010-04-01 | M9: =+L10+1 -> 2011-04-01 | N9: =+M10+1 -> 2012-04-01 | O9: =+N10+1 -> 2013-04-01 | P9: =+O10+1 -> 2014-04-01 | Q9: =+P10+1 -> 2015-04-01 | R9: =+Q10+1 -> 2016-04-01 | S9: =+R10+1 -> 2017-04-01 | T9: =+S10+1 -> 2018-04-01 | U9: =+T10+1 -> 2019-04-01 | V9: =+U10+1 -> 2020-04-01 | W9: =+V10+1 -> 2021-04-01 | X9: =+W10+1 -> 2022-04-01 | Y9: =+X10+1 -> 2023-04-01 | Z9: =+Y10+1 -> 2024-04-01 | AA9: =+Z10+1 -> 2025-04-01 | AB9: =+AA10+1 -> 2026-04-01 | AC9: =+AB10+1 -> 2027-04-01 | AD9: =+AC10+1 -> 2028-04-01 | AE9: =+AD10+1 -> 2029-04-01 | AF9: =+AE10+1 -> 2030-04-01 | AG9: =+AF10+1 -> 2031-04-01 | AH9: =+AG10+1 -> 2032-04-01 | AI9: =+AH10+1 -> 2033-04-01 | AJ9: =+AI10+1 -> 2034-04-01 | AK9: =+AJ10+1 -> 2035-04-01 | AL9: =+AK10+1 -> 2036-04-01 | AM9: =+AL10+1 -> 2037-04-01 | AN9: =+AM10+1 -> 2038-04-01 | AO9: =+AN10+1 -> 2039-04-01 | AP9: =+AO10+1 -> 2040-04-01 | AQ9: =+AP10+1 -> 2041-04-01 | AR9: =+AQ10+1 -> 2042-04-01 | AS9: =+AR10+1 -> 2043-04-01 | AT9: =+AS10+1 -> 2044-04-01 | AU9: =+AT10+1 -> 2045-04-01 | AV9: =+AU10+1 -> 2046-04-01 | AW9: =+AV10+1 -> 2047-04-01 | AX9: =+AW10+1 -> 2048-04-01
E10: Year ending | K10: =EOMONTH(K9,11) -> 2010-03-31 | L10: =DATE(YEAR(K10) + 1, MONTH(K10), DAY(K10)) -> 2011-03-31 | M10: =DATE(YEAR(L10) + 1, MONTH(L10), DAY(L10)) -> 2012-03-31 | N10: =DATE(YEAR(M10) + 1, MONTH(M10), DAY(M10)) -> 2013-03-31 | O10: =DATE(YEAR(N10) + 1, MONTH(N10), DAY(N10)) -> 2014-03-31 | P10: =DATE(YEAR(O10) + 1, MONTH(O10), DAY(O10)) -> 2015-03-31 | Q10: =DATE(YEAR(P10) + 1, MONTH(P10), DAY(P10)) -> 2016-03-31 | R10: =DATE(YEAR(Q10) + 1, MONTH(Q10), DAY(Q10)) -> 2017-03-31 | S10: =DATE(YEAR(R10) + 1, MONTH(R10), DAY(R10)) -> 2018-03-31 | T10: =DATE(YEAR(S10) + 1, MONTH(S10), DAY(S10)) -> 2019-03-31 | U10: =DATE(YEAR(T10) + 1, MONTH(T10), DAY(T10)) -> 2020-03-31 | V10: =DATE(YEAR(U10) + 1, MONTH(U10), DAY(U10)) -> 2021-03-31 | W10: =DATE(YEAR(V10) + 1, MONTH(V10), DAY(V10)) -> 2022-03-31 | X10: =DATE(YEAR(W10) + 1, MONTH(W10), DAY(W10)) -> 2023-03-31 | Y10: =DATE(YEAR(X10) + 1, MONTH(X10), DAY(X10)) -> 2024-03-31 | Z10: =DATE(YEAR(Y10) + 1, MONTH(Y10), DAY(Y10)) -> 2025-03-31 | AA10: =DATE(YEAR(Z10) + 1, MONTH(Z10), DAY(Z10)) -> 2026-03-31 | AB10: =DATE(YEAR(AA10) + 1, MONTH(AA10), DAY(AA10)) -> 2027-03-31 | AC10: =DATE(YEAR(AB10) + 1, MONTH(AB10), DAY(AB10)) -> 2028-03-31 | AD10: =DATE(YEAR(AC10) + 1, MONTH(AC10), DAY(AC10)) -> 2029-03-31 | AE10: =DATE(YEAR(AD10) + 1, MONTH(AD10), DAY(AD10)) -> 2030-03-31 | AF10: =DATE(YEAR(AE10) + 1, MONTH(AE10), DAY(AE10)) -> 2031-03-31 | AG10: =DATE(YEAR(AF10) + 1, MONTH(AF10), DAY(AF10)) -> 2032-03-31 | AH10: =DATE(YEAR(AG10) + 1, MONTH(AG10), DAY(AG10)) -> 2033-03-31 | AI10: =DATE(YEAR(AH10) + 1, MONTH(AH10), DAY(AH10)) -> 2034-03-31 | AJ10: =DATE(YEAR(AI10) + 1, MONTH(AI10), DAY(AI10)) -> 2035-03-31 | AK10: =DATE(YEAR(AJ10) + 1, MONTH(AJ10), DAY(AJ10)) -> 2036-03-31 | AL10: =DATE(YEAR(AK10) + 1, MONTH(AK10), DAY(AK10)) -> 2037-03-31 | AM10: =DATE(YEAR(AL10) + 1, MONTH(AL10), DAY(AL10)) -> 2038-03-31 | AN10: =DATE(YEAR(AM10) + 1, MONTH(AM10), DAY(AM10)) -> 2039-03-31 | AO10: =DATE(YEAR(AN10) + 1, MONTH(AN10), DAY(AN10)) -> 2040-03-31 | AP10: =DATE(YEAR(AO10) + 1, MONTH(AO10), DAY(AO10)) -> 2041-03-31 | AQ10: =DATE(YEAR(AP10) + 1, MONTH(AP10), DAY(AP10)) -> 2042-03-31 | AR10: =DATE(YEAR(AQ10) + 1, MONTH(AQ10), DAY(AQ10)) -> 2043-03-31 | AS10: =DATE(YEAR(AR10) + 1, MONTH(AR10), DAY(AR10)) -> 2044-03-31 | AT10: =DATE(YEAR(AS10) + 1, MONTH(AS10), DAY(AS10)) -> 2045-03-31 | AU10: =DATE(YEAR(AT10) + 1, MONTH(AT10), DAY(AT10)) -> 2046-03-31 | AV10: =DATE(YEAR(AU10) + 1, MONTH(AU10), DAY(AU10)) -> 2047-03-31 | AW10: =DATE(YEAR(AV10) + 1, MONTH(AV10), DAY(AV10)) -> 2048-03-31 | AX10: =DATE(YEAR(AW10) + 1, MONTH(AW10), DAY(AW10)) -> 2049-03-31
E13: Development costs | G13: £m 13/14 prices | K13: 0 | L13: 0.047701 | M13: 0.274079 | N13: 0.724064 | O13: 1.12801 | P13: 1.847526 | Q13: 3.708369 | R13: 2.07645 | S13: 0 | T13: 0 | U13: 0 | V13: 0 | W13: 0 | X13: 0 | Y13: 0 | Z13: 0 | AA13: 0 | AB13: 0 | AC13: 0 | AD13: 0 | AE13: 0 | AF13: 0 | AG13: 0 | AH13: 0 | AI13: 0 | AJ13: 0 | AK13: 0 | AL13: 0 | AM13: 0 | AN13: 0 | AO13: 0 | AP13: 0 | AQ13: 0 | AR13: 0 | AS13: 0 | AT13: 0 | AU13: 0 | AV13: 0 | AW13: 0 | AX13: 0
E16: Development costs | G16: £m 16/17 prices | K16: =K13*($I$96/$O$97) -> 0 | L16: =L13*($I$96/$O$97) -> 0.05021345391 | M16: 0.2885149836 | N16: 0.762201092 | O16: 1.187423285 | P16: 1.94483683 | Q16: 3.903692079 | R16: 2.18581846 | S16: 0 | T16: 0 | U16: 0 | V16: 0 | W16: 0 | X16: 0 | Y16: 0 | Z16: 0 | AA16: 0 | AB16: 0 | AC16: 0 | AD16: 0 | AE16: 0 | AF16: 0 | AG16: 0 | AH16: 0 | AI16: 0 | AJ16: 0 | AK16: 0 | AL16: 0 | AM16: 0 | AN16: 0 | AO16: 0 | AP16: 0 | AQ16: 0 | AR16: 0 | AS16: 0 | AT16: 0 | AU16: =AU13*$P97/$N97 -> 0 | AV16: =AV13*$P97/$N97 -> 0 | AW16: =AW13*$P97/$N97 -> 0 | AX16: =AX13*$P97/$N97 -> 0
E17: Capex | G17: £m 16/17 prices | K17: 0 | L17: 0 | M17: 0 | N17: 0 | O17: 0 | P17: 0 | Q17: 0 | R17: 0.882986 | S17: 58.82237 | T17: 116.666132 | U17: 118.348252 | V17: 18.251215 | W17: 0 | X17: 0 | Y17: 0 | Z17: 0 | AA17: 0 | AB17: 0 | AC17: 0 | AD17: 0 | AE17: 0 | AF17: 0 | AG17: 0 | AH17: 0 | AI17: 0 | AJ17: 0 | AK17: 0 | AL17: 0 | AM17: 0 | AN17: 0 | AO17: 0 | AP17: 0 | AQ17: 0 | AR17: 0 | AS17: 0 | AT17: 0 | AU17: 0 | AV17: 0 | AW17: 0 | AX17: 0
E18: Spares | G18: £m 16/17 prices | K18: 0 | L18: 0 | M18: 0 | N18: 0 | O18: 0 | P18: 0 | Q18: 0 | R18: 0 | S18: 0 | T18: 0 | U18: 0 | V18: 0 | W18: 0 | X18: 0 | Y18: 0 | Z18: 0 | AA18: 0 | AB18: 0 | AC18: 0 | AD18: 0 | AE18: 0 | AF18: 0 | AG18: 0 | AH18: 0 | AI18: 0 | AJ18: 0 | AK18: 0 | AL18: 0 | AM18: 0 | AN18: 0 | AO18: 0 | AP18: 0 | AQ18: 0 | AR18: 0 | AS18: 0 | AT18: 0 | AU18: 0 | AV18: 0 | AW18: 0 | AX18: 0
E19: Non-controllable opex (actual) | G19: £m 16/17 prices | K19: 0 | L19: 0 | M19: 0 | N19: 0 | O19: 0 | P19: 0 | Q19: 0 | R19: 0 | S19: 0 | T19: 0 | U19: 0 | V19: 0 | W19: 0 | X19: 0 | Y19: 0 | Z19: 0 | AA19: 0 | AB19: 0 | AC19: 0 | AD19: 0 | AE19: 0 | AF19: 0 | AG19: 0 | AH19: 0 | AI19: 0 | AJ19: 0 | AK19: 0 | AL19: 0 | AM19: 0 | AN19: 0 | AO19: 0 | AP19: 0 | AQ19: 0 | AR19: 0 | AS19: 0 | AT19: 0 | AU19: 0 | AV19: 0 | AW19: 0 | AX19: 0
E22: Gross congestion revenues (net of market-related costs) | G22: £m nominal prices | K22: 0 | L22: 0 | M22: 0 | N22: 0 | O22: 0 | P22: 0 | Q22: 0 | R22: 0 | S22: 0 | T22: 0 | U22: 0 | V22: 0 | W22: 0 | X22: 0 | Y22: 0 | Z22: 0 | AA22: 0 | AB22: 0 | AC22: 0 | AD22: 0 | AE22: 0 | AF22: 0 | AG22: 0 | AH22: 0 | AI22: 0 | AJ22: 0 | AK22: 0 | AL22: 0 | AM22: 0 | AN22: 0 | AO22: 0 | AP22: 0 | AQ22: 0 | AR22: 0 | AS22: 0 | AT22: 0 | AU22: 0 | AV22: 0 | AW22: 0 | AX22: 0
E23: Gross congestion revenues (net of market-related costs) | G23: €m nominal prices | K23: 0 | L23: 0 | M23: 0 | N23: 0 | O23: 0 | P23: 0 | Q23: 0 | R23: 0 | S23: 0 | T23: 0 | U23: 0 | V23: 0 | W23: 0 | X23: 0 | Y23: 0 | Z23: 0 | AA23: 0 | AB23: 0 | AC23: 0 | AD23: 0 | AE23: 0 | AF23: 0 | AG23: 0 | AH23: 0 | AI23: 0 | AJ23: 0 | AK23: 0 | AL23: 0 | AM23: 0 | AN23: 0 | AO23: 0 | AP23: 0 | AQ23: 0 | AR23: 0 | AS23: 0 | AT23: 0 | AU23: 0 | AV23: 0 | AW23: 0 | AX23: 0
E25: Gross congestion revenues (net of market-related costs) | G25: £m nominal prices | H25: NARt | K25: 0 | L25: 0 | M25: 0 | N25: 0 | O25: 0 | P25: 0 | Q25: 0 | R25: 0 | S25: 0 | T25: 0 | U25: 0 | V25: =AVERAGE(Availability!V11, Availability!V12)*V97/$I$96 -> 44.45761809 | W25: =AVERAGE(Availability!W11, Availability!W12)*W97/$I$96 -> 45.89804491 | X25: =AVERAGE(Availability!X11, Availability!X12)*X97/$I$96 -> 47.38514157 | Y25: =AVERAGE(Availability!Y11, Availability!Y12)*Y97/$I$96 -> 48.92042016 | Z25: =AVERAGE(Availability!Z11, Availability!Z12)*Z97/$I$96 -> 50.50544177 | AA25: =AVERAGE(Availability!AA11, Availability!AA12)*AA97/$I$96 -> 52.14181808 | AB25: =AVERAGE(Availability!AB11, Availability!AB12)*AB97/$I$96 -> 53.83121299 | AC25: =AVERAGE(Availability!AC11, Availability!AC12)*AC97/$I$96 -> 55.57534429 | AD25: =AVERAGE(Availability!AD11, Availability!AD12)*AD97/$I$96 -> 57.37598544 | AE25: =AVERAGE(Availability!AE11, Availability!AE12)*AE97/$I$96 -> 59.23496737 | AF25: =AVERAGE(Availability!AF11, Availability!AF12)*AF97/$I$96 -> 61.15418031 | AG25: =AVERAGE(Availability!AG11, Availability!AG12)*AG97/$I$96 -> 63.13557576 | AH25: =AVERAGE(Availability!AH11, Availability!AH12)*AH97/$I$96 -> 65.18116841 | AI25: =AVERAGE(Availability!AI11, Availability!AI12)*AI97/$I$96 -> 67.29303827 | AJ25: =AVERAGE(Availability!AJ11, Availability!AJ12)*AJ97/$I$96 -> 69.47333271 | AK25: =AVERAGE(Availability!AK11, Availability!AK12)*AK97/$I$96 -> 71.72426869 | AL25: =AVERAGE(Availability!AL11, Availability!AL12)*AL97/$I$96 -> 74.04813499 | AM25: =AVERAGE(Availability!AM11, Availability!AM12)*AM97/$I$96 -> 76.44729457 | AN25: =AVERAGE(Availability!AN11, Availability!AN12)*AN97/$I$96 -> 78.92418691 | AO25: =AVERAGE(Availability!AO11, Availability!AO12)*AO97/$I$96 -> 81.48133057 | AP25: =AVERAGE(Availability!AP11, Availability!AP12)*AP97/$I$96 -> 84.12132568 | AQ25: =AVERAGE(Availability!AQ11, Availability!AQ12)*AQ97/$I$96 -> 86.84685663 | AR25: =AVERAGE(Availability!AR11, Availability!AR12)*AR97/$I$96 -> 89.66069478 | AS25: =AVERAGE(Availability!AS11, Availability!AS12)*AS97/$I$96 -> 92.56570129 | AT25: =AVERAGE(Availability!AT11, Availability!AT12)*AT97/$I$96 -> 95.56483002 | AU25: =AVERAGE(Availability!AU11, Availability!AU12)*AU97/$I$96 -> 98.66113051 | AV25: =AVERAGE(Availability!AV11, Availability!AV12)*AV97/$I$96 -> 101.8577511 | AW25: =AVERAGE(Availability!AW11, Availability!AW12)*AW97/$I$96 -> 105.1579423 | AX25: =AVERAGE(Availability!AX11, Availability!AX12)*AX97/$I$96 -> 108.5650596
E26: Within-period adjustment (assessed) | G26: £m nominal | H26: WPAt | K26: 0 | L26: 0 | M26: 0 | N26: 0 | O26: 0 | P26: 0 | Q26: 0 | R26: 0 | S26: 0 | T26: 0 | U26: 0 | V26: 0 | W26: 0 | X26: 0 | Y26: 0 | Z26: 0 | AA26: 0 | AB26: 0 | AC26: 0 | AD26: 0 | AE26: 0 | AF26: 0 | AG26: 0 | AH26: 0 | AI26: 0 | AJ26: 0 | AK26: 0 | AL26: 0 | AM26: 0 | AN26: 0 | AO26: 0 | AP26: 0 | AQ26: 0 | AR26: 0 | AS26: 0 | AT26: 0 | AU26: 0 | AV26: 0 | AW26: 0 | AX26: 0
C28: Ex ante allowance - Operational Period
E29: Operational Year | K29: Year 1 | L29: Year 2 | M29: Year 3 | N29: Year 4 | O29: Year 5 | P29: Year 6 | Q29: Year 7 | R29: Year 8 | S29: Year 9 | T29: Year 10 | U29: Year 11 | V29: Year 12 | W29: Year 13 | X29: Year 14 | Y29: Year 15 | Z29: Year 16 | AA29: Year 17 | AB29: Year 18 | AC29: Year 19 | AD29: Year 20 | AE29: Year 21 | AF29: Year 22 | AG29: Year 23 | AH29: Year 24 | AI29: Year 25
E31: Replacement capex | G31: £m 16/17 prices | K31: 0 | L31: 0 | M31: 0 | N31: 0 | O31: 0 | P31: 0 | Q31: 0 | R31: 0 | S31: 0 | T31: 0 | U31: 0 | V31: 0 | W31: 0 | X31: 0 | Y31: 7.37 | Z31: 0 | AA31: 0 | AB31: 0 | AC31: 0 | AD31: 0 | AE31: 0 | AF31: 0 | AG31: 0 | AH31: 0 | AI31: 0
E32: Decommissioning baseline / actual | G32: £m 16/17 prices | K32: 0 | L32: 0 | M32: 0 | N32: 0 | O32: 0 | P32: 0 | Q32: 0 | R32: 0 | S32: 0 | T32: 0 | U32: 0 | V32: 0 | W32: 0 | X32: 0 | Y32: 0 | Z32: 0 | AA32: 0 | AB32: 0 | AC32: 0 | AD32: 0 | AE32: 0 | AF32: 0 | AG32: 0 | AH32: 0 | AI32: 5.37
E33: Controllable opex | G33: £m 16/17 prices | K33: 10.94778 | L33: 10.94778 | M33: 10.94778 | N33: 10.94778 | O33: 10.94778 | P33: 10.94778 | Q33: 10.94778 | R33: 10.94778 | S33: 10.94778 | T33: 10.94778 | U33: 10.94778 | V33: 10.94778 | W33: 10.94778 | X33: 10.94778 | Y33: 10.94778 | Z33: 10.94778 | AA33: 10.94778 | AB33: 10.94778 | AC33: 10.94778 | AD33: 10.94778 | AE33: 10.94778 | AF33: 10.94778 | AG33: 10.94778 | AH33: 10.94778 | AI33: 10.94778
E34: Non-controllable opex (baseline) | G34: £m 16/17 prices | K34: 0 | L34: 0 | M34: 0 | N34: 0 | O34: 0 | P34: 0 | Q34: 0 | R34: 0 | S34: 0 | T34: 0 | U34: 0 | V34: 0 | W34: 0 | X34: 0 | Y34: 0 | Z34: 0 | AA34: 0 | AB34: 0 | AC34: 0 | AD34: 0 | AE34: 0 | AF34: 0 | AG34: 0 | AH34: 0 | AI34: 0
E35: Opex re-assessment adjustment | G35: £m 16/17 prices | K35: 0 | L35: 0 | M35: 0 | N35: 0 | O35: 0 | P35: 0 | Q35: 0 | R35: 0 | S35: 0 | T35: 0 | U35: 0 | V35: 0 | W35: 0 | X35: 0 | Y35: 0 | Z35: 0 | AA35: 0 | AB35: 0 | AC35: 0 | AD35: 0 | AE35: 0 | AF35: 0 | AG35: 0 | AH35: 0 | AI35: 0
B38: Variables set at financial close
C40: Finance
E42: Cap returns | G42: real annual % | I42: ='Market data'!I31 -> 0.081
E43: Floor returns | G43: real annual % | I43: ='Market data'!I49 -> -0.0021
E44: Operational discount rate | G44: real annual % | I44: =(I42 + I43) / 2 -> 0.03945
E45: Interest during construction | G45: real annual % | I45: ='Market data'!I75 -> 0.0675
E46: Cost of debt (for tax) | G46: real annual % | I46: =I43 -> -0.0021
E47: Pre-operational notional gearing | G47: % | I47: ='Market data'!I77 -> 0.4061
E48: Operational notional gearing | G48: % | I48: ='Market data'!I14 -> 0.5
E50: Equity transaction costs | G50: % | I50: 0.05
E51: Debt transaction costs | G51: % | I51: 0.025
C53: Availability incentive
E54: Project year | K54: =- $I$115 + 1 -> -10 | L54: =K54 + 1 -> -9 | M54: =L54 + 1 -> -8 | N54: =M54 + 1 -> -7 | O54: =N54 + 1 -> -6 | P54: =O54 + 1 -> -5 | Q54: =P54 + 1 -> -4 | R54: =Q54 + 1 -> -3 | S54: =R54 + 1 -> -2 | T54: =S54 + 1 -> -1 | U54: =T54 + 1 -> 0 | V54: =U54 + 1 -> 1 | W54: =V54 + 1 -> 2 | X54: =W54 + 1 -> 3 | Y54: =X54 + 1 -> 4 | Z54: =Y54 + 1 -> 5 | AA54: =Z54 + 1 -> 6 | AB54: =AA54 + 1 -> 7 | AC54: =AB54 + 1 -> 8 | AD54: =AC54 + 1 -> 9 | AE54: =AD54 + 1 -> 10 | AF54: =AE54 + 1 -> 11 | AG54: =AF54 + 1 -> 12 | AH54: =AG54 + 1 -> 13 | AI54: =AH54 + 1 -> 14 | AJ54: =AI54 + 1 -> 15 | AK54: =AJ54 + 1 -> 16 | AL54: =AK54 + 1 -> 17 | AM54: =AL54 + 1 -> 18 | AN54: =AM54 + 1 -> 19 | AO54: =AN54 + 1 -> 20 | AP54: =AO54 + 1 -> 21 | AQ54: =AP54 + 1 -> 22 | AR54: =AQ54 + 1 -> 23 | AS54: =AR54 + 1 -> 24 | AT54: =AS54 + 1 -> 25 | AU54: =AT54 + 1 -> 26 | AV54: =AU54 + 1 -> 27 | AW54: =AV54 + 1 -> 28 | AX54: =AW54 + 1 -> 29
E55: Year commencing | K55: =$I$106 -> 2009-04-01 | L55: =+K56+1 -> 2010-04-01 | M55: =+L56+1 -> 2011-04-01 | N55: =+M56+1 -> 2012-04-01 | O55: =+N56+1 -> 2013-04-01 | P55: =+O56+1 -> 2014-04-01 | Q55: =+P56+1 -> 2015-04-01 | R55: =+Q56+1 -> 2016-04-01 | S55: =+R56+1 -> 2017-04-01 | T55: =+S56+1 -> 2018-04-01 | U55: =+T56+1 -> 2019-04-01 | V55: =+U56+1 -> 2020-04-01 | W55: =+V56+1 -> 2021-04-01 | X55: =+W56+1 -> 2022-04-01 | Y55: =+X56+1 -> 2023-04-01 | Z55: =+Y56+1 -> 2024-04-01 | AA55: =+Z56+1 -> 2025-04-01 | AB55: =+AA56+1 -> 2026-04-01 | AC55: =+AB56+1 -> 2027-04-01 | AD55: =+AC56+1 -> 2028-04-01 | AE55: =+AD56+1 -> 2029-04-01 | AF55: =+AE56+1 -> 2030-04-01 | AG55: =+AF56+1 -> 2031-04-01 | AH55: =+AG56+1 -> 2032-04-01 | AI55: =+AH56+1 -> 2033-04-01 | AJ55: =+AI56+1 -> 2034-04-01 | AK55: =+AJ56+1 -> 2035-04-01 | AL55: =+AK56+1 -> 2036-04-01 | AM55: =+AL56+1 -> 2037-04-01 | AN55: =+AM56+1 -> 2038-04-01 | AO55: =+AN56+1 -> 2039-04-01 | AP55: =+AO56+1 -> 2040-04-01 | AQ55: =+AP56+1 -> 2041-04-01 | AR55: =+AQ56+1 -> 2042-04-01 | AS55: =+AR56+1 -> 2043-04-01 | AT55: =+AS56+1 -> 2044-04-01 | AU55: =+AT56+1 -> 2045-04-01 | AV55: =+AU56+1 -> 2046-04-01 | AW55: =+AV56+1 -> 2047-04-01 | AX55: =+AW56+1 -> 2048-04-01
E56: Year ending | K56: =EOMONTH(K55,11) -> 2010-03-31 | L56: =DATE(YEAR(K56) + 1, MONTH(K56), DAY(K56)) -> 2011-03-31 | M56: =DATE(YEAR(L56) + 1, MONTH(L56), DAY(L56)) -> 2012-03-31 | N56: =DATE(YEAR(M56) + 1, MONTH(M56), DAY(M56)) -> 2013-03-31 | O56: =DATE(YEAR(N56) + 1, MONTH(N56), DAY(N56)) -> 2014-03-31 | P56: =DATE(YEAR(O56) + 1, MONTH(O56), DAY(O56)) -> 2015-03-31 | Q56: =DATE(YEAR(P56) + 1, MONTH(P56), DAY(P56)) -> 2016-03-31 | R56: =DATE(YEAR(Q56) + 1, MONTH(Q56), DAY(Q56)) -> 2017-03-31 | S56: =DATE(YEAR(R56) + 1, MONTH(R56), DAY(R56)) -> 2018-03-31 | T56: =DATE(YEAR(S56) + 1, MONTH(S56), DAY(S56)) -> 2019-03-31 | U56: =DATE(YEAR(T56) + 1, MONTH(T56), DAY(T56)) -> 2020-03-31 | V56: =DATE(YEAR(U56) + 1, MONTH(U56), DAY(U56)) -> 2021-03-31 | W56: =DATE(YEAR(V56) + 1, MONTH(V56), DAY(V56)) -> 2022-03-31 | X56: =DATE(YEAR(W56) + 1, MONTH(W56), DAY(W56)) -> 2023-03-31 | Y56: =DATE(YEAR(X56) + 1, MONTH(X56), DAY(X56)) -> 2024-03-31 | Z56: =DATE(YEAR(Y56) + 1, MONTH(Y56), DAY(Y56)) -> 2025-03-31 | AA56: =DATE(YEAR(Z56) + 1, MONTH(Z56), DAY(Z56)) -> 2026-03-31 | AB56: =DATE(YEAR(AA56) + 1, MONTH(AA56), DAY(AA56)) -> 2027-03-31 | AC56: =DATE(YEAR(AB56) + 1, MONTH(AB56), DAY(AB56)) -> 2028-03-31 | AD56: =DATE(YEAR(AC56) + 1, MONTH(AC56), DAY(AC56)) -> 2029-03-31 | AE56: =DATE(YEAR(AD56) + 1, MONTH(AD56), DAY(AD56)) -> 2030-03-31 | AF56: =DATE(YEAR(AE56) + 1, MONTH(AE56), DAY(AE56)) -> 2031-03-31 | AG56: =DATE(YEAR(AF56) + 1, MONTH(AF56), DAY(AF56)) -> 2032-03-31 | AH56: =DATE(YEAR(AG56) + 1, MONTH(AG56), DAY(AG56)) -> 2033-03-31 | AI56: =DATE(YEAR(AH56) + 1, MONTH(AH56), DAY(AH56)) -> 2034-03-31 | AJ56: =DATE(YEAR(AI56) + 1, MONTH(AI56), DAY(AI56)) -> 2035-03-31 | AK56: =DATE(YEAR(AJ56) + 1, MONTH(AJ56), DAY(AJ56)) -> 2036-03-31 | AL56: =DATE(YEAR(AK56) + 1, MONTH(AK56), DAY(AK56)) -> 2037-03-31 | AM56: =DATE(YEAR(AL56) + 1, MONTH(AL56), DAY(AL56)) -> 2038-03-31 | AN56: =DATE(YEAR(AM56) + 1, MONTH(AM56), DAY(AM56)) -> 2039-03-31 | AO56: =DATE(YEAR(AN56) + 1, MONTH(AN56), DAY(AN56)) -> 2040-03-31 | AP56: =DATE(YEAR(AO56) + 1, MONTH(AO56), DAY(AO56)) -> 2041-03-31 | AQ56: =DATE(YEAR(AP56) + 1, MONTH(AP56), DAY(AP56)) -> 2042-03-31 | AR56: =DATE(YEAR(AQ56) + 1, MONTH(AQ56), DAY(AQ56)) -> 2043-03-31 | AS56: =DATE(YEAR(AR56) + 1, MONTH(AR56), DAY(AR56)) -> 2044-03-31 | AT56: =DATE(YEAR(AS56) + 1, MONTH(AS56), DAY(AS56)) -> 2045-03-31 | AU56: =DATE(YEAR(AT56) + 1, MONTH(AT56), DAY(AT56)) -> 2046-03-31 | AV56: =DATE(YEAR(AU56) + 1, MONTH(AU56), DAY(AU56)) -> 2047-03-31 | AW56: =DATE(YEAR(AV56) + 1, MONTH(AV56), DAY(AV56)) -> 2048-03-31 | AX56: =DATE(YEAR(AW56) + 1, MONTH(AW56), DAY(AW56)) -> 2049-03-31
E58: Interconnector Rated Capacity | G58: MW | H58: RC | I58: 1000
E59: Number of Hours in Relevant Year | G59: hours pa | I59: =365.25*24 -> 8766
E61: Cap availability incentive ratio | G61: ratio | I61: 1
E62: Cap availability incentive target | G62: % | I62: 0.9659
E63: Cap availability incentive upper limit | G63: scalar | I63: 1.02
E64: Cap availability incentive lower limit | G64: scalar | I64: 0.98
E66: Total Interconnector Outages during Active Cap period | G66: MWh | K66: 0 | L66: =ABS(0) -> 0 | M66: 0 | N66: 0 | O66: 0 | P66: 0 | Q66: 0 | R66: 0 | S66: 0 | T66: 0 | U66: 0 | V66: 0 | W66: 0 | X66: 0 | Y66: 0 | Z66: 0 | AA66: 0 | AB66: 0 | AC66: 0 | AD66: 0 | AE66: 0 | AF66: 0 | AG66: 0 | AH66: 0 | AI66: 0 | AJ66: 0 | AK66: 0 | AL66: 0 | AM66: 0 | AN66: 0 | AO66: 0 | AP66: 0 | AQ66: 0 | AR66: 0 | AS66: 0 | AT66: 0 | AU66: 0 | AV66: 0 | AW66: 0 | AX66: 0
E67: Allowed Outages during Active Cap period | G67: MWh | K67: 0 | L67: 0 | M67: 0 | N67: 0 | O67: 0 | P67: 0 | Q67: 0 | R67: 0 | S67: 0 | T67: 0 | U67: 0 | V67: 0 | W67: 0 | X67: 0 | Y67: 0 | Z67: 0 | AA67: 0 | AB67: 0 | AC67: 0 | AD67: 0 | AE67: 0 | AF67: 0 | AG67: 0 | AH67: 0 | AI67: 0 | AJ67: 0 | AK67: 0 | AL67: 0 | AM67: 0 | AN67: 0 | AO67: 0 | AP67: 0 | AQ67: 0 | AR67: 0 | AS67: 0 | AT67: 0 | AU67: 0 | AV67: 0 | AW67: 0 | AX67: 0
E68: Total Interconnector Outages less Allowed Outages during Active Cap period | G68: MWh | H68: IOt | K68: =K66-K67 -> 0 | L68: 0 | M68: 0 | N68: 0 | O68: 0 | P68: 0 | Q68: 0 | R68: 0 | S68: 0 | T68: 0 | U68: 0 | V68: 0 | W68: 0 | X68: =X66-X67 -> 0 | Y68: 0 | Z68: 0 | AA68: 0 | AB68: 0 | AC68: 0 | AD68: 0 | AE68: 0 | AF68: 0 | AG68: 0 | AH68: 0 | AI68: 0 | AJ68: 0 | AK68: 0 | AL68: 0 | AM68: 0 | AN68: 0 | AO68: 0 | AP68: 0 | AQ68: 0 | AR68: 0 | AS68: 0 | AT68: 0 | AU68: 0 | AV68: 0 | AW68: 0 | AX68: 0
E69: Total Interconnector Outages during Active Floor period | G69: MWh | K69: =K67-K68 -> 0 | L69: 0 | M69: 0 | N69: 0 | O69: 0 | P69: 0 | Q69: 0 | R69: 0 | S69: 0 | T69: 0 | U69: 0 | V69: 0 | W69: 0 | X69: 0 | Y69: 0 | Z69: 0 | AA69: 0 | AB69: 0 | AC69: 0 | AD69: 0 | AE69: 0 | AF69: 0 | AG69: 0 | AH69: 0 | AI69: 0 | AJ69: 0 | AK69: 0 | AL69: 0 | AM69: 0 | AN69: 0 | AO69: 0 | AP69: 0 | AQ69: 0 | AR69: 0 | AS69: 0 | AT69: 0 | AU69: 0 | AV69: 0 | AW69: 0 | AX69: 0
E70: Allowed Outages during Active Floor period | G70: MWh | K70: =K68-K69 -> 0 | L70: 0 | M70: 0 | N70: 0 | O70: 0 | P70: 0 | Q70: 0 | R70: 0 | S70: 0 | T70: 0 | U70: 0 | V70: 0 | W70: 0 | X70: 0 | Y70: 0 | Z70: 0 | AA70: 0 | AB70: 0 | AC70: 0 | AD70: 0 | AE70: 0 | AF70: 0 | AG70: 0 | AH70: 0 | AI70: 0 | AJ70: 0 | AK70: 0 | AL70: 0 | AM70: 0 | AN70: 0 | AO70: 0 | AP70: 0 | AQ70: 0 | AR70: 0 | AS70: 0 | AT70: 0 | AU70: 0 | AV70: 0 | AW70: 0 | AX70: 0
E71: Total Interconnector Outages less Allowed Outages during Active Floor period | G71: MWh | H71: IOt | K71: =K69-K70 -> 0 | L71: 0 | M71: 0 | N71: 0 | O71: 0 | P71: 0 | Q71: 0 | R71: 0 | S71: 0 | T71: 0 | U71: 0 | V71: 0 | W71: 0 | X71: =X69-X70 -> 0 | Y71: 0 | Z71: 0 | AA71: 0 | AB71: 0 | AC71: 0 | AD71: 0 | AE71: 0 | AF71: 0 | AG71: 0 | AH71: 0 | AI71: 0 | AJ71: 0 | AK71: 0 | AL71: 0 | AM71: 0 | AN71: 0 | AO71: 0 | AP71: 0 | AQ71: 0 | AR71: 0 | AS71: 0 | AT71: 0 | AU71: 0 | AV71: 0 | AW71: 0 | AX71: 0
E72: Outages associated with Exceptional Events | G72: MWh | K72: 0 | L72: 0 | M72: 0 | N72: 0 | O72: 0 | P72: 0 | Q72: 0 | R72: 0 | S72: 0 | T72: 0 | U72: 0 | V72: 0 | W72: 0 | X72: 0 | Y72: 0 | Z72: 0 | AA72: =AA70-AA71 -> 0 | AB72: 0 | AC72: 0 | AD72: 0 | AE72: 0 | AF72: 0 | AG72: 0 | AH72: 0 | AI72: 0 | AJ72: 0 | AK72: 0 | AL72: 0 | AM72: 0 | AN72: 0 | AO72: 0 | AP72: 0 | AQ72: 0 | AR72: 0 | AS72: 0 | AT72: 0 | AU72: 0 | AV72: 0 | AW72: 0 | AX72: 0
E74: Floor availability incentive target | G74: % | I74: 0.8
C76: Tax - Operational Period
E78: Operational Year | K78: Year 1 | L78: Year 2 | M78: Year 3 | N78: Year 4 | O78: Year 5 | P78: Year 6 | Q78: Year 7 | R78: Year 8 | S78: Year 9 | T78: Year 10 | U78: Year 11 | V78: Year 12 | W78: Year 13 | X78: Year 14 | Y78: Year 15 | Z78: Year 16 | AA78: Year 17 | AB78: Year 18 | AC78: Year 19 | AD78: Year 20 | AE78: Year 21 | AF78: Year 22 | AG78: Year 23 | AH78: Year 24 | AI78: Year 25
E80: Corporation tax rate | G80: % | K80: 0.17 | L80: 0.17 | M80: 0.17 | N80: 0.17 | O80: 0.17 | P80: 0.17 | Q80: 0.17 | R80: 0.17 | S80: 0.17 | T80: 0.17 | U80: 0.17 | V80: 0.17 | W80: 0.17 | X80: 0.17 | Y80: 0.17 | Z80: 0.17 | AA80: 0.17 | AB80: 0.17 | AC80: 0.17 | AD80: 0.17 | AE80: 0.17 | AF80: 0.17 | AG80: 0.17 | AH80: 0.17 | AI80: 0.17
E81: Capital allowance rate (declining balance) | G81: % | K81: 0.08 | L81: 0.08 | M81: =L81 -> 0.08 | N81: =M81 -> 0.08 | O81: =N81 -> 0.08 | P81: =O81 -> 0.08 | Q81: =P81 -> 0.08 | R81: =Q81 -> 0.08 | S81: =R81 -> 0.08 | T81: =S81 -> 0.08 | U81: =T81 -> 0.08 | V81: =U81 -> 0.08 | W81: =V81 -> 0.08 | X81: =W81 -> 0.08 | Y81: =X81 -> 0.08 | Z81: =Y81 -> 0.08 | AA81: =Z81 -> 0.08 | AB81: =AA81 -> 0.08 | AC81: =AB81 -> 0.08 | AD81: =AC81 -> 0.08 | AE81: =AD81 -> 0.08 | AF81: =AE81 -> 0.08 | AG81: =AF81 -> 0.08 | AH81: =AG81 -> 0.08 | AI81: =AH81 -> 0.08
E85: Corporation tax rate | G85: % | L85: 0.17 | M85: 0.17 | N85: 0.17 | O85: 0.17 | P85: 0.17 | Q85: 0.17 | R85: 0.17 | S85: 0.17 | T85: 0.17 | U85: 0.17 | V85: 0.17 | W85: 0.17 | X85: 0.17 | Y85: 0.17 | Z85: =Y85 -> 0.17 | AA85: 0.17 | AB85: 0.17 | AC85: 0.17 | AD85: 0.17 | AE85: 0.17 | AF85: 0.17 | AG85: 0.17 | AH85: 0.17 | AI85: 0.17 | AJ85: 0.17 | AK85: 0.17 | AL85: 0.17 | AM85: 0.17 | AN85: 0.17 | AO85: 0.17 | AP85: 0.17 | AQ85: 0.17 | AR85: 0.17 | AS85: 0.17 | AT85: 0.17 | AU85: 0.17 | AV85: 0.17 | AW85: 0.17 | AX85: 0.17
E86: Capital allowance rate (declining balance) | G86: % | L86: 0.08 | M86: 0.08 | N86: 0.08 | O86: 0.08 | P86: 0.08 | Q86: 0.08 | R86: 0.08 | S86: 0.08 | T86: 0.08 | U86: 0.08 | V86: 0.08 | W86: 0.08 | X86: =W86 -> 0.08 | Y86: =X86 -> 0.08 | Z86: 0.08 | AA86: 0.08 | AB86: 0.08 | AC86: 0.08 | AD86: 0.08 | AE86: 0.08 | AF86: 0.08 | AG86: 0.08 | AH86: 0.08 | AI86: 0.08 | AJ86: 0.08 | AK86: 0.08 | AL86: 0.08 | AM86: 0.08 | AN86: 0.08 | AO86: 0.08 | AP86: 0.08 | AQ86: 0.08 | AR86: 0.08 | AS86: 0.08 | AT86: 0.08 | AU86: 0.08 | AV86: 0.08 | AW86: 0.08 | AX86: 0.08
C88: Inflation & currency
E89: Project year | K89: =- $I$115 + 1 -> -10 | L89: =K89 + 1 -> -9 | M89: =L89 + 1 -> -8 | N89: =M89 + 1 -> -7 | O89: =N89 + 1 -> -6 | P89: =O89 + 1 -> -5 | Q89: =P89 + 1 -> -4 | R89: =Q89 + 1 -> -3 | S89: =R89 + 1 -> -2 | T89: =S89 + 1 -> -1 | U89: =T89 + 1 -> 0 | V89: =U89 + 1 -> 1 | W89: =V89 + 1 -> 2 | X89: =W89 + 1 -> 3 | Y89: =X89 + 1 -> 4 | Z89: =Y89 + 1 -> 5 | AA89: =Z89 + 1 -> 6 | AB89: =AA89 + 1 -> 7 | AC89: =AB89 + 1 -> 8 | AD89: =AC89 + 1 -> 9 | AE89: =AD89 + 1 -> 10 | AF89: =AE89 + 1 -> 11 | AG89: =AF89 + 1 -> 12 | AH89: =AG89 + 1 -> 13 | AI89: =AH89 + 1 -> 14 | AJ89: =AI89 + 1 -> 15 | AK89: =AJ89 + 1 -> 16 | AL89: =AK89 + 1 -> 17 | AM89: =AL89 + 1 -> 18 | AN89: =AM89 + 1 -> 19 | AO89: =AN89 + 1 -> 20 | AP89: =AO89 + 1 -> 21 | AQ89: =AP89 + 1 -> 22 | AR89: =AQ89 + 1 -> 23 | AS89: =AR89 + 1 -> 24 | AT89: =AS89 + 1 -> 25 | AU89: =AT89 + 1 -> 26 | AV89: =AU89 + 1 -> 27 | AW89: =AV89 + 1 -> 28 | AX89: =AW89 + 1 -> 29
E90: Year commencing | K90: =$I$106 -> 2009-04-01 | L90: =+K91+1 -> 2010-04-01 | M90: =+L91+1 -> 2011-04-01 | N90: =+M91+1 -> 2012-04-01 | O90: =+N91+1 -> 2013-04-01 | P90: =+O91+1 -> 2014-04-01 | Q90: =+P91+1 -> 2015-04-01 | R90: =+Q91+1 -> 2016-04-01 | S90: =+R91+1 -> 2017-04-01 | T90: =+S91+1 -> 2018-04-01 | U90: =+T91+1 -> 2019-04-01 | V90: =+U91+1 -> 2020-04-01 | W90: =+V91+1 -> 2021-04-01 | X90: =+W91+1 -> 2022-04-01 | Y90: =+X91+1 -> 2023-04-01 | Z90: =+Y91+1 -> 2024-04-01 | AA90: =+Z91+1 -> 2025-04-01 | AB90: =+AA91+1 -> 2026-04-01 | AC90: =+AB91+1 -> 2027-04-01 | AD90: =+AC91+1 -> 2028-04-01 | AE90: =+AD91+1 -> 2029-04-01 | AF90: =+AE91+1 -> 2030-04-01 | AG90: =+AF91+1 -> 2031-04-01 | AH90: =+AG91+1 -> 2032-04-01 | AI90: =+AH91+1 -> 2033-04-01 | AJ90: =+AI91+1 -> 2034-04-01 | AK90: =+AJ91+1 -> 2035-04-01 | AL90: =+AK91+1 -> 2036-04-01 | AM90: =+AL91+1 -> 2037-04-01 | AN90: =+AM91+1 -> 2038-04-01 | AO90: =+AN91+1 -> 2039-04-01 | AP90: =+AO91+1 -> 2040-04-01 | AQ90: =+AP91+1 -> 2041-04-01 | AR90: =+AQ91+1 -> 2042-04-01 | AS90: =+AR91+1 -> 2043-04-01 | AT90: =+AS91+1 -> 2044-04-01 | AU90: =+AT91+1 -> 2045-04-01 | AV90: =+AU91+1 -> 2046-04-01 | AW90: =+AV91+1 -> 2047-04-01 | AX90: =+AW91+1 -> 2048-04-01
E91: Year ending | K91: =EOMONTH(K90,11) -> 2010-03-31 | L91: =DATE(YEAR(K91) + 1, MONTH(K91), DAY(K91)) -> 2011-03-31 | M91: =DATE(YEAR(L91) + 1, MONTH(L91), DAY(L91)) -> 2012-03-31 | N91: =DATE(YEAR(M91) + 1, MONTH(M91), DAY(M91)) -> 2013-03-31 | O91: =DATE(YEAR(N91) + 1, MONTH(N91), DAY(N91)) -> 2014-03-31 | P91: =DATE(YEAR(O91) + 1, MONTH(O91), DAY(O91)) -> 2015-03-31 | Q91: =DATE(YEAR(P91) + 1, MONTH(P91), DAY(P91)) -> 2016-03-31 | R91: =DATE(YEAR(Q91) + 1, MONTH(Q91), DAY(Q91)) -> 2017-03-31 | S91: =DATE(YEAR(R91) + 1, MONTH(R91), DAY(R91)) -> 2018-03-31 | T91: =DATE(YEAR(S91) + 1, MONTH(S91), DAY(S91)) -> 2019-03-31 | U91: =DATE(YEAR(T91) + 1, MONTH(T91), DAY(T91)) -> 2020-03-31 | V91: =DATE(YEAR(U91) + 1, MONTH(U91), DAY(U91)) -> 2021-03-31 | W91: =DATE(YEAR(V91) + 1, MONTH(V91), DAY(V91)) -> 2022-03-31 | X91: =DATE(YEAR(W91) + 1, MONTH(W91), DAY(W91)) -> 2023-03-31 | Y91: =DATE(YEAR(X91) + 1, MONTH(X91), DAY(X91)) -> 2024-03-31 | Z91: =DATE(YEAR(Y91) + 1, MONTH(Y91), DAY(Y91)) -> 2025-03-31 | AA91: =DATE(YEAR(Z91) + 1, MONTH(Z91), DAY(Z91)) -> 2026-03-31 | AB91: =DATE(YEAR(AA91) + 1, MONTH(AA91), DAY(AA91)) -> 2027-03-31 | AC91: =DATE(YEAR(AB91) + 1, MONTH(AB91), DAY(AB91)) -> 2028-03-31 | AD91: =DATE(YEAR(AC91) + 1, MONTH(AC91), DAY(AC91)) -> 2029-03-31 | AE91: =DATE(YEAR(AD91) + 1, MONTH(AD91), DAY(AD91)) -> 2030-03-31 | AF91: =DATE(YEAR(AE91) + 1, MONTH(AE91), DAY(AE91)) -> 2031-03-31 | AG91: =DATE(YEAR(AF91) + 1, MONTH(AF91), DAY(AF91)) -> 2032-03-31 | AH91: =DATE(YEAR(AG91) + 1, MONTH(AG91), DAY(AG91)) -> 2033-03-31 | AI91: =DATE(YEAR(AH91) + 1, MONTH(AH91), DAY(AH91)) -> 2034-03-31 | AJ91: =DATE(YEAR(AI91) + 1, MONTH(AI91), DAY(AI91)) -> 2035-03-31 | AK91: =DATE(YEAR(AJ91) + 1, MONTH(AJ91), DAY(AJ91)) -> 2036-03-31 | AL91: =DATE(YEAR(AK91) + 1, MONTH(AK91), DAY(AK91)) -> 2037-03-31 | AM91: =DATE(YEAR(AL91) + 1, MONTH(AL91), DAY(AL91)) -> 2038-03-31 | AN91: =DATE(YEAR(AM91) + 1, MONTH(AM91), DAY(AM91)) -> 2039-03-31 | AO91: =DATE(YEAR(AN91) + 1, MONTH(AN91), DAY(AN91)) -> 2040-03-31 | AP91: =DATE(YEAR(AO91) + 1, MONTH(AO91), DAY(AO91)) -> 2041-03-31 | AQ91: =DATE(YEAR(AP91) + 1, MONTH(AP91), DAY(AP91)) -> 2042-03-31 | AR91: =DATE(YEAR(AQ91) + 1, MONTH(AQ91), DAY(AQ91)) -> 2043-03-31 | AS91: =DATE(YEAR(AR91) + 1, MONTH(AR91), DAY(AR91)) -> 2044-03-31 | AT91: =DATE(YEAR(AS91) + 1, MONTH(AS91), DAY(AS91)) -> 2045-03-31 | AU91: =DATE(YEAR(AT91) + 1, MONTH(AT91), DAY(AT91)) -> 2046-03-31 | AV91: =DATE(YEAR(AU91) + 1, MONTH(AU91), DAY(AU91)) -> 2047-03-31 | AW91: =DATE(YEAR(AV91) + 1, MONTH(AV91), DAY(AV91)) -> 2048-03-31 | AX91: =DATE(YEAR(AW91) + 1, MONTH(AW91), DAY(AW91)) -> 2049-03-31
E93: GB allocation | G93: % | I93: 1
E94: Expected UK RPI inflation | G94: % | I94: ='Market data'!I54 -> 0.0324
E95: End date of price base year | G95: date | I95: 2017-03-31
E96: ='RPI and currency'!E11 -> 2016/17 RPI inflation index value (CHAW) | G96: ='RPI and currency'!G11 -> Jan 1987 = 100 | I96: ='RPI and currency'!I11 -> 264.992
E97: 12 month average UK RPI inflation index value (CHAW) | G97: Jan 1987 = 100 | K97: ='RPI and currency'!K153 -> 215.767 | L97: ='RPI and currency'!L153 -> 226.475 | M97: ='RPI and currency'!M153 -> 237.342 | N97: ='RPI and currency'!N153 -> 244.675 | O97: ='RPI and currency'!O153 -> 251.733 | P97: ='RPI and currency'!P153 -> 256.667 | Q97: ='RPI and currency'!Q153 -> 259.433 | R97: ='RPI and currency'!R153 -> 264.992 | S97: =R97 * (1 + $I94) -> 273.5777408 | T97: 282.4416596 | U97: 291.5927694 | V97: 301.0403751 | W97: 310.7940833 | X97: 320.8638116 | Y97: 331.259799 | Z97: 341.9926165 | AA97: 353.0731773 | AB97: 364.5127483 | AC97: 376.3229613 | AD97: 388.5158252 | AE97: 401.103738 | AF97: 414.0994991 | AG97: 427.5163229 | AH97: 441.3678517 | AI97: 455.6681701 | AJ97: 470.4318188 | AK97: 485.6738098 | AL97: 501.4096412 | AM97: 517.6553136 | AN97: 534.4273457 | AO97: 551.7427917 | AP97: 569.6192582 | AQ97: 588.0749222 | AR97: 607.1285496 | AS97: 626.7995146 | AT97: 647.1078189 | AU97: 668.0741122 | AV97: 689.7197135 | AW97: 712.0666322 | AX97: 735.1375911
C100: Model operation
C101: Note: changes in these variables may require structural changes to the model.
E102: Project year | K102: =- $I$115 + 1 -> -10 | L102: =K102 + 1 -> -9 | M102: =L102 + 1 -> -8 | N102: =M102 + 1 -> -7 | O102: =N102 + 1 -> -6 | P102: =O102 + 1 -> -5 | Q102: =P102 + 1 -> -4 | R102: =Q102 + 1 -> -3 | S102: =R102 + 1 -> -2 | T102: =S102 + 1 -> -1 | U102: =T102 + 1 -> 0 | V102: =U102 + 1 -> 1 | W102: =V102 + 1 -> 2 | X102: =W102 + 1 -> 3 | Y102: =X102 + 1 -> 4 | Z102: =Y102 + 1 -> 5 | AA102: =Z102 + 1 -> 6 | AB102: =AA102 + 1 -> 7 | AC102: =AB102 + 1 -> 8 | AD102: =AC102 + 1 -> 9 | AE102: =AD102 + 1 -> 10 | AF102: =AE102 + 1 -> 11 | AG102: =AF102 + 1 -> 12 | AH102: =AG102 + 1 -> 13 | AI102: =AH102 + 1 -> 14 | AJ102: =AI102 + 1 -> 15 | AK102: =AJ102 + 1 -> 16 | AL102: =AK102 + 1 -> 17 | AM102: =AL102 + 1 -> 18 | AN102: =AM102 + 1 -> 19 | AO102: =AN102 + 1 -> 20 | AP102: =AO102 + 1 -> 21 | AQ102: =AP102 + 1 -> 22 | AR102: =AQ102 + 1 -> 23 | AS102: =AR102 + 1 -> 24 | AT102: =AS102 + 1 -> 25 | AU102: =AT102 + 1 -> 26 | AV102: =AU102 + 1 -> 27 | AW102: =AV102 + 1 -> 28 | AX102: =AW102 + 1 -> 29
E103: Year commencing | K103: =$I$106 -> 2009-04-01 | L103: =+K104+1 -> 2010-04-01 | M103: =+L104+1 -> 2011-04-01 | N103: =+M104+1 -> 2012-04-01 | O103: =+N104+1 -> 2013-04-01 | P103: =+O104+1 -> 2014-04-01 | Q103: =+P104+1 -> 2015-04-01 | R103: =+Q104+1 -> 2016-04-01 | S103: =+R104+1 -> 2017-04-01 | T103: =+S104+1 -> 2018-04-01 | U103: =+T104+1 -> 2019-04-01 | V103: =+U104+1 -> 2020-04-01 | W103: =+V104+1 -> 2021-04-01 | X103: =+W104+1 -> 2022-04-01 | Y103: =+X104+1 -> 2023-04-01 | Z103: =+Y104+1 -> 2024-04-01 | AA103: =+Z104+1 -> 2025-04-01 | AB103: =+AA104+1 -> 2026-04-01 | AC103: =+AB104+1 -> 2027-04-01 | AD103: =+AC104+1 -> 2028-04-01 | AE103: =+AD104+1 -> 2029-04-01 | AF103: =+AE104+1 -> 2030-04-01 | AG103: =+AF104+1 -> 2031-04-01 | AH103: =+AG104+1 -> 2032-04-01 | AI103: =+AH104+1 -> 2033-04-01 | AJ103: =+AI104+1 -> 2034-04-01 | AK103: =+AJ104+1 -> 2035-04-01 | AL103: =+AK104+1 -> 2036-04-01 | AM103: =+AL104+1 -> 2037-04-01 | AN103: =+AM104+1 -> 2038-04-01 | AO103: =+AN104+1 -> 2039-04-01 | AP103: =+AO104+1 -> 2040-04-01 | AQ103: =+AP104+1 -> 2041-04-01 | AR103: =+AQ104+1 -> 2042-04-01 | AS103: =+AR104+1 -> 2043-04-01 | AT103: =+AS104+1 -> 2044-04-01 | AU103: =+AT104+1 -> 2045-04-01 | AV103: =+AU104+1 -> 2046-04-01 | AW103: =+AV104+1 -> 2047-04-01 | AX103: =+AW104+1 -> 2048-04-01
E104: Year ending | K104: =EOMONTH(K103,11) -> 2010-03-31 | L104: =DATE(YEAR(K104) + 1, MONTH(K104), DAY(K104)) -> 2011-03-31 | M104: =DATE(YEAR(L104) + 1, MONTH(L104), DAY(L104)) -> 2012-03-31 | N104: =DATE(YEAR(M104) + 1, MONTH(M104), DAY(M104)) -> 2013-03-31 | O104: =DATE(YEAR(N104) + 1, MONTH(N104), DAY(N104)) -> 2014-03-31 | P104: =DATE(YEAR(O104) + 1, MONTH(O104), DAY(O104)) -> 2015-03-31 | Q104: =DATE(YEAR(P104) + 1, MONTH(P104), DAY(P104)) -> 2016-03-31 | R104: =DATE(YEAR(Q104) + 1, MONTH(Q104), DAY(Q104)) -> 2017-03-31 | S104: =DATE(YEAR(R104) + 1, MONTH(R104), DAY(R104)) -> 2018-03-31 | T104: =DATE(YEAR(S104) + 1, MONTH(S104), DAY(S104)) -> 2019-03-31 | U104: =DATE(YEAR(T104) + 1, MONTH(T104), DAY(T104)) -> 2020-03-31 | V104: =DATE(YEAR(U104) + 1, MONTH(U104), DAY(U104)) -> 2021-03-31 | W104: =DATE(YEAR(V104) + 1, MONTH(V104), DAY(V104)) -> 2022-03-31 | X104: =DATE(YEAR(W104) + 1, MONTH(W104), DAY(W104)) -> 2023-03-31 | Y104: =DATE(YEAR(X104) + 1, MONTH(X104), DAY(X104)) -> 2024-03-31 | Z104: =DATE(YEAR(Y104) + 1, MONTH(Y104), DAY(Y104)) -> 2025-03-31 | AA104: =DATE(YEAR(Z104) + 1, MONTH(Z104), DAY(Z104)) -> 2026-03-31 | AB104: =DATE(YEAR(AA104) + 1, MONTH(AA104), DAY(AA104)) -> 2027-03-31 | AC104: =DATE(YEAR(AB104) + 1, MONTH(AB104), DAY(AB104)) -> 2028-03-31 | AD104: =DATE(YEAR(AC104) + 1, MONTH(AC104), DAY(AC104)) -> 2029-03-31 | AE104: =DATE(YEAR(AD104) + 1, MONTH(AD104), DAY(AD104)) -> 2030-03-31 | AF104: =DATE(YEAR(AE104) + 1, MONTH(AE104), DAY(AE104)) -> 2031-03-31 | AG104: =DATE(YEAR(AF104) + 1, MONTH(AF104), DAY(AF104)) -> 2032-03-31 | AH104: =DATE(YEAR(AG104) + 1, MONTH(AG104), DAY(AG104)) -> 2033-03-31 | AI104: =DATE(YEAR(AH104) + 1, MONTH(AH104), DAY(AH104)) -> 2034-03-31 | AJ104: =DATE(YEAR(AI104) + 1, MONTH(AI104), DAY(AI104)) -> 2035-03-31 | AK104: =DATE(YEAR(AJ104) + 1, MONTH(AJ104), DAY(AJ104)) -> 2036-03-31 | AL104: =DATE(YEAR(AK104) + 1, MONTH(AK104), DAY(AK104)) -> 2037-03-31 | AM104: =DATE(YEAR(AL104) + 1, MONTH(AL104), DAY(AL104)) -> 2038-03-31 | AN104: =DATE(YEAR(AM104) + 1, MONTH(AM104), DAY(AM104)) -> 2039-03-31 | AO104: =DATE(YEAR(AN104) + 1, MONTH(AN104), DAY(AN104)) -> 2040-03-31 | AP104: =DATE(YEAR(AO104) + 1, MONTH(AO104), DAY(AO104)) -> 2041-03-31 | AQ104: =DATE(YEAR(AP104) + 1, MONTH(AP104), DAY(AP104)) -> 2042-03-31 | AR104: =DATE(YEAR(AQ104) + 1, MONTH(AQ104), DAY(AQ104)) -> 2043-03-31 | AS104: =DATE(YEAR(AR104) + 1, MONTH(AR104), DAY(AR104)) -> 2044-03-31 | AT104: =DATE(YEAR(AS104) + 1, MONTH(AS104), DAY(AS104)) -> 2045-03-31 | AU104: =DATE(YEAR(AT104) + 1, MONTH(AT104), DAY(AT104)) -> 2046-03-31 | AV104: =DATE(YEAR(AU104) + 1, MONTH(AU104), DAY(AU104)) -> 2047-03-31 | AW104: =DATE(YEAR(AV104) + 1, MONTH(AV104), DAY(AV104)) -> 2048-03-31 | AX104: =DATE(YEAR(AW104) + 1, MONTH(AW104), DAY(AW104)) -> 2049-03-31
E106: Model start date | G106: date | I106: 2009-04-01
E107: Regime start date | G107: date | I107: 2020-12-01
E108: End Date for IDC | G108: date | I108: 2020-11-30
E109: Start of Operations | G109: date | I109: 2020-12-01
E110: RPI Scalar from 2016/17 terms to start of regime | G110: scalar | I110: =(1+$I$94)^((I107-AVERAGE(R103,R104))/365.25) -> 1.142201262
E111: RPI Scalar from 2016/17 terms to start of operations | G111: scalar | I111: =(1+$I$94)^((I109-AVERAGE(R103,R104))/365.25) -> 1.142201262
E112: Start of Financial Year of Operations Start Date | G112: date | I112: =IF(MONTH(I109)<=3,DATE(YEAR(I109)-1,4,1),DATE(YEAR(I109),4,1)) -> 2020-04-01
E113: End of Financial Year of Operations Start Date | G113: date | I113: =EOMONTH(I112,11) -> 2021-03-31
E114: Regime end date | G114: date | I114: =DATE(YEAR($I$107)+25,MONTH($I$107),DAY($I$107))-1 -> 2045-11-30
E115: Number of pre-operational years | G115: full years | I115: =YEAR(I112)-YEAR(I106) -> 11
E116: Number of operational years | G116: full years | I116: 25
E117: Assessment period length | G117: full years | I117: 5
E118: Days in year | G118: days | K118: =K$104-K$103+1 -> 365 | L118: 365 | M118: =M$104-M$103+1 -> 366 | N118: =N$104-N$103+1 -> 365 | O118: 365 | P118: 365 | Q118: 366 | R118: 365 | S118: 365 | T118: 365 | U118: 366 | V118: 365 | W118: 365 | X118: 365 | Y118: 366 | Z118: 365 | AA118: 365 | AB118: 365 | AC118: 366 | AD118: 365 | AE118: 365 | AF118: 365 | AG118: 366 | AH118: 365 | AI118: 365 | AJ118: 365 | AK118: 366 | AL118: 365 | AM118: 365 | AN118: 365 | AO118: 366 | AP118: 365 | AQ118: 365 | AR118: 365 | AS118: 366 | AT118: 365 | AU118: 365 | AV118: 365 | AW118: 366 | AX118: 365
E119: Interest During Construction Flag | G119: flag | K119: =IF($I$108>=K$104,1,IF($I$108>=K$103,($I$108-K$103+1)/K$118,0)) -> 1 | L119: 1 | M119: 1 | N119: 1 | O119: 1 | P119: 1 | Q119: 1 | R119: 1 | S119: 1 | T119: 1 | U119: 1 | V119: =IF($I$108>=V$104,1,IF($I$108>=V$103,($I$108-V$103+1)/V$118,0)) -> 0.6684931507 | W119: =IF($I$108>=W$104,1,IF($I$108>=W$103,($I$108-W$103+1)/W$118,0)) -> 0 | X119: 0 | Y119: 0 | Z119: 0 | AA119: 0 | AB119: 0 | AC119: 0 | AD119: 0 | AE119: 0 | AF119: 0 | AG119: 0 | AH119: 0 | AI119: 0 | AJ119: 0 | AK119: 0 | AL119: 0 | AM119: 0 | AN119: 0 | AO119: 0 | AP119: 0 | AQ119: 0 | AR119: 0 | AS119: 0 | AT119: 0 | AU119: 0 | AV119: 0 | AW119: 0 | AX119: 0
E120: Post-IDC and Pre-Operations Flag | G120: flag | K120: =IF(OR(K119=1,K121=1),0,IF($I$109<K103,0,IF($I$109<K104,($I$109-(MAX($I$108+1,K103)))/K118,MIN(1,(K104-$I$108)/K118)))) -> 0 | L120: 0 | M120: =IF(OR(M119=1,M121=1),0,IF($I$109<M103,0,IF($I$109<M104,($I$109-(MAX($I$108+1,M103)))/M118,MIN(1,(M104-$I$108)/M118)))) -> 0 | N120: =IF(OR(N119=1,N121=1),0,IF($I$109<N103,0,IF($I$109<N104,($I$109-(MAX($I$108+1,N103)))/N118,MIN(1,(N104-$I$108)/N118)))) -> 0 | O120: 0 | P120: 0 | Q120: 0 | R120: 0 | S120: 0 | T120: 0 | U120: 0 | V120: 0 | W120: 0 | X120: 0 | Y120: 0 | Z120: 0 | AA120: 0 | AB120: 0 | AC120: 0 | AD120: 0 | AE120: 0 | AF120: 0 | AG120: 0 | AH120: 0 | AI120: 0 | AJ120: 0 | AK120: 0 | AL120: 0 | AM120: 0 | AN120: 0 | AO120: 0 | AP120: 0 | AQ120: 0 | AR120: 0 | AS120: 0 | AT120: 0 | AU120: 0 | AV120: 0 | AW120: 0 | AX120: 0
E121: Operations Flag | G121: flag | K121: =IF(OR($I$109>K$104,$I$114<K$103),0,IF($I$109>=K$103,(K$104-$I$109+1)/K$118,IF($I$114<=K$104,($I$114-K$103+1)/K$118,1))) -> 0 | L121: 0 | M121: =IF(OR($I$109>M$104,$I$114<M$103),0,IF($I$109>=M$103,(M$104-$I$109+1)/M$118,IF($I$114<=M$104,($I$114-M$103+1)/M$118,1))) -> 0 | N121: =IF(OR($I$109>N$104,$I$114<N$103),0,IF($I$109>=N$103,(N$104-$I$109+1)/N$118,IF($I$114<=N$104,($I$114-N$103+1)/N$118,1))) -> 0 | O121: 0 | P121: 0 | Q121: 0 | R121: 0 | S121: 0 | T121: 0 | U121: 0 | V121: 0.3315068493 | W121: 1 | X121: 1 | Y121: 1 | Z121: 1 | AA121: 1 | AB121: 1 | AC121: 1 | AD121: 1 | AE121: 1 | AF121: 1 | AG121: 1 | AH121: 1 | AI121: 1 | AJ121: 1 | AK121: 1 | AL121: 1 | AM121: 1 | AN121: 1 | AO121: 1 | AP121: 1 | AQ121: 1 | AR121: 1 | AS121: 1 | AT121: 1 | AU121: 0.6684931507 | AV121: 0 | AW121: 0 | AX121: 0
E122: Transfer Construction to Operations Flag | G122: flag | K122: =IF(AND($I$109<=K$104,$I$109>=K$103),1,0) -> 0 | L122: 0 | M122: =IF(AND($I$109<=M$104,$I$109>=M$103),1,0) -> 0 | N122: =IF(AND($I$109<=N$104,$I$109>=N$103),1,0) -> 0 | O122: 0 | P122: 0 | Q122: 0 | R122: 0 | S122: 0 | T122: 0 | U122: 0 | V122: 1 | W122: 0 | X122: 0 | Y122: 0 | Z122: 0 | AA122: 0 | AB122: 0 | AC122: 0 | AD122: 0 | AE122: 0 | AF122: 0 | AG122: 0 | AH122: 0 | AI122: 0 | AJ122: 0 | AK122: 0 | AL122: 0 | AM122: 0 | AN122: 0 | AO122: 0 | AP122: 0 | AQ122: 0 | AR122: 0 | AS122: 0 | AT122: 0 | AU122: 0 | AV122: 0 | AW122: 0 | AX122: 0
E123: Initial Transaction Costs flag | G123: flag | K123: =IF(AND(SUM($J17:K17)=0,L17>0),1,0) -> 0 | L123: =IF(AND(SUM($J17:L17)=0,M17>0),1,0) -> 0 | M123: =IF(AND(SUM($J17:M17)=0,N17>0),1,0) -> 0 | N123: =IF(AND(SUM($J17:N17)=0,O17>0),1,0) -> 0 | O123: =IF(AND(SUM($J17:O17)=0,P17>0),1,0) -> 0 | P123: =IF(AND(SUM($J17:P17)=0,Q17>0),1,0) -> 0 | Q123: =IF(AND(SUM($J17:Q17)=0,R17>0),1,0) -> 1 | R123: =IF(AND(SUM($J17:R17)=0,S17>0),1,0) -> 0 | S123: =IF(AND(SUM($J17:S17)=0,T17>0),1,0) -> 0 | T123: =IF(AND(SUM($J17:T17)=0,U17>0),1,0) -> 0 | U123: =IF(AND(SUM($J17:U17)=0,V17>0),1,0) -> 0 | V123: =IF(AND(SUM($J17:V17)=0,W17>0),1,0) -> 0 | W123: =IF(AND(SUM($J17:W17)=0,X17>0),1,0) -> 0 | X123: =IF(AND(SUM($J17:X17)=0,Y17>0),1,0) -> 0 | Y123: =IF(AND(SUM($J17:Y17)=0,Z17>0),1,0) -> 0 | Z123: =IF(AND(SUM($J17:Z17)=0,AA17>0),1,0) -> 0 | AA123: =IF(AND(SUM($J17:AA17)=0,AB17>0),1,0) -> 0 | AB123: =IF(AND(SUM($J17:AB17)=0,AC17>0),1,0) -> 0 | AC123: =IF(AND(SUM($J17:AC17)=0,AD17>0),1,0) -> 0 | AD123: =IF(AND(SUM($J17:AD17)=0,AE17>0),1,0) -> 0 | AE123: =IF(AND(SUM($J17:AE17)=0,AF17>0),1,0) -> 0 | AF123: =IF(AND(SUM($J17:AF17)=0,AG17>0),1,0) -> 0 | AG123: =IF(AND(SUM($J17:AG17)=0,AH17>0),1,0) -> 0 | AH123: =IF(AND(SUM($J17:AH17)=0,AI17>0),1,0) -> 0 | AI123: =IF(AND(SUM($J17:AI17)=0,AJ17>0),1,0) -> 0 | AJ123: =IF(AND(SUM($J17:AJ17)=0,AK17>0),1,0) -> 0 | AK123: =IF(AND(SUM($J17:AK17)=0,AL17>0),1,0) -> 0 | AL123: =IF(AND(SUM($J17:AL17)=0,AM17>0),1,0) -> 0 | AM123: =IF(AND(SUM($J17:AM17)=0,AN17>0),1,0) -> 0 | AN123: =IF(AND(SUM($J17:AN17)=0,AO17>0),1,0) -> 0 | AO123: =IF(AND(SUM($J17:AO17)=0,AP17>0),1,0) -> 0 | AP123: =IF(AND(SUM($J17:AP17)=0,AQ17>0),1,0) -> 0 | AQ123: =IF(AND(SUM($J17:AQ17)=0,AR17>0),1,0) -> 0 | AR123: =IF(AND(SUM($J17:AR17)=0,AS17>0),1,0) -> 0 | AS123: =IF(AND(SUM($J17:AS17)=0,AT17>0),1,0) -> 0 | AT123: =IF(AND(SUM($J17:AT17)=0,AU17>0),1,0) -> 0 | AU123: =IF(AND(SUM($J17:AU17)=0,AV17>0),1,0) -> 0 | AV123: =IF(AND(SUM($J17:AV17)=0,AW17>0),1,0) -> 0 | AW123: =IF(AND(SUM($J17:AW17)=0,AX17>0),1,0) -> 0 | AX123: =IF(AND(SUM($J17:AX17)=0,AY17>0),1,0) -> 0
B125: End of sheet

Sheet Pre_Op_RAV
A1: Pre_Op_RAV | H1: Licence
E2: Parameter | G2: Units | H2: Terminology | I2: Constant | K2: Annual values
E3: Project year | K3: =Input!K8 -> -10 | L3: =K3 + 1 -> -9 | M3: -8 | N3: -7 | O3: -6 | P3: -5 | Q3: -4 | R3: -3 | S3: -2 | T3: -1 | U3: 0 | V3: 1 | W3: 2 | X3: 3 | Y3: 4 | Z3: 5 | AA3: 6 | AB3: 7 | AC3: 8 | AD3: 9 | AE3: 10 | AF3: 11 | AG3: 12 | AH3: 13 | AI3: 14 | AJ3: 15 | AK3: 16 | AL3: 17 | AM3: 18 | AN3: 19 | AO3: 20 | AP3: 21 | AQ3: 22 | AR3: 23 | AS3: 24 | AT3: 25 | AU3: 26 | AV3: 27 | AW3: 28 | AX3: 29
E4: Year commencing | K4: =Input!K9 -> 2009-04-01 | L4: =+K5+1 -> 2010-04-01 | M4: =+L5+1 -> 2011-04-01 | N4: =+M5+1 -> 2012-04-01 | O4: 2013-04-01 | P4: 2014-04-01 | Q4: 2015-04-01 | R4: 2016-04-01 | S4: 2017-04-01 | T4: 2018-04-01 | U4: 2019-04-01 | V4: 2020-04-01 | W4: 2021-04-01 | X4: 2022-04-01 | Y4: 2023-04-01 | Z4: 2024-04-01 | AA4: 2025-04-01 | AB4: 2026-04-01 | AC4: 2027-04-01 | AD4: 2028-04-01 | AE4: 2029-04-01 | AF4: 2030-04-01 | AG4: 2031-04-01 | AH4: 2032-04-01 | AI4: 2033-04-01 | AJ4: 2034-04-01 | AK4: 2035-04-01 | AL4: 2036-04-01 | AM4: 2037-04-01 | AN4: 2038-04-01 | AO4: 2039-04-01 | AP4: 2040-04-01 | AQ4: 2041-04-01 | AR4: 2042-04-01 | AS4: 2043-04-01 | AT4: 2044-04-01 | AU4: 2045-04-01 | AV4: 2046-04-01 | AW4: 2047-04-01 | AX4: 2048-04-01
E5: Year ending | K5: =Input!K10 -> 2010-03-31 | L5: =DATE(YEAR(K5) + 1, MONTH(K5), DAY(K5)) -> 2011-03-31 | M5: 2012-03-31 | N5: 2013-03-31 | O5: 2014-03-31 | P5: 2015-03-31 | Q5: 2016-03-31 | R5: 2017-03-31 | S5: 2018-03-31 | T5: 2019-03-31 | U5: 2020-03-31 | V5: 2021-03-31 | W5: 2022-03-31 | X5: 2023-03-31 | Y5: 2024-03-31 | Z5: 2025-03-31 | AA5: 2026-03-31 | AB5: 2027-03-31 | AC5: 2028-03-31 | AD5: 2029-03-31 | AE5: 2030-03-31 | AF5: 2031-03-31 | AG5: 2032-03-31 | AH5: 2033-03-31 | AI5: 2034-03-31 | AJ5: 2035-03-31 | AK5: 2036-03-31 | AL5: 2037-03-31 | AM5: 2038-03-31 | AN5: 2039-03-31 | AO5: 2040-03-31 | AP5: 2041-03-31 | AQ5: 2042-03-31 | AR5: 2043-03-31 | AS5: 2044-03-31 | AT5: 2045-03-31 | AU5: 2046-03-31 | AV5: 2047-03-31 | AW5: 2048-03-31 | AX5: 2049-03-31
B7: Flags
E9: Interest During Construction Flag | G9: flag | K9: =Input!K119 -> 1 | L9: =Input!L119 -> 1 | M9: =Input!M119 -> 1 | N9: =Input!N119 -> 1 | O9: =Input!O119 -> 1 | P9: =Input!P119 -> 1 | Q9: =Input!Q119 -> 1 | R9: =Input!R119 -> 1 | S9: =Input!S119 -> 1 | T9: =Input!T119 -> 1 | U9: =Input!U119 -> 1 | V9: =Input!V119 -> 0.6684931507 | W9: =Input!W119 -> 0 | X9: =Input!X119 -> 0 | Y9: =Input!Y119 -> 0 | Z9: =Input!Z119 -> 0 | AA9: =Input!AA119 -> 0 | AB9: =Input!AB119 -> 0 | AC9: =Input!AC119 -> 0 | AD9: =Input!AD119 -> 0 | AE9: =Input!AE119 -> 0 | AF9: =Input!AF119 -> 0 | AG9: =Input!AG119 -> 0 | AH9: =Input!AH119 -> 0 | AI9: =Input!AI119 -> 0 | AJ9: =Input!AJ119 -> 0 | AK9: =Input!AK119 -> 0 | AL9: =Input!AL119 -> 0 | AM9: =Input!AM119 -> 0 | AN9: =Input!AN119 -> 0 | AO9: =Input!AO119 -> 0 | AP9: =Input!AP119 -> 0 | AQ9: =Input!AQ119 -> 0 | AR9: =Input!AR119 -> 0 | AS9: =Input!AS119 -> 0 | AT9: =Input!AT119 -> 0 | AU9: =Input!AU119 -> 0 | AV9: =Input!AV119 -> 0 | AW9: =Input!AW119 -> 0 | AX9: =Input!AX119 -> 0
E10: Post-IDC and Pre-Operations Flag | G10: flag | K10: =Input!K120 -> 0 | L10: =Input!L120 -> 0 | M10: =Input!M120 -> 0 | N10: =Input!N120 -> 0 | O10: =Input!O120 -> 0 | P10: =Input!P120 -> 0 | Q10: =Input!Q120 -> 0 | R10: =Input!R120 -> 0 | S10: =Input!S120 -> 0 | T10: =Input!T120 -> 0 | U10: =Input!U120 -> 0 | V10: =Input!V120 -> 0 | W10: =Input!W120 -> 0 | X10: =Input!X120 -> 0 | Y10: =Input!Y120 -> 0 | Z10: =Input!Z120 -> 0 | AA10: =Input!AA120 -> 0 | AB10: =Input!AB120 -> 0 | AC10: =Input!AC120 -> 0 | AD10: =Input!AD120 -> 0 | AE10: =Input!AE120 -> 0 | AF10: =Input!AF120 -> 0 | AG10: =Input!AG120 -> 0 | AH10: =Input!AH120 -> 0 | AI10: =Input!AI120 -> 0 | AJ10: =Input!AJ120 -> 0 | AK10: =Input!AK120 -> 0 | AL10: =Input!AL120 -> 0 | AM10: =Input!AM120 -> 0 | AN10: =Input!AN120 -> 0 | AO10: =Input!AO120 -> 0 | AP10: =Input!AP120 -> 0 | AQ10: =Input!AQ120 -> 0 | AR10: =Input!AR120 -> 0 | AS10: =Input!AS120 -> 0 | AT10: =Input!AT120 -> 0 | AU10: =Input!AU120 -> 0 | AV10: =Input!AV120 -> 0 | AW10: =Input!AW120 -> 0 | AX10: =Input!AX120 -> 0
E11: Operations Flag | G11: flag | K11: =Input!K121 -> 0 | L11: =Input!L121 -> 0 | M11: =Input!M121 -> 0 | N11: =Input!N121 -> 0 | O11: =Input!O121 -> 0 | P11: =Input!P121 -> 0 | Q11: =Input!Q121 -> 0 | R11: =Input!R121 -> 0 | S11: =Input!S121 -> 0 | T11: =Input!T121 -> 0 | U11: =Input!U121 -> 0 | V11: =Input!V121 -> 0.3315068493 | W11: =Input!W121 -> 1 | X11: =Input!X121 -> 1 | Y11: =Input!Y121 -> 1 | Z11: =Input!Z121 -> 1 | AA11: =Input!AA121 -> 1 | AB11: =Input!AB121 -> 1 | AC11: =Input!AC121 -> 1 | AD11: =Input!AD121 -> 1 | AE11: =Input!AE121 -> 1 | AF11: =Input!AF121 -> 1 | AG11: =Input!AG121 -> 1 | AH11: =Input!AH121 -> 1 | AI11: =Input!AI121 -> 1 | AJ11: =Input!AJ121 -> 1 | AK11: =Input!AK121 -> 1 | AL11: =Input!AL121 -> 1 | AM11: =Input!AM121 -> 1 | AN11: =Input!AN121 -> 1 | AO11: =Input!AO121 -> 1 | AP11: =Input!AP121 -> 1 | AQ11: =Input!AQ121 -> 1 | AR11: =Input!AR121 -> 1 | AS11: =Input!AS121 -> 1 | AT11: =Input!AT121 -> 1 | AU11: =Input!AU121 -> 0.6684931507 | AV11: =Input!AV121 -> 0 | AW11: =Input!AW121 -> 0 | AX11: =Input!AX121 -> 0
E12: Transfer Construction to Operations Flag | G12: flag | K12: =Input!K122 -> 0 | L12: =Input!L122 -> 0 | M12: =Input!M122 -> 0 | N12: =Input!N122 -> 0 | O12: =Input!O122 -> 0 | P12: =Input!P122 -> 0 | Q12: =Input!Q122 -> 0 | R12: =Input!R122 -> 0 | S12: =Input!S122 -> 0 | T12: =Input!T122 -> 0 | U12: =Input!U122 -> 0 | V12: =Input!V122 -> 1 | W12: =Input!W122 -> 0 | X12: =Input!X122 -> 0 | Y12: =Input!Y122 -> 0 | Z12: =Input!Z122 -> 0 | AA12: =Input!AA122 -> 0 | AB12: =Input!AB122 -> 0 | AC12: =Input!AC122 -> 0 | AD12: =Input!AD122 -> 0 | AE12: =Input!AE122 -> 0 | AF12: =Input!AF122 -> 0 | AG12: =Input!AG122 -> 0 | AH12: =Input!AH122 -> 0 | AI12: =Input!AI122 -> 0 | AJ12: =Input!AJ122 -> 0 | AK12: =Input!AK122 -> 0 | AL12: =Input!AL122 -> 0 | AM12: =Input!AM122 -> 0 | AN12: =Input!AN122 -> 0 | AO12: =Input!AO122 -> 0 | AP12: =Input!AP122 -> 0 | AQ12: =Input!AQ122 -> 0 | AR12: =Input!AR122 -> 0 | AS12: =Input!AS122 -> 0 | AT12: =Input!AT122 -> 0 | AU12: =Input!AU122 -> 0 | AV12: =Input!AV122 -> 0 | AW12: =Input!AW122 -> 0 | AX12: =Input!AX122 -> 0
B14: Running total RAV
C16: Pre-operational
E18: Opening pre-operational RAV (before transfers) | G18: £m 16/17 prices | L18: =K25 -> 0 | M18: =L25 -> 0.05185282906 | N18: 0.3532873521 | O18: 1.164219777 | P18: 2.468995043 | Q18: 4.643984316 | R18: 8.988593566 | S18: 12.76431881 | T18: 74.36872046 | U18: 199.8636716 | V18: =U25 -> 335.5665701 | W18: 0 | X18: 0 | Y18: 0 | Z18: 0 | AA18: 0 | AB18: 0 | AC18: 0 | AD18: 0 | AE18: 0 | AF18: 0 | AG18: 0 | AH18: 0 | AI18: 0 | AJ18: 0 | AK18: 0 | AL18: 0 | AM18: 0 | AN18: 0 | AO18: 0 | AP18: 0 | AQ18: 0 | AR18: 0 | AS18: 0 | AT18: 0 | AU18: 0 | AV18: 0 | AW18: 0 | AX18: 0
E19: =Input!E16 -> Development costs | G19: £m 16/17 prices | K19: =Input!K16 -> 0 | L19: =Input!L16 -> 0.05021345391 | M19: =Input!M16 -> 0.2885149836 | N19: =Input!N16 -> 0.762201092 | O19: =Input!O16 -> 1.187423285 | P19: =Input!P16 -> 1.94483683 | Q19: =Input!Q16 -> 3.903692079 | R19: =Input!R16 -> 2.18581846 | S19: =Input!S16 -> 0 | T19: =Input!T16 -> 0 | U19: =Input!U16 -> 0 | V19: =Input!V16 -> 0 | W19: =Input!W16 -> 0 | X19: =Input!X16 -> 0 | Y19: =Input!Y16 -> 0 | Z19: =Input!Z16 -> 0 | AA19: =Input!AA16 -> 0 | AB19: =Input!AB16 -> 0 | AC19: =Input!AC16 -> 0 | AD19: =Input!AD16 -> 0 | AE19: =Input!AE16 -> 0 | AF19: =Input!AF16 -> 0 | AG19: =Input!AG16 -> 0 | AH19: =Input!AH16 -> 0 | AI19: =Input!AI16 -> 0 | AJ19: =Input!AJ16 -> 0 | AK19: =Input!AK16 -> 0 | AL19: =Input!AL16 -> 0 | AM19: =Input!AM16 -> 0 | AN19: =Input!AN16 -> 0 | AO19: =Input!AO16 -> 0 | AP19: =Input!AP16 -> 0 | AQ19: =Input!AQ16 -> 0 | AR19: =Input!AR16 -> 0 | AS19: =Input!AS16 -> 0 | AT19: =Input!AT16 -> 0 | AU19: =Input!AU16 -> 0 | AV19: =Input!AV16 -> 0 | AW19: =Input!AW16 -> 0 | AX19: =Input!AX16 -> 0
E20: =Input!E17 -> Capex | G20: £m 16/17 prices | K20: =Input!K17 -> 0 | L20: =Input!L17 -> 0 | M20: =Input!M17 -> 0 | N20: =Input!N17 -> 0 | O20: =Input!O17 -> 0 | P20: =Input!P17 -> 0 | Q20: =Input!Q17 -> 0 | R20: =Input!R17 -> 0.882986 | S20: =Input!S17 -> 58.82237 | T20: =Input!T17 -> 116.666132 | U20: =Input!U17 -> 118.348252 | V20: =Input!V17 -> 18.251215 | W20: =Input!W17 -> 0 | X20: =Input!X17 -> 0 | Y20: =Input!Y17 -> 0 | Z20: =Input!Z17 -> 0 | AA20: =Input!AA17 -> 0 | AB20: =Input!AB17 -> 0 | AC20: =Input!AC17 -> 0 | AD20: =Input!AD17 -> 0 | AE20: =Input!AE17 -> 0 | AF20: =Input!AF17 -> 0 | AG20: =Input!AG17 -> 0 | AH20: =Input!AH17 -> 0 | AI20: =Input!AI17 -> 0 | AJ20: =Input!AJ17 -> 0 | AK20: =Input!AK17 -> 0 | AL20: =Input!AL17 -> 0 | AM20: =Input!AM17 -> 0 | AN20: =Input!AN17 -> 0 | AO20: =Input!AO17 -> 0 | AP20: =Input!AP17 -> 0 | AQ20: =Input!AQ17 -> 0 | AR20: =Input!AR17 -> 0 | AS20: =Input!AS17 -> 0 | AT20: =Input!AT17 -> 0 | AU20: =Input!AU17 -> 0 | AV20: =Input!AV17 -> 0 | AW20: =Input!AW17 -> 0 | AX20: =Input!AX17 -> 0
E21: =Input!E18 -> Spares | G21: £m 16/17 prices | K21: =Input!K18 -> 0 | L21: =Input!L18 -> 0 | M21: =Input!M18 -> 0 | N21: =Input!N18 -> 0 | O21: =Input!O18 -> 0 | P21: =Input!P18 -> 0 | Q21: =Input!Q18 -> 0 | R21: =Input!R18 -> 0 | S21: =Input!S18 -> 0 | T21: =Input!T18 -> 0 | U21: =Input!U18 -> 0 | V21: =Input!V18 -> 0 | W21: =Input!W18 -> 0 | X21: =Input!X18 -> 0 | Y21: =Input!Y18 -> 0 | Z21: =Input!Z18 -> 0 | AA21: =Input!AA18 -> 0 | AB21: =Input!AB18 -> 0 | AC21: =Input!AC18 -> 0 | AD21: =Input!AD18 -> 0 | AE21: =Input!AE18 -> 0 | AF21: =Input!AF18 -> 0 | AG21: =Input!AG18 -> 0 | AH21: =Input!AH18 -> 0 | AI21: =Input!AI18 -> 0 | AJ21: =Input!AJ18 -> 0 | AK21: =Input!AK18 -> 0 | AL21: =Input!AL18 -> 0 | AM21: =Input!AM18 -> 0 | AN21: =Input!AN18 -> 0 | AO21: =Input!AO18 -> 0 | AP21: =Input!AP18 -> 0 | AQ21: =Input!AQ18 -> 0 | AR21: =Input!AR18 -> 0 | AS21: =Input!AS18 -> 0 | AT21: =Input!AT18 -> 0 | AU21: =Input!AU18 -> 0 | AV21: =Input!AV18 -> 0 | AW21: =Input!AW18 -> 0 | AX21: =Input!AX18 -> 0
E22: =Finance!E26 -> Capitalised IDC | G22: £m 16/17 prices | K22: =Finance!K26 -> 0 | L22: =Finance!L26 -> 0.001639375158 | M22: =Finance!M26 -> 0.01291953943 | N22: =Finance!N26 -> 0.04873133337 | O22: =Finance!O26 -> 0.1173519797 | P22: =Finance!P26 -> 0.2301524428 | Q22: =Finance!Q26 -> 0.4409171712 | R22: =Finance!R26 -> 0.7069207796 | S22: =Finance!S26 -> 2.782031652 | T22: =Finance!T26 -> 8.82881918 | U22: =Finance!U26 -> 17.35464645 | V22: =Finance!V26 -> 15.37134401 | W22: =Finance!W26 -> 0 | X22: =Finance!X26 -> 0 | Y22: =Finance!Y26 -> 0 | Z22: =Finance!Z26 -> 0 | AA22: =Finance!AA26 -> 0 | AB22: =Finance!AB26 -> 0 | AC22: =Finance!AC26 -> 0 | AD22: =Finance!AD26 -> 0 | AE22: =Finance!AE26 -> 0 | AF22: =Finance!AF26 -> 0 | AG22: =Finance!AG26 -> 0 | AH22: =Finance!AH26 -> 0 | AI22: =Finance!AI26 -> 0 | AJ22: =Finance!AJ26 -> 0 | AK22: =Finance!AK26 -> 0 | AL22: =Finance!AL26 -> 0 | AM22: =Finance!AM26 -> 0 | AN22: =Finance!AN26 -> 0 | AO22: =Finance!AO26 -> 0 | AP22: =Finance!AP26 -> 0 | AQ22: =Finance!AQ26 -> 0 | AR22: =Finance!AR26 -> 0 | AS22: =Finance!AS26 -> 0 | AT22: =Finance!AT26 -> 0 | AU22: =Finance!AU26 -> 0 | AV22: =Finance!AV26 -> 0 | AW22: =Finance!AW26 -> 0 | AX22: =Finance!AX26 -> 0
E23: Closing pre-operational RAV (after IDC) | G23: £m 16/17 prices | K23: =SUM(K18:K22) -> 0 | L23: 0.05185282906 | M23: 0.3532873521 | N23: 1.164219777 | O23: 2.468995043 | P23: 4.643984316 | Q23: 8.988593566 | R23: 12.76431881 | S23: 74.36872046 | T23: 199.8636716 | U23: 335.5665701 | V23: =SUM(V18:V22) -> 369.1891291 | W23: 0 | X23: 0 | Y23: 0 | Z23: 0 | AA23: 0 | AB23: 0 | AC23: 0 | AD23: 0 | AE23: 0 | AF23: 0 | AG23: 0 | AH23: 0 | AI23: 0 | AJ23: 0 | AK23: 0 | AL23: 0 | AM23: 0 | AN23: 0 | AO23: 0 | AP23: 0 | AQ23: 0 | AR23: 0 | AS23: 0 | AT23: 0 | AU23: 0 | AV23: 0 | AW23: 0 | AX23: 0
E24: Pre-operational RAV transfers | G24: £m 16/17 prices | K24: =-K23*K12 -> 0 | L24: 0 | M24: 0 | N24: 0 | O24: 0 | P24: 0 | Q24: 0 | R24: 0 | S24: 0 | T24: 0 | U24: 0 | V24: =-V23*V12 -> -369.1891291 | W24: 0 | X24: 0 | Y24: 0 | Z24: 0 | AA24: 0 | AB24: 0 | AC24: 0 | AD24: 0 | AE24: 0 | AF24: 0 | AG24: 0 | AH24: 0 | AI24: 0 | AJ24: 0 | AK24: 0 | AL24: 0 | AM24: 0 | AN24: 0 | AO24: 0 | AP24: 0 | AQ24: 0 | AR24: 0 | AS24: 0 | AT24: 0 | AU24: 0 | AV24: 0 | AW24: 0 | AX24: 0
E25: Closing pre-operational RAV (after IDC) - adjusted for RAV transfers | G25: £m 16/17 prices | K25: =SUM(K23:K24) -> 0 | L25: 0.05185282906 | M25: 0.3532873521 | N25: 1.164219777 | O25: 2.468995043 | P25: 4.643984316 | Q25: 8.988593566 | R25: 12.76431881 | S25: 74.36872046 | T25: 199.8636716 | U25: =SUM(U23:U24) -> 335.5665701 | V25: =SUM(V23:V24) -> 0 | W25: 0 | X25: 0 | Y25: 0 | Z25: 0 | AA25: 0 | AB25: 0 | AC25: 0 | AD25: 0 | AE25: 0 | AF25: 0 | AG25: 0 | AH25: 0 | AI25: 0 | AJ25: 0 | AK25: 0 | AL25: 0 | AM25: 0 | AN25: 0 | AO25: 0 | AP25: 0 | AQ25: 0 | AR25: 0 | AS25: 0 | AT25: 0 | AU25: 0 | AV25: 0 | AW25: 0 | AX25: 0
B27: End of sheet

Sheet Finance
A1: Finance | H1: Licence
E2: Parameter | G2: Units | H2: Terminology | I2: Constant | K2: Annual values
E3: Project year | K3: =Input!K8 -> -10 | L3: =K3 + 1 -> -9 | M3: -8 | N3: -7 | O3: -6 | P3: -5 | Q3: -4 | R3: -3 | S3: -2 | T3: -1 | U3: 0 | V3: 1 | W3: 2 | X3: 3 | Y3: 4 | Z3: 5 | AA3: 6 | AB3: 7 | AC3: 8 | AD3: 9 | AE3: 10 | AF3: 11 | AG3: 12 | AH3: 13 | AI3: 14 | AJ3: 15 | AK3: 16 | AL3: 17 | AM3: 18 | AN3: 19 | AO3: 20 | AP3: 21 | AQ3: 22 | AR3: 23 | AS3: 24 | AT3: 25 | AU3: 26 | AV3: 27 | AW3: 28 | AX3: 29
E4: Year commencing | K4: =Input!K9 -> 2009-04-01 | L4: =+K5+1 -> 2010-04-01 | M4: 2011-04-01 | N4: 2012-04-01 | O4: 2013-04-01 | P4: 2014-04-01 | Q4: 2015-04-01 | R4: 2016-04-01 | S4: 2017-04-01 | T4: 2018-04-01 | U4: 2019-04-01 | V4: 2020-04-01 | W4: 2021-04-01 | X4: 2022-04-01 | Y4: 2023-04-01 | Z4: 2024-04-01 | AA4: 2025-04-01 | AB4: 2026-04-01 | AC4: 2027-04-01 | AD4: 2028-04-01 | AE4: 2029-04-01 | AF4: 2030-04-01 | AG4: 2031-04-01 | AH4: 2032-04-01 | AI4: 2033-04-01 | AJ4: 2034-04-01 | AK4: 2035-04-01 | AL4: 2036-04-01 | AM4: 2037-04-01 | AN4: 2038-04-01 | AO4: 2039-04-01 | AP4: 2040-04-01 | AQ4: 2041-04-01 | AR4: 2042-04-01 | AS4: 2043-04-01 | AT4: 2044-04-01 | AU4: 2045-04-01 | AV4: 2046-04-01 | AW4: 2047-04-01 | AX4: 2048-04-01
E5: Year ending | K5: =Input!K10 -> 2010-03-31 | L5: =DATE(YEAR(K5) + 1, MONTH(K5), DAY(K5)) -> 2011-03-31 | M5: 2012-03-31 | N5: 2013-03-31 | O5: 2014-03-31 | P5: 2015-03-31 | Q5: 2016-03-31 | R5: 2017-03-31 | S5: 2018-03-31 | T5: 2019-03-31 | U5: 2020-03-31 | V5: 2021-03-31 | W5: 2022-03-31 | X5: 2023-03-31 | Y5: 2024-03-31 | Z5: 2025-03-31 | AA5: 2026-03-31 | AB5: 2027-03-31 | AC5: 2028-03-31 | AD5: 2029-03-31 | AE5: 2030-03-31 | AF5: 2031-03-31 | AG5: 2032-03-31 | AH5: 2033-03-31 | AI5: 2034-03-31 | AJ5: 2035-03-31 | AK5: 2036-03-31 | AL5: 2037-03-31 | AM5: 2038-03-31 | AN5: 2039-03-31 | AO5: 2040-03-31 | AP5: 2041-03-31 | AQ5: 2042-03-31 | AR5: 2043-03-31 | AS5: 2044-03-31 | AT5: 2045-03-31 | AU5: 2046-03-31 | AV5: 2047-03-31 | AW5: 2048-03-31 | AX5: 2049-03-31
B7: Flags
E9: Interest During Construction Flag | G9: flag | K9: =Input!K119 -> 1 | L9: =Input!L119 -> 1 | M9: =Input!M119 -> 1 | N9: =Input!N119 -> 1 | O9: =Input!O119 -> 1 | P9: =Input!P119 -> 1 | Q9: =Input!Q119 -> 1 | R9: =Input!R119 -> 1 | S9: =Input!S119 -> 1 | T9: =Input!T119 -> 1 | U9: =Input!U119 -> 1 | V9: =Input!V119 -> 0.6684931507 | W9: =Input!W119 -> 0 | X9: =Input!X119 -> 0 | Y9: =Input!Y119 -> 0 | Z9: =Input!Z119 -> 0 | AA9: =Input!AA119 -> 0 | AB9: =Input!AB119 -> 0 | AC9: =Input!AC119 -> 0 | AD9: =Input!AD119 -> 0 | AE9: =Input!AE119 -> 0 | AF9: =Input!AF119 -> 0 | AG9: =Input!AG119 -> 0 | AH9: =Input!AH119 -> 0 | AI9: =Input!AI119 -> 0 | AJ9: =Input!AJ119 -> 0 | AK9: =Input!AK119 -> 0 | AL9: =Input!AL119 -> 0 | AM9: =Input!AM119 -> 0 | AN9: =Input!AN119 -> 0 | AO9: =Input!AO119 -> 0 | AP9: =Input!AP119 -> 0 | AQ9: =Input!AQ119 -> 0 | AR9: =Input!AR119 -> 0 | AS9: =Input!AS119 -> 0 | AT9: =Input!AT119 -> 0 | AU9: =Input!AU119 -> 0 | AV9: =Input!AV119 -> 0 | AW9: =Input!AW119 -> 0 | AX9: =Input!AX119 -> 0
E10: Post-IDC and Pre-Operations Flag | G10: flag | K10: =Input!K120 -> 0 | L10: =Input!L120 -> 0 | M10: =Input!M120 -> 0 | N10: =Input!N120 -> 0 | O10: =Input!O120 -> 0 | P10: =Input!P120 -> 0 | Q10: =Input!Q120 -> 0 | R10: =Input!R120 -> 0 | S10: =Input!S120 -> 0 | T10: =Input!T120 -> 0 | U10: =Input!U120 -> 0 | V10: =Input!V120 -> 0 | W10: =Input!W120 -> 0 | X10: =Input!X120 -> 0 | Y10: =Input!Y120 -> 0 | Z10: =Input!Z120 -> 0 | AA10: =Input!AA120 -> 0 | AB10: =Input!AB120 -> 0 | AC10: =Input!AC120 -> 0 | AD10: =Input!AD120 -> 0 | AE10: =Input!AE120 -> 0 | AF10: =Input!AF120 -> 0 | AG10: =Input!AG120 -> 0 | AH10: =Input!AH120 -> 0 | AI10: =Input!AI120 -> 0 | AJ10: =Input!AJ120 -> 0 | AK10: =Input!AK120 -> 0 | AL10: =Input!AL120 -> 0 | AM10: =Input!AM120 -> 0 | AN10: =Input!AN120 -> 0 | AO10: =Input!AO120 -> 0 | AP10: =Input!AP120 -> 0 | AQ10: =Input!AQ120 -> 0 | AR10: =Input!AR120 -> 0 | AS10: =Input!AS120 -> 0 | AT10: =Input!AT120 -> 0 | AU10: =Input!AU120 -> 0 | AV10: =Input!AV120 -> 0 | AW10: =Input!AW120 -> 0 | AX10: =Input!AX120 -> 0
E11: Operations Flag | G11: flag | K11: =Input!K121 -> 0 | L11: =Input!L121 -> 0 | M11: =Input!M121 -> 0 | N11: =Input!N121 -> 0 | O11: =Input!O121 -> 0 | P11: =Input!P121 -> 0 | Q11: =Input!Q121 -> 0 | R11: =Input!R121 -> 0 | S11: =Input!S121 -> 0 | T11: =Input!T121 -> 0 | U11: =Input!U121 -> 0 | V11: =Input!V121 -> 0.3315068493 | W11: =Input!W121 -> 1 | X11: =Input!X121 -> 1 | Y11: =Input!Y121 -> 1 | Z11: =Input!Z121 -> 1 | AA11: =Input!AA121 -> 1 | AB11: =Input!AB121 -> 1 | AC11: =Input!AC121 -> 1 | AD11: =Input!AD121 -> 1 | AE11: =Input!AE121 -> 1 | AF11: =Input!AF121 -> 1 | AG11: =Input!AG121 -> 1 | AH11: =Input!AH121 -> 1 | AI11: =Input!AI121 -> 1 | AJ11: =Input!AJ121 -> 1 | AK11: =Input!AK121 -> 1 | AL11: =Input!AL121 -> 1 | AM11: =Input!AM121 -> 1 | AN11: =Input!AN121 -> 1 | AO11: =Input!AO121 -> 1 | AP11: =Input!AP121 -> 1 | AQ11: =Input!AQ121 -> 1 | AR11: =Input!AR121 -> 1 | AS11: =Input!AS121 -> 1 | AT11: =Input!AT121 -> 1 | AU11: =Input!AU121 -> 0.6684931507 | AV11: =Input!AV121 -> 0 | AW11: =Input!AW121 -> 0 | AX11: =Input!AX121 -> 0
E12: Transfer Construction to Operations Flag | G12: flag | K12: =Input!K122 -> 0 | L12: =Input!L122 -> 0 | M12: =Input!M122 -> 0 | N12: =Input!N122 -> 0 | O12: =Input!O122 -> 0 | P12: =Input!P122 -> 0 | Q12: =Input!Q122 -> 0 | R12: =Input!R122 -> 0 | S12: =Input!S122 -> 0 | T12: =Input!T122 -> 0 | U12: =Input!U122 -> 0 | V12: =Input!V122 -> 1 | W12: =Input!W122 -> 0 | X12: =Input!X122 -> 0 | Y12: =Input!Y122 -> 0 | Z12: =Input!Z122 -> 0 | AA12: =Input!AA122 -> 0 | AB12: =Input!AB122 -> 0 | AC12: =Input!AC122 -> 0 | AD12: =Input!AD122 -> 0 | AE12: =Input!AE122 -> 0 | AF12: =Input!AF122 -> 0 | AG12: =Input!AG122 -> 0 | AH12: =Input!AH122 -> 0 | AI12: =Input!AI122 -> 0 | AJ12: =Input!AJ122 -> 0 | AK12: =Input!AK122 -> 0 | AL12: =Input!AL122 -> 0 | AM12: =Input!AM122 -> 0 | AN12: =Input!AN122 -> 0 | AO12: =Input!AO122 -> 0 | AP12: =Input!AP122 -> 0 | AQ12: =Input!AQ122 -> 0 | AR12: =Input!AR122 -> 0 | AS12: =Input!AS122 -> 0 | AT12: =Input!AT122 -> 0 | AU12: =Input!AU122 -> 0 | AV12: =Input!AV122 -> 0 | AW12: =Input!AW122 -> 0 | AX12: =Input!AX122 -> 0
E13: Initial Transaction Costs Flag | G13: flag | K13: =Input!K123 -> 0 | L13: =Input!L123 -> 0 | M13: =Input!M123 -> 0 | N13: =Input!N123 -> 0 | O13: =Input!O123 -> 0 | P13: =Input!P123 -> 0 | Q13: =Input!Q123 -> 1 | R13: =Input!R123 -> 0 | S13: =Input!S123 -> 0 | T13: =Input!T123 -> 0 | U13: =Input!U123 -> 0 | V13: =Input!V123 -> 0 | W13: =Input!W123 -> 0 | X13: =Input!X123 -> 0 | Y13: =Input!Y123 -> 0 | Z13: =Input!Z123 -> 0 | AA13: =Input!AA123 -> 0 | AB13: =Input!AB123 -> 0 | AC13: =Input!AC123 -> 0 | AD13: =Input!AD123 -> 0 | AE13: =Input!AE123 -> 0 | AF13: =Input!AF123 -> 0 | AG13: =Input!AG123 -> 0 | AH13: =Input!AH123 -> 0 | AI13: =Input!AI123 -> 0 | AJ13: =Input!AJ123 -> 0 | AK13: =Input!AK123 -> 0 | AL13: =Input!AL123 -> 0 | AM13: =Input!AM123 -> 0 | AN13: =Input!AN123 -> 0 | AO13: =Input!AO123 -> 0 | AP13: =Input!AP123 -> 0 | AQ13: =Input!AQ123 -> 0 | AR13: =Input!AR123 -> 0 | AS13: =Input!AS123 -> 0 | AT13: =Input!AT123 -> 0 | AU13: =Input!AU123 -> 0 | AV13: =Input!AV123 -> 0 | AW13: =Input!AW123 -> 0 | AX13: =Input!AX123 -> 0
B15: Pre-operational IDC
C17: Pre-operational IDC
E19: Interest during construction | G19: =Input!G45 -> real annual % | I19: =Input!I45 -> 0.0675
E21: Opening pre-operational RAV (before transfers) | G21: £m 16/17 prices | K21: =Pre_Op_RAV!K18 -> 0 | L21: =Pre_Op_RAV!L18 -> 0 | M21: =Pre_Op_RAV!M18 -> 0.05185282906 | N21: =Pre_Op_RAV!N18 -> 0.3532873521 | O21: =Pre_Op_RAV!O18 -> 1.164219777 | P21: =Pre_Op_RAV!P18 -> 2.468995043 | Q21: =Pre_Op_RAV!Q18 -> 4.643984316 | R21: =Pre_Op_RAV!R18 -> 8.988593566 | S21: =Pre_Op_RAV!S18 -> 12.76431881 | T21: =Pre_Op_RAV!T18 -> 74.36872046 | U21: =Pre_Op_RAV!U18 -> 199.8636716 | V21: =Pre_Op_RAV!V18 -> 335.5665701 | W21: =Pre_Op_RAV!W18 -> 0 | X21: =Pre_Op_RAV!X18 -> 0 | Y21: =Pre_Op_RAV!Y18 -> 0 | Z21: =Pre_Op_RAV!Z18 -> 0 | AA21: =Pre_Op_RAV!AA18 -> 0 | AB21: =Pre_Op_RAV!AB18 -> 0 | AC21: =Pre_Op_RAV!AC18 -> 0 | AD21: =Pre_Op_RAV!AD18 -> 0 | AE21: =Pre_Op_RAV!AE18 -> 0 | AF21: =Pre_Op_RAV!AF18 -> 0 | AG21: =Pre_Op_RAV!AG18 -> 0 | AH21: =Pre_Op_RAV!AH18 -> 0 | AI21: =Pre_Op_RAV!AI18 -> 0 | AJ21: =Pre_Op_RAV!AJ18 -> 0 | AK21: =Pre_Op_RAV!AK18 -> 0 | AL21: =Pre_Op_RAV!AL18 -> 0 | AM21: =Pre_Op_RAV!AM18 -> 0 | AN21: =Pre_Op_RAV!AN18 -> 0 | AO21: =Pre_Op_RAV!AO18 -> 0 | AP21: =Pre_Op_RAV!AP18 -> 0 | AQ21: =Pre_Op_RAV!AQ18 -> 0 | AR21: =Pre_Op_RAV!AR18 -> 0 | AS21: =Pre_Op_RAV!AS18 -> 0 | AT21: =Pre_Op_RAV!AT18 -> 0 | AU21: =Pre_Op_RAV!AU18 -> 0 | AV21: =Pre_Op_RAV!AV18 -> 0 | AW21: =Pre_Op_RAV!AW18 -> 0 | AX21: =Pre_Op_RAV!AX18 -> 0
E22: Development costs | G22: £m 16/17 prices | K22: =Input!K16 -> 0 | L22: =Input!L16 -> 0.05021345391 | M22: =Input!M16 -> 0.2885149836 | N22: =Input!N16 -> 0.762201092 | O22: =Input!O16 -> 1.187423285 | P22: =Input!P16 -> 1.94483683 | Q22: =Input!Q16 -> 3.903692079 | R22: =Input!R16 -> 2.18581846 | S22: =Input!S16 -> 0 | T22: =Input!T16 -> 0 | U22: =Input!U16 -> 0 | V22: =Input!V16 -> 0 | W22: =Input!W16 -> 0 | X22: =Input!X16 -> 0 | Y22: =Input!Y16 -> 0 | Z22: =Input!Z16 -> 0 | AA22: =Input!AA16 -> 0 | AB22: =Input!AB16 -> 0 | AC22: =Input!AC16 -> 0 | AD22: =Input!AD16 -> 0 | AE22: =Input!AE16 -> 0 | AF22: =Input!AF16 -> 0 | AG22: =Input!AG16 -> 0 | AH22: =Input!AH16 -> 0 | AI22: =Input!AI16 -> 0 | AJ22: =Input!AJ16 -> 0 | AK22: =Input!AK16 -> 0 | AL22: =Input!AL16 -> 0 | AM22: =Input!AM16 -> 0 | AN22: =Input!AN16 -> 0 | AO22: =Input!AO16 -> 0 | AP22: =Input!AP16 -> 0 | AQ22: =Input!AQ16 -> 0 | AR22: =Input!AR16 -> 0 | AS22: =Input!AS16 -> 0 | AT22: =Input!AT16 -> 0 | AU22: =Input!AU16 -> 0 | AV22: =Input!AV16 -> 0 | AW22: =Input!AW16 -> 0 | AX22: =Input!AX16 -> 0
E23: Capex | G23: £m 16/17 prices | K23: =Input!K17 -> 0 | L23: =Input!L17 -> 0 | M23: =Input!M17 -> 0 | N23: =Input!N17 -> 0 | O23: =Input!O17 -> 0 | P23: =Input!P17 -> 0 | Q23: =Input!Q17 -> 0 | R23: =Input!R17 -> 0.882986 | S23: =Input!S17 -> 58.82237 | T23: =Input!T17 -> 116.666132 | U23: =Input!U17 -> 118.348252 | V23: =Input!V17 -> 18.251215 | W23: =Input!W17 -> 0 | X23: =Input!X17 -> 0 | Y23: =Input!Y17 -> 0 | Z23: =Input!Z17 -> 0 | AA23: =Input!AA17 -> 0 | AB23: =Input!AB17 -> 0 | AC23: =Input!AC17 -> 0 | AD23: =Input!AD17 -> 0 | AE23: =Input!AE17 -> 0 | AF23: =Input!AF17 -> 0 | AG23: =Input!AG17 -> 0 | AH23: =Input!AH17 -> 0 | AI23: =Input!AI17 -> 0 | AJ23: =Input!AJ17 -> 0 | AK23: =Input!AK17 -> 0 | AL23: =Input!AL17 -> 0 | AM23: =Input!AM17 -> 0 | AN23: =Input!AN17 -> 0 | AO23: =Input!AO17 -> 0 | AP23: =Input!AP17 -> 0 | AQ23: =Input!AQ17 -> 0 | AR23: =Input!AR17 -> 0 | AS23: =Input!AS17 -> 0 | AT23: =Input!AT17 -> 0 | AU23: =Input!AU17 -> 0 | AV23: =Input!AV17 -> 0 | AW23: =Input!AW17 -> 0 | AX23: =Input!AX17 -> 0
E24: Spares | G24: £m 16/17 prices | K24: =Input!K18 -> 0 | L24: =Input!L18 -> 0 | M24: =Input!M18 -> 0 | N24: =Input!N18 -> 0 | O24: =Input!O18 -> 0 | P24: =Input!P18 -> 0 | Q24: =Input!Q18 -> 0 | R24: =Input!R18 -> 0 | S24: =Input!S18 -> 0 | T24: =Input!T18 -> 0 | U24: =Input!U18 -> 0 | V24: =Input!V18 -> 0 | W24: =Input!W18 -> 0 | X24: =Input!X18 -> 0 | Y24: =Input!Y18 -> 0 | Z24: =Input!Z18 -> 0 | AA24: =Input!AA18 -> 0 | AB24: =Input!AB18 -> 0 | AC24: =Input!AC18 -> 0 | AD24: =Input!AD18 -> 0 | AE24: =Input!AE18 -> 0 | AF24: =Input!AF18 -> 0 | AG24: =Input!AG18 -> 0 | AH24: =Input!AH18 -> 0 | AI24: =Input!AI18 -> 0 | AJ24: =Input!AJ18 -> 0 | AK24: =Input!AK18 -> 0 | AL24: =Input!AL18 -> 0 | AM24: =Input!AM18 -> 0 | AN24: =Input!AN18 -> 0 | AO24: =Input!AO18 -> 0 | AP24: =Input!AP18 -> 0 | AQ24: =Input!AQ18 -> 0 | AR24: =Input!AR18 -> 0 | AS24: =Input!AS18 -> 0 | AT24: =Input!AT18 -> 0 | AU24: =Input!AU18 -> 0 | AV24: =Input!AV18 -> 0 | AW24: =Input!AW18 -> 0 | AX24: =Input!AX18 -> 0
E26: Capitalised IDC | G26: £m 16/17 prices | K26: =((1+$I19)^(1-K11-K10)-1)*(K21+(K22+K23+K24)/(2+$I19)) -> 0 | L26: 0.001639375158 | M26: 0.01291953943 | N26: 0.04873133337 | O26: 0.1173519797 | P26: 0.2301524428 | Q26: 0.4409171712 | R26: 0.7069207796 | S26: 2.782031652 | T26: 8.82881918 | U26: 17.35464645 | V26: 15.37134401 | W26: 0 | X26: 0 | Y26: 0 | Z26: 0 | AA26: 0 | AB26: 0 | AC26: 0 | AD26: 0 | AE26: 0 | AF26: 0 | AG26: 0 | AH26: 0 | AI26: 0 | AJ26: 0 | AK26: 0 | AL26: 0 | AM26: 0 | AN26: 0 | AO26: 0 | AP26: 0 | AQ26: 0 | AR26: 0 | AS26: 0 | AT26: 0 | AU26: 0 | AV26: 0 | AW26: 0 | AX26: 0
B30: Transaction costs
C32: Transaction costs
E34: Pre-operational notional gearing | G34: =Input!G47 -> % | I34: =Input!I47 -> 0.4061
E35: Operational notional gearing | G35: =Input!G48 -> % | I35: =Input!I48 -> 0.5
E37: Share of RAV for debt transaction costs | G37: % | I37: =MAX(I34, I35) -> 0.5
E38: Share of RAV for equity transaction costs | G38: % | I38: =MAX(1 - I34,1 - I35) -> 0.5939
E40: Debt transaction costs | G40: =Input!G51 -> % | I40: =Input!I51 -> 0.025
E41: Equity transaction costs | G41: =Input!G50 -> % | I41: =Input!I50 -> 0.05
E43: Blended transaction costs | G43: % | I43: =I37 * I40 + I38 * I41 -> 0.042195
C45: Allowance
E46: Transaction costs - opening | G46: £m 16/17 prices | K46: =J54 -> 0 | L46: 0 | M46: 0 | N46: 0 | O46: 0 | P46: 0 | Q46: 0 | R46: 15.19155901 | S46: 16.21698925 | T46: 17.31163602 | U46: 18.48017145 | V46: 19.72758302 | W46: 0 | X46: 0 | Y46: 0 | Z46: 0 | AA46: 0 | AB46: 0 | AC46: 0 | AD46: 0 | AE46: 0 | AF46: 0 | AG46: 0 | AH46: 0 | AI46: 0 | AJ46: 0 | AK46: 0 | AL46: 0 | AM46: 0 | AN46: 0 | AO46: 0 | AP46: 0 | AQ46: 0 | AR46: 0 | AS46: 0 | AT46: 0 | AU46: 0 | AV46: 0 | AW46: 0 | AX46: 0
E47: Initial Debt transaction costs | G47: £m 16/17 prices | K47: =$I34*K$13*$I40*Op_RAV!$K$13 -> 0 | L47: =$I34*L$13*$I40*Op_RAV!$K$13 -> 0 | M47: =$I34*M$13*$I40*Op_RAV!$K$13 -> 0 | N47: =$I34*N$13*$I40*Op_RAV!$K$13 -> 0 | O47: =$I34*O$13*$I40*Op_RAV!$K$13 -> 0 | P47: =$I34*P$13*$I40*Op_RAV!$K$13 -> 0 | Q47: =$I34*Q$13*$I40*Op_RAV!$K$13 -> 3.748192633 | R47: =$I34*R$13*$I40*Op_RAV!$K$13 -> 0 | S47: =$I34*S$13*$I40*Op_RAV!$K$13 -> 0 | T47: =$I34*T$13*$I40*Op_RAV!$K$13 -> 0 | U47: =$I34*U$13*$I40*Op_RAV!$K$13 -> 0 | V47: =$I34*V$13*$I40*Op_RAV!$K$13 -> 0 | W47: =$I34*W$13*$I40*Op_RAV!$K$13 -> 0 | X47: =$I34*X$13*$I40*Op_RAV!$K$13 -> 0 | Y47: =$I34*Y$13*$I40*Op_RAV!$K$13 -> 0 | Z47: =$I34*Z$13*$I40*Op_RAV!$K$13 -> 0 | AA47: =$I34*AA$13*$I40*Op_RAV!$K$13 -> 0 | AB47: =$I34*AB$13*$I40*Op_RAV!$K$13 -> 0 | AC47: =$I34*AC$13*$I40*Op_RAV!$K$13 -> 0 | AD47: =$I34*AD$13*$I40*Op_RAV!$K$13 -> 0 | AE47: =$I34*AE$13*$I40*Op_RAV!$K$13 -> 0 | AF47: =$I34*AF$13*$I40*Op_RAV!$K$13 -> 0 | AG47: =$I34*AG$13*$I40*Op_RAV!$K$13 -> 0 | AH47: =$I34*AH$13*$I40*Op_RAV!$K$13 -> 0 | AI47: =$I34*AI$13*$I40*Op_RAV!$K$13 -> 0 | AJ47: =$I34*AJ$13*$I40*Op_RAV!$K$13 -> 0 | AK47: =$I34*AK$13*$I40*Op_RAV!$K$13 -> 0 | AL47: =$I34*AL$13*$I40*Op_RAV!$K$13 -> 0 | AM47: =$I34*AM$13*$I40*Op_RAV!$K$13 -> 0 | AN47: =$I34*AN$13*$I40*Op_RAV!$K$13 -> 0 | AO47: =$I34*AO$13*$I40*Op_RAV!$K$13 -> 0 | AP47: =$I34*AP$13*$I40*Op_RAV!$K$13 -> 0 | AQ47: =$I34*AQ$13*$I40*Op_RAV!$K$13 -> 0 | AR47: =$I34*AR$13*$I40*Op_RAV!$K$13 -> 0 | AS47: =$I34*AS$13*$I40*Op_RAV!$K$13 -> 0 | AT47: =$I34*AT$13*$I40*Op_RAV!$K$13 -> 0 | AU47: =$I34*AU$13*$I40*Op_RAV!$K$13 -> 0 | AV47: =$I34*AV$13*$I40*Op_RAV!$K$13 -> 0 | AW47: =$I34*AW$13*$I40*Op_RAV!$K$13 -> 0 | AX47: =$I34*AX$13*$I40*Op_RAV!$K$13 -> 0
E48: Initial Equity transaction costs | G48: £m 16/17 prices | K48: =(1-$I34)*K$13*$I41*Op_RAV!$K$13 -> 0 | L48: =(1-$I34)*L$13*$I41*Op_RAV!$K$13 -> 0 | M48: =(1-$I34)*M$13*$I41*Op_RAV!$K$13 -> 0 | N48: =(1-$I34)*N$13*$I41*Op_RAV!$K$13 -> 0 | O48: =(1-$I34)*O$13*$I41*Op_RAV!$K$13 -> 0 | P48: =(1-$I34)*P$13*$I41*Op_RAV!$K$13 -> 0 | Q48: =(1-$I34)*Q$13*$I41*Op_RAV!$K$13 -> 10.96307119 | R48: =(1-$I34)*R$13*$I41*Op_RAV!$K$13 -> 0 | S48: =(1-$I34)*S$13*$I41*Op_RAV!$K$13 -> 0 | T48: =(1-$I34)*T$13*$I41*Op_RAV!$K$13 -> 0 | U48: =(1-$I34)*U$13*$I41*Op_RAV!$K$13 -> 0 | V48: =(1-$I34)*V$13*$I41*Op_RAV!$K$13 -> 0 | W48: =(1-$I34)*W$13*$I41*Op_RAV!$K$13 -> 0 | X48: =(1-$I34)*X$13*$I41*Op_RAV!$K$13 -> 0 | Y48: =(1-$I34)*Y$13*$I41*Op_RAV!$K$13 -> 0 | Z48: =(1-$I34)*Z$13*$I41*Op_RAV!$K$13 -> 0 | AA48: =(1-$I34)*AA$13*$I41*Op_RAV!$K$13 -> 0 | AB48: =(1-$I34)*AB$13*$I41*Op_RAV!$K$13 -> 0 | AC48: =(1-$I34)*AC$13*$I41*Op_RAV!$K$13 -> 0 | AD48: =(1-$I34)*AD$13*$I41*Op_RAV!$K$13 -> 0 | AE48: =(1-$I34)*AE$13*$I41*Op_RAV!$K$13 -> 0 | AF48: =(1-$I34)*AF$13*$I41*Op_RAV!$K$13 -> 0 | AG48: =(1-$I34)*AG$13*$I41*Op_RAV!$K$13 -> 0 | AH48: =(1-$I34)*AH$13*$I41*Op_RAV!$K$13 -> 0 | AI48: =(1-$I34)*AI$13*$I41*Op_RAV!$K$13 -> 0 | AJ48: =(1-$I34)*AJ$13*$I41*Op_RAV!$K$13 -> 0 | AK48: =(1-$I34)*AK$13*$I41*Op_RAV!$K$13 -> 0 | AL48: =(1-$I34)*AL$13*$I41*Op_RAV!$K$13 -> 0 | AM48: =(1-$I34)*AM$13*$I41*Op_RAV!$K$13 -> 0 | AN48: =(1-$I34)*AN$13*$I41*Op_RAV!$K$13 -> 0 | AO48: =(1-$I34)*AO$13*$I41*Op_RAV!$K$13 -> 0 | AP48: =(1-$I34)*AP$13*$I41*Op_RAV!$K$13 -> 0 | AQ48: =(1-$I34)*AQ$13*$I41*Op_RAV!$K$13 -> 0 | AR48: =(1-$I34)*AR$13*$I41*Op_RAV!$K$13 -> 0 | AS48: =(1-$I34)*AS$13*$I41*Op_RAV!$K$13 -> 0 | AT48: =(1-$I34)*AT$13*$I41*Op_RAV!$K$13 -> 0 | AU48: =(1-$I34)*AU$13*$I41*Op_RAV!$K$13 -> 0 | AV48: =(1-$I34)*AV$13*$I41*Op_RAV!$K$13 -> 0 | AW48: =(1-$I34)*AW$13*$I41*Op_RAV!$K$13 -> 0 | AX48: =(1-$I34)*AX$13*$I41*Op_RAV!$K$13 -> 0
E49: Final Debt transaction costs | G49: £m 16/17 prices | K49: =($I35-$I34)*Op_RAV!$K$13*$I40*K$12 -> 0 | L49: =($I35-$I34)*Op_RAV!$K$13*$I40*L$12 -> 0 | M49: =($I35-$I34)*Op_RAV!$K$13*$I40*M$12 -> 0 | N49: =($I35-$I34)*Op_RAV!$K$13*$I40*N$12 -> 0 | O49: =($I35-$I34)*Op_RAV!$K$13*$I40*O$12 -> 0 | P49: =($I35-$I34)*Op_RAV!$K$13*$I40*P$12 -> 0 | Q49: =($I35-$I34)*Op_RAV!$K$13*$I40*Q$12 -> 0 | R49: =($I35-$I34)*Op_RAV!$K$13*$I40*R$12 -> 0 | S49: =($I35-$I34)*Op_RAV!$K$13*$I40*S$12 -> 0 | T49: =($I35-$I34)*Op_RAV!$K$13*$I40*T$12 -> 0 | U49: =($I35-$I34)*Op_RAV!$K$13*$I40*U$12 -> 0 | V49: =($I35-$I34)*Op_RAV!$K$13*$I40*V$12 -> 0.8666714806 | W49: =($I35-$I34)*Op_RAV!$K$13*$I40*W$12 -> 0 | X49: =($I35-$I34)*Op_RAV!$K$13*$I40*X$12 -> 0 | Y49: =($I35-$I34)*Op_RAV!$K$13*$I40*Y$12 -> 0 | Z49: =($I35-$I34)*Op_RAV!$K$13*$I40*Z$12 -> 0 | AA49: =($I35-$I34)*Op_RAV!$K$13*$I40*AA$12 -> 0 | AB49: =($I35-$I34)*Op_RAV!$K$13*$I40*AB$12 -> 0 | AC49: =($I35-$I34)*Op_RAV!$K$13*$I40*AC$12 -> 0 | AD49: =($I35-$I34)*Op_RAV!$K$13*$I40*AD$12 -> 0 | AE49: =($I35-$I34)*Op_RAV!$K$13*$I40*AE$12 -> 0 | AF49: =($I35-$I34)*Op_RAV!$K$13*$I40*AF$12 -> 0 | AG49: =($I35-$I34)*Op_RAV!$K$13*$I40*AG$12 -> 0 | AH49: =($I35-$I34)*Op_RAV!$K$13*$I40*AH$12 -> 0 | AI49: =($I35-$I34)*Op_RAV!$K$13*$I40*AI$12 -> 0 | AJ49: =($I35-$I34)*Op_RAV!$K$13*$I40*AJ$12 -> 0 | AK49: =($I35-$I34)*Op_RAV!$K$13*$I40*AK$12 -> 0 | AL49: =($I35-$I34)*Op_RAV!$K$13*$I40*AL$12 -> 0 | AM49: =($I35-$I34)*Op_RAV!$K$13*$I40*AM$12 -> 0 | AN49: =($I35-$I34)*Op_RAV!$K$13*$I40*AN$12 -> 0 | AO49: =($I35-$I34)*Op_RAV!$K$13*$I40*AO$12 -> 0 | AP49: =($I35-$I34)*Op_RAV!$K$13*$I40*AP$12 -> 0 | AQ49: =($I35-$I34)*Op_RAV!$K$13*$I40*AQ$12 -> 0 | AR49: =($I35-$I34)*Op_RAV!$K$13*$I40*AR$12 -> 0 | AS49: =($I35-$I34)*Op_RAV!$K$13*$I40*AS$12 -> 0 | AT49: =($I35-$I34)*Op_RAV!$K$13*$I40*AT$12 -> 0 | AU49: =($I35-$I34)*Op_RAV!$K$13*$I40*AU$12 -> 0 | AV49: =($I35-$I34)*Op_RAV!$K$13*$I40*AV$12 -> 0 | AW49: =($I35-$I34)*Op_RAV!$K$13*$I40*AW$12 -> 0 | AX49: =($I35-$I34)*Op_RAV!$K$13*$I40*AX$12 -> 0
E50: Final Equity transaction costs | G50: £m 16/17 prices | K50: =($I34-$I35)*Op_RAV!$K$13*$I41*K$12 -> 0 | L50: =($I34-$I35)*Op_RAV!$K$13*$I41*L$12 -> 0 | M50: =($I34-$I35)*Op_RAV!$K$13*$I41*M$12 -> 0 | N50: =($I34-$I35)*Op_RAV!$K$13*$I41*N$12 -> 0 | O50: =($I34-$I35)*Op_RAV!$K$13*$I41*O$12 -> 0 | P50: =($I34-$I35)*Op_RAV!$K$13*$I41*P$12 -> 0 | Q50: =($I34-$I35)*Op_RAV!$K$13*$I41*Q$12 -> 0 | R50: =($I34-$I35)*Op_RAV!$K$13*$I41*R$12 -> 0 | S50: =($I34-$I35)*Op_RAV!$K$13*$I41*S$12 -> 0 | T50: =($I34-$I35)*Op_RAV!$K$13*$I41*T$12 -> 0 | U50: =($I34-$I35)*Op_RAV!$K$13*$I41*U$12 -> 0 | V50: =($I34-$I35)*Op_RAV!$K$13*$I41*V$12 -> -1.733342961 | W50: =($I34-$I35)*Op_RAV!$K$13*$I41*W$12 -> 0 | X50: =($I34-$I35)*Op_RAV!$K$13*$I41*X$12 -> 0 | Y50: =($I34-$I35)*Op_RAV!$K$13*$I41*Y$12 -> 0 | Z50: =($I34-$I35)*Op_RAV!$K$13*$I41*Z$12 -> 0 | AA50: =($I34-$I35)*Op_RAV!$K$13*$I41*AA$12 -> 0 | AB50: =($I34-$I35)*Op_RAV!$K$13*$I41*AB$12 -> 0 | AC50: =($I34-$I35)*Op_RAV!$K$13*$I41*AC$12 -> 0 | AD50: =($I34-$I35)*Op_RAV!$K$13*$I41*AD$12 -> 0 | AE50: =($I34-$I35)*Op_RAV!$K$13*$I41*AE$12 -> 0 | AF50: =($I34-$I35)*Op_RAV!$K$13*$I41*AF$12 -> 0 | AG50: =($I34-$I35)*Op_RAV!$K$13*$I41*AG$12 -> 0 | AH50: =($I34-$I35)*Op_RAV!$K$13*$I41*AH$12 -> 0 | AI50: =($I34-$I35)*Op_RAV!$K$13*$I41*AI$12 -> 0 | AJ50: =($I34-$I35)*Op_RAV!$K$13*$I41*AJ$12 -> 0 | AK50: =($I34-$I35)*Op_RAV!$K$13*$I41*AK$12 -> 0 | AL50: =($I34-$I35)*Op_RAV!$K$13*$I41*AL$12 -> 0 | AM50: =($I34-$I35)*Op_RAV!$K$13*$I41*AM$12 -> 0 | AN50: =($I34-$I35)*Op_RAV!$K$13*$I41*AN$12 -> 0 | AO50: =($I34-$I35)*Op_RAV!$K$13*$I41*AO$12 -> 0 | AP50: =($I34-$I35)*Op_RAV!$K$13*$I41*AP$12 -> 0 | AQ50: =($I34-$I35)*Op_RAV!$K$13*$I41*AQ$12 -> 0 | AR50: =($I34-$I35)*Op_RAV!$K$13*$I41*AR$12 -> 0 | AS50: =($I34-$I35)*Op_RAV!$K$13*$I41*AS$12 -> 0 | AT50: =($I34-$I35)*Op_RAV!$K$13*$I41*AT$12 -> 0 | AU50: =($I34-$I35)*Op_RAV!$K$13*$I41*AU$12 -> 0 | AV50: =($I34-$I35)*Op_RAV!$K$13*$I41*AV$12 -> 0 | AW50: =($I34-$I35)*Op_RAV!$K$13*$I41*AW$12 -> 0 | AX50: =($I34-$I35)*Op_RAV!$K$13*$I41*AX$12 -> 0
E51: Transaction costs - annual movement | G51: £m 16/17 prices | K51: =SUM(K47:K50) -> 0 | L51: 0 | M51: 0 | N51: 0 | O51: 0 | P51: 0 | Q51: 14.71126382 | R51: 0 | S51: 0 | T51: 0 | U51: 0 | V51: -0.8666714806 | W51: 0 | X51: 0 | Y51: 0 | Z51: 0 | AA51: 0 | AB51: 0 | AC51: 0 | AD51: 0 | AE51: 0 | AF51: 0 | AG51: 0 | AH51: 0 | AI51: 0 | AJ51: 0 | AK51: 0 | AL51: 0 | AM51: 0 | AN51: 0 | AO51: 0 | AP51: 0 | AQ51: 0 | AR51: 0 | AS51: 0 | AT51: 0 | AU51: 0 | AV51: 0 | AW51: 0 | AX51: 0
E52: Capitalised IDC on transaction costs | G52: £m 16/17 prices | K52: =((1+$I19)^(1-K$11-K$10)-1)*(K46+(K47+K48+K49+K50)/(2+$I19)) -> 0 | L52: 0 | M52: 0 | N52: 0 | O52: 0 | P52: 0 | Q52: 0.4802951913 | R52: 1.025430233 | S52: 1.094646774 | T52: 1.168535431 | U52: 1.247411573 | V52: 0.8617913498 | W52: 0 | X52: 0 | Y52: 0 | Z52: 0 | AA52: 0 | AB52: 0 | AC52: 0 | AD52: 0 | AE52: 0 | AF52: 0 | AG52: 0 | AH52: 0 | AI52: 0 | AJ52: 0 | AK52: 0 | AL52: 0 | AM52: 0 | AN52: 0 | AO52: 0 | AP52: 0 | AQ52: 0 | AR52: 0 | AS52: 0 | AT52: 0 | AU52: 0 | AV52: 0 | AW52: 0 | AX52: 0
E53: Transfer to Operational RAV | G53: £m 16/17 prices | K53: =-SUM(K46,K51,K52)*K$12 -> 0 | L53: 0 | M53: 0 | N53: 0 | O53: 0 | P53: 0 | Q53: 0 | R53: 0 | S53: 0 | T53: 0 | U53: 0 | V53: -19.72270289 | W53: 0 | X53: 0 | Y53: 0 | Z53: 0 | AA53: 0 | AB53: 0 | AC53: 0 | AD53: 0 | AE53: 0 | AF53: 0 | AG53: 0 | AH53: 0 | AI53: 0 | AJ53: 0 | AK53: 0 | AL53: 0 | AM53: 0 | AN53: 0 | AO53: 0 | AP53: 0 | AQ53: 0 | AR53: 0 | AS53: 0 | AT53: 0 | AU53: 0 | AV53: 0 | AW53: 0 | AX53: 0
E54: Transaction costs - closing | G54: £m 16/17 prices | K54: =SUM(K53,K52,K51,K46) -> 0 | L54: 0 | M54: 0 | N54: 0 | O54: 0 | P54: 0 | Q54: 15.19155901 | R54: 16.21698925 | S54: 17.31163602 | T54: 18.48017145 | U54: 19.72758302 | V54: 0 | W54: 0 | X54: 0 | Y54: 0 | Z54: 0 | AA54: 0 | AB54: 0 | AC54: 0 | AD54: 0 | AE54: 0 | AF54: 0 | AG54: 0 | AH54: 0 | AI54: 0 | AJ54: 0 | AK54: 0 | AL54: 0 | AM54: 0 | AN54: 0 | AO54: 0 | AP54: 0 | AQ54: 0 | AR54: 0 | AS54: 0 | AT54: 0 | AU54: 0 | AV54: 0 | AW54: 0 | AX54: 0
B57: Inflation
C59: Ex ante forecast
E61: Expected UK RPI inflation | G61: =Input!G94 -> % | I61: =Input!I94 -> 0.0324
E63: 2016/17 RPI inflation index value (CHAW) | G63: =Input!G96 -> Jan 1987 = 100 | I63: =Input!I96 -> 264.992
E64: Forecast GB inflation index | G64: Jan 1987 = 100 | K64: =Input!K97 -> 215.767 | L64: =Input!L97 -> 226.475 | M64: =Input!M97 -> 237.342 | N64: =Input!N97 -> 244.675 | O64: =Input!O97 -> 251.733 | P64: =Input!P97 -> 256.667 | Q64: =Input!Q97 -> 259.433 | R64: =Q64 * (1 + $I61) -> 267.8386292 | S64: 276.5166008 | T64: 285.4757387 | U64: 294.7251526 | V64: 304.2742475 | W64: 314.1327331 | X64: 324.3106337 | Y64: 334.8182982 | Z64: 345.6664111 | AA64: 356.8660028 | AB64: 368.4284613 | AC64: 380.3655435 | AD64: 392.6893871 | AE64: 405.4125232 | AF64: 418.547889 | AG64: 432.1088406 | AH64: 446.109167 | AI64: 460.563104 | AJ64: 475.4853486 | AK64: 490.8910739 | AL64: 506.7959447 | AM64: 523.2161333 | AN64: 540.168336 | AO64: 557.6697901 | AP64: 575.7382913 | AQ64: 594.3922119 | AR64: 613.6505196 | AS64: 633.5327964 | AT64: 654.059259 | AU64: 675.250779 | AV64: 697.1289042 | AW64: 719.7158807 | AX64: 743.0346753
E65: GB inflation uplift (forecast) | G65: scalar | K65: =K64 / $I$69 -> 0.8142396752 | L65: 0.8546484422 | M65: 0.8956572274 | N65: 0.9233297609 | O65: 0.9499645272 | P65: 0.9685839573 | Q65: 0.9790220082 | R65: 1.010742321 | S65: 1.043490372 | T65: 1.077299461 | U65: 1.112203963 | V65: 1.148239371 | W65: 1.185442327 | X65: 1.223850659 | Y65: 1.26350342 | Z65: 1.304440931 | AA65: 1.346704817 | AB65: 1.390338053 | AC65: 1.435385006 | AD65: 1.48189148 | AE65: 1.529904764 | AF65: 1.579473678 | AG65: 1.630648625 | AH65: 1.683481641 | AI65: 1.738026446 | AJ65: 1.794338503 | AK65: 1.85247507 | AL65: 1.912495263 | AM65: 1.974460109 | AN65: 2.038432617 | AO65: 2.104477834 | AP65: 2.172662915 | AQ65: 2.243057194 | AR65: 2.315732247 | AS65: 2.390761972 | AT65: 2.46822266 | AU65: 2.548193074 | AV65: 2.630754529 | AW65: 2.715990976 | AX65: 2.803989084
C67: Ex post actuals
E69: 2016/17 RPI inflation index value (CHAW) | G69: =G63 -> Jan 1987 = 100 | I69: =I63 -> 264.992
E70: 12 month average UK RPI inflation index value (CHAW) | G70: =G64 -> Jan 1987 = 100 | K70: =Input!K97 -> 215.767 | L70: =Input!L97 -> 226.475 | M70: =Input!M97 -> 237.342 | N70: =Input!N97 -> 244.675 | O70: =Input!O97 -> 251.733 | P70: =Input!P97 -> 256.667 | Q70: =Input!Q97 -> 259.433 | R70: =Input!R97 -> 264.992 | S70: =Input!S97 -> 273.5777408 | T70: =Input!T97 -> 282.4416596 | U70: =Input!U97 -> 291.5927694 | V70: =Input!V97 -> 301.0403751 | W70: =Input!W97 -> 310.7940833 | X70: =Input!X97 -> 320.8638116 | Y70: =Input!Y97 -> 331.259799 | Z70: =Input!Z97 -> 341.9926165 | AA70: =Input!AA97 -> 353.0731773 | AB70: =Input!AB97 -> 364.5127483 | AC70: =Input!AC97 -> 376.3229613 | AD70: =Input!AD97 -> 388.5158252 | AE70: =Input!AE97 -> 401.103738 | AF70: =Input!AF97 -> 414.0994991 | AG70: =Input!AG97 -> 427.5163229 | AH70: =Input!AH97 -> 441.3678517 | AI70: =Input!AI97 -> 455.6681701 | AJ70: =Input!AJ97 -> 470.4318188 | AK70: =Input!AK97 -> 485.6738098 | AL70: =Input!AL97 -> 501.4096412 | AM70: =Input!AM97 -> 517.6553136 | AN70: =Input!AN97 -> 534.4273457 | AO70: =Input!AO97 -> 551.7427917 | AP70: =Input!AP97 -> 569.6192582 | AQ70: =Input!AQ97 -> 588.0749222 | AR70: =Input!AR97 -> 607.1285496 | AS70: =Input!AS97 -> 626.7995146 | AT70: =Input!AT97 -> 647.1078189 | AU70: =Input!AU97 -> 668.0741122 | AV70: =Input!AV97 -> 689.7197135 | AW70: =Input!AW97 -> 712.0666322 | AX70: =Input!AX97 -> 735.1375911
E71: GB inflation uplift (actual) | G71: scalar | K71: =K70 / $I69 -> 0.8142396752 | L71: 0.8546484422 | M71: 0.8956572274 | N71: 0.9233297609 | O71: 0.9499645272 | P71: 0.9685839573 | Q71: 0.9790220082 | R71: 1 | S71: 1.0324 | T71: 1.06584976 | U71: 1.100383292 | V71: 1.136035711 | W71: 1.172843268 | X71: 1.21084339 | Y71: 1.250074716 | Z71: 1.290577136 | AA71: 1.332391836 | AB71: 1.375561331 | AC71: 1.420129518 | AD71: 1.466141715 | AE71: 1.513644706 | AF71: 1.562686795 | AG71: 1.613317847 | AH71: 1.665589345 | AI71: 1.71955444 | AJ71: 1.775268004 | AK71: 1.832786687 | AL71: 1.892168976 | AM71: 1.95347525 | AN71: 2.016767849 | AO71: 2.082111127 | AP71: 2.149571527 | AQ71: 2.219217645 | AR71: 2.291120297 | AS71: 2.365352594 | AT71: 2.441990018 | AU71: 2.521110495 | AV71: 2.602794475 | AW71: 2.687125016 | AX71: 2.774187866
B74: End of sheet

Sheet Op_RAV
A1: Op_RAV | H1: Licence
E2: Parameter | G2: Units | H2: Terminology | I2: Constant | K2: Annual values
E3: Project year | K3: Year 1 | L3: Year 2 | M3: Year 3 | N3: Year 4 | O3: Year 5 | P3: Year 6 | Q3: Year 7 | R3: Year 8 | S3: Year 9 | T3: Year 10 | U3: Year 11 | V3: Year 12 | W3: Year 13 | X3: Year 14 | Y3: Year 15 | Z3: Year 16 | AA3: Year 17 | AB3: Year 18 | AC3: Year 19 | AD3: Year 20 | AE3: Year 21 | AF3: Year 22 | AG3: Year 23 | AH3: Year 24 | AI3: Year 25
E4: Year | K4: 1 | L4: =+K4+1 -> 2 | M4: =+L4+1 -> 3 | N4: 4 | O4: 5 | P4: 6 | Q4: 7 | R4: 8 | S4: 9 | T4: 10 | U4: 11 | V4: 12 | W4: 13 | X4: 14 | Y4: 15 | Z4: 16 | AA4: 17 | AB4: 18 | AC4: 19 | AD4: 20 | AE4: 21 | AF4: 22 | AG4: 23 | AH4: 24 | AI4: 25
B7: Running total RAV
C9: Operational
E11: Opening operational RAV (before transfers) | G11: £m 16/17 prices | K11: =J17 -> 0 | L11: 373.3553587 | M11: 357.7988854 | N11: 342.2424122 | O11: 326.6859389 | P11: 311.1294656 | Q11: 295.5729923 | R11: 280.016519 | S11: 264.4600458 | T11: 248.9035725 | U11: 233.3470992 | V11: 217.7906259 | W11: 202.2341526 | X11: 186.6776794 | Y11: 171.1212061 | Z11: 162.9347328 | AA11: 146.6412595 | AB11: 130.3477862 | AC11: 114.054313 | AD11: 97.76083968 | AE11: 81.4673664 | AF11: 65.17389312 | AG11: 48.88041984 | AH11: 32.58694656 | AI11: 16.29347328
E12: Transfers of Transaction Costs | G12: £m 16/17 prices | K12: =-SUM(Finance!K53:AX53) -> 19.72270289
E13: Transfers from pre-operational RAV | G13: £m 16/17 prices | K13: =-SUM(Pre_Op_RAV!K24:AX24) -> 369.1891291
E14: Opening operational RAV (after transfers) | G14: £m 16/17 prices | K14: =SUM(K11:K13) -> 388.911832 | L14: 373.3553587 | M14: =SUM(M11:M13) -> 357.7988854 | N14: 342.2424122 | O14: 326.6859389 | P14: 311.1294656 | Q14: 295.5729923 | R14: 280.016519 | S14: 264.4600458 | T14: 248.9035725 | U14: 233.3470992 | V14: 217.7906259 | W14: 202.2341526 | X14: 186.6776794 | Y14: 171.1212061 | Z14: 162.9347328 | AA14: 146.6412595 | AB14: 130.3477862 | AC14: 114.054313 | AD14: 97.76083968 | AE14: 81.4673664 | AF14: 65.17389312 | AG14: 48.88041984 | AH14: 32.58694656 | AI14: 16.29347328
E15: Replacement capex | G15: £m 16/17 prices | K15: =Input!K31 -> 0 | L15: =Input!L31 -> 0 | M15: =Input!M31 -> 0 | N15: =Input!N31 -> 0 | O15: =Input!O31 -> 0 | P15: =Input!P31 -> 0 | Q15: =Input!Q31 -> 0 | R15: =Input!R31 -> 0 | S15: =Input!S31 -> 0 | T15: =Input!T31 -> 0 | U15: =Input!U31 -> 0 | V15: =Input!V31 -> 0 | W15: =Input!W31 -> 0 | X15: =Input!X31 -> 0 | Y15: =Input!Y31 -> 7.37 | Z15: =Input!Z31 -> 0 | AA15: =Input!AA31 -> 0 | AB15: =Input!AB31 -> 0 | AC15: =Input!AC31 -> 0 | AD15: =Input!AD31 -> 0 | AE15: =Input!AE31 -> 0 | AF15: =Input!AF31 -> 0 | AG15: =Input!AG31 -> 0 | AH15: =Input!AH31 -> 0 | AI15: =Input!AI31 -> 0
E16: Depreciation (negative) | G16: £m 16/17 prices | K16: =- K29 -> -15.55647328 | L16: =- L29 -> -15.55647328 | M16: =- M29 -> -15.55647328 | N16: -15.55647328 | O16: -15.55647328 | P16: -15.55647328 | Q16: -15.55647328 | R16: -15.55647328 | S16: -15.55647328 | T16: -15.55647328 | U16: -15.55647328 | V16: -15.55647328 | W16: -15.55647328 | X16: -15.55647328 | Y16: -15.55647328 | Z16: -16.29347328 | AA16: -16.29347328 | AB16: -16.29347328 | AC16: -16.29347328 | AD16: -16.29347328 | AE16: -16.29347328 | AF16: -16.29347328 | AG16: -16.29347328 | AH16: -16.29347328 | AI16: -16.29347328
E17: Closing operational RAV | G17: £m 16/17 prices | K17: =SUM(K14:K16) -> 373.3553587 | L17: 357.7988854 | M17: 342.2424122 | N17: 326.6859389 | O17: 311.1294656 | P17: 295.5729923 | Q17: 280.016519 | R17: 264.4600458 | S17: 248.9035725 | T17: 233.3470992 | U17: 217.7906259 | V17: 202.2341526 | W17: 186.6776794 | X17: 171.1212061 | Y17: 162.9347328 | Z17: 146.6412595 | AA17: 130.3477862 | AB17: 114.054313 | AC17: 97.76083968 | AD17: 81.4673664 | AE17: 65.17389312 | AF17: 48.88041984 | AG17: 32.58694656 | AH17: 16.29347328 | AI17: 0
E19: Average operational RAV | G19: £m 16/17 prices | K19: =AVERAGE(K14, K17) -> 381.1335954 | L19: 365.5771221 | M19: 350.0206488 | N19: 334.4641755 | O19: 318.9077022 | P19: 303.351229 | Q19: 287.7947557 | R19: 272.2382824 | S19: 256.6818091 | T19: 241.1253358 | U19: 225.5688626 | V19: 210.0123893 | W19: 194.455916 | X19: 178.8994427 | Y19: 167.0279694 | Z19: 154.7879962 | AA19: 138.4945229 | AB19: 122.2010496 | AC19: 105.9075763 | AD19: 89.61410304 | AE19: 73.32062976 | AF19: 57.02715648 | AG19: 40.7336832 | AH19: 24.44020992 | AI19: 8.14673664
B23: RAV depreciation
E25: Number of operational years | G25: full years | I25: =Input!I116 -> 25
E26: Years remaining until end of operational period | G26: full years | K26: =I25 -> 25 | L26: =+K26-1 -> 24 | M26: =+L26-1 -> 23 | N26: 22 | O26: 21 | P26: 20 | Q26: 19 | R26: 18 | S26: 17 | T26: 16 | U26: 15 | V26: 14 | W26: 13 | X26: 12 | Y26: 11 | Z26: 10 | AA26: 9 | AB26: 8 | AC26: 7 | AD26: 6 | AE26: 5 | AF26: 4 | AG26: 3 | AH26: 2 | AI26: 1
E27: Year is before end of operational period | G27: flag | K27: =K26 > 0 -> TRUE | L27: TRUE | M27: TRUE | N27: TRUE | O27: TRUE | P27: TRUE | Q27: TRUE | R27: TRUE | S27: TRUE | T27: TRUE | U27: TRUE | V27: TRUE | W27: TRUE | X27: TRUE | Y27: TRUE | Z27: TRUE | AA27: TRUE | AB27: TRUE | AC27: TRUE | AD27: TRUE | AE27: TRUE | AF27: TRUE | AG27: TRUE | AH27: TRUE | AI27: TRUE
E29: RAV depreciation | G29: £m 16/17 prices | K29: =IF(K27, K14 / K26, 0) -> 15.55647328 | L29: 15.55647328 | M29: 15.55647328 | N29: 15.55647328 | O29: 15.55647328 | P29: 15.55647328 | Q29: 15.55647328 | R29: 15.55647328 | S29: 15.55647328 | T29: 15.55647328 | U29: 15.55647328 | V29: 15.55647328 | W29: 15.55647328 | X29: 15.55647328 | Y29: 15.55647328 | Z29: 16.29347328 | AA29: 16.29347328 | AB29: 16.29347328 | AC29: 16.29347328 | AD29: 16.29347328 | AE29: 16.29347328 | AF29: 16.29347328 | AG29: 16.29347328 | AH29: 16.29347328 | AI29: 16.29347328
E31: Depreciation equal to additions | G31: test | I31: =SUM(Pre_Op_RAV!K19:AX22,Finance!K47:AX50,Finance!K52:AX52,K15:AI15) = SUM(K29:AX29) -> TRUE
B33: Operational RAV return
K35: Year 1 | L35: Year 2 | M35: Year 3 | N35: Year 4 | O35: Year 5 | P35: Year 6 | Q35: Year 7 | R35: Year 8 | S35: Year 9 | T35: Year 10 | U35: Year 11 | V35: Year 12 | W35: Year 13 | X35: Year 14 | Y35: Year 15 | Z35: Year 16 | AA35: Year 17 | AB35: Year 18 | AC35: Year 19 | AD35: Year 20 | AE35: Year 21 | AF35: Year 22 | AG35: Year 23 | AH35: Year 24 | AI35: Year 25
E37: Cap returns | G37: =Input!G42 -> real annual % | I37: =Input!I42 -> 0.081
E38: Floor returns | G38: =Input!G43 -> real annual % | I38: =Input!I43 -> -0.0021
E40: Opening operational RAV (after transfers) | G40: £m 16/17 prices | K40: =K14 -> 388.911832 | L40: =L14 -> 373.3553587 | M40: 357.7988854 | N40: 342.2424122 | O40: 326.6859389 | P40: 311.1294656 | Q40: 295.5729923 | R40: 280.016519 | S40: 264.4600458 | T40: 248.9035725 | U40: 233.3470992 | V40: 217.7906259 | W40: 202.2341526 | X40: 186.6776794 | Y40: 171.1212061 | Z40: 162.9347328 | AA40: 146.6412595 | AB40: 130.3477862 | AC40: 114.054313 | AD40: 97.76083968 | AE40: 81.4673664 | AF40: 65.17389312 | AG40: 48.88041984 | AH40: 32.58694656 | AI40: 16.29347328
E41: Closing operational RAV | G41: £m 16/17 prices | K41: =K17 -> 373.3553587 | L41: =L17 -> 357.7988854 | M41: 342.2424122 | N41: 326.6859389 | O41: 311.1294656 | P41: 295.5729923 | Q41: 280.016519 | R41: 264.4600458 | S41: 248.9035725 | T41: 233.3470992 | U41: 217.7906259 | V41: 202.2341526 | W41: 186.6776794 | X41: 171.1212061 | Y41: 162.9347328 | Z41: 146.6412595 | AA41: 130.3477862 | AB41: 114.054313 | AC41: 97.76083968 | AD41: 81.4673664 | AE41: 65.17389312 | AF41: 48.88041984 | AG41: 32.58694656 | AH41: 16.29347328 | AI41: 0
E43: NPV neutral return base (cap) | G43: £m 16/17 prices | K43: =0.5 * K$40 + 0.5 * K$41 / (1 + $I37) -> 367.1457211 | L43: 352.1720759 | M43: 337.1984308 | N43: 322.2247856 | O43: 307.2511404 | P43: 292.2774952 | Q43: 277.30385 | R43: 262.3302048 | S43: 247.3565596 | T43: 232.3829144 | U43: 217.4092693 | V43: 202.4356241 | W43: 187.4619789 | X43: 172.4883337 | Y43: 160.9235692 | Z43: 149.2940359 | AA43: 133.6110027 | AB43: 117.9279694 | AC43: 102.2449362 | AD43: 86.56190291 | AE43: 70.87886966 | AF43: 55.1958364 | AG43: 39.51280315 | AH43: 23.82976989 | AI43: 8.14673664
E44: NPV neutral return base (floor) | G44: £m 16/17 prices | K44: =0.5 * K$40 + 0.5 * K$41 / (1 + $I38) -> 381.5264435 | L44: 365.9536015 | M44: 350.3807596 | N44: 334.8079176 | O44: 319.2350757 | P44: 303.6622337 | Q44: 288.0893918 | R44: 272.5165498 | S44: 256.9437079 | T44: 241.3708659 | U44: 225.798024 | V44: 210.225182 | W44: 194.65234 | X44: 179.0794981 | Y44: 167.1994109 | Z44: 154.9422935 | AA44: 138.6316761 | AB44: 122.3210586 | AC44: 106.0104412 | AD44: 89.69982379 | AE44: 73.38920636 | AF44: 57.07858893 | AG44: 40.7679715 | AH44: 24.45735407 | AI44: 8.14673664
E46: Return (cap) | G46: £m 16/17 prices | K46: =K43 * $I37 -> 29.73880341 | L46: 28.52593815 | M46: 27.31307289 | N46: 26.10020763 | O46: 24.88734237 | P46: 23.67447711 | Q46: 22.46161185 | R46: 21.24874659 | S46: 20.03588133 | T46: 18.82301607 | U46: 17.61015081 | V46: 16.39728555 | W46: 15.18442029 | X46: 13.97155503 | Y46: 13.0348091 | Z46: 12.09281691 | AA46: 10.82249122 | AB46: 9.552165523 | AC46: 8.281839829 | AD46: 7.011514136 | AE46: 5.741188442 | AF46: 4.470862749 | AG46: 3.200537055 | AH46: 1.930211361 | AI46: 0.6598856678
E47: Return (floor) | G47: £m 16/17 prices | K47: =K44 * $I38 -> -0.8012055313 | L47: -0.7685025632 | M47: -0.7357995951 | N47: -0.703096627 | O47: -0.6703936589 | P47: -0.6376906908 | Q47: -0.6049877227 | R47: -0.5722847546 | S47: -0.5395817865 | T47: -0.5068788184 | U47: -0.4741758503 | V47: -0.4414728822 | W47: -0.4087699141 | X47: -0.376066946 | Y47: -0.351118763 | Z47: -0.3253788164 | AA47: -0.2911265198 | AB47: -0.2568742232 | AC47: -0.2226219266 | AD47: -0.18836963 | AE47: -0.1541173334 | AF47: -0.1198650367 | AG47: -0.08561274015 | AH47: -0.05136044355 | AI47: -0.01710814694
B52: End of sheet

Sheet AllowancesCap
A1: AllowancesCap | H1: Licence
E2: Parameter | G2: Units | H2: Terminology | I2: Constant | K2: Annual values
E3: Project year | K3: Year 1 | L3: Year 2 | M3: Year 3 | N3: Year 4 | O3: Year 5 | P3: Year 6 | Q3: Year 7 | R3: Year 8 | S3: Year 9 | T3: Year 10 | U3: Year 11 | V3: Year 12 | W3: Year 13 | X3: Year 14 | Y3: Year 15 | Z3: Year 16 | AA3: Year 17 | AB3: Year 18 | AC3: Year 19 | AD3: Year 20 | AE3: Year 21 | AF3: Year 22 | AG3: Year 23 | AH3: Year 24 | AI3: Year 25
E4: Year | K4: 1 | L4: =+K4+1 -> 2 | M4: =+L4+1 -> 3 | N4: 4 | O4: 5 | P4: 6 | Q4: 7 | R4: 8 | S4: 9 | T4: 10 | U4: 11 | V4: 12 | W4: 13 | X4: 14 | Y4: 15 | Z4: 16 | AA4: 17 | AB4: 18 | AC4: 19 | AD4: 20 | AE4: 21 | AF4: 22 | AG4: 23 | AH4: 24 | AI4: 25
B7: Unprofiled allowances except tax (cap)
E9: Controllable opex | G9: £m 16/17 prices | K9: =Input!K33 -> 10.94778 | L9: =Input!L33 -> 10.94778 | M9: =Input!M33 -> 10.94778 | N9: =Input!N33 -> 10.94778 | O9: =Input!O33 -> 10.94778 | P9: =Input!P33 -> 10.94778 | Q9: =Input!Q33 -> 10.94778 | R9: =Input!R33 -> 10.94778 | S9: =Input!S33 -> 10.94778 | T9: =Input!T33 -> 10.94778 | U9: =Input!U33 -> 10.94778 | V9: =Input!V33 -> 10.94778 | W9: =Input!W33 -> 10.94778 | X9: =Input!X33 -> 10.94778 | Y9: =Input!Y33 -> 10.94778 | Z9: =Input!Z33 -> 10.94778 | AA9: =Input!AA33 -> 10.94778 | AB9: =Input!AB33 -> 10.94778 | AC9: =Input!AC33 -> 10.94778 | AD9: =Input!AD33 -> 10.94778 | AE9: =Input!AE33 -> 10.94778 | AF9: =Input!AF33 -> 10.94778 | AG9: =Input!AG33 -> 10.94778 | AH9: =Input!AH33 -> 10.94778 | AI9: =Input!AI33 -> 10.94778
E10: Non-controllable opex (baseline) | G10: £m 16/17 prices | K10: =Input!K34 -> 0 | L10: =Input!L34 -> 0 | M10: =Input!M34 -> 0 | N10: =Input!N34 -> 0 | O10: =Input!O34 -> 0 | P10: =Input!P34 -> 0 | Q10: =Input!Q34 -> 0 | R10: =Input!R34 -> 0 | S10: =Input!S34 -> 0 | T10: =Input!T34 -> 0 | U10: =Input!U34 -> 0 | V10: =Input!V34 -> 0 | W10: =Input!W34 -> 0 | X10: =Input!X34 -> 0 | Y10: =Input!Y34 -> 0 | Z10: =Input!Z34 -> 0 | AA10: =Input!AA34 -> 0 | AB10: =Input!AB34 -> 0 | AC10: =Input!AC34 -> 0 | AD10: =Input!AD34 -> 0 | AE10: =Input!AE34 -> 0 | AF10: =Input!AF34 -> 0 | AG10: =Input!AG34 -> 0 | AH10: =Input!AH34 -> 0 | AI10: =Input!AI34 -> 0
E11: Opex re-assessment adjustment | G11: £m 16/17 prices | K11: =Input!K35 -> 0 | L11: =Input!L35 -> 0 | M11: =Input!M35 -> 0 | N11: =Input!N35 -> 0 | O11: =Input!O35 -> 0 | P11: =Input!P35 -> 0 | Q11: =Input!Q35 -> 0 | R11: =Input!R35 -> 0 | S11: =Input!S35 -> 0 | T11: =Input!T35 -> 0 | U11: =Input!U35 -> 0 | V11: =Input!V35 -> 0 | W11: =Input!W35 -> 0 | X11: =Input!X35 -> 0 | Y11: =Input!Y35 -> 0 | Z11: =Input!Z35 -> 0 | AA11: =Input!AA35 -> 0 | AB11: =Input!AB35 -> 0 | AC11: =Input!AC35 -> 0 | AD11: =Input!AD35 -> 0 | AE11: =Input!AE35 -> 0 | AF11: =Input!AF35 -> 0 | AG11: =Input!AG35 -> 0 | AH11: =Input!AH35 -> 0 | AI11: =Input!AI35 -> 0
E12: Decommissioning baseline / actual | G12: £m 16/17 prices | K12: =Input!K32 -> 0 | L12: =Input!L32 -> 0 | M12: =Input!M32 -> 0 | N12: =Input!N32 -> 0 | O12: =Input!O32 -> 0 | P12: =Input!P32 -> 0 | Q12: =Input!Q32 -> 0 | R12: =Input!R32 -> 0 | S12: =Input!S32 -> 0 | T12: =Input!T32 -> 0 | U12: =Input!U32 -> 0 | V12: =Input!V32 -> 0 | W12: =Input!W32 -> 0 | X12: =Input!X32 -> 0 | Y12: =Input!Y32 -> 0 | Z12: =Input!Z32 -> 0 | AA12: =Input!AA32 -> 0 | AB12: =Input!AB32 -> 0 | AC12: =Input!AC32 -> 0 | AD12: =Input!AD32 -> 0 | AE12: =Input!AE32 -> 0 | AF12: =Input!AF32 -> 0 | AG12: =Input!AG32 -> 0 | AH12: =Input!AH32 -> 0 | AI12: =Input!AI32 -> 5.37
E13: RAV depreciation | G13: £m 16/17 prices | K13: =Op_RAV!K29 -> 15.55647328 | L13: =Op_RAV!L29 -> 15.55647328 | M13: =Op_RAV!M29 -> 15.55647328 | N13: =Op_RAV!N29 -> 15.55647328 | O13: =Op_RAV!O29 -> 15.55647328 | P13: =Op_RAV!P29 -> 15.55647328 | Q13: =Op_RAV!Q29 -> 15.55647328 | R13: =Op_RAV!R29 -> 15.55647328 | S13: =Op_RAV!S29 -> 15.55647328 | T13: =Op_RAV!T29 -> 15.55647328 | U13: =Op_RAV!U29 -> 15.55647328 | V13: =Op_RAV!V29 -> 15.55647328 | W13: =Op_RAV!W29 -> 15.55647328 | X13: =Op_RAV!X29 -> 15.55647328 | Y13: =Op_RAV!Y29 -> 15.55647328 | Z13: =Op_RAV!Z29 -> 16.29347328 | AA13: =Op_RAV!AA29 -> 16.29347328 | AB13: =Op_RAV!AB29 -> 16.29347328 | AC13: =Op_RAV!AC29 -> 16.29347328 | AD13: =Op_RAV!AD29 -> 16.29347328 | AE13: =Op_RAV!AE29 -> 16.29347328 | AF13: =Op_RAV!AF29 -> 16.29347328 | AG13: =Op_RAV!AG29 -> 16.29347328 | AH13: =Op_RAV!AH29 -> 16.29347328 | AI13: =Op_RAV!AI29 -> 16.29347328
E14: Return (cap) | G14: £m 16/17 prices | K14: =Op_RAV!K46 -> 29.73880341 | L14: =Op_RAV!L46 -> 28.52593815 | M14: =Op_RAV!M46 -> 27.31307289 | N14: =Op_RAV!N46 -> 26.10020763 | O14: =Op_RAV!O46 -> 24.88734237 | P14: =Op_RAV!P46 -> 23.67447711 | Q14: =Op_RAV!Q46 -> 22.46161185 | R14: =Op_RAV!R46 -> 21.24874659 | S14: =Op_RAV!S46 -> 20.03588133 | T14: =Op_RAV!T46 -> 18.82301607 | U14: =Op_RAV!U46 -> 17.61015081 | V14: =Op_RAV!V46 -> 16.39728555 | W14: =Op_RAV!W46 -> 15.18442029 | X14: =Op_RAV!X46 -> 13.97155503 | Y14: =Op_RAV!Y46 -> 13.0348091 | Z14: =Op_RAV!Z46 -> 12.09281691 | AA14: =Op_RAV!AA46 -> 10.82249122 | AB14: =Op_RAV!AB46 -> 9.552165523 | AC14: =Op_RAV!AC46 -> 8.281839829 | AD14: =Op_RAV!AD46 -> 7.011514136 | AE14: =Op_RAV!AE46 -> 5.741188442 | AF14: =Op_RAV!AF46 -> 4.470862749 | AG14: =Op_RAV!AG46 -> 3.200537055 | AH14: =Op_RAV!AH46 -> 1.930211361 | AI14: =Op_RAV!AI46 -> 0.6598856678
E15: Unprofiled allowances except tax (cap) | G15: £m 16/17 prices | K15: =SUM(K9:K14) -> 56.24305669 | L15: 55.03019143 | M15: 53.81732617 | N15: 52.60446091 | O15: 51.39159565 | P15: 50.17873039 | Q15: 48.96586513 | R15: 47.75299987 | S15: 46.54013461 | T15: 45.32726935 | U15: 44.11440409 | V15: 42.90153883 | W15: 41.68867357 | X15: =SUM(X9:X14) -> 40.47580831 | Y15: 39.53906238 | Z15: 39.33407019 | AA15: 38.0637445 | AB15: 36.7934188 | AC15: 35.52309311 | AD15: 34.25276742 | AE15: 32.98244172 | AF15: 31.71211603 | AG15: 30.44179033 | AH15: 29.17146464 | AI15: 33.27113895
B17: Profiled allowances except tax (cap)
C19: Annuity parameters
E21: Cap returns | G21: =Input!G42 -> real annual % | I21: =Input!I42 -> 0.081
E22: Number of operational years | G22: =Input!G116 -> full years | I22: =Input!I116 -> 25
E23: Annuity factor (cap) | G23: scalar | I23: =I21 / (1 - (1 + I21)^(-I22)) -> 0.09448027673
E25: Year is within operational period | G25: flag | K25: =AND(K4 > 0, K4<= $I22) -> TRUE | L25: TRUE | M25: TRUE | N25: TRUE | O25: TRUE | P25: TRUE | Q25: TRUE | R25: TRUE | S25: TRUE | T25: TRUE | U25: TRUE | V25: TRUE | W25: TRUE | X25: TRUE | Y25: TRUE | Z25: TRUE | AA25: TRUE | AB25: TRUE | AC25: TRUE | AD25: TRUE | AE25: TRUE | AF25: TRUE | AG25: TRUE | AH25: TRUE | AI25: TRUE
E26: Discount factor to start of operational period (cap) | G26: scalar | K26: =(1 + $I21) ^ - K4 -> 0.9250693802 | L26: 0.8557533582 | M26: 0.7916312287 | N26: 0.7323138101 | O26: 0.6774410824 | P26: 0.6266800022 | Q26: 0.5797224812 | R26: 0.5362835164 | S26: 0.4960994601 | T26: 0.4589264201 | U26: 0.424538779 | V26: 0.3927278252 | W26: 0.3633004858 | X26: 0.3360781552 | Y26: 0.3108956108 | Z26: 0.28760001 | AA26: 0.266049963 | AB26: 0.2461146743 | AC26: 0.2276731492 | AD26: 0.2106134591 | AE26: 0.194832062 | AF26: 0.1802331749 | AG26: 0.1667281914 | AH26: 0.1542351447 | AI26: 0.1426782097
C28: Allowances except tax
E30: Discounted unprofiled allowances except tax (cap) | G30: £m 16/17 prices | K30: =K15 * K$26 -> 52.02872959 | L30: =L15 * L$26 -> 47.09227112 | M30: 42.60347604 | N30: 38.5229732 | O30: 34.81477818 | P30: 31.44600687 | Q30: 28.38661283 | R30: 25.60914669 | S30: 23.08853565 | T30: 20.80188146 | U30: 18.72827525 | V30: 16.84862804 | W30: 15.14551536 | X30: 13.60303499 | Y30: =Y15 * Y$26 -> 12.29252095 | Z30: =Z15 * Z$26 -> 11.31247898 | AA30: 10.12685781 | AB30: 9.055400286 | AC30: 8.087654479 | AD30: 7.214093828 | AE30: 6.426037132 | AF30: 5.715575354 | AG30: 5.075504645 | AH30: 4.499265069 | AI30: 4.747066539
E31: NPV of allowances except tax (cap) | G31: £m 16/17 prices | I31: =SUM(K30:AI30) -> 493.2723203
E33: Annuity factor (cap) | G33: =G$23 -> scalar | I33: =I$23 -> 0.09448027673
E35: Annuity of allowances except tax (cap) | G35: £m 16/17 prices | I35: =I31 * I33 -> 46.60450533
E36: Annuitised allowances except tax (cap) | G36: £m 16/17 prices | K36: =K$25 * $I35 -> 46.60450533 | L36: 46.60450533 | M36: 46.60450533 | N36: 46.60450533 | O36: 46.60450533 | P36: 46.60450533 | Q36: 46.60450533 | R36: 46.60450533 | S36: 46.60450533 | T36: 46.60450533 | U36: 46.60450533 | V36: 46.60450533 | W36: 46.60450533 | X36: =X$25 * $I35 -> 46.60450533 | Y36: =Y$25 * $I35 -> 46.60450533 | Z36: 46.60450533 | AA36: 46.60450533 | AB36: 46.60450533 | AC36: 46.60450533 | AD36: 46.60450533 | AE36: 46.60450533 | AF36: 46.60450533 | AG36: 46.60450533 | AH36: 46.60450533 | AI36: 46.60450533
B38: End of sheet

Sheet AllowancesFloor
A1: AllowancesFloor | H1: Licence
E2: Parameter | G2: Units | H2: Terminology | I2: Constant | K2: Annual values
E3: Project year | K3: Year 1 | L3: Year 2 | M3: Year 3 | N3: Year 4 | O3: Year 5 | P3: Year 6 | Q3: Year 7 | R3: Year 8 | S3: Year 9 | T3: Year 10 | U3: Year 11 | V3: Year 12 | W3: Year 13 | X3: Year 14 | Y3: Year 15 | Z3: Year 16 | AA3: Year 17 | AB3: Year 18 | AC3: Year 19 | AD3: Year 20 | AE3: Year 21 | AF3: Year 22 | AG3: Year 23 | AH3: Year 24 | AI3: Year 25
E4: Year | K4: 1 | L4: =+K4+1 -> 2 | M4: =+L4+1 -> 3 | N4: 4 | O4: 5 | P4: 6 | Q4: 7 | R4: 8 | S4: 9 | T4: 10 | U4: 11 | V4: 12 | W4: 13 | X4: 14 | Y4: 15 | Z4: 16 | AA4: 17 | AB4: 18 | AC4: 19 | AD4: 20 | AE4: 21 | AF4: 22 | AG4: 23 | AH4: 24 | AI4: 25
B7: Unprofiled allowances except tax (floor)
E9: Controllable opex | G9: £m 16/17 prices | K9: =Input!K33 -> 10.94778 | L9: =Input!L33 -> 10.94778 | M9: =Input!M33 -> 10.94778 | N9: =Input!N33 -> 10.94778 | O9: =Input!O33 -> 10.94778 | P9: =Input!P33 -> 10.94778 | Q9: =Input!Q33 -> 10.94778 | R9: =Input!R33 -> 10.94778 | S9: =Input!S33 -> 10.94778 | T9: =Input!T33 -> 10.94778 | U9: =Input!U33 -> 10.94778 | V9: =Input!V33 -> 10.94778 | W9: =Input!W33 -> 10.94778 | X9: =Input!X33 -> 10.94778 | Y9: =Input!Y33 -> 10.94778 | Z9: =Input!Z33 -> 10.94778 | AA9: =Input!AA33 -> 10.94778 | AB9: =Input!AB33 -> 10.94778 | AC9: =Input!AC33 -> 10.94778 | AD9: =Input!AD33 -> 10.94778 | AE9: =Input!AE33 -> 10.94778 | AF9: =Input!AF33 -> 10.94778 | AG9: =Input!AG33 -> 10.94778 | AH9: =Input!AH33 -> 10.94778 | AI9: =Input!AI33 -> 10.94778
E10: Non-controllable opex (baseline) | G10: £m 16/17 prices | K10: =Input!K34 -> 0 | L10: =Input!L34 -> 0 | M10: =Input!M34 -> 0 | N10: =Input!N34 -> 0 | O10: =Input!O34 -> 0 | P10: =Input!P34 -> 0 | Q10: =Input!Q34 -> 0 | R10: =Input!R34 -> 0 | S10: =Input!S34 -> 0 | T10: =Input!T34 -> 0 | U10: =Input!U34 -> 0 | V10: =Input!V34 -> 0 | W10: =Input!W34 -> 0 | X10: =Input!X34 -> 0 | Y10: =Input!Y34 -> 0 | Z10: =Input!Z34 -> 0 | AA10: =Input!AA34 -> 0 | AB10: =Input!AB34 -> 0 | AC10: =Input!AC34 -> 0 | AD10: =Input!AD34 -> 0 | AE10: =Input!AE34 -> 0 | AF10: =Input!AF34 -> 0 | AG10: =Input!AG34 -> 0 | AH10: =Input!AH34 -> 0 | AI10: =Input!AI34 -> 0
E11: Opex re-assessment adjustment | G11: £m 16/17 prices | K11: =Input!K35 -> 0 | L11: =Input!L35 -> 0 | M11: =Input!M35 -> 0 | N11: =Input!N35 -> 0 | O11: =Input!O35 -> 0 | P11: =Input!P35 -> 0 | Q11: =Input!Q35 -> 0 | R11: =Input!R35 -> 0 | S11: =Input!S35 -> 0 | T11: =Input!T35 -> 0 | U11: =Input!U35 -> 0 | V11: =Input!V35 -> 0 | W11: =Input!W35 -> 0 | X11: =Input!X35 -> 0 | Y11: =Input!Y35 -> 0 | Z11: =Input!Z35 -> 0 | AA11: =Input!AA35 -> 0 | AB11: =Input!AB35 -> 0 | AC11: =Input!AC35 -> 0 | AD11: =Input!AD35 -> 0 | AE11: =Input!AE35 -> 0 | AF11: =Input!AF35 -> 0 | AG11: =Input!AG35 -> 0 | AH11: =Input!AH35 -> 0 | AI11: =Input!AI35 -> 0
E12: Decommissioning baseline / actual | G12: £m 16/17 prices | K12: =Input!K32 -> 0 | L12: =Input!L32 -> 0 | M12: =Input!M32 -> 0 | N12: =Input!N32 -> 0 | O12: =Input!O32 -> 0 | P12: =Input!P32 -> 0 | Q12: =Input!Q32 -> 0 | R12: =Input!R32 -> 0 | S12: =Input!S32 -> 0 | T12: =Input!T32 -> 0 | U12: =Input!U32 -> 0 | V12: =Input!V32 -> 0 | W12: =Input!W32 -> 0 | X12: =Input!X32 -> 0 | Y12: =Input!Y32 -> 0 | Z12: =Input!Z32 -> 0 | AA12: =Input!AA32 -> 0 | AB12: =Input!AB32 -> 0 | AC12: =Input!AC32 -> 0 | AD12: =Input!AD32 -> 0 | AE12: =Input!AE32 -> 0 | AF12: =Input!AF32 -> 0 | AG12: =Input!AG32 -> 0 | AH12: =Input!AH32 -> 0 | AI12: =Input!AI32 -> 5.37
E13: RAV depreciation | G13: £m 16/17 prices | K13: =Op_RAV!K29 -> 15.55647328 | L13: =Op_RAV!L29 -> 15.55647328 | M13: =Op_RAV!M29 -> 15.55647328 | N13: =Op_RAV!N29 -> 15.55647328 | O13: =Op_RAV!O29 -> 15.55647328 | P13: =Op_RAV!P29 -> 15.55647328 | Q13: =Op_RAV!Q29 -> 15.55647328 | R13: =Op_RAV!R29 -> 15.55647328 | S13: =Op_RAV!S29 -> 15.55647328 | T13: =Op_RAV!T29 -> 15.55647328 | U13: =Op_RAV!U29 -> 15.55647328 | V13: =Op_RAV!V29 -> 15.55647328 | W13: =Op_RAV!W29 -> 15.55647328 | X13: =Op_RAV!X29 -> 15.55647328 | Y13: =Op_RAV!Y29 -> 15.55647328 | Z13: =Op_RAV!Z29 -> 16.29347328 | AA13: =Op_RAV!AA29 -> 16.29347328 | AB13: =Op_RAV!AB29 -> 16.29347328 | AC13: =Op_RAV!AC29 -> 16.29347328 | AD13: =Op_RAV!AD29 -> 16.29347328 | AE13: =Op_RAV!AE29 -> 16.29347328 | AF13: =Op_RAV!AF29 -> 16.29347328 | AG13: =Op_RAV!AG29 -> 16.29347328 | AH13: =Op_RAV!AH29 -> 16.29347328 | AI13: =Op_RAV!AI29 -> 16.29347328
E14: Return (floor) | G14: £m 16/17 prices | K14: =Op_RAV!K47 -> -0.8012055313 | L14: =Op_RAV!L47 -> -0.7685025632 | M14: =Op_RAV!M47 -> -0.7357995951 | N14: =Op_RAV!N47 -> -0.703096627 | O14: =Op_RAV!O47 -> -0.6703936589 | P14: =Op_RAV!P47 -> -0.6376906908 | Q14: =Op_RAV!Q47 -> -0.6049877227 | R14: =Op_RAV!R47 -> -0.5722847546 | S14: =Op_RAV!S47 -> -0.5395817865 | T14: =Op_RAV!T47 -> -0.5068788184 | U14: =Op_RAV!U47 -> -0.4741758503 | V14: =Op_RAV!V47 -> -0.4414728822 | W14: =Op_RAV!W47 -> -0.4087699141 | X14: =Op_RAV!X47 -> -0.376066946 | Y14: =Op_RAV!Y47 -> -0.351118763 | Z14: =Op_RAV!Z47 -> -0.3253788164 | AA14: =Op_RAV!AA47 -> -0.2911265198 | AB14: =Op_RAV!AB47 -> -0.2568742232 | AC14: =Op_RAV!AC47 -> -0.2226219266 | AD14: =Op_RAV!AD47 -> -0.18836963 | AE14: =Op_RAV!AE47 -> -0.1541173334 | AF14: =Op_RAV!AF47 -> -0.1198650367 | AG14: =Op_RAV!AG47 -> -0.08561274015 | AH14: =Op_RAV!AH47 -> -0.05136044355 | AI14: =Op_RAV!AI47 -> -0.01710814694 | AK14: =Op_RAV!AK47 -> 0 | AL14: =Op_RAV!AL47 -> 0 | AM14: =Op_RAV!AM47 -> 0 | AN14: =Op_RAV!AN47 -> 0 | AO14: =Op_RAV!AO47 -> 0 | AP14: =Op_RAV!AP47 -> 0 | AQ14: =Op_RAV!AQ47 -> 0 | AR14: =Op_RAV!AR47 -> 0 | AS14: =Op_RAV!AS47 -> 0 | AT14: =Op_RAV!AT47 -> 0 | AU14: =Op_RAV!AU47 -> 0 | AV14: =Op_RAV!AV47 -> 0 | AW14: =Op_RAV!AW47 -> 0 | AX14: =Op_RAV!AX47 -> 0
E15: Unprofiled allowances except tax (floor) | G15: £m 16/17 prices | K15: =SUM(K9:K14) -> 25.70304775 | L15: 25.73575072 | M15: 25.76845368 | N15: 25.80115665 | O15: 25.83385962 | P15: 25.86656259 | Q15: 25.89926556 | R15: 25.93196853 | S15: 25.96467149 | T15: 25.99737446 | U15: 26.03007743 | V15: 26.0627804 | W15: 26.09548337 | X15: =SUM(X9:X14) -> 26.12818633 | Y15: 26.15313452 | Z15: 26.91587446 | AA15: 26.95012676 | AB15: 26.98437906 | AC15: 27.01863135 | AD15: 27.05288365 | AE15: 27.08713595 | AF15: 27.12138824 | AG15: 27.15564054 | AH15: 27.18989284 | AI15: 32.59414513 | AK15: 0 | AL15: 0 | AM15: 0 | AN15: 0 | AO15: 0 | AP15: 0 | AQ15: 0 | AR15: 0 | AS15: 0 | AT15: 0 | AU15: 0 | AV15: 0 | AW15: 0 | AX15: 0
B17: Unprofiled allowances except tax (floor)
C19: Annuity parameters
E21: Floor returns | G21: =Input!G43 -> real annual % | I21: =Input!I43 -> -0.0021
E22: Number of operational years | G22: =Input!G116 -> full years | I22: =Input!I116 -> 25
E23: Annuity factor (floor) | G23: scalar | I23: =I21 / (1 - (1 + I21)^(-I22)) -> 0.03891718202
E25: Year is within operational period | G25: flag | K25: =AND(K4 > 0, K4<= $I22) -> TRUE | L25: TRUE | M25: TRUE | N25: TRUE | O25: TRUE | P25: TRUE | Q25: TRUE | R25: TRUE | S25: TRUE | T25: TRUE | U25: TRUE | V25: TRUE | W25: TRUE | X25: TRUE | Y25: TRUE | Z25: TRUE | AA25: TRUE | AB25: TRUE | AC25: TRUE | AD25: TRUE | AE25: TRUE | AF25: TRUE | AG25: TRUE | AH25: TRUE | AI25: TRUE
E26: Discount factor to start of operational period (floor) | G26: scalar | K26: =(1 + $I21) ^ - K4 -> 1.002104419 | L26: 1.004213267 | M26: 1.006326553 | N26: 1.008444286 | O26: 1.010566476 | P26: 1.012693131 | Q26: 1.014824262 | R26: 1.016959878 | S26: 1.019099988 | T26: 1.021244601 | U26: 1.023393728 | V26: 1.025547378 | W26: 1.027705559 | X26: 1.029868283 | Y26: 1.032035557 | Z26: 1.034207393 | AA26: 1.036383799 | AB26: 1.038564785 | AC26: 1.040750361 | AD26: 1.042940536 | AE26: 1.04513532 | AF26: 1.047334723 | AG26: 1.049538754 | AH26: 1.051747424 | AI26: 1.053960742
C28: Allowances except tax
E30: Discounted unprofiled allowances except tax (floor) | G30: £m 16/17 prices | K30: =K15 * K$26 -> 25.75713774 | L30: =L15 * L$26 -> 25.84418231 | M30: 25.93147917 | N30: 26.019029 | O30: 26.10683247 | P30: 26.19489026 | Q30: 26.28320306 | R30: 26.37177154 | S30: 26.4605964 | T30: 26.54967832 | U30: 26.63901799 | V30: 26.72861609 | W30: 26.81847333 | X30: =X15 * X$26 -> 26.90859039 | Y30: 26.99096476 | Z30: 27.83659636 | AA30: 27.93067475 | AB30: 28.02502583 | AC30: 28.11965033 | AD30: 28.21454897 | AE30: 28.3097225 | AF30: 28.40517164 | AG30: 28.50089715 | AH30: 28.59689975 | AI30: 34.35294937
E31: NPV of allowances except tax (floor) | G31: £m 16/17 prices | I31: =SUM(K30:AI30) -> 683.8965995
E33: Annuity factor (floor) | G33: =G$23 -> scalar | I33: =I$23 -> 0.03891718202
E35: Annuity of allowances except tax (floor) | G35: £m 16/17 prices | I35: =I31 * I33 -> 26.61532845
E36: Annuitised allowances except tax (floor) | G36: £m 16/17 prices | K36: =K$25 * $I35 -> 26.61532845 | L36: 26.61532845 | M36: 26.61532845 | N36: 26.61532845 | O36: 26.61532845 | P36: 26.61532845 | Q36: 26.61532845 | R36: 26.61532845 | S36: 26.61532845 | T36: 26.61532845 | U36: 26.61532845 | V36: 26.61532845 | W36: 26.61532845 | X36: =X$25 * $I35 -> 26.61532845 | Y36: 26.61532845 | Z36: 26.61532845 | AA36: 26.61532845 | AB36: 26.61532845 | AC36: 26.61532845 | AD36: 26.61532845 | AE36: 26.61532845 | AF36: 26.61532845 | AG36: 26.61532845 | AH36: 26.61532845 | AI36: 26.61532845
B38: End of sheet

Sheet Deductions
A1: Deductions | H1: Licence
E2: Parameter | G2: Units | H2: Terminology | I2: Constant | K2: Annual values
E3: Project year | K3: Year 1 | L3: Year 2 | M3: Year 3 | N3: Year 4 | O3: Year 5 | P3: Year 6 | Q3: Year 7 | R3: Year 8 | S3: Year 9 | T3: Year 10 | U3: Year 11 | V3: Year 12 | W3: Year 13 | X3: Year 14 | Y3: Year 15 | Z3: Year 16 | AA3: Year 17 | AB3: Year 18 | AC3: Year 19 | AD3: Year 20 | AE3: Year 21 | AF3: Year 22 | AG3: Year 23 | AH3: Year 24 | AI3: Year 25
B7: Tax deductions
K9: Year 1 | L9: Year 2 | M9: Year 3 | N9: Year 4 | O9: Year 5 | P9: Year 6 | Q9: Year 7 | R9: Year 8 | S9: Year 9 | T9: Year 10 | U9: Year 11 | V9: Year 12 | W9: Year 13 | X9: Year 14 | Y9: Year 15 | Z9: Year 16 | AA9: Year 17 | AB9: Year 18 | AC9: Year 19 | AD9: Year 20 | AE9: Year 21 | AF9: Year 22 | AG9: Year 23 | AH9: Year 24 | AI9: Year 25
E10: =Input!E110 -> RPI Scalar from 2016/17 terms to start of regime | G10: scalar | I10: =Input!I110 -> 1.142201262
E11: Expected UK RPI inflation | G11: % | I11: =Input!I94 -> 0.0324
E12: Forecast GB Inflation Uplift | G12: scalar | K12: =I10*(1+$I$11)^0.5 -> 1.160557423 | L12: =K12*(1+$I$11) -> 1.198159484 | M12: =L12*(1+$I$11) -> 1.236979851 | N12: 1.277057998 | O12: 1.318434677 | P12: 1.361151961 | Q12: 1.405253284 | R12: 1.450783491 | S12: 1.497788876 | T12: 1.546317235 | U12: 1.596417914 | V12: 1.648141854 | W12: 1.70154165 | X12: 1.7566716 | Y12: 1.813587759 | Z12: 1.872348003 | AA12: 1.933012078 | AB12: 1.995641669 | AC12: 2.06030046 | AD12: 2.127054194 | AE12: 2.19597075 | AF12: 2.267120203 | AG12: 2.340574897 | AH12: 2.416409524 | AI12: 2.494701192
C15: Total
E17: Revenue pool additions | G17: £m nominal | K17: =K30 -> 12.70552734 | L17: 13.11718643 | M17: 13.54218327 | N17: 13.98095001 | O17: 14.43393279 | P17: 14.90159221 | Q17: 15.3844038 | R17: 15.88285848 | S17: =S30 -> 16.3974631 | T17: 16.9287409 | U17: 17.47723211 | V17: 18.04349443 | W17: 18.62810365 | X17: =X30 -> 19.2316542 | Y17: 19.8547598 | Z17: 20.49805402 | AA17: 21.16219097 | AB17: 21.84784596 | AC17: 22.55571616 | AD17: 23.28652137 | AE17: 24.04100466 | AF17: 24.81993321 | AG17: 25.62409905 | AH17: 26.45431986 | AI17: 27.31143982
E18: Capital allowances | G18: £m nominal | K18: =K45 -> 26.95377926 | L18: 24.79747692 | M18: 22.81367877 | N18: 20.98858446 | O18: 19.30949771 | P18: 17.76473789 | Q18: 16.34355886 | R18: 15.03607415 | S18: =S45 -> 13.83318822 | T18: 12.72653316 | U18: 11.70841051 | V18: 10.77173767 | W18: 9.909998654 | X18: =X45 -> 9.117198762 | Y18: 9.457114204 | Z18: 8.700545068 | AA18: 8.004501462 | AB18: 7.364141345 | AC18: 6.775010038 | AD18: 6.233009235 | AE18: 5.734368496 | AF18: 5.275619016 | AG18: 4.853569495 | AH18: 4.465283935 | AI18: 51.35076526
E19: Interest Payable | G19: £m nominal | K19: =K61 -> 6.714753905 | L19: 6.531142711 | M19: 6.341980591 | N19: 6.147099729 | O19: 5.946327236 | P19: 5.739484998 | Q19: 5.526389514 | R19: 5.306851735 | S19: =S61 -> 5.080676899 | T19: 4.847664355 | U19: 4.607607384 | V19: 4.360293021 | W19: 4.10550186 | X19: =X61 -> 3.843007862 | Y19: 3.572578157 | Z19: 3.293972831 | AA19: 3.006944721 | AB19: 2.711239188 | AC19: 2.406593898 | AD19: 2.092738583 | AE19: 1.769394806 | AF19: 1.436275714 | AG19: 1.093085779 | AH19: 0.7395205387 | AI19: 0.3752663287
E20: Debt transaction costs | G20: £m nominal | K20: =SUMPRODUCT(Finance!K47:AX47,Finance!K65:AX65)+SUMPRODUCT(Finance!K49:AX49,Finance!K65:AX65) -> 4.664709395
E21: Total tax deductions | G21: £m nominal | K21: =SUM(K17:K20) -> 51.0387699 | L21: 44.44580606 | M21: 42.69784263 | N21: 41.1166342 | O21: 39.68975773 | P21: 38.4058151 | Q21: 37.25435217 | R21: 36.22578437 | S21: =SUM(S17:S20) -> 35.31132821 | T21: 34.50293842 | U21: 33.79325 | V21: 33.17552512 | W21: 32.64360416 | X21: =SUM(X17:X20) -> 32.19186083 | Y21: 32.88445216 | Z21: 32.49257192 | AA21: 32.17363715 | AB21: 31.92322649 | AC21: 31.7373201 | AD21: 31.61226919 | AE21: 31.54476796 | AF21: 31.53182794 | AG21: 31.57075432 | AH21: 31.65912433 | AI21: 79.0374714
C23: Tax pools
D25: Revenue pool
E27: Controllable opex | G27: £m nominal | K27: =Input!K33 * K$12 -> 12.70552734 | L27: =Input!L33 * L$12 -> 13.11718643 | M27: =Input!M33 * M$12 -> 13.54218327 | N27: =Input!N33 * N$12 -> 13.98095001 | O27: =Input!O33 * O$12 -> 14.43393279 | P27: =Input!P33 * P$12 -> 14.90159221 | Q27: =Input!Q33 * Q$12 -> 15.3844038 | R27: =Input!R33 * R$12 -> 15.88285848 | S27: =Input!S33 * S$12 -> 16.3974631 | T27: =Input!T33 * T$12 -> 16.9287409 | U27: =Input!U33 * U$12 -> 17.47723211 | V27: =Input!V33 * V$12 -> 18.04349443 | W27: =Input!W33 * W$12 -> 18.62810365 | X27: =Input!X33 * X$12 -> 19.2316542 | Y27: =Input!Y33 * Y$12 -> 19.8547598 | Z27: =Input!Z33 * Z$12 -> 20.49805402 | AA27: =Input!AA33 * AA$12 -> 21.16219097 | AB27: =Input!AB33 * AB$12 -> 21.84784596 | AC27: =Input!AC33 * AC$12 -> 22.55571616 | AD27: =Input!AD33 * AD$12 -> 23.28652137 | AE27: =Input!AE33 * AE$12 -> 24.04100466 | AF27: =Input!AF33 * AF$12 -> 24.81993321 | AG27: =Input!AG33 * AG$12 -> 25.62409905 | AH27: =Input!AH33 * AH$12 -> 26.45431986 | AI27: =Input!AI33 * AI$12 -> 27.31143982
E28: Opex re-assessment adjustment | G28: £m nominal | K28: =Input!K35*K$12 -> 0 | L28: =Input!L35*L$12 -> 0 | M28: =Input!M35*M$12 -> 0 | N28: =Input!N35*N$12 -> 0 | O28: =Input!O35*O$12 -> 0 | P28: =Input!P35*P$12 -> 0 | Q28: =Input!Q35*Q$12 -> 0 | R28: =Input!R35*R$12 -> 0 | S28: =Input!S35*S$12 -> 0 | T28: =Input!T35*T$12 -> 0 | U28: =Input!U35*U$12 -> 0 | V28: =Input!V35*V$12 -> 0 | W28: =Input!W35*W$12 -> 0 | X28: =Input!X35*X$12 -> 0 | Y28: =Input!Y35*Y$12 -> 0 | Z28: =Input!Z35*Z$12 -> 0 | AA28: =Input!AA35*AA$12 -> 0 | AB28: =Input!AB35*AB$12 -> 0 | AC28: =Input!AC35*AC$12 -> 0 | AD28: =Input!AD35*AD$12 -> 0 | AE28: =Input!AE35*AE$12 -> 0 | AF28: =Input!AF35*AF$12 -> 0 | AG28: =Input!AG35*AG$12 -> 0 | AH28: =Input!AH35*AH$12 -> 0 | AI28: =Input!AI35*AI$12 -> 0
E29: Non-controllable opex (baseline) | G29: £m nominal | K29: =Input!K34 * K$12 -> 0 | L29: =Input!L34 * L$12 -> 0 | M29: =Input!M34 * M$12 -> 0 | N29: =Input!N34 * N$12 -> 0 | O29: =Input!O34 * O$12 -> 0 | P29: =Input!P34 * P$12 -> 0 | Q29: =Input!Q34 * Q$12 -> 0 | R29: =Input!R34 * R$12 -> 0 | S29: =Input!S34 * S$12 -> 0 | T29: =Input!T34 * T$12 -> 0 | U29: =Input!U34 * U$12 -> 0 | V29: =Input!V34 * V$12 -> 0 | W29: =Input!W34 * W$12 -> 0 | X29: =Input!X34 * X$12 -> 0 | Y29: =Input!Y34 * Y$12 -> 0 | Z29: =Input!Z34 * Z$12 -> 0 | AA29: =Input!AA34 * AA$12 -> 0 | AB29: =Input!AB34 * AB$12 -> 0 | AC29: =Input!AC34 * AC$12 -> 0 | AD29: =Input!AD34 * AD$12 -> 0 | AE29: =Input!AE34 * AE$12 -> 0 | AF29: =Input!AF34 * AF$12 -> 0 | AG29: =Input!AG34 * AG$12 -> 0 | AH29: =Input!AH34 * AH$12 -> 0 | AI29: =Input!AI34 * AI$12 -> 0
E30: Revenue pool additions | G30: £m nominal | K30: =SUM(K27:K29) -> 12.70552734 | L30: 13.11718643 | M30: 13.54218327 | N30: 13.98095001 | O30: 14.43393279 | P30: 14.90159221 | Q30: 15.3844038 | R30: 15.88285848 | S30: 16.3974631 | T30: 16.9287409 | U30: 17.47723211 | V30: 18.04349443 | W30: 18.62810365 | X30: 19.2316542 | Y30: 19.8547598 | Z30: 20.49805402 | AA30: 21.16219097 | AB30: 21.84784596 | AC30: 22.55571616 | AD30: 23.28652137 | AE30: 24.04100466 | AF30: 24.81993321 | AG30: 25.62409905 | AH30: 26.45431986 | AI30: 27.31143982
D32: Capital allowance pool
E34: Capital allowance rate (declining balance) | G34: =Input!G86 -> % | K34: =Input!K81 -> 0.08 | L34: =Input!L81 -> 0.08 | M34: =Input!M81 -> 0.08 | N34: =Input!N81 -> 0.08 | O34: =Input!O81 -> 0.08 | P34: =Input!P81 -> 0.08 | Q34: =Input!Q81 -> 0.08 | R34: =Input!R81 -> 0.08 | S34: =Input!S81 -> 0.08 | T34: =Input!T81 -> 0.08 | U34: =Input!U81 -> 0.08 | V34: =Input!V81 -> 0.08 | W34: =Input!W81 -> 0.08 | X34: =Input!X81 -> 0.08 | Y34: =Input!Y81 -> 0.08 | Z34: =Input!Z81 -> 0.08 | AA34: =Input!AA81 -> 0.08 | AB34: =Input!AB81 -> 0.08 | AC34: =Input!AC81 -> 0.08 | AD34: =Input!AD81 -> 0.08 | AE34: =Input!AE81 -> 0.08 | AF34: =Input!AF81 -> 0.08 | AG34: =Input!AG81 -> 0.08 | AH34: =Input!AH81 -> 0.08 | AI34: =Input!AI81 -> 0.08
E35: Number of operational years | G35: =Input!G116 -> full years | I35: =Input!I116 -> 25
E37: Opening balance brought forward | G37: £m nominal | K37: =J43 -> 0 | L37: 309.9684615 | M37: =L43 -> 285.1709846 | N37: =M43 -> 262.3573058 | O37: =N43 -> 241.3687213 | P37: =O43 -> 222.0592236 | Q37: =P43 -> 204.2944857 | R37: =Q43 -> 187.9509269 | S37: =R43 -> 172.9148527 | T37: =S43 -> 159.0816645 | U37: =T43 -> 146.3551314 | V37: =U43 -> 134.6467208 | W37: =V43 -> 123.8749832 | X37: =W43 -> 113.9649845 | Y37: 104.8477858 | Z37: 108.7568133 | AA37: 100.0562683 | AB37: 92.05176681 | AC37: 84.68762547 | AD37: 77.91261543 | AE37: 71.6796062 | AF37: 65.9452377 | AG37: 60.66961869 | AH37: 55.81604919 | AI37: 51.35076526
E38: Capex | G38: £m nominal | K38: =SUMPRODUCT(Pre_Op_RAV!K20:AX20,Finance!K71:AX71) -> 336.9222408
E39: Replacement capex | G39: £m nominal | K39: =Input!K31 * K$12 -> 0 | L39: =Input!L31 * L$12 -> 0 | M39: =Input!M31 * M$12 -> 0 | N39: =Input!N31 * N$12 -> 0 | O39: =Input!O31 * O$12 -> 0 | P39: =Input!P31 * P$12 -> 0 | Q39: =Input!Q31 * Q$12 -> 0 | R39: =Input!R31 * R$12 -> 0 | S39: =Input!S31 * S$12 -> 0 | T39: =Input!T31 * T$12 -> 0 | U39: =Input!U31 * U$12 -> 0 | V39: =Input!V31 * V$12 -> 0 | W39: =Input!W31 * W$12 -> 0 | X39: =Input!X31 * X$12 -> 0 | Y39: =Input!Y31 * Y$12 -> 13.36614179 | Z39: =Input!Z31 * Z$12 -> 0 | AA39: =Input!AA31 * AA$12 -> 0 | AB39: =Input!AB31 * AB$12 -> 0 | AC39: =Input!AC31 * AC$12 -> 0 | AD39: =Input!AD31 * AD$12 -> 0 | AE39: =Input!AE31 * AE$12 -> 0 | AF39: =Input!AF31 * AF$12 -> 0 | AG39: =Input!AG31 * AG$12 -> 0 | AH39: =Input!AH31 * AH$12 -> 0 | AI39: =Input!AI31 * AI$12 -> 0
E40: Tax book value pre-depreciation | G40: £m nominal | K40: =SUM(K37:K39) -> 336.9222408 | L40: =SUM(L37:L39) -> 309.9684615 | M40: 285.1709846 | N40: 262.3573058 | O40: 241.3687213 | P40: 222.0592236 | Q40: 204.2944857 | R40: 187.9509269 | S40: 172.9148527 | T40: 159.0816645 | U40: 146.3551314 | V40: 134.6467208 | W40: 123.8749832 | X40: 113.9649845 | Y40: 118.2139275 | Z40: 108.7568133 | AA40: 100.0562683 | AB40: 92.05176681 | AC40: 84.68762547 | AD40: 77.91261543 | AE40: 71.6796062 | AF40: 65.9452377 | AG40: 60.66961869 | AH40: 55.81604919 | AI40: 51.35076526
E41: Capital allowance (reducing balance) | G41: £m nominal | K41: =-K40 * K34 -> -26.95377926 | L41: =-L40 * L34 -> -24.79747692 | M41: =-M40 * M34 -> -22.81367877 | N41: -20.98858446 | O41: -19.30949771 | P41: -17.76473789 | Q41: -16.34355886 | R41: -15.03607415 | S41: -13.83318822 | T41: -12.72653316 | U41: -11.70841051 | V41: -10.77173767 | W41: -9.909998654 | X41: -9.117198762 | Y41: -9.457114204 | Z41: -8.700545068 | AA41: -8.004501462 | AB41: -7.364141345 | AC41: -6.775010038 | AD41: -6.233009235 | AE41: -5.734368496 | AF41: -5.275619016 | AG41: -4.853569495 | AH41: -4.465283935 | AI41: -4.10806122
E42: Write-back allowance | G42: £m nominal | AI42: =-SUM(AI40:AI41) -> -47.24270404
E43: Closing balance carried forward | G43: £m nominal | K43: =SUM(K40:K42) -> 309.9684615 | L43: =SUM(L40:L42) -> 285.1709846 | M43: 262.3573058 | N43: 241.3687213 | O43: 222.0592236 | P43: 204.2944857 | Q43: 187.9509269 | R43: 172.9148527 | S43: 159.0816645 | T43: 146.3551314 | U43: 134.6467208 | V43: 123.8749832 | W43: 113.9649845 | X43: =SUM(X40:X42) -> 104.8477858 | Y43: 108.7568133 | Z43: 100.0562683 | AA43: 92.05176681 | AB43: 84.68762547 | AC43: 77.91261543 | AD43: 71.6796062 | AE43: 65.9452377 | AF43: 60.66961869 | AG43: 55.81604919 | AH43: 51.35076526 | AI43: 0
E45: Capital allowances | G45: £m nominal | K45: =-(K41 + K42) -> 26.95377926 | L45: 24.79747692 | M45: 22.81367877 | N45: 20.98858446 | O45: 19.30949771 | P45: 17.76473789 | Q45: 16.34355886 | R45: 15.03607415 | S45: 13.83318822 | T45: 12.72653316 | U45: 11.70841051 | V45: 10.77173767 | W45: 9.909998654 | X45: =-(X41 + X42) -> 9.117198762 | Y45: 9.457114204 | Z45: 8.700545068 | AA45: 8.004501462 | AB45: 7.364141345 | AC45: 6.775010038 | AD45: 6.233009235 | AE45: 5.734368496 | AF45: 5.275619016 | AG45: 4.853569495 | AH45: 4.465283935 | AI45: 51.35076526
C47: Interest
D49: Cost of debt
E51: Cost of debt (for tax) | G51: =Input!G46 -> real annual % | I51: =Input!I46 -> -0.0021
E52: Expected UK RPI inflation | G52: =Input!G94 -> % | I52: =Input!I94 -> 0.0324
E53: Cost of debt (for tax) | G53: nominal annual % | I53: =(1 + I51) * (1 + I$52) - 1 -> 0.03023196
D55: Net debt
E57: Number of operational years | G57: =Input!G116 -> full years | I57: =Input!I116 -> 25
E58: Operational notional gearing | G58: =Input!G48 -> % | I58: =Input!I48 -> 0.5
E60: Principal repayments | G60: £m nominal | K60: =K62 - K61 -> 6.073413497 | L60: =L62 - L61 -> 6.257024691 | M60: 6.446186811 | N60: 6.641067673 | O60: 6.841840165 | P60: 7.048682403 | Q60: 7.261777888 | R60: 7.481315667 | S60: 7.707490503 | T60: 7.940503047 | U60: 8.180560018 | V60: 8.427874381 | W60: 8.682665542 | X60: =X62 - X61 -> 8.945159539 | Y60: 9.215589245 | Z60: 9.49419457 | AA60: 9.781222681 | AB60: 10.07692821 | AC60: 10.3815735 | AD60: 10.69542882 | AE60: 11.0187726 | AF60: 11.35189169 | AG60: 11.69508162 | AH60: 12.04864686 | AI60: 12.41290107
E61: Net interest paid | G61: £m nominal | K61: =$I53 * K64 -> 6.714753905 | L61: 6.531142711 | M61: 6.341980591 | N61: 6.147099729 | O61: 5.946327236 | P61: 5.739484998 | Q61: 5.526389514 | R61: 5.306851735 | S61: 5.080676899 | T61: 4.847664355 | U61: 4.607607384 | V61: 4.360293021 | W61: 4.10550186 | X61: 3.843007862 | Y61: 3.572578157 | Z61: 3.293972831 | AA61: 3.006944721 | AB61: 2.711239188 | AC61: 2.406593898 | AD61: 2.092738583 | AE61: 1.769394806 | AF61: 1.436275714 | AG61: 1.093085779 | AH61: 0.7395205387 | AI61: 0.3752663287
E62: Total | G62: £m nominal | K62: =$I$66*$I53/(1-(1+$I53)^(-$I57)) -> 12.7881674 | L62: 12.7881674 | M62: 12.7881674 | N62: 12.7881674 | O62: 12.7881674 | P62: 12.7881674 | Q62: 12.7881674 | R62: 12.7881674 | S62: 12.7881674 | T62: 12.7881674 | U62: 12.7881674 | V62: 12.7881674 | W62: 12.7881674 | X62: 12.7881674 | Y62: 12.7881674 | Z62: 12.7881674 | AA62: 12.7881674 | AB62: 12.7881674 | AC62: 12.7881674 | AD62: 12.7881674 | AE62: 12.7881674 | AF62: 12.7881674 | AG62: 12.7881674 | AH62: 12.7881674 | AI62: 12.7881674
E64: Opening net debt | G64: £m nominal | K64: =I66 -> 222.1077927 | L64: =K66 -> 216.0343792 | M64: =L66 -> 209.7773545 | N64: 203.3311677 | O64: 196.6901 | P64: 189.8482599 | Q64: 182.7995775 | R64: 175.5377996 | S64: 168.0564839 | T64: 160.3489934 | U64: 152.4084904 | V64: 144.2279303 | W64: 135.800056 | X64: 127.1173904 | Y64: 118.1722309 | Z64: 108.9566416 | AA64: 99.46244706 | AB64: 89.68122438 | AC64: 79.60429617 | AD64: 69.22272266 | AE64: 58.52729384 | AF64: 47.50852125 | AG64: 36.15662956 | AH64: 24.46154794 | AI64: 12.41290107
E65: Less principal repayment | G65: £m nominal | K65: =IF(TaxFloor!K$3 = $I57, -K64, -K60) -> -6.073413497 | L65: =IF(TaxFloor!L$3 = $I57, -L64, -L60) -> -6.257024691 | M65: =IF(TaxFloor!M$3 = $I57, -M64, -M60) -> -6.446186811 | N65: =IF(TaxFloor!N$3 = $I57, -N64, -N60) -> -6.641067673 | O65: =IF(TaxFloor!O$3 = $I57, -O64, -O60) -> -6.841840165 | P65: =IF(TaxFloor!P$3 = $I57, -P64, -P60) -> -7.048682403 | Q65: =IF(TaxFloor!Q$3 = $I57, -Q64, -Q60) -> -7.261777888 | R65: =IF(TaxFloor!R$3 = $I57, -R64, -R60) -> -7.481315667 | S65: =IF(TaxFloor!S$3 = $I57, -S64, -S60) -> -7.707490503 | T65: =IF(TaxFloor!T$3 = $I57, -T64, -T60) -> -7.940503047 | U65: =IF(TaxFloor!U$3 = $I57, -U64, -U60) -> -8.180560018 | V65: =IF(TaxFloor!V$3 = $I57, -V64, -V60) -> -8.427874381 | W65: =IF(TaxFloor!W$3 = $I57, -W64, -W60) -> -8.682665542 | X65: =IF(TaxFloor!X$3 = $I57, -X64, -X60) -> -8.945159539 | Y65: =IF(TaxFloor!Y$3 = $I57, -Y64, -Y60) -> -9.215589245 | Z65: =IF(TaxFloor!Z$3 = $I57, -Z64, -Z60) -> -9.49419457 | AA65: =IF(TaxFloor!AA$3 = $I57, -AA64, -AA60) -> -9.781222681 | AB65: =IF(TaxFloor!AB$3 = $I57, -AB64, -AB60) -> -10.07692821 | AC65: =IF(TaxFloor!AC$3 = $I57, -AC64, -AC60) -> -10.3815735 | AD65: =IF(TaxFloor!AD$3 = $I57, -AD64, -AD60) -> -10.69542882 | AE65: =IF(TaxFloor!AE$3 = $I57, -AE64, -AE60) -> -11.0187726 | AF65: =IF(TaxFloor!AF$3 = $I57, -AF64, -AF60) -> -11.35189169 | AG65: =IF(TaxFloor!AG$3 = $I57, -AG64, -AG60) -> -11.69508162 | AH65: =IF(TaxFloor!AH$3 = $I57, -AH64, -AH60) -> -12.04864686 | AI65: =IF(TaxFloor!AI$3 = $I57, -AI64, -AI60) -> -12.41290107
E66: Closing net debt | G66: £m nominal | I66: =Op_RAV!K14*I10*I58 -> 222.1077927 | K66: =SUM(K64:K65) -> 216.0343792 | L66: =SUM(L64:L65) -> 209.7773545 | M66: 203.3311677 | N66: 196.6901 | O66: 189.8482599 | P66: 182.7995775 | Q66: 175.5377996 | R66: 168.0564839 | S66: 160.3489934 | T66: 152.4084904 | U66: 144.2279303 | V66: 135.800056 | W66: 127.1173904 | X66: =SUM(X64:X65) -> 118.1722309 | Y66: =SUM(Y64:Y65) -> 108.9566416 | Z66: 99.46244706 | AA66: 89.68122438 | AB66: 79.60429617 | AC66: 69.22272266 | AD66: 58.52729384 | AE66: 47.50852125 | AF66: 36.15662956 | AG66: 24.46154794 | AH66: 12.41290107 | AI66: -9.237055565e-14
B68: End of sheet

Sheet TaxCap
A1: TaxCap | H1: Licence
E2: Parameter | G2: Units | H2: Terminology | I2: Constant | K2: Annual values
E3: Project year | K3: Year 1 | L3: Year 2 | M3: Year 3 | N3: Year 4 | O3: Year 5 | P3: Year 6 | Q3: Year 7 | R3: Year 8 | S3: Year 9 | T3: Year 10 | U3: Year 11 | V3: Year 12 | W3: Year 13 | X3: Year 14 | Y3: Year 15 | Z3: Year 16 | AA3: Year 17 | AB3: Year 18 | AC3: Year 19 | AD3: Year 20 | AE3: Year 21 | AF3: Year 22 | AG3: Year 23 | AH3: Year 24 | AI3: Year 25
B7: Tax (cap)
C9: Unprofiled tax allowance (cap)
D11: Profits attributable to corporation tax
E13: Annuitised allowances except tax (cap) | G13: £m nominal prices | K13: =AllowancesCap!K36 * Deductions!K$12 -> 54.08720461 | L13: =AllowancesCap!L36 * Deductions!L$12 -> 55.83963004 | M13: =AllowancesCap!M36 * Deductions!M$12 -> 57.64883405 | N13: =AllowancesCap!N36 * Deductions!N$12 -> 59.51665627 | O13: =AllowancesCap!O36 * Deductions!O$12 -> 61.44499594 | P13: =AllowancesCap!P36 * Deductions!P$12 -> 63.4358138 | Q13: =AllowancesCap!Q36 * Deductions!Q$12 -> 65.49113417 | R13: =AllowancesCap!R36 * Deductions!R$12 -> 67.61304692 | S13: =AllowancesCap!S36 * Deductions!S$12 -> 69.80370964 | T13: =AllowancesCap!T36 * Deductions!T$12 -> 72.06534983 | U13: =AllowancesCap!U36 * Deductions!U$12 -> 74.40026717 | V13: =AllowancesCap!V36 * Deductions!V$12 -> 76.81083582 | W13: =AllowancesCap!W36 * Deductions!W$12 -> 79.2995069 | X13: =AllowancesCap!X36 * Deductions!X$12 -> 81.86881093 | Y13: =AllowancesCap!Y36 * Deductions!Y$12 -> 84.5213604 | Z13: =AllowancesCap!Z36 * Deductions!Z$12 -> 87.25985248 | AA13: =AllowancesCap!AA36 * Deductions!AA$12 -> 90.0870717 | AB13: =AllowancesCap!AB36 * Deductions!AB$12 -> 93.00589282 | AC13: =AllowancesCap!AC36 * Deductions!AC$12 -> 96.01928375 | AD13: =AllowancesCap!AD36 * Deductions!AD$12 -> 99.13030854 | AE13: =AllowancesCap!AE36 * Deductions!AE$12 -> 102.3421305 | AF13: =AllowancesCap!AF36 * Deductions!AF$12 -> 105.6580156 | AG13: =AllowancesCap!AG36 * Deductions!AG$12 -> 109.0813353 | AH13: =AllowancesCap!AH36 * Deductions!AH$12 -> 112.6155705 | AI13: =AllowancesCap!AI36 * Deductions!AI$12 -> 116.264315
E14: Less tax deductions | G14: £m nominal prices | K14: =-Deductions!K21 -> -51.0387699 | L14: =-Deductions!L21 -> -44.44580606 | M14: =-Deductions!M21 -> -42.69784263 | N14: =-Deductions!N21 -> -41.1166342 | O14: =-Deductions!O21 -> -39.68975773 | P14: =-Deductions!P21 -> -38.4058151 | Q14: =-Deductions!Q21 -> -37.25435217 | R14: =-Deductions!R21 -> -36.22578437 | S14: =-Deductions!S21 -> -35.31132821 | T14: =-Deductions!T21 -> -34.50293842 | U14: =-Deductions!U21 -> -33.79325 | V14: =-Deductions!V21 -> -33.17552512 | W14: =-Deductions!W21 -> -32.64360416 | X14: =-Deductions!X21 -> -32.19186083 | Y14: =-Deductions!Y21 -> -32.88445216 | Z14: =-Deductions!Z21 -> -32.49257192 | AA14: =-Deductions!AA21 -> -32.17363715 | AB14: =-Deductions!AB21 -> -31.92322649 | AC14: =-Deductions!AC21 -> -31.7373201 | AD14: =-Deductions!AD21 -> -31.61226919 | AE14: =-Deductions!AE21 -> -31.54476796 | AF14: =-Deductions!AF21 -> -31.53182794 | AG14: =-Deductions!AG21 -> -31.57075432 | AH14: =-Deductions!AH21 -> -31.65912433 | AI14: =-Deductions!AI21 -> -79.0374714
E15: Profits attributable to corporation tax | G15: £m nominal prices | K15: =SUM(K13:K14) -> 3.048434703 | L15: =SUM(L13:L14) -> 11.39382398 | M15: 14.95099142 | N15: 18.40002207 | O15: 21.7552382 | P15: 25.0299987 | Q15: 28.236782 | R15: 31.38726255 | S15: 34.49238142 | T15: 37.56241141 | U15: 40.60701717 | V15: 43.63531071 | W15: 46.65590274 | X15: =SUM(X13:X14) -> 49.6769501 | Y15: 51.63690824 | Z15: 54.76728056 | AA15: 57.91343455 | AB15: 61.08266633 | AC15: 64.28196365 | AD15: 67.51803936 | AE15: 70.79736258 | AF15: 74.12618763 | AG15: 77.51058095 | AH15: 80.9564462 | AI15: 37.22684362
D17: Tax losses
E19: Taxable losses brought forward | G19: £m nominal prices | K19: =J22 -> 0 | L19: 0 | M19: =L22 -> 0 | N19: =M22 -> 0 | O19: =N22 -> 0 | P19: =O22 -> 0 | Q19: =P22 -> 0 | R19: =Q22 -> 0 | S19: =R22 -> 0 | T19: =S22 -> 0 | U19: =T22 -> 0 | V19: =U22 -> 0 | W19: =V22 -> 0 | X19: =W22 -> 0 | Y19: 0 | Z19: 0 | AA19: 0 | AB19: 0 | AC19: 0 | AD19: 0 | AE19: 0 | AF19: 0 | AG19: 0 | AH19: 0 | AI19: 0
E20: In-year taxable loss | G20: £m nominal prices | K20: =MIN(K15, 0) -> 0 | L20: =MIN(L15, 0) -> 0 | M20: 0 | N20: 0 | O20: 0 | P20: 0 | Q20: 0 | R20: 0 | S20: 0 | T20: 0 | U20: 0 | V20: 0 | W20: 0 | X20: =MIN(X15, 0) -> 0 | Y20: 0 | Z20: 0 | AA20: 0 | AB20: 0 | AC20: 0 | AD20: 0 | AE20: 0 | AF20: 0 | AG20: 0 | AH20: 0 | AI20: 0
E21: Profits attributable to corporation tax | G21: £m nominal prices | K21: =IF(K15 >= 0, MIN(K15, -K19), 0) -> 0 | L21: =IF(L15 >= 0, MIN(L15, -L19), 0) -> 0 | M21: 0 | N21: 0 | O21: 0 | P21: 0 | Q21: 0 | R21: 0 | S21: 0 | T21: 0 | U21: 0 | V21: 0 | W21: 0 | X21: =IF(X15 >= 0, MIN(X15, -X19), 0) -> 0 | Y21: 0 | Z21: 0 | AA21: 0 | AB21: 0 | AC21: 0 | AD21: 0 | AE21: 0 | AF21: 0 | AG21: 0 | AH21: 0 | AI21: 0
E22: Balance carried forward | G22: £m nominal prices | K22: =SUM(K19:K21) -> 0 | L22: =SUM(L19:L21) -> 0 | M22: 0 | N22: 0 | O22: 0 | P22: 0 | Q22: 0 | R22: 0 | S22: 0 | T22: 0 | U22: 0 | V22: 0 | W22: 0 | X22: =SUM(X19:X21) -> 0 | Y22: 0 | Z22: 0 | AA22: 0 | AB22: 0 | AC22: 0 | AD22: 0 | AE22: 0 | AF22: 0 | AG22: 0 | AH22: 0 | AI22: 0
D24: Tax allowance
E26: Profits attributable to corporation tax (after taxable losses) | G26: £m nominal prices | K26: =MAX(K15 - K21,0) -> 3.048434703 | L26: =MAX(L15 - L21,0) -> 11.39382398 | M26: 14.95099142 | N26: 18.40002207 | O26: 21.7552382 | P26: 25.0299987 | Q26: 28.236782 | R26: 31.38726255 | S26: 34.49238142 | T26: 37.56241141 | U26: 40.60701717 | V26: 43.63531071 | W26: 46.65590274 | X26: =MAX(X15 - X21,0) -> 49.6769501 | Y26: =MAX(Y15 - Y21,0) -> 51.63690824 | Z26: 54.76728056 | AA26: 57.91343455 | AB26: 61.08266633 | AC26: 64.28196365 | AD26: 67.51803936 | AE26: 70.79736258 | AF26: 74.12618763 | AG26: 77.51058095 | AH26: 80.9564462 | AI26: 37.22684362
E27: Corporation tax rate | G27: =Input!G85 -> % | K27: =Input!K80 -> 0.17 | L27: =Input!L80 -> 0.17 | M27: =Input!M80 -> 0.17 | N27: =Input!N80 -> 0.17 | O27: =Input!O80 -> 0.17 | P27: =Input!P80 -> 0.17 | Q27: =Input!Q80 -> 0.17 | R27: =Input!R80 -> 0.17 | S27: =Input!S80 -> 0.17 | T27: =Input!T80 -> 0.17 | U27: =Input!U80 -> 0.17 | V27: =Input!V80 -> 0.17 | W27: =Input!W80 -> 0.17 | X27: =Input!X80 -> 0.17 | Y27: =Input!Y80 -> 0.17 | Z27: =Input!Z80 -> 0.17 | AA27: =Input!AA80 -> 0.17 | AB27: =Input!AB80 -> 0.17 | AC27: =Input!AC80 -> 0.17 | AD27: =Input!AD80 -> 0.17 | AE27: =Input!AE80 -> 0.17 | AF27: =Input!AF80 -> 0.17 | AG27: =Input!AG80 -> 0.17 | AH27: =Input!AH80 -> 0.17 | AI27: =Input!AI80 -> 0.17
E28: Corporation tax charge after losses | G28: £m nominal prices | K28: =K26 * K27 -> 0.5182338995 | L28: =L26 * L27 -> 1.936950076 | M28: 2.541668542 | N28: 3.128003752 | O28: 3.698390495 | P28: 4.25509978 | Q28: 4.80025294 | R28: 5.335834634 | S28: 5.863704842 | T28: 6.38560994 | U28: 6.903192918 | V28: 7.41800282 | W28: 7.931503466 | X28: =X26 * X27 -> 8.445081517 | Y28: =Y26 * Y27 -> 8.778274401 | Z28: 9.310437695 | AA28: 9.845283873 | AB28: 10.38405328 | AC28: 10.92793382 | AD28: 11.47806669 | AE28: 12.03555164 | AF28: 12.6014519 | AG28: 13.17679876 | AH28: 13.76259585 | AI28: 6.328563415
E30: "Grossing-up" factor for tax on tax charge after losses | G30: scalar | K30: =1 / (1 - K27) -> 1.204819277 | L30: =1 / (1 - L27) -> 1.204819277 | M30: 1.204819277 | N30: 1.204819277 | O30: 1.204819277 | P30: 1.204819277 | Q30: 1.204819277 | R30: 1.204819277 | S30: 1.204819277 | T30: 1.204819277 | U30: 1.204819277 | V30: 1.204819277 | W30: 1.204819277 | X30: =1 / (1 - X27) -> 1.204819277 | Y30: =1 / (1 - Y27) -> 1.204819277 | Z30: 1.204819277 | AA30: 1.204819277 | AB30: 1.204819277 | AC30: 1.204819277 | AD30: 1.204819277 | AE30: 1.204819277 | AF30: 1.204819277 | AG30: 1.204819277 | AH30: 1.204819277 | AI30: 1.204819277
E32: Unprofiled tax allowance (cap) | G32: £m nominal prices | K32: =K28 * K30 -> 0.6243781922 | L32: =L28 * L30 -> 2.33367479 | M32: 3.062251255 | N32: 3.768679219 | O32: 4.455892162 | P32: 5.126626241 | Q32: 5.783437277 | R32: 6.428716426 | S32: 7.064704629 | T32: 7.693505952 | U32: 8.317099902 | V32: 8.937352795 | W32: 9.556028273 | X32: =X28 * X30 -> 10.17479701 | Y32: =Y28 * Y30 -> 10.57623422 | Z32: =Z28 * Z30 -> 11.21739481 | AA32: 11.8617878 | AB32: 12.51090756 | AC32: 13.16618533 | AD32: 13.82899601 | AE32: 14.50066462 | AF32: 15.18247216 | AG32: 15.87566116 | AH32: 16.58144079 | AI32: 7.624775198
C34: Profiled tax allowance (cap)
E36: Unprofiled tax allowance (cap) | G36: £m 16/17 prices | K36: =TaxCap!K32 / Deductions!K12 -> 0.537998534 | L36: =TaxCap!L32 / Deductions!L12 -> 1.947716329 | M36: =TaxCap!M32 / Deductions!M12 -> 2.475587014 | N36: =TaxCap!N32 / Deductions!N12 -> 2.95106348 | O36: =TaxCap!O32 / Deductions!O12 -> 3.379683681 | P36: =TaxCap!P32 / Deductions!P12 -> 3.766387875 | Q36: =TaxCap!Q32 / Deductions!Q12 -> 4.115583534 | R36: =TaxCap!R32 / Deductions!R12 -> 4.431203186 | S36: =TaxCap!S32 / Deductions!S12 -> 4.716755975 | T36: =TaxCap!T32 / Deductions!T12 -> 4.975373602 | U36: =TaxCap!U32 / Deductions!U12 -> 5.209851274 | V36: =TaxCap!V32 / Deductions!V12 -> 5.422684203 | W36: =TaxCap!W32 / Deductions!W12 -> 5.616100124 | X36: =TaxCap!X32 / Deductions!X12 -> 5.792088294 | Y36: =TaxCap!Y32 / Deductions!Y12 -> 5.831663873 | Z36: =TaxCap!Z32 / Deductions!Z12 -> 5.991084348 | AA36: =TaxCap!AA32 / Deductions!AA12 -> 6.136427151 | AB36: =TaxCap!AB32 / Deductions!AB12 -> 6.269115219 | AC36: =TaxCap!AC32 / Deductions!AC12 -> 6.390420031 | AD36: =TaxCap!AD32 / Deductions!AD12 -> 6.501477983 | AE36: =TaxCap!AE32 / Deductions!AE12 -> 6.603304995 | AF36: =TaxCap!AF32 / Deductions!AF12 -> 6.696809524 | AG36: =TaxCap!AG32 / Deductions!AG12 -> 6.782804164 | AH36: =TaxCap!AH32 / Deductions!AH12 -> 6.862015989 | AI36: =TaxCap!AI32 / Deductions!AI12 -> 3.056388165
E37: Discount factor to start of operational period (cap) | G37: =AllowancesCap!G$26 -> scalar | K37: =AllowancesCap!K$26 -> 0.9250693802 | L37: =AllowancesCap!L$26 -> 0.8557533582 | M37: =AllowancesCap!M$26 -> 0.7916312287 | N37: =AllowancesCap!N$26 -> 0.7323138101 | O37: =AllowancesCap!O$26 -> 0.6774410824 | P37: =AllowancesCap!P$26 -> 0.6266800022 | Q37: =AllowancesCap!Q$26 -> 0.5797224812 | R37: =AllowancesCap!R$26 -> 0.5362835164 | S37: =AllowancesCap!S$26 -> 0.4960994601 | T37: =AllowancesCap!T$26 -> 0.4589264201 | U37: =AllowancesCap!U$26 -> 0.424538779 | V37: =AllowancesCap!V$26 -> 0.3927278252 | W37: =AllowancesCap!W$26 -> 0.3633004858 | X37: =AllowancesCap!X$26 -> 0.3360781552 | Y37: =AllowancesCap!Y$26 -> 0.3108956108 | Z37: =AllowancesCap!Z$26 -> 0.28760001 | AA37: =AllowancesCap!AA$26 -> 0.266049963 | AB37: =AllowancesCap!AB$26 -> 0.2461146743 | AC37: =AllowancesCap!AC$26 -> 0.2276731492 | AD37: =AllowancesCap!AD$26 -> 0.2106134591 | AE37: =AllowancesCap!AE$26 -> 0.194832062 | AF37: =AllowancesCap!AF$26 -> 0.1802331749 | AG37: =AllowancesCap!AG$26 -> 0.1667281914 | AH37: =AllowancesCap!AH$26 -> 0.1542351447 | AI37: =AllowancesCap!AI$26 -> 0.1426782097
E39: Discounted unprofiled tax allowance (cap) | G39: £m 16/17 prices | K39: =K36 * K37 -> 0.4976859704 | L39: =L36 * L37 -> 1.666764789 | M39: 1.95975199 | N39: 2.161104541 | O39: 2.289536571 | P39: 2.360319962 | Q39: 2.385896298 | R39: 2.376381227 | S39: 2.339980093 | T39: 2.283330396 | U39: 2.211783899 | V39: 2.129638973 | W39: 2.040331904 | X39: =X36 * X37 -> 1.946594349 | Y39: =Y36 * Y37 -> 1.813038702 | Z39: 1.723035918 | AA39: 1.632596216 | AB39: 1.542921251 | AC39: 1.454927053 | AD39: 1.369298767 | AE39: 1.286535528 | AF39: 1.206987242 | AG39: 1.130884671 | AH39: 1.058364029 | AI39: 0.4360799914
E40: NPV of tax allowance (cap) | G40: £m 16/17 prices | I40: =SUM(K39:AI39) -> 43.30377033
E42: Annuity factor (cap) | G42: =AllowancesCap!G$23 -> scalar | I42: =AllowancesCap!I$23 -> 0.09448027673
E44: Annuity of tax allowance (cap) | G44: £m 16/17 prices | I44: =I40 * I42 -> 4.091352204
B46: End of sheet

Sheet TaxFloor
A1: TaxFloor | H1: Licence
E2: Parameter | G2: Units | H2: Terminology | I2: Constant | K2: Annual values
E3: Project year | K3: Year 1 | L3: Year 2 | M3: Year 3 | N3: Year 4 | O3: Year 5 | P3: Year 6 | Q3: Year 7 | R3: Year 8 | S3: Year 9 | T3: Year 10 | U3: Year 11 | V3: Year 12 | W3: Year 13 | X3: Year 14 | Y3: Year 15 | Z3: Year 16 | AA3: Year 17 | AB3: Year 18 | AC3: Year 19 | AD3: Year 20 | AE3: Year 21 | AF3: Year 22 | AG3: Year 23 | AH3: Year 24 | AI3: Year 25
B7: Tax (floor)
C9: Unprofiled tax allowance (floor)
D11: Profits attributable to corporation tax
E13: Annuitised allowances except tax (floor) | G13: £m nominal prices | K13: =AllowancesFloor!K36 * Deductions!K$12 -> 30.88861699 | L13: =AllowancesFloor!L36 * Deductions!L$12 -> 31.88940818 | M13: =AllowancesFloor!M36 * Deductions!M$12 -> 32.92262501 | N13: =AllowancesFloor!N36 * Deductions!N$12 -> 33.98931806 | O13: =AllowancesFloor!O36 * Deductions!O$12 -> 35.09057196 | P13: =AllowancesFloor!P36 * Deductions!P$12 -> 36.2275065 | Q13: =AllowancesFloor!Q36 * Deductions!Q$12 -> 37.40127771 | R13: =AllowancesFloor!R36 * Deductions!R$12 -> 38.6130791 | S13: =AllowancesFloor!S36 * Deductions!S$12 -> 39.86414287 | T13: =AllowancesFloor!T36 * Deductions!T$12 -> 41.1557411 | U13: =AllowancesFloor!U36 * Deductions!U$12 -> 42.48918711 | V13: =AllowancesFloor!V36 * Deductions!V$12 -> 43.86583677 | W13: =AllowancesFloor!W36 * Deductions!W$12 -> 45.28708988 | X13: =AllowancesFloor!X36 * Deductions!X$12 -> 46.75439159 | Y13: =AllowancesFloor!Y36 * Deductions!Y$12 -> 48.26923388 | Z13: =AllowancesFloor!Z36 * Deductions!Z$12 -> 49.83315706 | AA13: =AllowancesFloor!AA36 * Deductions!AA$12 -> 51.44775135 | AB13: =AllowancesFloor!AB36 * Deductions!AB$12 -> 53.11465849 | AC13: =AllowancesFloor!AC36 * Deductions!AC$12 -> 54.83557343 | AD13: =AllowancesFloor!AD36 * Deductions!AD$12 -> 56.61224601 | AE13: =AllowancesFloor!AE36 * Deductions!AE$12 -> 58.44648278 | AF13: =AllowancesFloor!AF36 * Deductions!AF$12 -> 60.34014882 | AG13: =AllowancesFloor!AG36 * Deductions!AG$12 -> 62.29516964 | AH13: =AllowancesFloor!AH36 * Deductions!AH$12 -> 64.31353314 | AI13: =AllowancesFloor!AI36 * Deductions!AI$12 -> 66.39729161
E14: Less tax deductions | G14: £m nominal prices | K14: =-Deductions!K21 -> -51.0387699 | L14: =-Deductions!L21 -> -44.44580606 | M14: =-Deductions!M21 -> -42.69784263 | N14: =-Deductions!N21 -> -41.1166342 | O14: =-Deductions!O21 -> -39.68975773 | P14: =-Deductions!P21 -> -38.4058151 | Q14: =-Deductions!Q21 -> -37.25435217 | R14: =-Deductions!R21 -> -36.22578437 | S14: =-Deductions!S21 -> -35.31132821 | T14: =-Deductions!T21 -> -34.50293842 | U14: =-Deductions!U21 -> -33.79325 | V14: =-Deductions!V21 -> -33.17552512 | W14: =-Deductions!W21 -> -32.64360416 | X14: =-Deductions!X21 -> -32.19186083 | Y14: =-Deductions!Y21 -> -32.88445216 | Z14: =-Deductions!Z21 -> -32.49257192 | AA14: =-Deductions!AA21 -> -32.17363715 | AB14: =-Deductions!AB21 -> -31.92322649 | AC14: =-Deductions!AC21 -> -31.7373201 | AD14: =-Deductions!AD21 -> -31.61226919 | AE14: =-Deductions!AE21 -> -31.54476796 | AF14: =-Deductions!AF21 -> -31.53182794 | AG14: =-Deductions!AG21 -> -31.57075432 | AH14: =-Deductions!AH21 -> -31.65912433 | AI14: =-Deductions!AI21 -> -79.0374714
E15: Profits attributable to corporation tax | G15: £m nominal prices | K15: =SUM(K13:K14) -> -20.15015291 | L15: =SUM(L13:L14) -> -12.55639788 | M15: -9.775217618 | N15: -7.127316143 | O15: -4.599185768 | P15: -2.178308604 | Q15: 0.1469255343 | R15: 2.387294736 | S15: 4.552814652 | T15: 6.652802679 | U15: 8.695937109 | V15: 10.69031165 | W15: 12.64348572 | X15: =SUM(X13:X14) -> 14.56253076 | Y15: 15.38478172 | Z15: 17.34058514 | AA15: 19.2741142 | AB15: 21.191432 | AC15: 23.09825333 | AD15: 24.99997682 | AE15: 26.90171481 | AF15: 28.80832088 | AG15: 30.72441532 | AH15: 32.65440881 | AI15: -12.64017979
D17: Tax losses
E19: Taxable losses brought forward | G19: £m nominal prices | K19: =J22 -> 0 | L19: -20.15015291 | M19: =L22 -> -32.70655079 | N19: =M22 -> -42.48176841 | O19: =N22 -> -49.60908455 | P19: =O22 -> -54.20827032 | Q19: =P22 -> -56.38657892 | R19: =Q22 -> -56.23965339 | S19: =R22 -> -53.85235865 | T19: =S22 -> -49.299544 | U19: =T22 -> -42.64674132 | V19: =U22 -> -33.95080421 | W19: =V22 -> -23.26049256 | X19: =W22 -> -10.61700683 | Y19: 0 | Z19: 0 | AA19: 0 | AB19: 0 | AC19: 0 | AD19: 0 | AE19: 0 | AF19: 0 | AG19: 0 | AH19: 0 | AI19: 0
E20: In-year taxable loss | G20: £m nominal prices | K20: =MIN(K15, 0) -> -20.15015291 | L20: =MIN(L15, 0) -> -12.55639788 | M20: -9.775217618 | N20: -7.127316143 | O20: -4.599185768 | P20: -2.178308604 | Q20: 0 | R20: 0 | S20: 0 | T20: 0 | U20: 0 | V20: 0 | W20: 0 | X20: =MIN(X15, 0) -> 0 | Y20: 0 | Z20: 0 | AA20: 0 | AB20: 0 | AC20: 0 | AD20: 0 | AE20: 0 | AF20: 0 | AG20: 0 | AH20: 0 | AI20: -12.64017979
E21: Profits attributable to corporation tax | G21: £m nominal prices | K21: =IF(K15 >= 0, MIN(K15, -K19), 0) -> 0 | L21: =IF(L15 >= 0, MIN(L15, -L19), 0) -> 0 | M21: 0 | N21: 0 | O21: 0 | P21: 0 | Q21: 0.1469255343 | R21: 2.387294736 | S21: 4.552814652 | T21: 6.652802679 | U21: 8.695937109 | V21: 10.69031165 | W21: 12.64348572 | X21: =IF(X15 >= 0, MIN(X15, -X19), 0) -> 10.61700683 | Y21: 0 | Z21: 0 | AA21: 0 | AB21: 0 | AC21: 0 | AD21: 0 | AE21: 0 | AF21: 0 | AG21: 0 | AH21: 0 | AI21: 0
E22: Balance carried forward | G22: £m nominal prices | K22: =SUM(K19:K21) -> -20.15015291 | L22: =SUM(L19:L21) -> -32.70655079 | M22: -42.48176841 | N22: -49.60908455 | O22: -54.20827032 | P22: -56.38657892 | Q22: -56.23965339 | R22: -53.85235865 | S22: -49.299544 | T22: -42.64674132 | U22: -33.95080421 | V22: -23.26049256 | W22: -10.61700683 | X22: =SUM(X19:X21) -> 0 | Y22: 0 | Z22: 0 | AA22: 0 | AB22: 0 | AC22: 0 | AD22: 0 | AE22: 0 | AF22: 0 | AG22: 0 | AH22: 0 | AI22: -12.64017979
D24: Tax allowance
E26: Profits attributable to corporation tax (after taxable losses) | G26: £m nominal prices | K26: =MAX(K15 - K21,0) -> 0 | L26: =MAX(L15 - L21,0) -> 0 | M26: 0 | N26: 0 | O26: 0 | P26: 0 | Q26: 0 | R26: 0 | S26: 0 | T26: 0 | U26: 0 | V26: 0 | W26: 0 | X26: =MAX(X15 - X21,0) -> 3.945523931 | Y26: 15.38478172 | Z26: 17.34058514 | AA26: 19.2741142 | AB26: 21.191432 | AC26: 23.09825333 | AD26: 24.99997682 | AE26: 26.90171481 | AF26: 28.80832088 | AG26: 30.72441532 | AH26: 32.65440881 | AI26: 0
E27: Corporation tax rate | G27: =Input!G85 -> % | K27: =Input!K80 -> 0.17 | L27: =Input!L80 -> 0.17 | M27: =Input!M80 -> 0.17 | N27: =Input!N80 -> 0.17 | O27: =Input!O80 -> 0.17 | P27: =Input!P80 -> 0.17 | Q27: =Input!Q80 -> 0.17 | R27: =Input!R80 -> 0.17 | S27: =Input!S80 -> 0.17 | T27: =Input!T80 -> 0.17 | U27: =Input!U80 -> 0.17 | V27: =Input!V80 -> 0.17 | W27: =Input!W80 -> 0.17 | X27: =Input!X80 -> 0.17 | Y27: =Input!Y80 -> 0.17 | Z27: =Input!Z80 -> 0.17 | AA27: =Input!AA80 -> 0.17 | AB27: =Input!AB80 -> 0.17 | AC27: =Input!AC80 -> 0.17 | AD27: =Input!AD80 -> 0.17 | AE27: =Input!AE80 -> 0.17 | AF27: =Input!AF80 -> 0.17 | AG27: =Input!AG80 -> 0.17 | AH27: =Input!AH80 -> 0.17 | AI27: =Input!AI80 -> 0.17
E28: Corporation tax charge after losses | G28: £m nominal prices | K28: =K26 * $W27 -> 0 | L28: =L26 * $W27 -> 0 | M28: 0 | N28: 0 | O28: 0 | P28: 0 | Q28: 0 | R28: 0 | S28: 0 | T28: 0 | U28: 0 | V28: 0 | W28: 0 | X28: =X26 * $W27 -> 0.6707390683 | Y28: 2.615412892 | Z28: 2.947899474 | AA28: 3.276599413 | AB28: 3.60254344 | AC28: 3.926703066 | AD28: 4.249996059 | AE28: 4.573291518 | AF28: 4.897414549 | AG28: 5.223150604 | AH28: 5.551249497 | AI28: 0
E30: "Grossing-up" factor for tax on tax charge after losses | G30: scalar | K30: =1 / (1 - K27) -> 1.204819277 | L30: =1 / (1 - L27) -> 1.204819277 | M30: 1.204819277 | N30: 1.204819277 | O30: 1.204819277 | P30: 1.204819277 | Q30: 1.204819277 | R30: 1.204819277 | S30: 1.204819277 | T30: 1.204819277 | U30: 1.204819277 | V30: 1.204819277 | W30: 1.204819277 | X30: =1 / (1 - X27) -> 1.204819277 | Y30: 1.204819277 | Z30: 1.204819277 | AA30: 1.204819277 | AB30: 1.204819277 | AC30: 1.204819277 | AD30: 1.204819277 | AE30: 1.204819277 | AF30: 1.204819277 | AG30: 1.204819277 | AH30: 1.204819277 | AI30: 1.204819277
E32: Unprofiled tax allowance (floor) | G32: £m nominal prices | K32: =K28 * K30 -> 0 | L32: =L28 * L30 -> 0 | M32: 0 | N32: 0 | O32: 0 | P32: 0 | Q32: 0 | R32: 0 | S32: 0 | T32: 0 | U32: 0 | V32: 0 | W32: 0 | X32: =X28 * X30 -> 0.8081193594 | Y32: 3.15109987 | Z32: 3.551686113 | AA32: 3.947710137 | AB32: 4.340413784 | AC32: 4.730967549 | AD32: 5.12047718 | AE32: 5.509989781 | AF32: 5.900499457 | AG32: 6.292952535 | AH32: 6.688252406 | AI32: 0
C34: Profiled tax allowance (floor)
E36: Unprofiled tax allowance (floor) | G36: £m 16/17 prices | K36: =TaxFloor!K32 / Deductions!K$12 -> 0 | L36: =TaxFloor!L32 / Deductions!L$12 -> 0 | M36: =TaxFloor!M32 / Deductions!M$12 -> 0 | N36: =TaxFloor!N32 / Deductions!N$12 -> 0 | O36: =TaxFloor!O32 / Deductions!O$12 -> 0 | P36: =TaxFloor!P32 / Deductions!P$12 -> 0 | Q36: =TaxFloor!Q32 / Deductions!Q$12 -> 0 | R36: =TaxFloor!R32 / Deductions!R$12 -> 0 | S36: =TaxFloor!S32 / Deductions!S$12 -> 0 | T36: =TaxFloor!T32 / Deductions!T$12 -> 0 | U36: =TaxFloor!U32 / Deductions!U$12 -> 0 | V36: =TaxFloor!V32 / Deductions!V$12 -> 0 | W36: =TaxFloor!W32 / Deductions!W$12 -> 0 | X36: =TaxFloor!X32 / Deductions!X$12 -> 0.460028704 | Y36: =TaxFloor!Y32 / Deductions!Y$12 -> 1.737495114 | Z36: =TaxFloor!Z32 / Deductions!Z$12 -> 1.896915588 | AA36: =TaxFloor!AA32 / Deductions!AA$12 -> 2.042258391 | AB36: =TaxFloor!AB32 / Deductions!AB$12 -> 2.17494646 | AC36: =TaxFloor!AC32 / Deductions!AC$12 -> 2.296251271 | AD36: =TaxFloor!AD32 / Deductions!AD$12 -> 2.407309223 | AE36: =TaxFloor!AE32 / Deductions!AE$12 -> 2.509136235 | AF36: =TaxFloor!AF32 / Deductions!AF$12 -> 2.602640764 | AG36: =TaxFloor!AG32 / Deductions!AG$12 -> 2.688635404 | AH36: =TaxFloor!AH32 / Deductions!AH$12 -> 2.767847229 | AI36: =TaxFloor!AI32 / Deductions!AI$12 -> 0
E37: Discount factor to start of operational period (floor) | G37: =AllowancesFloor!G$26 -> scalar | K37: =AllowancesFloor!K$26 -> 1.002104419 | L37: =AllowancesFloor!L$26 -> 1.004213267 | M37: =AllowancesFloor!M$26 -> 1.006326553 | N37: =AllowancesFloor!N$26 -> 1.008444286 | O37: =AllowancesFloor!O$26 -> 1.010566476 | P37: =AllowancesFloor!P$26 -> 1.012693131 | Q37: =AllowancesFloor!Q$26 -> 1.014824262 | R37: =AllowancesFloor!R$26 -> 1.016959878 | S37: =AllowancesFloor!S$26 -> 1.019099988 | T37: =AllowancesFloor!T$26 -> 1.021244601 | U37: =AllowancesFloor!U$26 -> 1.023393728 | V37: =AllowancesFloor!V$26 -> 1.025547378 | W37: =AllowancesFloor!W$26 -> 1.027705559 | X37: =AllowancesFloor!X$26 -> 1.029868283 | Y37: =AllowancesFloor!Y$26 -> 1.032035557 | Z37: =AllowancesFloor!Z$26 -> 1.034207393 | AA37: =AllowancesFloor!AA$26 -> 1.036383799 | AB37: =AllowancesFloor!AB$26 -> 1.038564785 | AC37: =AllowancesFloor!AC$26 -> 1.040750361 | AD37: =AllowancesFloor!AD$26 -> 1.042940536 | AE37: =AllowancesFloor!AE$26 -> 1.04513532 | AF37: =AllowancesFloor!AF$26 -> 1.047334723 | AG37: =AllowancesFloor!AG$26 -> 1.049538754 | AH37: =AllowancesFloor!AH$26 -> 1.051747424 | AI37: =AllowancesFloor!AI$26 -> 1.053960742
E39: Discounted unprofiled tax allowance (floor) | G39: £m 16/17 prices | K39: =K36 * AllowancesFloor!K$26 -> 0 | L39: =L36 * AllowancesFloor!L$26 -> 0 | M39: =M36 * AllowancesFloor!M$26 -> 0 | N39: =N36 * AllowancesFloor!N$26 -> 0 | O39: =O36 * AllowancesFloor!O$26 -> 0 | P39: =P36 * AllowancesFloor!P$26 -> 0 | Q39: =Q36 * AllowancesFloor!Q$26 -> 0 | R39: =R36 * AllowancesFloor!R$26 -> 0 | S39: =S36 * AllowancesFloor!S$26 -> 0 | T39: =T36 * AllowancesFloor!T$26 -> 0 | U39: =U36 * AllowancesFloor!U$26 -> 0 | V39: =V36 * AllowancesFloor!V$26 -> 0 | W39: =W36 * AllowancesFloor!W$26 -> 0 | X39: =X36 * AllowancesFloor!X$26 -> 0.4737689715 | Y39: =Y36 * AllowancesFloor!Y$26 -> 1.793156738 | Z39: =Z36 * AllowancesFloor!Z$26 -> 1.961804125 | AA39: =AA36 * AllowancesFloor!AA$26 -> 2.11656351 | AB39: =AB36 * AllowancesFloor!AB$26 -> 2.258822802 | AC39: =AC36 * AllowancesFloor!AC$26 -> 2.389824339 | AD39: =AD36 * AllowancesFloor!AD$26 -> 2.510680371 | AE39: =AE36 * AllowancesFloor!AE$26 -> 2.622386902 | AF39: =AF36 * AllowancesFloor!AF$26 -> 2.725836044 | AG39: =AG36 * AllowancesFloor!AG$26 -> 2.821827053 | AH39: =AH36 * AllowancesFloor!AH$26 -> 2.911076194 | AI39: =AI36 * AllowancesFloor!AI$26 -> 0
E40: NPV of tax allowance (floor) | G40: £m 16/17 prices | I40: =SUM(K39:AI39) -> 24.58574705
E42: Annuity factor (floor) | G42: =AllowancesFloor!G$23 -> scalar | I42: =AllowancesFloor!I$23 -> 0.03891718202
E44: Annuity of tax allowance (floor) | G44: £m 16/17 prices | I44: =I40 * I42 -> 0.9568079931
B46: End of sheet

Sheet Availability
A1: Availability | H1: Licence
E2: Parameter | G2: Units | H2: Terminology | I2: Constant | K2: Annual values
E3: Project year | K3: =Input!K8 -> -10 | L3: =K3 + 1 -> -9 | M3: -8 | N3: -7 | O3: -6 | P3: -5 | Q3: -4 | R3: -3 | S3: -2 | T3: -1 | U3: 0 | V3: 1 | W3: 2 | X3: 3 | Y3: 4 | Z3: 5 | AA3: 6 | AB3: 7 | AC3: 8 | AD3: 9 | AE3: 10 | AF3: 11 | AG3: 12 | AH3: 13 | AI3: 14 | AJ3: 15 | AK3: 16 | AL3: 17 | AM3: 18 | AN3: 19 | AO3: 20 | AP3: 21 | AQ3: 22 | AR3: 23 | AS3: 24 | AT3: 25 | AU3: 26 | AV3: 27 | AW3: 28 | AX3: 29
E4: Year commencing | K4: =Input!K9 -> 2009-04-01 | L4: =+K5+1 -> 2010-04-01 | M4: =+L5+1 -> 2011-04-01 | N4: =+M5+1 -> 2012-04-01 | O4: 2013-04-01 | P4: 2014-04-01 | Q4: 2015-04-01 | R4: 2016-04-01 | S4: 2017-04-01 | T4: 2018-04-01 | U4: 2019-04-01 | V4: 2020-04-01 | W4: 2021-04-01 | X4: 2022-04-01 | Y4: 2023-04-01 | Z4: 2024-04-01 | AA4: 2025-04-01 | AB4: 2026-04-01 | AC4: 2027-04-01 | AD4: 2028-04-01 | AE4: 2029-04-01 | AF4: 2030-04-01 | AG4: 2031-04-01 | AH4: 2032-04-01 | AI4: 2033-04-01 | AJ4: 2034-04-01 | AK4: 2035-04-01 | AL4: 2036-04-01 | AM4: 2037-04-01 | AN4: 2038-04-01 | AO4: 2039-04-01 | AP4: 2040-04-01 | AQ4: 2041-04-01 | AR4: 2042-04-01 | AS4: 2043-04-01 | AT4: 2044-04-01 | AU4: 2045-04-01 | AV4: 2046-04-01 | AW4: 2047-04-01 | AX4: 2048-04-01
E5: Year ending | K5: =Input!K10 -> 2010-03-31 | L5: =DATE(YEAR(K5) + 1, MONTH(K5), DAY(K5)) -> 2011-03-31 | M5: 2012-03-31 | N5: 2013-03-31 | O5: 2014-03-31 | P5: 2015-03-31 | Q5: 2016-03-31 | R5: 2017-03-31 | S5: 2018-03-31 | T5: 2019-03-31 | U5: 2020-03-31 | V5: 2021-03-31 | W5: 2022-03-31 | X5: 2023-03-31 | Y5: 2024-03-31 | Z5: 2025-03-31 | AA5: 2026-03-31 | AB5: 2027-03-31 | AC5: 2028-03-31 | AD5: 2029-03-31 | AE5: 2030-03-31 | AF5: 2031-03-31 | AG5: 2032-03-31 | AH5: 2033-03-31 | AI5: 2034-03-31 | AJ5: 2035-03-31 | AK5: 2036-03-31 | AL5: 2037-03-31 | AM5: 2038-03-31 | AN5: 2039-03-31 | AO5: 2040-03-31 | AP5: 2041-03-31 | AQ5: 2042-03-31 | AR5: 2043-03-31 | AS5: 2044-03-31 | AT5: 2045-03-31 | AU5: 2046-03-31 | AV5: 2047-03-31 | AW5: 2048-03-31 | AX5: 2049-03-31
B7: Availability incentives
C9: Avaliability incentive
E11: Cap (pre-availability incentive) | G11: £m 16/17 prices | V11: =AllowancesCap!$I35+TaxCap!$I44 -> 50.69585754 | W11: =AllowancesCap!$I35+TaxCap!$I44 -> 50.69585754 | X11: =AllowancesCap!$I35+TaxCap!$I44 -> 50.69585754 | Y11: =AllowancesCap!$I35+TaxCap!$I44 -> 50.69585754 | Z11: =AllowancesCap!$I35+TaxCap!$I44 -> 50.69585754 | AA11: =AllowancesCap!$I35+TaxCap!$I44 -> 50.69585754 | AB11: =AllowancesCap!$I35+TaxCap!$I44 -> 50.69585754 | AC11: =AllowancesCap!$I35+TaxCap!$I44 -> 50.69585754 | AD11: =AllowancesCap!$I35+TaxCap!$I44 -> 50.69585754 | AE11: =AllowancesCap!$I35+TaxCap!$I44 -> 50.69585754 | AF11: =AllowancesCap!$I35+TaxCap!$I44 -> 50.69585754 | AG11: =AllowancesCap!$I35+TaxCap!$I44 -> 50.69585754 | AH11: =AllowancesCap!$I35+TaxCap!$I44 -> 50.69585754 | AI11: =AllowancesCap!$I35+TaxCap!$I44 -> 50.69585754 | AJ11: =AllowancesCap!$I35+TaxCap!$I44 -> 50.69585754 | AK11: =AllowancesCap!$I35+TaxCap!$I44 -> 50.69585754 | AL11: =AllowancesCap!$I35+TaxCap!$I44 -> 50.69585754 | AM11: =AllowancesCap!$I35+TaxCap!$I44 -> 50.69585754 | AN11: =AllowancesCap!$I35+TaxCap!$I44 -> 50.69585754 | AO11: =AllowancesCap!$I35+TaxCap!$I44 -> 50.69585754 | AP11: =AllowancesCap!$I35+TaxCap!$I44 -> 50.69585754 | AQ11: =AllowancesCap!$I35+TaxCap!$I44 -> 50.69585754 | AR11: =AllowancesCap!$I35+TaxCap!$I44 -> 50.69585754 | AS11: =AllowancesCap!$I35+TaxCap!$I44 -> 50.69585754 | AT11: =AllowancesCap!$I35+TaxCap!$I44 -> 50.69585754 | AU11: =AllowancesCap!$I35+TaxCap!$I44 -> 50.69585754 | AV11: =AllowancesCap!$I35+TaxCap!$I44 -> 50.69585754 | AW11: =AllowancesCap!$I35+TaxCap!$I44 -> 50.69585754 | AX11: =AllowancesCap!$I35+TaxCap!$I44 -> 50.69585754
E12: Floor (pre-availability incentive) | G12: £m 16/17 prices | V12: =AllowancesFloor!$I35+TaxFloor!$I44 -> 27.57213644 | W12: =AllowancesFloor!$I35+TaxFloor!$I44 -> 27.57213644 | X12: =AllowancesFloor!$I35+TaxFloor!$I44 -> 27.57213644 | Y12: =AllowancesFloor!$I35+TaxFloor!$I44 -> 27.57213644 | Z12: =AllowancesFloor!$I35+TaxFloor!$I44 -> 27.57213644 | AA12: =AllowancesFloor!$I35+TaxFloor!$I44 -> 27.57213644 | AB12: =AllowancesFloor!$I35+TaxFloor!$I44 -> 27.57213644 | AC12: =AllowancesFloor!$I35+TaxFloor!$I44 -> 27.57213644 | AD12: =AllowancesFloor!$I35+TaxFloor!$I44 -> 27.57213644 | AE12: =AllowancesFloor!$I35+TaxFloor!$I44 -> 27.57213644 | AF12: =AllowancesFloor!$I35+TaxFloor!$I44 -> 27.57213644 | AG12: =AllowancesFloor!$I35+TaxFloor!$I44 -> 27.57213644 | AH12: =AllowancesFloor!$I35+TaxFloor!$I44 -> 27.57213644 | AI12: =AllowancesFloor!$I35+TaxFloor!$I44 -> 27.57213644 | AJ12: =AllowancesFloor!$I35+TaxFloor!$I44 -> 27.57213644 | AK12: =AllowancesFloor!$I35+TaxFloor!$I44 -> 27.57213644 | AL12: =AllowancesFloor!$I35+TaxFloor!$I44 -> 27.57213644 | AM12: =AllowancesFloor!$I35+TaxFloor!$I44 -> 27.57213644 | AN12: =AllowancesFloor!$I35+TaxFloor!$I44 -> 27.57213644 | AO12: =AllowancesFloor!$I35+TaxFloor!$I44 -> 27.57213644 | AP12: =AllowancesFloor!$I35+TaxFloor!$I44 -> 27.57213644 | AQ12: =AllowancesFloor!$I35+TaxFloor!$I44 -> 27.57213644 | AR12: =AllowancesFloor!$I35+TaxFloor!$I44 -> 27.57213644 | AS12: =AllowancesFloor!$I35+TaxFloor!$I44 -> 27.57213644 | AT12: =AllowancesFloor!$I35+TaxFloor!$I44 -> 27.57213644 | AU12: =AllowancesFloor!$I35+TaxFloor!$I44 -> 27.57213644 | AV12: =AllowancesFloor!$I35+TaxFloor!$I44 -> 27.57213644 | AW12: =AllowancesFloor!$I35+TaxFloor!$I44 -> 27.57213644 | AX12: =AllowancesFloor!$I35+TaxFloor!$I44 -> 27.57213644
E14: Cap availability incentive rate | G14: scalar | H14: AICt | K14: =K44 -> 0 | L14: 0 | M14: 0 | N14: 0 | O14: 0 | P14: 0 | Q14: 0 | R14: 0 | S14: 0 | T14: 0 | U14: 0 | V14: 1.02 | W14: 1.02 | X14: =X44 -> 1.02 | Y14: 1.02 | Z14: 1.02 | AA14: 1.02 | AB14: 1.02 | AC14: 1.02 | AD14: 1.02 | AE14: 1.02 | AF14: 1.02 | AG14: 1.02 | AH14: 1.02 | AI14: 1.02 | AJ14: 1.02 | AK14: 1.02 | AL14: 1.02 | AM14: 1.02 | AN14: 1.02 | AO14: 1.02 | AP14: 1.02 | AQ14: 1.02 | AR14: 1.02 | AS14: 1.02 | AT14: 1.02 | AU14: 0 | AV14: 0 | AW14: 0 | AX14: 0
E15: Floor availability incentive rate | G15: scalar | H15: AIFt | K15: =K58 -> 0 | L15: 0 | M15: 0 | N15: 0 | O15: 0 | P15: 0 | Q15: 0 | R15: 0 | S15: 0 | T15: 0 | U15: 0 | V15: 1 | W15: 1 | X15: =X58 -> 1 | Y15: 1 | Z15: 1 | AA15: 1 | AB15: 1 | AC15: 1 | AD15: 1 | AE15: 1 | AF15: 1 | AG15: 1 | AH15: 1 | AI15: 1 | AJ15: 1 | AK15: 1 | AL15: 1 | AM15: 1 | AN15: 1 | AO15: 1 | AP15: 1 | AQ15: 1 | AR15: 1 | AS15: 1 | AT15: 1 | AU15: =AU58 -> 0 | AV15: =AV58 -> 0 | AW15: 0 | AX15: 0
E17: Cap (post-availability incentive) | G17: £m 16/17 prices | K17: =K11 *K14 -> 0 | L17: 0 | M17: 0 | N17: 0 | O17: 0 | P17: 0 | Q17: 0 | R17: 0 | S17: 0 | T17: 0 | U17: 0 | V17: 51.70977469 | W17: 51.70977469 | X17: =X11 *X14 -> 51.70977469 | Y17: 51.70977469 | Z17: 51.70977469 | AA17: 51.70977469 | AB17: 51.70977469 | AC17: 51.70977469 | AD17: 51.70977469 | AE17: 51.70977469 | AF17: 51.70977469 | AG17: 51.70977469 | AH17: 51.70977469 | AI17: 51.70977469 | AJ17: 51.70977469 | AK17: 51.70977469 | AL17: 51.70977469 | AM17: 51.70977469 | AN17: 51.70977469 | AO17: 51.70977469 | AP17: 51.70977469 | AQ17: 51.70977469 | AR17: 51.70977469 | AS17: 51.70977469 | AT17: 51.70977469 | AU17: 0 | AV17: 0 | AW17: 0 | AX17: 0
E18: Floor (post-availability incentive) | G18: £m 16/17 prices | K18: =K12 *K15 -> 0 | L18: 0 | M18: 0 | N18: 0 | O18: 0 | P18: 0 | Q18: 0 | R18: 0 | S18: 0 | T18: 0 | U18: 0 | V18: 27.57213644 | W18: 27.57213644 | X18: =X12 *X15 -> 27.57213644 | Y18: 27.57213644 | Z18: 27.57213644 | AA18: 27.57213644 | AB18: 27.57213644 | AC18: 27.57213644 | AD18: 27.57213644 | AE18: 27.57213644 | AF18: 27.57213644 | AG18: 27.57213644 | AH18: 27.57213644 | AI18: 27.57213644 | AJ18: 27.57213644 | AK18: 27.57213644 | AL18: 27.57213644 | AM18: 27.57213644 | AN18: 27.57213644 | AO18: 27.57213644 | AP18: 27.57213644 | AQ18: 27.57213644 | AR18: 27.57213644 | AS18: 27.57213644 | AT18: 27.57213644 | AU18: 0 | AV18: 0 | AW18: 0 | AX18: 0
D22: Upper and lower availability limits
E24: Number of operational years | G24: =Input!G116 -> full years | I24: =Input!I116 -> 25
E25: Year is within operational period | G25: flag | K25: =AND(K3 > 0, K3<= $I24) -> FALSE | L25: FALSE | M25: FALSE | N25: FALSE | O25: FALSE | P25: FALSE | Q25: FALSE | R25: FALSE | S25: FALSE | T25: FALSE | U25: FALSE | V25: TRUE | W25: TRUE | X25: =AND(X3 > 0, X3<= $I24) -> TRUE | Y25: TRUE | Z25: TRUE | AA25: TRUE | AB25: TRUE | AC25: TRUE | AD25: TRUE | AE25: TRUE | AF25: TRUE | AG25: TRUE | AH25: TRUE | AI25: TRUE | AJ25: TRUE | AK25: TRUE | AL25: TRUE | AM25: TRUE | AN25: TRUE | AO25: TRUE | AP25: TRUE | AQ25: TRUE | AR25: TRUE | AS25: TRUE | AT25: TRUE | AU25: FALSE | AV25: FALSE | AW25: FALSE | AX25: FALSE
E27: Interconnector Rated Capacity | G27: MW | H27: RC | I27: =Input!I58 -> 1000
E28: Number of Hours in Relevant Year | G28: hours pa | I28: =Input!I59 -> 8766
D30: Cap incentive rate
E32: Cap availability incentive target | G32: =Input!G62 -> % | I32: =Input!I62 -> 0.9659
E34: Maximum Possible Availability | G34: MWh | H34: MPA | K34: =$I$27*$I$28*K25 -> 0 | L34: 0 | M34: 0 | N34: 0 | O34: 0 | P34: 0 | Q34: 0 | R34: 0 | S34: 0 | T34: 0 | U34: 0 | V34: =$I$27*$I$28*V25 -> 8766000 | W34: 8766000 | X34: 8766000 | Y34: =$I$27*$I$28*Y25 -> 8766000 | Z34: 8766000 | AA34: 8766000 | AB34: 8766000 | AC34: 8766000 | AD34: 8766000 | AE34: 8766000 | AF34: 8766000 | AG34: 8766000 | AH34: 8766000 | AI34: 8766000 | AJ34: 8766000 | AK34: 8766000 | AL34: 8766000 | AM34: 8766000 | AN34: 8766000 | AO34: 8766000 | AP34: 8766000 | AQ34: 8766000 | AR34: 8766000 | AS34: 8766000 | AT34: 8766000 | AU34: 0 | AV34: 0 | AW34: 0 | AX34: 0
E35: Total Interconnector Outages less Allowed Outages during Active Cap Period | G35: MWh | H35: IOt | K35: =Input!K68 -> 0 | L35: =Input!L68 -> 0 | M35: =Input!M68 -> 0 | N35: =Input!N68 -> 0 | O35: =Input!O68 -> 0 | P35: =Input!P68 -> 0 | Q35: =Input!Q68 -> 0 | R35: =Input!R68 -> 0 | S35: =Input!S68 -> 0 | T35: =Input!T68 -> 0 | U35: =Input!U68 -> 0 | V35: =Input!V68 -> 0 | W35: =Input!W68 -> 0 | X35: =Input!X68 -> 0 | Y35: =Input!Y68 -> 0 | Z35: =Input!Z68 -> 0 | AA35: =Input!AA68 -> 0 | AB35: =Input!AB68 -> 0 | AC35: =Input!AC68 -> 0 | AD35: =Input!AD68 -> 0 | AE35: =Input!AE68 -> 0 | AF35: =Input!AF68 -> 0 | AG35: =Input!AG68 -> 0 | AH35: =Input!AH68 -> 0 | AI35: =Input!AI68 -> 0 | AJ35: =Input!AJ68 -> 0 | AK35: =Input!AK68 -> 0 | AL35: =Input!AL68 -> 0 | AM35: =Input!AM68 -> 0 | AN35: =Input!AN68 -> 0 | AO35: =Input!AO68 -> 0 | AP35: =Input!AP68 -> 0 | AQ35: =Input!AQ68 -> 0 | AR35: =Input!AR68 -> 0 | AS35: =Input!AS68 -> 0 | AT35: =Input!AT68 -> 0 | AU35: =Input!AU68 -> 0 | AV35: =Input!AV68 -> 0 | AW35: =Input!AW68 -> 0 | AX35: =Input!AX68 -> 0
E36: Actual Availability for Cap | G36: MWh | H36: AACt (AAt) | K36: =K34-K35 -> 0 | L36: 0 | M36: 0 | N36: 0 | O36: 0 | P36: 0 | Q36: 0 | R36: 0 | S36: 0 | T36: 0 | U36: 0 | V36: 8766000 | W36: 8766000 | X36: 8766000 | Y36: =Y34-Y35 -> 8766000 | Z36: 8766000 | AA36: 8766000 | AB36: 8766000 | AC36: 8766000 | AD36: 8766000 | AE36: 8766000 | AF36: 8766000 | AG36: 8766000 | AH36: 8766000 | AI36: 8766000 | AJ36: 8766000 | AK36: 8766000 | AL36: 8766000 | AM36: 8766000 | AN36: 8766000 | AO36: 8766000 | AP36: 8766000 | AQ36: 8766000 | AR36: 8766000 | AS36: 8766000 | AT36: 8766000 | AU36: 0 | AV36: 0 | AW36: 0 | AX36: 0
E37: Availability Target | G37: MWh | H37: AT | K37: =$I28*$I27*$I32*K25 -> 0 | L37: 0 | M37: 0 | N37: 0 | O37: 0 | P37: 0 | Q37: 0 | R37: 0 | S37: 0 | T37: 0 | U37: 0 | V37: 8467079.4 | W37: 8467079.4 | X37: 8467079.4 | Y37: =$I28*$I27*$I32*Y25 -> 8467079.4 | Z37: 8467079.4 | AA37: 8467079.4 | AB37: 8467079.4 | AC37: 8467079.4 | AD37: 8467079.4 | AE37: 8467079.4 | AF37: 8467079.4 | AG37: 8467079.4 | AH37: 8467079.4 | AI37: 8467079.4 | AJ37: 8467079.4 | AK37: 8467079.4 | AL37: 8467079.4 | AM37: 8467079.4 | AN37: 8467079.4 | AO37: 8467079.4 | AP37: 8467079.4 | AQ37: 8467079.4 | AR37: 8467079.4 | AS37: 8467079.4 | AT37: 8467079.4 | AU37: 0 | AV37: 0 | AW37: 0 | AX37: 0
E38: Availability Performance at Cap | G38: scalar | H38: APCt | K38: =IF(K37=0,0,K36/K37) -> 0 | L38: 0 | M38: 0 | N38: 0 | O38: 0 | P38: 0 | Q38: 0 | R38: 0 | S38: 0 | T38: 0 | U38: 0 | V38: 1.035303862 | W38: 1.035303862 | X38: 1.035303862 | Y38: =IF(Y37=0,0,Y36/Y37) -> 1.035303862 | Z38: 1.035303862 | AA38: 1.035303862 | AB38: 1.035303862 | AC38: 1.035303862 | AD38: 1.035303862 | AE38: 1.035303862 | AF38: 1.035303862 | AG38: 1.035303862 | AH38: 1.035303862 | AI38: 1.035303862 | AJ38: 1.035303862 | AK38: 1.035303862 | AL38: 1.035303862 | AM38: 1.035303862 | AN38: 1.035303862 | AO38: 1.035303862 | AP38: 1.035303862 | AQ38: 1.035303862 | AR38: 1.035303862 | AS38: 1.035303862 | AT38: 1.035303862 | AU38: 0 | AV38: 0 | AW38: 0 | AX38: 0
E40: Cap availability incentive upper limit | G40: =Input!G63 -> scalar | I40: =Input!I63 -> 1.02
E41: Cap availability incentive lower limit | G41: =Input!G64 -> scalar | I41: =Input!I64 -> 0.98
E44: Cap availability incentive rate | G44: scalar | H44: AICt | K44: =IF(K38>$I40,$I40,IF(K38<$I41,$I41,K38))*K25 -> 0 | L44: 0 | M44: 0 | N44: 0 | O44: 0 | P44: 0 | Q44: 0 | R44: 0 | S44: 0 | T44: 0 | U44: 0 | V44: 1.02 | W44: 1.02 | X44: 1.02 | Y44: =IF(Y38>$I40,$I40,IF(Y38<$I41,$I41,Y38))*Y25 -> 1.02 | Z44: 1.02 | AA44: 1.02 | AB44: 1.02 | AC44: 1.02 | AD44: 1.02 | AE44: 1.02 | AF44: 1.02 | AG44: 1.02 | AH44: 1.02 | AI44: 1.02 | AJ44: 1.02 | AK44: 1.02 | AL44: 1.02 | AM44: 1.02 | AN44: 1.02 | AO44: 1.02 | AP44: 1.02 | AQ44: 1.02 | AR44: 1.02 | AS44: 1.02 | AT44: 1.02 | AU44: 0 | AV44: 0 | AW44: 0 | AX44: 0
C46: Floor incentive rate
E49: Floor availability incentive target | G49: % | I49: =Input!I74 -> 0.8
E50: Maximum Possible Availability | G50: MWh | H50: MPA | K50: =$I$27*$I$28*K25 -> 0 | L50: 0 | M50: 0 | N50: 0 | O50: 0 | P50: 0 | Q50: 0 | R50: 0 | S50: 0 | T50: 0 | U50: 0 | V50: 8766000 | W50: 8766000 | X50: =$I$27*$I$28*X25 -> 8766000 | Y50: 8766000 | Z50: 8766000 | AA50: 8766000 | AB50: 8766000 | AC50: 8766000 | AD50: 8766000 | AE50: 8766000 | AF50: 8766000 | AG50: 8766000 | AH50: 8766000 | AI50: 8766000 | AJ50: 8766000 | AK50: 8766000 | AL50: 8766000 | AM50: 8766000 | AN50: 8766000 | AO50: 8766000 | AP50: 8766000 | AQ50: 8766000 | AR50: 8766000 | AS50: 8766000 | AT50: 8766000 | AU50: =$I$27*$I$28*AU25 -> 0 | AV50: =$I$27*$I$28*AV25 -> 0 | AW50: 0 | AX50: 0
E51: Total Interconnector Outages less Allowed Outages during Active Floor Period | G51: MWh | H51: IOt | K51: =Input!K71 -> 0 | L51: =Input!L71 -> 0 | M51: =Input!M71 -> 0 | N51: =Input!N71 -> 0 | O51: =Input!O71 -> 0 | P51: =Input!P71 -> 0 | Q51: =Input!Q71 -> 0 | R51: =Input!R71 -> 0 | S51: =Input!S71 -> 0 | T51: =Input!T71 -> 0 | U51: =Input!U71 -> 0 | V51: =Input!V71 -> 0 | W51: =Input!W71 -> 0 | X51: =Input!X71 -> 0 | Y51: =Input!Y71 -> 0 | Z51: =Input!Z71 -> 0 | AA51: =Input!AA71 -> 0 | AB51: =Input!AB71 -> 0 | AC51: =Input!AC71 -> 0 | AD51: =Input!AD71 -> 0 | AE51: =Input!AE71 -> 0 | AF51: =Input!AF71 -> 0 | AG51: =Input!AG71 -> 0 | AH51: =Input!AH71 -> 0 | AI51: =Input!AI71 -> 0 | AJ51: =Input!AJ71 -> 0 | AK51: =Input!AK71 -> 0 | AL51: =Input!AL71 -> 0 | AM51: =Input!AM71 -> 0 | AN51: =Input!AN71 -> 0 | AO51: =Input!AO71 -> 0 | AP51: =Input!AP71 -> 0 | AQ51: =Input!AQ71 -> 0 | AR51: =Input!AR71 -> 0 | AS51: =Input!AS71 -> 0 | AT51: =Input!AT71 -> 0 | AU51: =Input!AU71 -> 0 | AV51: =Input!AV71 -> 0 | AW51: =Input!AW71 -> 0 | AX51: =Input!AX71 -> 0
E52: Outages associated with Exceptional Events | G52: MWh | K52: =Input!K72 -> 0 | L52: =Input!L72 -> 0 | M52: =Input!M72 -> 0 | N52: =Input!N72 -> 0 | O52: =Input!O72 -> 0 | P52: =Input!P72 -> 0 | Q52: =Input!Q72 -> 0 | R52: =Input!R72 -> 0 | S52: =Input!S72 -> 0 | T52: =Input!T72 -> 0 | U52: =Input!U72 -> 0 | V52: =Input!V72 -> 0 | W52: =Input!W72 -> 0 | X52: =Input!X72 -> 0 | Y52: =Input!Y72 -> 0 | Z52: =Input!Z72 -> 0 | AA52: =Input!AA72 -> 0 | AB52: =Input!AB72 -> 0 | AC52: =Input!AC72 -> 0 | AD52: =Input!AD72 -> 0 | AE52: =Input!AE72 -> 0 | AF52: =Input!AF72 -> 0 | AG52: =Input!AG72 -> 0 | AH52: =Input!AH72 -> 0 | AI52: =Input!AI72 -> 0 | AJ52: =Input!AJ72 -> 0 | AK52: =Input!AK72 -> 0 | AL52: =Input!AL72 -> 0 | AM52: =Input!AM72 -> 0 | AN52: =Input!AN72 -> 0 | AO52: =Input!AO72 -> 0 | AP52: =Input!AP72 -> 0 | AQ52: =Input!AQ72 -> 0 | AR52: =Input!AR72 -> 0 | AS52: =Input!AS72 -> 0 | AT52: =Input!AT72 -> 0 | AU52: =Input!AU72 -> 0 | AV52: =Input!AV72 -> 0 | AW52: =Input!AW72 -> 0 | AX52: =Input!AX72 -> 0
E53: Actual Availability for Floor | G53: MWh | H53: AAFt (AAt) | K53: =K50-K51+K52 -> 0 | L53: 0 | M53: 0 | N53: 0 | O53: 0 | P53: 0 | Q53: 0 | R53: 0 | S53: 0 | T53: 0 | U53: 0 | V53: 8766000 | W53: 8766000 | X53: =X50-X51+X52 -> 8766000 | Y53: 8766000 | Z53: 8766000 | AA53: 8766000 | AB53: 8766000 | AC53: 8766000 | AD53: 8766000 | AE53: 8766000 | AF53: 8766000 | AG53: 8766000 | AH53: 8766000 | AI53: 8766000 | AJ53: 8766000 | AK53: 8766000 | AL53: 8766000 | AM53: 8766000 | AN53: 8766000 | AO53: 8766000 | AP53: 8766000 | AQ53: 8766000 | AR53: 8766000 | AS53: 8766000 | AT53: 8766000 | AU53: 0 | AV53: 0 | AW53: 0 | AX53: 0
E54: Minimum Availability Target | G54: MWh | H54: MAT | K54: =$I28*$I27*$I49*K$25 -> 0 | L54: 0 | M54: 0 | N54: 0 | O54: 0 | P54: 0 | Q54: 0 | R54: 0 | S54: 0 | T54: 0 | U54: 0 | V54: 7012800 | W54: 7012800 | X54: =$I28*$I27*$I49*X$25 -> 7012800 | Y54: 7012800 | Z54: 7012800 | AA54: 7012800 | AB54: 7012800 | AC54: 7012800 | AD54: 7012800 | AE54: 7012800 | AF54: 7012800 | AG54: 7012800 | AH54: 7012800 | AI54: 7012800 | AJ54: 7012800 | AK54: 7012800 | AL54: 7012800 | AM54: 7012800 | AN54: 7012800 | AO54: 7012800 | AP54: 7012800 | AQ54: 7012800 | AR54: 7012800 | AS54: 7012800 | AT54: 7012800 | AU54: 0 | AV54: 0 | AW54: 0 | AX54: 0
E55: Availability Performance at Floor | G55: scalar | H55: APFt | K55: =IF(K54=0,0,K53/K54) -> 0 | L55: 0 | M55: 0 | N55: 0 | O55: 0 | P55: 0 | Q55: 0 | R55: 0 | S55: 0 | T55: 0 | U55: 0 | V55: 1.25 | W55: 1.25 | X55: =IF(X54=0,0,X53/X54) -> 1.25 | Y55: 1.25 | Z55: 1.25 | AA55: 1.25 | AB55: 1.25 | AC55: 1.25 | AD55: 1.25 | AE55: 1.25 | AF55: 1.25 | AG55: 1.25 | AH55: 1.25 | AI55: 1.25 | AJ55: 1.25 | AK55: 1.25 | AL55: 1.25 | AM55: 1.25 | AN55: 1.25 | AO55: 1.25 | AP55: 1.25 | AQ55: 1.25 | AR55: 1.25 | AS55: 1.25 | AT55: 1.25 | AU55: 0 | AV55: 0 | AW55: 0 | AX55: 0
E58: Floor availability incentive rate | G58: =G55 -> scalar | H58: AIFt | K58: =IF(K55<1,0,1) -> 0 | L58: 0 | M58: 0 | N58: 0 | O58: 0 | P58: 0 | Q58: 0 | R58: 0 | S58: 0 | T58: 0 | U58: 0 | V58: 1 | W58: 1 | X58: =IF(X55<1,0,1) -> 1 | Y58: 1 | Z58: 1 | AA58: 1 | AB58: 1 | AC58: 1 | AD58: 1 | AE58: 1 | AF58: 1 | AG58: 1 | AH58: 1 | AI58: 1 | AJ58: 1 | AK58: 1 | AL58: 1 | AM58: 1 | AN58: 1 | AO58: 1 | AP58: 1 | AQ58: 1 | AR58: 1 | AS58: 1 | AT58: 1 | AU58: 0 | AV58: 0 | AW58: 0 | AX58: 0
B60: End of sheet

Sheet Assessment
A1: Assessment | H1: Licence
E2: Parameter | G2: Units | H2: Terminology | I2: Constant | K2: Annual values
E3: Project year | K3: =Input!K8 -> -10 | L3: =K3 + 1 -> -9 | M3: -8 | N3: -7 | O3: -6 | P3: -5 | Q3: -4 | R3: -3 | S3: -2 | T3: -1 | U3: 0 | V3: 1 | W3: 2 | X3: 3 | Y3: 4 | Z3: 5 | AA3: 6 | AB3: 7 | AC3: 8 | AD3: 9 | AE3: 10 | AF3: 11 | AG3: 12 | AH3: 13 | AI3: 14 | AJ3: 15 | AK3: 16 | AL3: 17 | AM3: 18 | AN3: 19 | AO3: 20 | AP3: 21 | AQ3: 22 | AR3: 23 | AS3: 24 | AT3: 25 | AU3: 26 | AV3: 27 | AW3: 28 | AX3: 29
E4: Year commencing | K4: =Input!K9 -> 2009-04-01 | L4: =+K5+1 -> 2010-04-01 | M4: =+L5+1 -> 2011-04-01 | N4: =+M5+1 -> 2012-04-01 | O4: 2013-04-01 | P4: 2014-04-01 | Q4: 2015-04-01 | R4: 2016-04-01 | S4: 2017-04-01 | T4: 2018-04-01 | U4: 2019-04-01 | V4: 2020-04-01 | W4: 2021-04-01 | X4: 2022-04-01 | Y4: 2023-04-01 | Z4: 2024-04-01 | AA4: 2025-04-01 | AB4: 2026-04-01 | AC4: 2027-04-01 | AD4: 2028-04-01 | AE4: 2029-04-01 | AF4: 2030-04-01 | AG4: 2031-04-01 | AH4: 2032-04-01 | AI4: 2033-04-01 | AJ4: 2034-04-01 | AK4: 2035-04-01 | AL4: 2036-04-01 | AM4: 2037-04-01 | AN4: 2038-04-01 | AO4: 2039-04-01 | AP4: 2040-04-01 | AQ4: 2041-04-01 | AR4: 2042-04-01 | AS4: 2043-04-01 | AT4: 2044-04-01 | AU4: 2045-04-01 | AV4: 2046-04-01 | AW4: 2047-04-01 | AX4: 2048-04-01
E5: Year ending | K5: =Input!K10 -> 2010-03-31 | L5: =DATE(YEAR(K5) + 1, MONTH(K5), DAY(K5)) -> 2011-03-31 | M5: 2012-03-31 | N5: 2013-03-31 | O5: 2014-03-31 | P5: 2015-03-31 | Q5: 2016-03-31 | R5: 2017-03-31 | S5: 2018-03-31 | T5: 2019-03-31 | U5: 2020-03-31 | V5: 2021-03-31 | W5: 2022-03-31 | X5: 2023-03-31 | Y5: 2024-03-31 | Z5: 2025-03-31 | AA5: 2026-03-31 | AB5: 2027-03-31 | AC5: 2028-03-31 | AD5: 2029-03-31 | AE5: 2030-03-31 | AF5: 2031-03-31 | AG5: 2032-03-31 | AH5: 2033-03-31 | AI5: 2034-03-31 | AJ5: 2035-03-31 | AK5: 2036-03-31 | AL5: 2037-03-31 | AM5: 2038-03-31 | AN5: 2039-03-31 | AO5: 2040-03-31 | AP5: 2041-03-31 | AQ5: 2042-03-31 | AR5: 2043-03-31 | AS5: 2044-03-31 | AT5: 2045-03-31 | AU5: 2046-03-31 | AV5: 2047-03-31 | AW5: 2048-03-31 | AX5: 2049-03-31
B7: Assessment
C9: NPVs
D11: NPV factors
H12: ='RPI and currency'!E11 -> 2016/17 RPI inflation index value (CHAW)
E13: RPI index | G13: scalar | H13: Jan 1987 = 100 | I13: ='RPI and currency'!I11 -> 264.992 | V13: =Input!V97 -> 301.0403751 | W13: =Input!W97 -> 310.7940833 | X13: =Input!X97 -> 320.8638116 | Y13: =Input!Y97 -> 331.259799 | Z13: =Input!Z97 -> 341.9926165 | AA13: =Input!AA97 -> 353.0731773 | AB13: =Input!AB97 -> 364.5127483 | AC13: =Input!AC97 -> 376.3229613 | AD13: =Input!AD97 -> 388.5158252 | AE13: =Input!AE97 -> 401.103738 | AF13: =Input!AF97 -> 414.0994991 | AG13: =Input!AG97 -> 427.5163229 | AH13: =Input!AH97 -> 441.3678517 | AI13: =Input!AI97 -> 455.6681701 | AJ13: =Input!AJ97 -> 470.4318188 | AK13: =Input!AK97 -> 485.6738098 | AL13: =Input!AL97 -> 501.4096412 | AM13: =Input!AM97 -> 517.6553136 | AN13: =Input!AN97 -> 534.4273457 | AO13: =Input!AO97 -> 551.7427917 | AP13: =Input!AP97 -> 569.6192582 | AQ13: =Input!AQ97 -> 588.0749222 | AR13: =Input!AR97 -> 607.1285496 | AS13: =Input!AS97 -> 626.7995146 | AT13: =Input!AT97 -> 647.1078189 | AU13: =Input!AU97 -> 668.0741122 | AV13: =Input!AV97 -> 689.7197135 | AW13: =Input!AW97 -> 712.0666322 | AX13: =Input!AX97 -> 735.1375911
E14: RPI index increase | G14: annual % | W14: =W13/V13-1 -> 0.0324 | X14: =X13/W13-1 -> 0.0324 | Y14: =Y13/X13-1 -> 0.0324 | Z14: 0.0324 | AA14: =AA13/Z13-1 -> 0.0324 | AB14: 0.0324 | AC14: 0.0324 | AD14: 0.0324 | AE14: 0.0324 | AF14: 0.0324 | AG14: 0.0324 | AH14: 0.0324 | AI14: 0.0324 | AJ14: 0.0324 | AK14: 0.0324 | AL14: 0.0324 | AM14: 0.0324 | AN14: 0.0324 | AO14: 0.0324 | AP14: 0.0324 | AQ14: 0.0324 | AR14: 0.0324 | AS14: 0.0324 | AT14: 0.0324 | AU14: 0.0324 | AV14: 0.0324 | AW14: 0.0324 | AX14: 0.0324
E15: Operational discount rate | G15: =Input!G44 -> real annual % | H15: ODRt | I15: =Input!I44 -> 0.03945
E16: Operational discount rate | G16: nominal % | H16: NODRt | W16: =(1+$I15)*(1+W14)-1 -> 0.07312818 | X16: =(1+$I15)*(1+X14)-1 -> 0.07312818 | Y16: 0.07312818 | Z16: 0.07312818 | AA16: 0.07312818 | AB16: 0.07312818 | AC16: 0.07312818 | AD16: 0.07312818 | AE16: 0.07312818 | AF16: 0.07312818 | AG16: 0.07312818 | AH16: 0.07312818 | AI16: 0.07312818 | AJ16: 0.07312818 | AK16: 0.07312818 | AL16: 0.07312818 | AM16: 0.07312818 | AN16: 0.07312818 | AO16: 0.07312818 | AP16: 0.07312818 | AQ16: 0.07312818 | AR16: 0.07312818 | AS16: 0.07312818 | AT16: 0.07312818 | AU16: 0.07312818 | AV16: 0.07312818 | AW16: 0.07312818 | AX16: 0.07312818
E18: Five year uplift factor | G18: scalar | H18: UFt1 | I18: =(1 + $I$15) * I19 -> 1.167385822 | V18: 0 | W18: 0 | X18: 0 | Y18: 0 | Z18: =(1+W16)*(1+X16)*(1+Y16)*(1+Z16) -> 1.326191982 | AA18: 0 | AB18: 0 | AC18: 0 | AD18: 0 | AE18: =(1+AB16)*(1+AC16)*(1+AD16)*(1+AE16) -> 1.326191982 | AF18: 0 | AG18: 0 | AH18: 0 | AI18: 0 | AJ18: =(1+AG16)*(1+AH16)*(1+AI16)*(1+AJ16) -> 1.326191982 | AK18: 0 | AL18: 0 | AM18: 0 | AN18: 0 | AO18: =(1+AL16)*(1+AM16)*(1+AN16)*(1+AO16) -> 1.326191982 | AP18: 0 | AQ18: 0 | AR18: 0 | AS18: 0 | AT18: =(1+AQ16)*(1+AR16)*(1+AS16)*(1+AT16) -> 1.326191982 | AU18: 0 | AV18: 0 | AW18: 0 | AX18: 0
E19: Four year uplift factor | G19: scalar | H19: UFt2 | I19: 1.123080304 | V19: 0 | W19: 0 | X19: 0 | Y19: =(1+W16)*(1+X16)*(1+Y16) -> 1.235818802 | Z19: =(1+X16)*(1+Y16)*(1+Z16) -> 1.235818802 | AA19: 0 | AB19: 0 | AC19: 0 | AD19: =(1+AB16)*(1+AC16)*(1+AD16) -> 1.235818802 | AE19: =(1+AC16)*(1+AD16)*(1+AE16) -> 1.235818802 | AF19: 0 | AG19: 0 | AH19: 0 | AI19: =(1+AG16)*(1+AH16)*(1+AI16) -> 1.235818802 | AJ19: =(1+AH16)*(1+AI16)*(1+AJ16) -> 1.235818802 | AK19: 0 | AL19: 0 | AM19: 0 | AN19: =(1+AL16)*(1+AM16)*(1+AN16) -> 1.235818802 | AO19: =(1+AM16)*(1+AN16)*(1+AO16) -> 1.235818802 | AP19: 0 | AQ19: 0 | AR19: 0 | AS19: =(1+AQ16)*(1+AR16)*(1+AS16) -> 1.235818802 | AT19: =(1+AR16)*(1+AS16)*(1+AT16) -> 1.235818802 | AU19: 0 | AV19: 0 | AW19: 0 | AX19: =(1+AV16)*(1+AW16)*(1+AX16) -> 1.235818802
E20: Three year uplift factor | G20: scalar | H20: UFt3 | I20: 1.080456303 | V20: 0 | W20: 0 | X20: =(1+W16)*(1+X16) -> 1.151604091 | Y20: =(1+X16)*(1+Y16) -> 1.151604091 | Z20: =(1+Y16)*(1+Z16) -> 1.151604091 | AA20: 0 | AB20: 0 | AC20: =(1+AB16)*(1+AC16) -> 1.151604091 | AD20: =(1+AC16)*(1+AD16) -> 1.151604091 | AE20: =(1+AD16)*(1+AE16) -> 1.151604091 | AF20: 0 | AG20: 0 | AH20: =(1+AG16)*(1+AH16) -> 1.151604091 | AI20: =(1+AH16)*(1+AI16) -> 1.151604091 | AJ20: =(1+AI16)*(1+AJ16) -> 1.151604091 | AK20: 0 | AL20: 0 | AM20: =(1+AL16)*(1+AM16) -> 1.151604091 | AN20: =(1+AM16)*(1+AN16) -> 1.151604091 | AO20: =(1+AN16)*(1+AO16) -> 1.151604091 | AP20: 0 | AQ20: 0 | AR20: =(1+AQ16)*(1+AR16) -> 1.151604091 | AS20: =(1+AR16)*(1+AS16) -> 1.151604091 | AT20: =(1+AS16)*(1+AT16) -> 1.151604091 | AU20: 0 | AV20: 0 | AW20: =(1+AV16)*(1+AW16) -> 1.151604091 | AX20: =(1+AW16)*(1+AX16) -> 1.151604091
E21: Two year uplift factor | G21: scalar | H21: UFt4 | I21: =(1 + $I$15) * I22 -> 1.03945 | V21: 0 | W21: =(1+W16) -> 1.07312818 | X21: =(1+X16) -> 1.07312818 | Y21: =(1+Y16) -> 1.07312818 | Z21: =(1+Z16) -> 1.07312818 | AA21: 0 | AB21: =(1+AB16) -> 1.07312818 | AC21: =(1+AC16) -> 1.07312818 | AD21: =(1+AD16) -> 1.07312818 | AE21: =(1+AE16) -> 1.07312818 | AF21: 0 | AG21: =(1+AG16) -> 1.07312818 | AH21: =(1+AH16) -> 1.07312818 | AI21: =(1+AI16) -> 1.07312818 | AJ21: =(1+AJ16) -> 1.07312818 | AK21: 0 | AL21: =(1+AL16) -> 1.07312818 | AM21: =(1+AM16) -> 1.07312818 | AN21: =(1+AN16) -> 1.07312818 | AO21: =(1+AO16) -> 1.07312818 | AP21: 0 | AQ21: =(1+AQ16) -> 1.07312818 | AR21: =(1+AR16) -> 1.07312818 | AS21: =(1+AS16) -> 1.07312818 | AT21: =(1+AT16) -> 1.07312818 | AU21: 0 | AV21: =(1+AV16) -> 1.07312818 | AW21: =(1+AW16) -> 1.07312818 | AX21: =(1+AX16) -> 1.07312818
E22: One year uplift factor | G22: scalar | H22: UFt5 | I22: 1 | V22: =$I22 -> 1 | W22: =$I22 -> 1 | X22: =$I22 -> 1 | Y22: 1 | Z22: 1 | AA22: =$I22 -> 1 | AB22: =$I22 -> 1 | AC22: =$I22 -> 1 | AD22: 1 | AE22: 1 | AF22: =$I22 -> 1 | AG22: =$I22 -> 1 | AH22: =$I22 -> 1 | AI22: 1 | AJ22: 1 | AK22: =$I22 -> 1 | AL22: =$I22 -> 1 | AM22: =$I22 -> 1 | AN22: 1 | AO22: 1 | AP22: =$I22 -> 1 | AQ22: =$I22 -> 1 | AR22: =$I22 -> 1 | AS22: 1 | AT22: 1 | AU22: =$I22 -> 1 | AV22: =$I22 -> 1 | AW22: =$I22 -> 1 | AX22: 1
D24: Revenues and WPA's
E26: Gross congestion revenues (net of market-related costs) | G26: £m nominal | H26: NARt | V26: =Input!V25 -> 44.45761809 | W26: =Input!W25 -> 45.89804491 | X26: =Input!X25 -> 47.38514157 | Y26: =Input!Y25 -> 48.92042016 | Z26: =Input!Z25 -> 50.50544177 | AA26: =Input!AA25 -> 52.14181808 | AB26: =Input!AB25 -> 53.83121299 | AC26: =Input!AC25 -> 55.57534429 | AD26: =Input!AD25 -> 57.37598544 | AE26: =Input!AE25 -> 59.23496737 | AF26: =Input!AF25 -> 61.15418031 | AG26: =Input!AG25 -> 63.13557576 | AH26: =Input!AH25 -> 65.18116841 | AI26: =Input!AI25 -> 67.29303827 | AJ26: =Input!AJ25 -> 69.47333271 | AK26: =Input!AK25 -> 71.72426869 | AL26: =Input!AL25 -> 74.04813499 | AM26: =Input!AM25 -> 76.44729457 | AN26: =Input!AN25 -> 78.92418691 | AO26: =Input!AO25 -> 81.48133057 | AP26: =Input!AP25 -> 84.12132568 | AQ26: =Input!AQ25 -> 86.84685663 | AR26: =Input!AR25 -> 89.66069478 | AS26: =Input!AS25 -> 92.56570129 | AT26: =Input!AT25 -> 95.56483002
E27: Notional Floor (pre-availability incentive) | G27: £m nominal | H27: NFLt | V27: =Availability!V12*V13/$I$13 -> 31.32293162 | W27: =Availability!W12*W13/$I$13 -> 32.3377946 | X27: =Availability!X12*X13/$I$13 -> 33.38553915 | Y27: =Availability!Y12*Y13/$I$13 -> 34.46723062 | Z27: =Availability!Z12*Z13/$I$13 -> 35.58396889 | AA27: =Availability!AA12*AA13/$I$13 -> 36.73688948 | AB27: =Availability!AB12*AB13/$I$13 -> 37.9271647 | AC27: =Availability!AC12*AC13/$I$13 -> 39.15600484 | AD27: =Availability!AD12*AD13/$I$13 -> 40.42465939 | AE27: =Availability!AE12*AE13/$I$13 -> 41.73441836 | AF27: =Availability!AF12*AF13/$I$13 -> 43.08661351 | AG27: =Availability!AG12*AG13/$I$13 -> 44.48261979 | AH27: =Availability!AH12*AH13/$I$13 -> 45.92385667 | AI27: =Availability!AI12*AI13/$I$13 -> 47.41178963 | AJ27: =Availability!AJ12*AJ13/$I$13 -> 48.94793161 | AK27: =Availability!AK12*AK13/$I$13 -> 50.5338446 | AL27: =Availability!AL12*AL13/$I$13 -> 52.17114116 | AM27: =Availability!AM12*AM13/$I$13 -> 53.86148614 | AN27: =Availability!AN12*AN13/$I$13 -> 55.60659829 | AO27: =Availability!AO12*AO13/$I$13 -> 57.40825207 | AP27: =Availability!AP12*AP13/$I$13 -> 59.26827944 | AQ27: =Availability!AQ12*AQ13/$I$13 -> 61.18857169 | AR27: =Availability!AR12*AR13/$I$13 -> 63.17108141 | AS27: =Availability!AS12*AS13/$I$13 -> 65.21782445 | AT27: =Availability!AT12*AT13/$I$13 -> 67.33088196
E28: Floor (post availability incentive) | G28: £m nominal | H28: FLt | V28: =Availability!V18*V13/$I$13 -> 31.32293162 | W28: =Availability!W18*W13/$I$13 -> 32.3377946 | X28: =Availability!X18*X13/$I$13 -> 33.38553915 | Y28: =Availability!Y18*Y13/$I$13 -> 34.46723062 | Z28: =Availability!Z18*Z13/$I$13 -> 35.58396889 | AA28: =Availability!AA18*AA13/$I$13 -> 36.73688948 | AB28: =Availability!AB18*AB13/$I$13 -> 37.9271647 | AC28: =Availability!AC18*AC13/$I$13 -> 39.15600484 | AD28: =Availability!AD18*AD13/$I$13 -> 40.42465939 | AE28: =Availability!AE18*AE13/$I$13 -> 41.73441836 | AF28: =Availability!AF18*AF13/$I$13 -> 43.08661351 | AG28: =Availability!AG18*AG13/$I$13 -> 44.48261979 | AH28: =Availability!AH18*AH13/$I$13 -> 45.92385667 | AI28: =Availability!AI18*AI13/$I$13 -> 47.41178963 | AJ28: =Availability!AJ18*AJ13/$I$13 -> 48.94793161 | AK28: =Availability!AK18*AK13/$I$13 -> 50.5338446 | AL28: =Availability!AL18*AL13/$I$13 -> 52.17114116 | AM28: =Availability!AM18*AM13/$I$13 -> 53.86148614 | AN28: =Availability!AN18*AN13/$I$13 -> 55.60659829 | AO28: =Availability!AO18*AO13/$I$13 -> 57.40825207 | AP28: =Availability!AP18*AP13/$I$13 -> 59.26827944 | AQ28: =Availability!AQ18*AQ13/$I$13 -> 61.18857169 | AR28: =Availability!AR18*AR13/$I$13 -> 63.17108141 | AS28: =Availability!AS18*AS13/$I$13 -> 65.21782445 | AT28: =Availability!AT18*AT13/$I$13 -> 67.33088196 | AU28: =Availability!AU18*AU13/$I$13 -> 0 | AV28: =Availability!AV18*AV13/$I$13 -> 0 | AW28: =Availability!AW18*AW13/$I$13 -> 0 | AX28: =Availability!AX18*AX13/$I$13 -> 0
E30: Notional Surplus Assessed Revenue | G30: £m nominal | H30: NSARt | V30: =IF(V28=0,V26-V27,0) -> 0 | W30: 0 | X30: 0 | Y30: 0 | Z30: 0 | AA30: 0 | AB30: 0 | AC30: 0 | AD30: 0 | AE30: 0 | AF30: 0 | AG30: 0 | AH30: 0 | AI30: 0 | AJ30: 0 | AK30: 0 | AL30: 0 | AM30: 0 | AN30: 0 | AO30: 0 | AP30: 0 | AQ30: 0 | AR30: 0 | AS30: 0 | AT30: 0 | AU30: 0 | AV30: 0 | AW30: 0 | AX30: =IF(AX28=0,AX26-AX27,0) -> 0
E31: Surplus Assessed Revenue | G31: £m nominal | H31: SARt | V31: =IF(V30>0,V30,0) -> 0 | W31: =IF(W30>0,W30,0) -> 0 | X31: 0 | Y31: 0 | Z31: 0 | AA31: 0 | AB31: 0 | AC31: 0 | AD31: 0 | AE31: 0 | AF31: 0 | AG31: 0 | AH31: 0 | AI31: 0 | AJ31: 0 | AK31: 0 | AL31: 0 | AM31: 0 | AN31: 0 | AO31: 0 | AP31: 0 | AQ31: 0 | AR31: 0 | AS31: 0 | AT31: 0 | AU31: 0 | AV31: 0 | AW31: 0 | AX31: =IF(AX30>0,AX30,0) -> 0
E33: Cap (post-availability incentive) | G33: £m nominal | H33: CLt | R33: 0 | S33: 0 | T33: 0 | U33: 0 | V33: =Availability!V17*V13/$I$13 -> 58.74415065 | W33: =Availability!W17*W13/$I$13 -> 60.64746113 | X33: =Availability!X17*X13/$I$13 -> 62.61243887 | Y33: =Availability!Y17*Y13/$I$13 -> 64.64108189 | Z33: =Availability!Z17*Z13/$I$13 -> 66.73545294 | AA33: =Availability!AA17*AA13/$I$13 -> 68.89768161 | AB33: =Availability!AB17*AB13/$I$13 -> 71.1299665 | AC33: =Availability!AC17*AC13/$I$13 -> 73.43457741 | AD33: =Availability!AD17*AD13/$I$13 -> 75.81385772 | AE33: =Availability!AE17*AE13/$I$13 -> 78.27022671 | AF33: =Availability!AF17*AF13/$I$13 -> 80.80618206 | AG33: =Availability!AG17*AG13/$I$13 -> 83.42430236 | AH33: =Availability!AH17*AH13/$I$13 -> 86.12724975 | AI33: =Availability!AI17*AI13/$I$13 -> 88.91777264 | AJ33: =Availability!AJ17*AJ13/$I$13 -> 91.79870848 | AK33: =Availability!AK17*AK13/$I$13 -> 94.77298663 | AL33: =Availability!AL17*AL13/$I$13 -> 97.8436314 | AM33: =Availability!AM17*AM13/$I$13 -> 101.0137651 | AN33: =Availability!AN17*AN13/$I$13 -> 104.286611 | AO33: =Availability!AO17*AO13/$I$13 -> 107.6654972 | AP33: =Availability!AP17*AP13/$I$13 -> 111.1538594 | AQ33: =Availability!AQ17*AQ13/$I$13 -> 114.7552444 | AR33: =Availability!AR17*AR13/$I$13 -> 118.4733143 | AS33: =Availability!AS17*AS13/$I$13 -> 122.3118497 | AT33: =Availability!AT17*AT13/$I$13 -> 126.2747536
E34: Revenue assessed for cap | G34: £m nominal | H34: =H26 -> NARt | R34: 0 | S34: 0 | T34: 0 | U34: 0 | V34: =V26 -> 44.45761809 | W34: 45.89804491 | X34: 47.38514157 | Y34: 48.92042016 | Z34: 50.50544177 | AA34: 52.14181808 | AB34: 53.83121299 | AC34: 55.57534429 | AD34: 57.37598544 | AE34: 59.23496737 | AF34: 61.15418031 | AG34: 63.13557576 | AH34: 65.18116841 | AI34: 67.29303827 | AJ34: 69.47333271 | AK34: 71.72426869 | AL34: 74.04813499 | AM34: 76.44729457 | AN34: 78.92418691 | AO34: 81.48133057 | AP34: 84.12132568 | AQ34: 86.84685663 | AR34: 89.66069478 | AS34: 92.56570129 | AT34: 95.56483002
E35: Floor (post-availability incentive) | G35: £m nominal | H35: FLt | R35: 0 | S35: 0 | T35: 0 | U35: 0 | V35: =V28 -> 31.32293162 | W35: =W28 -> 32.3377946 | X35: 33.38553915 | Y35: 34.46723062 | Z35: 35.58396889 | AA35: 36.73688948 | AB35: 37.9271647 | AC35: 39.15600484 | AD35: 40.42465939 | AE35: 41.73441836 | AF35: 43.08661351 | AG35: 44.48261979 | AH35: 45.92385667 | AI35: 47.41178963 | AJ35: 48.94793161 | AK35: 50.5338446 | AL35: 52.17114116 | AM35: 53.86148614 | AN35: 55.60659829 | AO35: 57.40825207 | AP35: 59.26827944 | AQ35: 61.18857169 | AR35: 63.17108141 | AS35: 65.21782445 | AT35: 67.33088196 | AU35: 0 | AV35: 0 | AW35: 0 | AX35: =AX28 -> 0
E36: Revenue assessed for floor | G36: £m nominal | H36: Choice of SARt or NARt | R36: 0 | S36: 0 | T36: 0 | U36: 0 | V36: =IF(V28=0,V31,V26) -> 44.45761809 | W36: 45.89804491 | X36: 47.38514157 | Y36: 48.92042016 | Z36: 50.50544177 | AA36: 52.14181808 | AB36: 53.83121299 | AC36: 55.57534429 | AD36: 57.37598544 | AE36: 59.23496737 | AF36: 61.15418031 | AG36: 63.13557576 | AH36: 65.18116841 | AI36: 67.29303827 | AJ36: 69.47333271 | AK36: 71.72426869 | AL36: 74.04813499 | AM36: 76.44729457 | AN36: 78.92418691 | AO36: 81.48133057 | AP36: 84.12132568 | AQ36: 86.84685663 | AR36: 89.66069478 | AS36: 92.56570129 | AT36: 95.56483002 | AU36: 0 | AV36: 0 | AW36: 0 | AX36: =IF(AX28=0,AX31,AX26) -> 0
E37: Within-period adjustment (assessed) | G37: £m nominal | H37: WPAt | R37: 0 | S37: 0 | T37: 0 | U37: 0 | V37: =Input!V26 -> 0 | W37: =Input!W26 -> 0 | X37: =Input!X26 -> 0 | Y37: =Input!Y26 -> 0 | Z37: =Input!Z26 -> 0 | AA37: =Input!AA26 -> 0 | AB37: =Input!AB26 -> 0 | AC37: =Input!AC26 -> 0 | AD37: =Input!AD26 -> 0 | AE37: =Input!AE26 -> 0 | AF37: =Input!AF26 -> 0 | AG37: =Input!AG26 -> 0 | AH37: =Input!AH26 -> 0 | AI37: =Input!AI26 -> 0 | AJ37: =Input!AJ26 -> 0 | AK37: =Input!AK26 -> 0 | AL37: =Input!AL26 -> 0 | AM37: =Input!AM26 -> 0 | AN37: =Input!AN26 -> 0 | AO37: =Input!AO26 -> 0 | AP37: =Input!AP26 -> 0 | AQ37: =Input!AQ26 -> 0 | AR37: =Input!AR26 -> 0 | AS37: =Input!AS26 -> 0 | AT37: =Input!AT26 -> 0
D39: NPV
E41: Cap (post-availability incentive) NPV | G41: £m nominal | H41: CLNap | V41: =MMULT(R33:V33,V$18:V$22) -> 58.74415065 | W41: =MMULT(S33:W33,W$18:W$22) -> 123.6874646 | X41: =MMULT(T33:X33,X$18:X$22) -> 195.3449426 | Y41: =MMULT(U33:Y33,Y$18:Y$22) -> 274.2712446 | Z41: =MMULT(V33:Z33,Z$18:Z$22) -> 361.0636545 | AA41: =MMULT(W33:AA33,AA$18:AA$22) -> 68.89768161 | AB41: =MMULT(X33:AB33,AB$18:AB$22) -> 145.0660102 | AC41: =MMULT(Y33:AC33,AC$18:AC$22) -> 229.1090009 | AD41: =MMULT(Z33:AD33,AD$18:AD$22) -> 321.6771829 | AE41: =MMULT(AA33:AE33,AE$18:AE$22) -> 423.4710765 | AF41: =MMULT(AB33:AF33,AF$18:AF$22) -> 80.80618206 | AG41: =MMULT(AC33:AG33,AG$18:AG$22) -> 170.1396934 | AH41: =MMULT(AD33:AH33,AH$18:AH$22) -> 268.7089493 | AI41: =MMULT(AE33:AI33,AI$18:AI$22) -> 377.2769184 | AJ41: =MMULT(AF33:AJ33,AJ$18:AJ$22) -> 496.6652013 | AK41: =MMULT(AG33:AK33,AK$18:AK$22) -> 94.77298663 | AL41: =MMULT(AH33:AL33,AL$18:AL$22) -> 199.5471941 | AM41: =MMULT(AI33:AM33,AM$18:AM$22) -> 315.1534822 | AN41: =MMULT(AJ33:AN33,AN$18:AN$22) -> 442.4866939 | AO41: =MMULT(AK33:AO33,AO$18:AO$22) -> 582.5104377 | AP41: =MMULT(AL33:AP33,AP$18:AP$22) -> 111.1538594 | AQ41: =MMULT(AM33:AQ33,AQ$18:AQ$22) -> 234.0375832 | AR41: =MMULT(AN33:AR33,AR$18:AR$22) -> 369.62564 | AS41: =MMULT(AO33:AS33,AS$18:AS$22) -> 518.96754 | AT41: =MMULT(AP33:AT33,AT$18:AT$22) -> 683.1934454
E42: Revenue assessed for cap NPV | G42: £m nominal | H42: ARNap | V42: =MMULT(R34:V34,V$18:V$22) -> 44.45761809 | W42: 93.6067677 | X42: 147.8372018 | Y42: 207.5686875 | Z42: 273.2532496 | AA42: 52.14181808 | AB42: 109.7860673 | AC42: 173.3898669 | AD42: 243.4455377 | AE42: =MMULT(AA34:AE34,AE$18:AE$22) -> 320.4832342 | AF42: 61.15418031 | AG42: 128.76185 | AH42: 203.3591381 | AI42: 285.5234601 | AJ42: 375.8766037 | AK42: 71.72426869 | AL42: 151.0174689 | AM42: 238.5083961 | AN42: 334.874268 | AO42: 440.8443443 | AP42: 84.12132568 | AQ42: 177.1198218 | AR42: 279.7329667 | AS42: 392.7550308 | AT42: 517.0413214
E43: Floor (post-availability incentive) NPV | G43: £m nominal | H43: FLNap | V43: =MMULT(R35:V35,V$18:V$22) -> 31.32293162 | W43: 65.95131521 | X43: 104.159754 | Y43: 146.2439979 | Z43: 192.5225242 | AA43: 36.73688948 | AB43: 77.35055605 | AC43: 122.1630663 | AD43: 171.5212884 | AE43: =MMULT(AA35:AE35,AE$18:AE$22) -> 225.7987464 | AF43: 43.08661351 | AG43: 90.72007893 | AH43: 143.2781299 | AI43: 201.1675884 | AJ43: 264.8265396 | AK43: 50.5338446 | AL43: 106.4004338 | AM43: 168.0427901 | AN43: 235.9380517 | AO43: 310.6000241 | AP43: 59.26827944 | AQ43: 124.7910325 | AR43: 197.087855 | AS43: 276.7183556 | AT43: 364.2851473
E44: Revenue assessed for floor NPV | G44: £m nominal | H44: ARNap | V44: =MMULT(R36:V36,V$18:V$22) -> 44.45761809 | W44: 93.6067677 | X44: 147.8372018 | Y44: 207.5686875 | Z44: 273.2532496 | AA44: 52.14181808 | AB44: 109.7860673 | AC44: 173.3898669 | AD44: 243.4455377 | AE44: =MMULT(AA36:AE36,AE$18:AE$22) -> 320.4832342 | AF44: 61.15418031 | AG44: 128.76185 | AH44: 203.3591381 | AI44: 285.5234601 | AJ44: 375.8766037 | AK44: 71.72426869 | AL44: 151.0174689 | AM44: 238.5083961 | AN44: 334.874268 | AO44: 440.8443443 | AP44: 84.12132568 | AQ44: 177.1198218 | AR44: 279.7329667 | AS44: 392.7550308 | AT44: 517.0413214
E45: NPV within-period adjustments (assessed) | G45: £m nominal | H45: WPANap | V45: =MMULT(R37:V37,V$18:V$22) -> 0 | W45: 0 | X45: 0 | Y45: 0 | Z45: 0 | AA45: 0 | AB45: 0 | AC45: 0 | AD45: 0 | AE45: =MMULT(AA37:AE37,AE$18:AE$22) -> 0 | AF45: 0 | AG45: 0 | AH45: 0 | AI45: 0 | AJ45: 0 | AK45: 0 | AL45: 0 | AM45: 0 | AN45: 0 | AO45: 0 | AP45: 0 | AQ45: 0 | AR45: 0 | AS45: 0 | AT45: 0
A46: `
C47: Assessment
D49: Assessed adjustment
E51: Assessment period length | G51: =Input!G117 -> full years | I51: =Input!I117 -> 5
E52: Assessment year flag | G52: flag | V52: =AND(MOD(V3,$I51)=0,V3>=$I51) -> FALSE | W52: FALSE | X52: FALSE | Y52: FALSE | Z52: TRUE | AA52: FALSE | AB52: FALSE | AC52: FALSE | AD52: FALSE | AE52: TRUE | AF52: FALSE | AG52: FALSE | AH52: FALSE | AI52: FALSE | AJ52: TRUE | AK52: FALSE | AL52: FALSE | AM52: FALSE | AN52: FALSE | AO52: TRUE | AP52: FALSE | AQ52: FALSE | AR52: FALSE | AS52: FALSE | AT52: TRUE | AU52: FALSE | AV52: FALSE | AW52: FALSE | AX52: =AND(MOD(AX3,$I51)=0,AX3>=$I51) -> FALSE
E54: Relevant Revenue at Cap | G54: £m nominal | H54: RRACap | V54: =V42-V41 -> -14.28653256 | W54: =W42-W41 -> -30.0806969 | X54: -47.50774081 | Y54: -66.70255716 | Z54: -87.81040494 | AA54: -16.75586353 | AB54: -35.27994285 | AC54: -55.71913399 | AD54: -78.23164512 | AE54: =AE42-AE41 -> -102.9878423 | AF54: =AF42-AF41 -> -19.65200174 | AG54: -41.37784346 | AH54: -65.34981119 | AI54: -91.75345832 | AJ54: -120.7885975 | AK54: -23.04871795 | AL54: -48.52972515 | AM54: -76.64508611 | AN54: -107.6124259 | AO54: -141.6660934 | AP54: -27.03253368 | AQ54: -56.91776143 | AR54: -89.89267327 | AS54: -126.2125093 | AT54: -166.152124 | AU54: 0 | AV54: 0 | AW54: 0 | AX54: =AX42-AX41 -> 0
E55: Revenue Excess at Cap | G55: £m nominal | H55: RECap | V55: =IF(V54>0,V54,0) -> 0 | W55: =IF(W54>0,W54,0) -> 0 | X55: 0 | Y55: 0 | Z55: 0 | AA55: 0 | AB55: 0 | AC55: 0 | AD55: 0 | AE55: 0 | AF55: 0 | AG55: 0 | AH55: 0 | AI55: 0 | AJ55: 0 | AK55: 0 | AL55: 0 | AM55: 0 | AN55: 0 | AO55: 0 | AP55: 0 | AQ55: 0 | AR55: 0 | AS55: 0 | AT55: 0 | AU55: 0 | AV55: 0 | AW55: 0 | AX55: =IF(AX54>0,AX54,0) -> 0
E57: Relevant Revenue at Floor | G57: £m nominal | H57: RRAFap | V57: =V43-V44 -> -13.13468647 | W57: =W43-W44 -> -27.65545249 | X57: -43.67744782 | Y57: -61.32468962 | Z57: -80.73072544 | AA57: -15.4049286 | AB57: -32.43551128 | AC57: -51.22680063 | AD57: -71.92424938 | AE57: -94.68448785 | AF57: -18.0675668 | AG57: -38.04177104 | AH57: -60.08100826 | AI57: -84.35587169 | AJ57: -111.0500641 | AK57: -21.19042409 | AL57: -44.61703507 | AM57: -70.46560607 | AN57: -98.93621622 | AO57: -130.2443201 | AP57: -24.85304624 | AQ57: -52.32878921 | AR57: -82.6451117 | AS57: -116.0366751 | AT57: -152.7561741 | AU57: 0 | AV57: 0 | AW57: 0 | AX57: =AX43-AX44 -> 0
E58: Revenue Shortfall at Floor | G58: £m nominal | H58: RSFap | V58: =IF(V57>0,V57,0) -> 0 | W58: =IF(W57>0,W57,0) -> 0 | X58: 0 | Y58: 0 | Z58: 0 | AA58: 0 | AB58: =IF(AB57>0,AB57,0) -> 0 | AC58: =IF(AC57>0,AC57,0) -> 0 | AD58: 0 | AE58: 0 | AF58: 0 | AG58: 0 | AH58: 0 | AI58: 0 | AJ58: 0 | AK58: 0 | AL58: 0 | AM58: 0 | AN58: 0 | AO58: 0 | AP58: 0 | AQ58: 0 | AR58: 0 | AS58: 0 | AT58: 0 | AU58: 0 | AV58: 0 | AW58: 0 | AX58: =IF(AX57>0,AX57,0) -> 0
E60: NPV within-period adjustments (assessed) | G60: £m nominal | H60: =H45 -> WPANap | V60: =V45 -> 0 | W60: =W45 -> 0 | X60: 0 | Y60: 0 | Z60: 0 | AA60: 0 | AB60: 0 | AC60: 0 | AD60: 0 | AE60: 0 | AF60: 0 | AG60: 0 | AH60: 0 | AI60: 0 | AJ60: 0 | AK60: 0 | AL60: 0 | AM60: 0 | AN60: 0 | AO60: 0 | AP60: 0 | AQ60: 0 | AR60: 0 | AS60: 0 | AT60: 0 | AU60: 0 | AV60: 0 | AW60: 0 | AX60: =AX45 -> 0
E62: End of Period Cap and Floor Revenue Adjustment - Unadjusted for End of Period | G62: £m nominal | V62: =IF(ABS(V55)>0,-V55-V60,IF(ABS(V58)>0,V58-V60,IF(AND(V55=0,V58=0,ABS(V60)>0),-V60,0))) -> 0 | W62: =IF(ABS(W55)>0,-W55-W60,IF(ABS(W58)>0,W58-W60,IF(AND(W55=0,W58=0,ABS(W60)>0),-W60,0))) -> 0 | X62: 0 | Y62: 0 | Z62: =IF(ABS(Z55)>0,-Z55-Z60,IF(ABS(Z58)>0,Z58-Z60,IF(AND(Z55=0,Z58=0,ABS(Z60)>0),-Z60,0))) -> 0 | AA62: =IF(ABS(AA55)>0,-AA55-AA60,IF(ABS(AA58)>0,AA58-AA60,IF(AND(AA55=0,AA58=0,ABS(AA60)>0),-AA60,0))) -> 0 | AB62: 0 | AC62: 0 | AD62: 0 | AE62: =IF(ABS(AE55)>0,-AE55-AE60,IF(ABS(AE58)>0,AE58-AE60,IF(AND(AE55=0,AE58=0,ABS(AE60)>0),-AE60,0))) -> 0 | AF62: =IF(ABS(AF55)>0,-AF55-AF60,IF(ABS(AF58)>0,AF58-AF60,IF(AND(AF55=0,AF58=0,ABS(AF60)>0),-AF60,0))) -> 0 | AG62: 0 | AH62: 0 | AI62: 0 | AJ62: 0 | AK62: 0 | AL62: 0 | AM62: 0 | AN62: 0 | AO62: 0 | AP62: 0 | AQ62: 0 | AR62: 0 | AS62: 0 | AT62: =IF(ABS(AT55)>0,-AT55-AT60,IF(ABS(AT58)>0,AT58-AT60,IF(AND(AT55=0,AT58=0,ABS(AT60)>0),-AT60,0))) -> 0 | AU62: =IF(ABS(AU55)>0,-AU55-AU60,IF(ABS(AU58)>0,AU58-AU60,IF(AND(AU55=0,AU58=0,ABS(AU60)>0),-AU60,0))) -> 0 | AV62: =IF(ABS(AV55)>0,-AV55-AV60,IF(ABS(AV58)>0,AV58-AV60,IF(AND(AV55=0,AV58=0,ABS(AV60)>0),-AV60,0))) -> 0 | AW62: 0 | AX62: =IF(ABS(AX55)>0,-AX55-AX60,IF(ABS(AX58)>0,AX58-AX60,IF(AND(AX55=0,AX58=0,ABS(AX60)>0),-AX60,0))) -> 0
E64: End of Period Cap and Floor Revenue Adjustment | G64: £m nominal | H64: CFAap | V64: =V62*V52 -> 0 | W64: =W62*W52 -> 0 | X64: 0 | Y64: 0 | Z64: 0 | AA64: 0 | AB64: 0 | AC64: 0 | AD64: 0 | AE64: 0 | AF64: 0 | AG64: 0 | AH64: 0 | AI64: 0 | AJ64: 0 | AK64: 0 | AL64: 0 | AM64: 0 | AN64: 0 | AO64: 0 | AP64: 0 | AQ64: 0 | AR64: 0 | AS64: 0 | AT64: 0 | AU64: 0 | AV64: 0 | AW64: 0 | AX64: =AX62*AX52 -> 0
B67: Revenue adjustment for changes from cost base case
E69: RPI index | G69: scalar | V69: =V13/$I13 -> 1.136035711 | W69: =W13/$I13 -> 1.172843268 | X69: =X13/$I13 -> 1.21084339 | Y69: 1.250074716 | Z69: 1.290577136 | AA69: 1.332391836 | AB69: 1.375561331 | AC69: 1.420129518 | AD69: 1.466141715 | AE69: 1.513644706 | AF69: 1.562686795 | AG69: 1.613317847 | AH69: 1.665589345 | AI69: 1.71955444 | AJ69: 1.775268004 | AK69: 1.832786687 | AL69: 1.892168976 | AM69: 1.95347525 | AN69: 2.016767849 | AO69: 2.082111127 | AP69: 2.149571527 | AQ69: 2.219217645 | AR69: 2.291120297 | AS69: 2.365352594 | AT69: 2.441990018 | AU69: 2.521110495 | AV69: 2.602794475 | AW69: 2.687125016 | AX69: 2.774187866
E71: Non-controllable opex (actual) | G71: £m nominal | H71: ONCOCt | V71: =Input!V19*V69 -> 0 | W71: =Input!W19*W69 -> 0 | X71: =Input!X19*X69 -> 0 | Y71: =Input!Y19*Y69 -> 0 | Z71: =Input!Z19*Z69 -> 0 | AA71: =Input!AA19*AA69 -> 0 | AB71: =Input!AB19*AB69 -> 0 | AC71: =Input!AC19*AC69 -> 0 | AD71: =Input!AD19*AD69 -> 0 | AE71: =Input!AE19*AE69 -> 0 | AF71: =Input!AF19*AF69 -> 0 | AG71: =Input!AG19*AG69 -> 0 | AH71: =Input!AH19*AH69 -> 0 | AI71: =Input!AI19*AI69 -> 0 | AJ71: =Input!AJ19*AJ69 -> 0 | AK71: =Input!AK19*AK69 -> 0 | AL71: =Input!AL19*AL69 -> 0 | AM71: =Input!AM19*AM69 -> 0 | AN71: =Input!AN19*AN69 -> 0 | AO71: =Input!AO19*AO69 -> 0 | AP71: =Input!AP19*AP69 -> 0 | AQ71: =Input!AQ19*AQ69 -> 0 | AR71: =Input!AR19*AR69 -> 0 | AS71: =Input!AS19*AS69 -> 0 | AT71: =Input!AT19*AT69 -> 0 | AU71: =Input!AU19*AU69 -> 0 | AV71: =Input!AV19*AV69 -> 0 | AW71: =Input!AW19*AW69 -> 0 | AX71: =Input!AX19*AX69 -> 0
E72: Less non-controllable opex (baseline) | G72: £m nominal | H72: BNCOCt | V72: =-Input!K34*V69 -> 0 | W72: =-Input!L34*W69 -> 0 | X72: =-Input!M34*X69 -> 0 | Y72: =-Input!N34*Y69 -> 0 | Z72: =-Input!O34*Z69 -> 0 | AA72: =-Input!P34*AA69 -> 0 | AB72: =-Input!Q34*AB69 -> 0 | AC72: =-Input!R34*AC69 -> 0 | AD72: =-Input!S34*AD69 -> 0 | AE72: =-Input!T34*AE69 -> 0 | AF72: =-Input!U34*AF69 -> 0 | AG72: =-Input!V34*AG69 -> 0 | AH72: =-Input!W34*AH69 -> 0 | AI72: =-Input!X34*AI69 -> 0 | AJ72: =-Input!Y34*AJ69 -> 0 | AK72: =-Input!Z34*AK69 -> 0 | AL72: =-Input!AA34*AL69 -> 0 | AM72: =-Input!AB34*AM69 -> 0 | AN72: =-Input!AC34*AN69 -> 0 | AO72: =-Input!AD34*AO69 -> 0 | AP72: =-Input!AE34*AP69 -> 0 | AQ72: =-Input!AF34*AQ69 -> 0 | AR72: =-Input!AG34*AR69 -> 0 | AS72: =-Input!AH34*AS69 -> 0 | AT72: =-Input!AI34*AT69 -> 0 | AU72: =-Input!AJ34*AU69 -> 0 | AV72: =-Input!AK34*AV69 -> 0 | AW72: =-Input!AL34*AW69 -> 0 | AX72: =-Input!AM34*AX69 -> 0
E73: Non-controllable costs (changes from baseline estimate) | G73: £m nominal | H73: DNCOCt | V73: =SUM(V71:V72) -> 0 | W73: =SUM(W71:W72) -> 0 | X73: 0 | Y73: 0 | Z73: 0 | AA73: 0 | AB73: 0 | AC73: 0 | AD73: 0 | AE73: 0 | AF73: 0 | AG73: 0 | AH73: 0 | AI73: 0 | AJ73: 0 | AK73: 0 | AL73: 0 | AM73: 0 | AN73: 0 | AO73: 0 | AP73: 0 | AQ73: 0 | AR73: 0 | AS73: 0 | AT73: 0 | AU73: 0 | AV73: 0 | AW73: 0 | AX73: =SUM(AX71:AX72) -> 0
E77: Total changes from baseline estimates | G77: £m nominal | H77: NCOCt | R77: 0 | S77: 0 | T77: 0 | U77: 0 | V77: =+ V73 -> 0 | W77: 0 | X77: 0 | Y77: 0 | Z77: 0 | AA77: 0 | AB77: 0 | AC77: 0 | AD77: 0 | AE77: 0 | AF77: 0 | AG77: 0 | AH77: 0 | AI77: 0 | AJ77: 0 | AK77: 0 | AL77: 0 | AM77: 0 | AN77: 0 | AO77: 0 | AP77: 0 | AQ77: 0 | AR77: 0 | AS77: 0 | AT77: 0 | AU77: 0 | AV77: 0 | AW77: 0 | AX77: =+ AX73 -> 0
E78: Pass through revenue adjustment (assessed) - Unadjusted for End of Period | G78: £m nominal | V78: =MMULT(R77:V77,V$18:V$22) -> 0 | W78: =MMULT(S77:W77,W$18:W$22) -> 0 | X78: =MMULT(T77:X77,X$18:X$22) -> 0 | Y78: =MMULT(U77:Y77,Y$18:Y$22) -> 0 | Z78: =MMULT(V77:Z77,Z$18:Z$22) -> 0 | AA78: =MMULT(W77:AA77,AA$18:AA$22) -> 0 | AB78: =MMULT(X77:AB77,AB$18:AB$22) -> 0 | AC78: =MMULT(Y77:AC77,AC$18:AC$22) -> 0 | AD78: =MMULT(Z77:AD77,AD$18:AD$22) -> 0 | AE78: =MMULT(AA77:AE77,AE$18:AE$22) -> 0 | AF78: =MMULT(AB77:AF77,AF$18:AF$22) -> 0 | AG78: =MMULT(AC77:AG77,AG$18:AG$22) -> 0 | AH78: =MMULT(AD77:AH77,AH$18:AH$22) -> 0 | AI78: =MMULT(AE77:AI77,AI$18:AI$22) -> 0 | AJ78: =MMULT(AF77:AJ77,AJ$18:AJ$22) -> 0 | AK78: =MMULT(AG77:AK77,AK$18:AK$22) -> 0 | AL78: =MMULT(AH77:AL77,AL$18:AL$22) -> 0 | AM78: =MMULT(AI77:AM77,AM$18:AM$22) -> 0 | AN78: =MMULT(AJ77:AN77,AN$18:AN$22) -> 0 | AO78: =MMULT(AK77:AO77,AO$18:AO$22) -> 0 | AP78: =MMULT(AL77:AP77,AP$18:AP$22) -> 0 | AQ78: =MMULT(AM77:AQ77,AQ$18:AQ$22) -> 0 | AR78: =MMULT(AN77:AR77,AR$18:AR$22) -> 0 | AS78: =MMULT(AO77:AS77,AS$18:AS$22) -> 0 | AT78: =MMULT(AP77:AT77,AT$18:AT$22) -> 0 | AU78: =MMULT(AQ77:AU77,AU$18:AU$22) -> 0 | AV78: =MMULT(AR77:AV77,AV$18:AV$22) -> 0 | AW78: =MMULT(AS77:AW77,AW$18:AW$22) -> 0 | AX78: =MMULT(AT77:AX77,AX$18:AX$22) -> 0
E80: End of Period Pass through revenue adjustment (assessed) | G80: £m nominal | H80: PTAap | V80: =V78*V52 -> 0 | W80: 0 | X80: 0 | Y80: 0 | Z80: 0 | AA80: 0 | AB80: 0 | AC80: 0 | AD80: 0 | AE80: 0 | AF80: 0 | AG80: 0 | AH80: 0 | AI80: 0 | AJ80: 0 | AK80: 0 | AL80: 0 | AM80: 0 | AN80: 0 | AO80: 0 | AP80: 0 | AQ80: 0 | AR80: 0 | AS80: 0 | AT80: 0 | AU80: 0 | AV80: 0 | AW80: 0 | AX80: 0
B82: End of sheet

Sheet Output
A1: Output | H1: Licence
E2: Parameter | G2: Units | H2: Terminology | I2: Constant | K2: Annual values
E3: Project year | K3: =Input!K8 -> -10 | L3: =K3 + 1 -> -9 | M3: =L3 + 1 -> -8 | N3: =M3 + 1 -> -7 | O3: =N3 + 1 -> -6 | P3: =O3 + 1 -> -5 | Q3: =P3 + 1 -> -4 | R3: =Q3 + 1 -> -3 | S3: =R3 + 1 -> -2 | T3: =S3 + 1 -> -1 | U3: =T3 + 1 -> 0 | V3: =U3 + 1 -> 1 | W3: =V3 + 1 -> 2 | X3: =W3 + 1 -> 3 | Y3: =X3 + 1 -> 4 | Z3: =Y3 + 1 -> 5 | AA3: =Z3 + 1 -> 6 | AB3: =AA3 + 1 -> 7 | AC3: =AB3 + 1 -> 8 | AD3: =AC3 + 1 -> 9 | AE3: =AD3 + 1 -> 10 | AF3: =AE3 + 1 -> 11 | AG3: =AF3 + 1 -> 12 | AH3: =AG3 + 1 -> 13 | AI3: =AH3 + 1 -> 14 | AJ3: =AI3 + 1 -> 15 | AK3: =AJ3 + 1 -> 16 | AL3: =AK3 + 1 -> 17 | AM3: =AL3 + 1 -> 18 | AN3: =AM3 + 1 -> 19 | AO3: =AN3 + 1 -> 20 | AP3: =AO3 + 1 -> 21 | AQ3: =AP3 + 1 -> 22 | AR3: =AQ3 + 1 -> 23 | AS3: =AR3 + 1 -> 24 | AT3: =AS3 + 1 -> 25 | AU3: =AT3 + 1 -> 26 | AV3: =AU3 + 1 -> 27 | AW3: =AV3 + 1 -> 28 | AX3: =AW3 + 1 -> 29
E4: Year commencing | K4: =Input!K9 -> 2009-04-01 | L4: =+K5+1 -> 2010-04-01 | M4: =+L5+1 -> 2011-04-01 | N4: =+M5+1 -> 2012-04-01 | O4: 2013-04-01 | P4: 2014-04-01 | Q4: 2015-04-01 | R4: 2016-04-01 | S4: 2017-04-01 | T4: 2018-04-01 | U4: 2019-04-01 | V4: 2020-04-01 | W4: 2021-04-01 | X4: 2022-04-01 | Y4: 2023-04-01 | Z4: 2024-04-01 | AA4: 2025-04-01 | AB4: 2026-04-01 | AC4: 2027-04-01 | AD4: 2028-04-01 | AE4: 2029-04-01 | AF4: 2030-04-01 | AG4: 2031-04-01 | AH4: 2032-04-01 | AI4: 2033-04-01 | AJ4: 2034-04-01 | AK4: 2035-04-01 | AL4: 2036-04-01 | AM4: 2037-04-01 | AN4: 2038-04-01 | AO4: 2039-04-01 | AP4: 2040-04-01 | AQ4: 2041-04-01 | AR4: 2042-04-01 | AS4: 2043-04-01 | AT4: 2044-04-01 | AU4: 2045-04-01 | AV4: 2046-04-01 | AW4: 2047-04-01 | AX4: 2048-04-01
E5: Year ending | K5: =Input!K10 -> 2010-03-31 | L5: =DATE(YEAR(K5) + 1, MONTH(K5), DAY(K5)) -> 2011-03-31 | M5: =DATE(YEAR(L5) + 1, MONTH(L5), DAY(L5)) -> 2012-03-31 | N5: =DATE(YEAR(M5) + 1, MONTH(M5), DAY(M5)) -> 2013-03-31 | O5: =DATE(YEAR(N5) + 1, MONTH(N5), DAY(N5)) -> 2014-03-31 | P5: =DATE(YEAR(O5) + 1, MONTH(O5), DAY(O5)) -> 2015-03-31 | Q5: =DATE(YEAR(P5) + 1, MONTH(P5), DAY(P5)) -> 2016-03-31 | R5: =DATE(YEAR(Q5) + 1, MONTH(Q5), DAY(Q5)) -> 2017-03-31 | S5: =DATE(YEAR(R5) + 1, MONTH(R5), DAY(R5)) -> 2018-03-31 | T5: =DATE(YEAR(S5) + 1, MONTH(S5), DAY(S5)) -> 2019-03-31 | U5: =DATE(YEAR(T5) + 1, MONTH(T5), DAY(T5)) -> 2020-03-31 | V5: =DATE(YEAR(U5) + 1, MONTH(U5), DAY(U5)) -> 2021-03-31 | W5: =DATE(YEAR(V5) + 1, MONTH(V5), DAY(V5)) -> 2022-03-31 | X5: =DATE(YEAR(W5) + 1, MONTH(W5), DAY(W5)) -> 2023-03-31 | Y5: =DATE(YEAR(X5) + 1, MONTH(X5), DAY(X5)) -> 2024-03-31 | Z5: =DATE(YEAR(Y5) + 1, MONTH(Y5), DAY(Y5)) -> 2025-03-31 | AA5: =DATE(YEAR(Z5) + 1, MONTH(Z5), DAY(Z5)) -> 2026-03-31 | AB5: =DATE(YEAR(AA5) + 1, MONTH(AA5), DAY(AA5)) -> 2027-03-31 | AC5: =DATE(YEAR(AB5) + 1, MONTH(AB5), DAY(AB5)) -> 2028-03-31 | AD5: =DATE(YEAR(AC5) + 1, MONTH(AC5), DAY(AC5)) -> 2029-03-31 | AE5: =DATE(YEAR(AD5) + 1, MONTH(AD5), DAY(AD5)) -> 2030-03-31 | AF5: =DATE(YEAR(AE5) + 1, MONTH(AE5), DAY(AE5)) -> 2031-03-31 | AG5: =DATE(YEAR(AF5) + 1, MONTH(AF5), DAY(AF5)) -> 2032-03-31 | AH5: =DATE(YEAR(AG5) + 1, MONTH(AG5), DAY(AG5)) -> 2033-03-31 | AI5: =DATE(YEAR(AH5) + 1, MONTH(AH5), DAY(AH5)) -> 2034-03-31 | AJ5: =DATE(YEAR(AI5) + 1, MONTH(AI5), DAY(AI5)) -> 2035-03-31 | AK5: =DATE(YEAR(AJ5) + 1, MONTH(AJ5), DAY(AJ5)) -> 2036-03-31 | AL5: =DATE(YEAR(AK5) + 1, MONTH(AK5), DAY(AK5)) -> 2037-03-31 | AM5: =DATE(YEAR(AL5) + 1, MONTH(AL5), DAY(AL5)) -> 2038-03-31 | AN5: =DATE(YEAR(AM5) + 1, MONTH(AM5), DAY(AM5)) -> 2039-03-31 | AO5: =DATE(YEAR(AN5) + 1, MONTH(AN5), DAY(AN5)) -> 2040-03-31 | AP5: =DATE(YEAR(AO5) + 1, MONTH(AO5), DAY(AO5)) -> 2041-03-31 | AQ5: =DATE(YEAR(AP5) + 1, MONTH(AP5), DAY(AP5)) -> 2042-03-31 | AR5: =DATE(YEAR(AQ5) + 1, MONTH(AQ5), DAY(AQ5)) -> 2043-03-31 | AS5: =DATE(YEAR(AR5) + 1, MONTH(AR5), DAY(AR5)) -> 2044-03-31 | AT5: =DATE(YEAR(AS5) + 1, MONTH(AS5), DAY(AS5)) -> 2045-03-31 | AU5: =DATE(YEAR(AT5) + 1, MONTH(AT5), DAY(AT5)) -> 2046-03-31 | AV5: =DATE(YEAR(AU5) + 1, MONTH(AU5), DAY(AU5)) -> 2047-03-31 | AW5: =DATE(YEAR(AV5) + 1, MONTH(AV5), DAY(AV5)) -> 2048-03-31 | AX5: =DATE(YEAR(AW5) + 1, MONTH(AW5), DAY(AW5)) -> 2049-03-31
B7: Model outputs
C9: Cap and floor levels
E11: Cap | G11: £m nominal | K11: =Availability!K17*Assessment!K13/Assessment!$I13 -> 0 | L11: =Availability!L17*Assessment!L13/Assessment!$I13 -> 0 | M11: =Availability!M17*Assessment!M13/Assessment!$I13 -> 0 | N11: =Availability!N17*Assessment!N13/Assessment!$I13 -> 0 | O11: =Availability!O17*Assessment!O13/Assessment!$I13 -> 0 | P11: =Availability!P17*Assessment!P13/Assessment!$I13 -> 0 | Q11: =Availability!Q17*Assessment!Q13/Assessment!$I13 -> 0 | R11: =Availability!R17*Assessment!R13/Assessment!$I13 -> 0 | S11: =Availability!S17*Assessment!S13/Assessment!$I13 -> 0 | T11: =Availability!T17*Assessment!T13/Assessment!$I13 -> 0 | U11: =Availability!U17*Assessment!U13/Assessment!$I13 -> 0 | V11: =Availability!V17*Assessment!V13/Assessment!$I13 -> 58.74415065 | W11: =Availability!W17*Assessment!W13/Assessment!$I13 -> 60.64746113 | X11: =Availability!X17*Assessment!X13/Assessment!$I13 -> 62.61243887 | Y11: =Availability!Y17*Assessment!Y13/Assessment!$I13 -> 64.64108189 | Z11: =Availability!Z17*Assessment!Z13/Assessment!$I13 -> 66.73545294 | AA11: =Availability!AA17*Assessment!AA13/Assessment!$I13 -> 68.89768161 | AB11: =Availability!AB17*Assessment!AB13/Assessment!$I13 -> 71.1299665 | AC11: =Availability!AC17*Assessment!AC13/Assessment!$I13 -> 73.43457741 | AD11: =Availability!AD17*Assessment!AD13/Assessment!$I13 -> 75.81385772 | AE11: =Availability!AE17*Assessment!AE13/Assessment!$I13 -> 78.27022671 | AF11: =Availability!AF17*Assessment!AF13/Assessment!$I13 -> 80.80618206 | AG11: =Availability!AG17*Assessment!AG13/Assessment!$I13 -> 83.42430236 | AH11: =Availability!AH17*Assessment!AH13/Assessment!$I13 -> 86.12724975 | AI11: =Availability!AI17*Assessment!AI13/Assessment!$I13 -> 88.91777264 | AJ11: =Availability!AJ17*Assessment!AJ13/Assessment!$I13 -> 91.79870848 | AK11: =Availability!AK17*Assessment!AK13/Assessment!$I13 -> 94.77298663 | AL11: =Availability!AL17*Assessment!AL13/Assessment!$I13 -> 97.8436314 | AM11: =Availability!AM17*Assessment!AM13/Assessment!$I13 -> 101.0137651 | AN11: =Availability!AN17*Assessment!AN13/Assessment!$I13 -> 104.286611 | AO11: =Availability!AO17*Assessment!AO13/Assessment!$I13 -> 107.6654972 | AP11: =Availability!AP17*Assessment!AP13/Assessment!$I13 -> 111.1538594 | AQ11: =Availability!AQ17*Assessment!AQ13/Assessment!$I13 -> 114.7552444 | AR11: =Availability!AR17*Assessment!AR13/Assessment!$I13 -> 118.4733143 | AS11: =Availability!AS17*Assessment!AS13/Assessment!$I13 -> 122.3118497 | AT11: =Availability!AT17*Assessment!AT13/Assessment!$I13 -> 126.2747536 | AU11: =Availability!AU17*Assessment!AU13/Assessment!$I13 -> 0 | AV11: =Availability!AV17*Assessment!AV13/Assessment!$I13 -> 0 | AW11: =Availability!AW17*Assessment!AW13/Assessment!$I13 -> 0 | AX11: =Availability!AX17*Assessment!AX13/Assessment!$I13 -> 0
E12: Floor | G12: £m nominal | K12: =Availability!K18*Assessment!K13/Assessment!$I13 -> 0 | L12: =Availability!L18*Assessment!L13/Assessment!$I13 -> 0 | M12: =Availability!M18*Assessment!M13/Assessment!$I13 -> 0 | N12: =Availability!N18*Assessment!N13/Assessment!$I13 -> 0 | O12: =Availability!O18*Assessment!O13/Assessment!$I13 -> 0 | P12: =Availability!P18*Assessment!P13/Assessment!$I13 -> 0 | Q12: =Availability!Q18*Assessment!Q13/Assessment!$I13 -> 0 | R12: =Availability!R18*Assessment!R13/Assessment!$I13 -> 0 | S12: =Availability!S18*Assessment!S13/Assessment!$I13 -> 0 | T12: =Availability!T18*Assessment!T13/Assessment!$I13 -> 0 | U12: =Availability!U18*Assessment!U13/Assessment!$I13 -> 0 | V12: =Availability!V18*Assessment!V13/Assessment!$I13 -> 31.32293162 | W12: =Availability!W18*Assessment!W13/Assessment!$I13 -> 32.3377946 | X12: =Availability!X18*Assessment!X13/Assessment!$I13 -> 33.38553915 | Y12: =Availability!Y18*Assessment!Y13/Assessment!$I13 -> 34.46723062 | Z12: =Availability!Z18*Assessment!Z13/Assessment!$I13 -> 35.58396889 | AA12: =Availability!AA18*Assessment!AA13/Assessment!$I13 -> 36.73688948 | AB12: =Availability!AB18*Assessment!AB13/Assessment!$I13 -> 37.9271647 | AC12: =Availability!AC18*Assessment!AC13/Assessment!$I13 -> 39.15600484 | AD12: =Availability!AD18*Assessment!AD13/Assessment!$I13 -> 40.42465939 | AE12: =Availability!AE18*Assessment!AE13/Assessment!$I13 -> 41.73441836 | AF12: =Availability!AF18*Assessment!AF13/Assessment!$I13 -> 43.08661351 | AG12: =Availability!AG18*Assessment!AG13/Assessment!$I13 -> 44.48261979 | AH12: =Availability!AH18*Assessment!AH13/Assessment!$I13 -> 45.92385667 | AI12: =Availability!AI18*Assessment!AI13/Assessment!$I13 -> 47.41178963 | AJ12: =Availability!AJ18*Assessment!AJ13/Assessment!$I13 -> 48.94793161 | AK12: =Availability!AK18*Assessment!AK13/Assessment!$I13 -> 50.5338446 | AL12: =Availability!AL18*Assessment!AL13/Assessment!$I13 -> 52.17114116 | AM12: =Availability!AM18*Assessment!AM13/Assessment!$I13 -> 53.86148614 | AN12: =Availability!AN18*Assessment!AN13/Assessment!$I13 -> 55.60659829 | AO12: =Availability!AO18*Assessment!AO13/Assessment!$I13 -> 57.40825207 | AP12: =Availability!AP18*Assessment!AP13/Assessment!$I13 -> 59.26827944 | AQ12: =Availability!AQ18*Assessment!AQ13/Assessment!$I13 -> 61.18857169 | AR12: =Availability!AR18*Assessment!AR13/Assessment!$I13 -> 63.17108141 | AS12: =Availability!AS18*Assessment!AS13/Assessment!$I13 -> 65.21782445 | AT12: =Availability!AT18*Assessment!AT13/Assessment!$I13 -> 67.33088196 | AU12: =Availability!AU18*Assessment!AU13/Assessment!$I13 -> 0 | AV12: =Availability!AV18*Assessment!AV13/Assessment!$I13 -> 0 | AW12: =Availability!AW18*Assessment!AW13/Assessment!$I13 -> 0 | AX12: =Availability!AX18*Assessment!AX13/Assessment!$I13 -> 0
C14: Amounts due to or from Consumers - £m nominal
E18: Interconnector Cap and Floor Revenue Adjustment for Assessment Periods | G18: £m nominal | H18: ICFap | K18: =Assessment!K64+Assessment!K80 -> 0 | L18: =Assessment!L64+Assessment!L80 -> 0 | M18: =Assessment!M64+Assessment!M80 -> 0 | N18: =Assessment!N64+Assessment!N80 -> 0 | O18: =Assessment!O64+Assessment!O80 -> 0 | P18: =Assessment!P64+Assessment!P80 -> 0 | Q18: =Assessment!Q64+Assessment!Q80 -> 0 | R18: =Assessment!R64+Assessment!R80 -> 0 | S18: =Assessment!S64+Assessment!S80 -> 0 | T18: =Assessment!T64+Assessment!T80 -> 0 | U18: =Assessment!U64+Assessment!U80 -> 0 | V18: =Assessment!V64+Assessment!V80 -> 0 | W18: =Assessment!W64+Assessment!W80 -> 0 | X18: =Assessment!X64+Assessment!X80 -> 0 | Y18: =Assessment!Y64+Assessment!Y80 -> 0 | Z18: =Assessment!Z64+Assessment!Z80 -> 0 | AA18: =Assessment!AA64+Assessment!AA80 -> 0 | AB18: =Assessment!AB64+Assessment!AB80 -> 0 | AC18: =Assessment!AC64+Assessment!AC80 -> 0 | AD18: =Assessment!AD64+Assessment!AD80 -> 0 | AE18: =Assessment!AE64+Assessment!AE80 -> 0 | AF18: =Assessment!AF64+Assessment!AF80 -> 0 | AG18: =Assessment!AG64+Assessment!AG80 -> 0 | AH18: =Assessment!AH64+Assessment!AH80 -> 0 | AI18: =Assessment!AI64+Assessment!AI80 -> 0 | AJ18: =Assessment!AJ64+Assessment!AJ80 -> 0 | AK18: =Assessment!AK64+Assessment!AK80 -> 0 | AL18: =Assessment!AL64+Assessment!AL80 -> 0 | AM18: =Assessment!AM64+Assessment!AM80 -> 0 | AN18: =Assessment!AN64+Assessment!AN80 -> 0 | AO18: =Assessment!AO64+Assessment!AO80 -> 0 | AP18: =Assessment!AP64+Assessment!AP80 -> 0 | AQ18: =Assessment!AQ64+Assessment!AQ80 -> 0 | AR18: =Assessment!AR64+Assessment!AR80 -> 0 | AS18: =Assessment!AS64+Assessment!AS80 -> 0 | AT18: =Assessment!AT64+Assessment!AT80 -> 0 | AU18: =Assessment!AU64+Assessment!AU80 -> 0 | AV18: =Assessment!AV64+Assessment!AV80 -> 0 | AW18: =Assessment!AW64+Assessment!AW80 -> 0 | AX18: =Assessment!AX64+Assessment!AX80 -> 0
E20: Interconnector Cap and Floor Revenue Adjustment for Partial Assessment Periods | G20: £m nominal | H20: ICFpap | K20: =Assessment!K37 -> 0 | L20: =Assessment!L37 -> 0 | M20: =Assessment!M37 -> 0 | N20: =Assessment!N37 -> 0 | O20: =Assessment!O37 -> 0 | P20: =Assessment!P37 -> 0 | Q20: =Assessment!Q37 -> 0 | R20: =Assessment!R37 -> 0 | S20: =Assessment!S37 -> 0 | T20: =Assessment!T37 -> 0 | U20: =Assessment!U37 -> 0 | V20: =Assessment!V37 -> 0 | W20: =Assessment!W37 -> 0 | X20: =Assessment!X37 -> 0 | Y20: =Assessment!Y37 -> 0 | Z20: =Assessment!Z37 -> 0 | AA20: =Assessment!AA37 -> 0 | AB20: =Assessment!AB37 -> 0 | AC20: =Assessment!AC37 -> 0 | AD20: =Assessment!AD37 -> 0 | AE20: =Assessment!AE37 -> 0 | AF20: =Assessment!AF37 -> 0 | AG20: =Assessment!AG37 -> 0 | AH20: =Assessment!AH37 -> 0 | AI20: =Assessment!AI37 -> 0 | AJ20: =Assessment!AJ37 -> 0 | AK20: =Assessment!AK37 -> 0 | AL20: =Assessment!AL37 -> 0 | AM20: =Assessment!AM37 -> 0 | AN20: =Assessment!AN37 -> 0 | AO20: =Assessment!AO37 -> 0 | AP20: =Assessment!AP37 -> 0 | AQ20: =Assessment!AQ37 -> 0 | AR20: =Assessment!AR37 -> 0 | AS20: =Assessment!AS37 -> 0 | AT20: =Assessment!AT37 -> 0 | AU20: =Assessment!AU37 -> 0 | AV20: =Assessment!AV37 -> 0 | AW20: =Assessment!AW37 -> 0 | AX20: =Assessment!AX37 -> 0
B22: End of sheet

Sheet download from BoE
A1: DESCRIPTION
A2: Yield from British Government Securities - 10 year Inflation Zero Coupon
A3: SOURCE
A4: Bank of England, GLC Inflation daily data
A6: DATE | B6: VALUE
A7: 2016-10-13 | B7: 3.17009531
A8: 2016-10-14 | B8: 3.147506958
A9: 2016-10-17 | B9: 3.147668674
A10: 2016-10-18 | B10: 3.182811127
A11: 2016-10-19 | B11: 3.191662945
A12: 2016-10-20 | B12: 3.229208999
A13: 2016-10-21 | B13: 3.211558128
A14: 2016-10-24 | B14: 3.235594589
A15: 2016-10-25 | B15: 3.246101471
A16: 2016-10-26 | B16: 3.26273079
A17: 2016-10-27 | B17: 3.31894576
A18: 2016-10-28 | B18: 3.311642808
A19: 2016-10-31 | B19: 3.329704338
A20: 2016-11-01 | B20: 3.340847389
A21: 2016-11-02 | B21: 3.307873179
A22: 2016-11-03 | B22: 3.257322103
A23: 2016-11-04 | B23: 3.223297666
A24: 2016-11-07 | B24: 3.237354082
A25: 2016-11-08 | B25: 3.249710896
A26: 2016-11-09 | B26: 3.285781231
A28: DESCRIPTION
A29: Monthly average yield from British Government Securities - 10 year Real Zero Coupon
A30: SOURCE
A31: Bank of England, GLC Real daily data
A33: MONTH ENDING ON | B33: VALUE
A34: 2006-12-29 | B34: 1.416510147
A35: 2007-01-31 | B35: 1.712989268
A36: 2007-02-28 | B36: 1.810324182
A37: 2007-03-30 | B37: 1.71368819
A38: 2007-04-30 | B38: 1.733833678
A39: 2007-05-31 | B39: 1.875968919
A40: 2007-06-29 | B40: 2.213376027
A41: 2007-07-31 | B41: 2.192937858
A42: 2007-08-31 | B42: 1.872153488
A43: 2007-09-28 | B43: 1.784728769
A44: 2007-10-31 | B44: 1.741102282
A45: 2007-11-30 | B45: 1.475967467
A46: 2007-12-31 | B46: 1.35078214
A47: 2008-01-31 | B47: 1.244225142
A48: 2008-02-29 | B48: 1.328984116
A49: 2008-03-31 | B49: 0.9290646801
A50: 2008-04-30 | B50: 1.203871791
A51: 2008-05-30 | B51: 1.231867397
A52: 2008-06-30 | B52: 1.352071242
A53: 2008-07-31 | B53: 1.282757109
A54: 2008-08-29 | B54: 1.099680998
A55: 2008-09-30 | B55: 1.246737189
A56: 2008-10-31 | B56: 2.05104115
A57: 2008-11-28 | B57: 2.557798101
A58: 2008-12-31 | B58: 1.969698129
A59: 2009-01-30 | B59: 1.444814319
A60: 2009-02-27 | B60: 1.226816293
A61: 2009-03-31 | B61: 1.17197513
A62: 2009-04-30 | B62: 0.9506526324
A63: 2009-05-29 | B63: 0.9491908154
A64: 2009-06-30 | B64: 1.036789328
A65: 2009-07-31 | B65: 1.16715348
A66: 2009-08-31 | B66: 1.04216176
A67: 2009-09-30 | B67: 1.003009858
A68: 2009-10-30 | B68: 0.6518182363
A69: 2009-11-30 | B69: 0.7194372961
A70: 2009-12-31 | B70: 0.6926075704
A71: 2010-01-29 | B71: 0.7986662926
A72: 2010-02-26 | B72: 1.009882828
A73: 2010-03-31 | B73: 0.8324551533
A74: 2010-04-30 | B74: 0.645881255
A75: 2010-05-31 | B75: 0.6570795974
A76: 2010-06-30 | B76: 0.7610160976
A77: 2010-07-30 | B77: 0.8591916777
A78: 2010-08-31 | B78: 0.635242437
A79: 2010-09-30 | B79: 0.4585281888
A80: 2010-10-29 | B80: 0.3731058306
A81: 2010-11-30 | B81: 0.4724408708
A82: 2010-12-31 | B82: 0.6096187713
A83: 2011-01-31 | B83: 0.6087139635
A84: 2011-02-28 | B84: 0.7246406716
A85: 2011-03-31 | B85: 0.5508602742
A86: 2011-04-29 | B86: 0.4920592283
A87: 2011-05-31 | B87: 0.3779374364
A88: 2011-06-30 | B88: 0.2648313872
A89: 2011-07-29 | B89: 0.1862029749
A90: 2011-08-31 | B90: -0.1408236919
A91: 2011-09-30 | B91: -0.2033944977
A92: 2011-10-31 | B92: -0.1198959977
A93: 2011-11-30 | B93: -0.3124639832
A94: 2011-12-30 | B94: -0.4286018069
A95: 2012-01-31 | B95: -0.5646145277
A96: 2012-02-29 | B96: -0.5791521404
A97: 2012-03-30 | B97: -0.5298439441
A98: 2012-04-30 | B98: -0.5343245189
A99: 2012-05-31 | B99: -0.6585320172
A100: 2012-06-29 | B100: -0.5411717237
A101: 2012-07-31 | B101: -0.6425240234
A102: 2012-08-31 | B102: -0.6634420971
A103: 2012-09-28 | B103: -0.6624232578
A104: 2012-10-31 | B104: -0.5891340272
A105: 2012-11-30 | B105: -0.6289671246
A106: 2012-12-31 | B106: -0.655845991
A107: 2013-01-31 | B107: -0.7893534379
A108: 2013-02-28 | B108: -1.010714686
A109: 2013-03-29 | B109: -1.192014549
A110: 2013-04-30 | B110: -1.257494102
A111: 2013-05-31 | B111: -0.9780239497
A112: 2013-06-28 | B112: -0.6341596466
A113: 2013-07-31 | B113: -0.5751328768
A114: 2013-08-30 | B114: -0.3571328643
A115: 2013-09-30 | B115: -0.2170825071
A116: 2013-10-31 | B116: -0.3776576162
A117: 2013-11-29 | B117: -0.2863908431
A118: 2013-12-31 | B118: -0.1751996555
A119: 2014-01-31 | B119: -0.1523684136
A120: 2014-02-28 | B120: -0.1814741753
A121: 2014-03-31 | B121: -0.2982326319
A122: 2014-04-30 | B122: -0.315982951
A123: 2014-05-30 | B123: -0.3476979123
A124: 2014-06-30 | B124: -0.2886056811
A125: 2014-07-31 | B125: -0.3071526053
A126: 2014-08-29 | B126: -0.4437423923
A127: 2014-09-30 | B127: -0.5304974456
A128: 2014-10-31 | B128: -0.6110989121
A129: 2014-11-28 | B129: -0.7292668478
A130: 2014-12-31 | B130: -0.8452299498
A131: 2015-01-30 | B131: -1.036347359
A132: 2015-02-27 | B132: -0.8858314053
A133: 2015-03-31 | B133: -0.9200412959
A134: 2015-04-30 | B134: -1.002296299
A135: 2015-05-29 | B135: -0.8513231992
A136: 2015-06-30 | B136: -0.8422188273
A137: 2015-07-31 | B137: -0.8290305667
A138: 2015-08-31 | B138: -0.8367097028
A139: 2015-09-30 | B139: -0.9076827006
A140: 2015-10-30 | B140: -0.890004966
A141: 2015-11-30 | B141: -0.7969381324
A142: 2015-12-31 | B142: -0.7189798968
A143: 2016-01-29 | B143: -0.8496839127
A144: 2016-02-29 | B144: -0.970613271
A145: 2016-03-31 | B145: -0.9543539137
A146: 2016-04-29 | B146: -1.065936028
A147: 2016-05-31 | B147: -0.9101880302
A148: 2016-06-30 | B148: -1.202383356
A149: 2016-07-29 | B149: -1.638033244
A150: 2016-08-31 | B150: -1.875127717
A151: 2016-09-30 | B151: -2.051971038
A152: 2016-10-31 | B152: -2.109602398
A153: 2016-11-30 | B153: -1.877220584

Sheet download from iBoxx
A59: Fixing | C59: EU_EOD | D59: 2017-12-18
A60: Index | C60: iBoxx £ Non-Financials BBB 10+
A61: ISIN TRi | C61: DE000A0JZAH1
A63: DATE | B63: FIXINGFLAG | C63: Years to Maturity / Expected Remaining Life | D63: Price Return Index Level | E63: Total Return Index Level | F63: Gross Price Index Level | G63: Coupon Income Index Level | H63: Redemption Income Index Level | I63: Income Index Level | J63: Market Value | K63: Nominal Value | L63: Base Market Value | M63: Annual Yield in % | N63: Annual Modified Duration | O63: Index Asset Swap Margin
A64: 2016-11-09 | B64: EOD | C64: 19.1479866 | D64: 136.6962487 | E64: 425.9360767 | F64: 122.4304273 | G64: 4.587512223 | H64: 0 | I64: 4.587512223 | J64: 5.233110358e+10 | K64: 40433361000 | L64: 5.258278792e+10 | M64: 3.306567837 | N64: 12.15405142 | O64: 221.670033
A65: 2016-11-08 | B65: EOD | C65: 19.15072527 | D65: 137.2849486 | E65: 427.6839545 | F65: 122.9328347 | G65: 4.587512223 | H65: 0 | I65: 4.587512223 | J65: 5.25458503e+10 | K65: 40433361000 | L65: 5.258278792e+10 | M65: 3.273254926 | N65: 12.18730685 | O65: 220.3672349
A66: 2016-11-07 | B66: EOD | C66: 19.15346395 | D66: 137.8434312 | E66: 429.3396325 | F66: 123.4087403 | G66: 4.587512223 | H66: 0 | I66: 4.587512223 | J66: 5.274926923e+10 | K66: 40433361000 | L66: 5.258278792e+10 | M66: 3.240842968 | N66: 12.20935843 | O66: 219.4752606
A67: 2016-11-04 | B67: EOD | C67: 19.16167998 | D67: 138.7973483 | E67: 432.1051236 | F67: 124.2036489 | G67: 4.587512223 | H67: 0 | I67: 4.587512223 | J67: 5.308904133e+10 | K67: 40433361000 | L67: 5.258278792e+10 | M67: 3.186547783 | N67: 12.25472872 | O67: 220.210938
A68: 2016-11-03 | B68: EOD | C68: 19.16441865 | D68: 137.6155843 | E68: 428.4509394 | F68: 123.1532957 | G68: 4.587512223 | H68: 0 | I68: 4.587512223 | J68: 5.264008315e+10 | K68: 40433361000 | L68: 5.258278792e+10 | M68: 3.25488561 | N68: 12.21189128 | O68: 217.427203
A69: 2016-11-02 | B69: EOD | C69: 19.16715733 | D69: 137.9395681 | E69: 429.3911121 | F69: 123.4235375 | G69: 4.587512223 | H69: 0 | I69: 4.587512223 | J69: 5.275559408e+10 | K69: 40433361000 | L69: 5.258278792e+10 | M69: 3.23632085 | N69: 12.22632155 | O69: 219.2280428
A70: 2016-11-01 | B70: EOD | C70: 19.169896 | D70: 136.7097662 | E70: 425.5903539 | F70: 122.3310532 | G70: 4.587512223 | H70: 0 | I70: 4.587512223 | J70: 5.228862759e+10 | K70: 40433361000 | L70: 5.258278792e+10 | M70: 3.308437206 | N70: 12.1852293 | O70: 216.3323303
A71: 2016-10-31 | B71: EOD | C71: 18.9461218 | D71: 137.5103057 | E71: 427.9845991 | F71: 123.0192515 | G71: 4.587512223 | H71: 0 | I71: 4.587512223 | J71: 5.308951855e+10 | K71: 40783361000 | L71: 5.631547141e+10 | M71: 3.258860774 | N71: 12.11925193 | O71: 218.7858157
A72: 2016-10-28 | B72: EOD | C72: 18.95424716 | D72: 137.2711348 | E72: 427.1138316 | F72: 122.9829858 | G72: 4.372736366 | H72: 0 | I72: 4.372736366 | J72: 5.307386792e+10 | K72: 40783361000 | L72: 5.631547141e+10 | M72: 3.273401899 | N72: 12.09651367 | O72: 217.1851625
A73: 2016-10-27 | B73: EOD | C73: 18.95698556 | D73: 137.9284599 | E73: 429.0654814 | F73: 123.5456448 | G73: 4.372736366 | H73: 0 | I73: 4.372736366 | J73: 5.3316686e+10 | K73: 40783361000 | L73: 5.631547141e+10 | M73: 3.235564393 | N73: 12.12999209 | O73: 212.3841552
A74: 2016-10-26 | B74: EOD | C74: 18.95972396 | D74: 138.8694794 | E74: 431.8802934 | F74: 124.3571528 | G74: 4.372736366 | H74: 0 | I74: 4.372736366 | J74: 5.366689597e+10 | K74: 40783361000 | L74: 5.631547141e+10 | M74: 3.180568714 | N74: 12.1625991 | O74: 219.9536748
A75: 2016-10-25 | B75: EOD | C75: 18.96246236 | D75: 140.1889343 | E75: 435.8465241 | F75: 125.5006139 | G75: 4.372736366 | H75: 0 | I75: 4.372736366 | J75: 5.416036181e+10 | K75: 40783361000 | L75: 5.631547141e+10 | M75: 3.10533236 | N75: 12.21562814 | O75: 219.5527667
A76: 2016-10-24 | B76: EOD | C76: 18.96520076 | D76: 139.9321126 | E76: 435.0168117 | F76: 125.2614085 | G76: 4.372736366 | H76: 0 | I76: 4.372736366 | J76: 5.405713163e+10 | K76: 40783361000 | L76: 5.631547141e+10 | M76: 3.11957217 | N76: 12.20860013 | O76: 218.469783
A77: 2016-10-21 | B77: EOD | C77: 18.97341596 | D77: 140.7897847 | E77: 437.4814073 | F77: 125.9719494 | G77: 4.372736366 | H77: 0 | I77: 4.372736366 | J77: 5.43637688e+10 | K77: 40783361000 | L77: 5.631547141e+10 | M77: 3.074749344 | N77: 12.25630702 | O77: 220.6294294
A78: 2016-10-20 | B78: EOD | C78: 18.97615436 | D78: 140.5850143 | E78: 436.8100652 | F78: 125.778402 | G78: 4.372736366 | H78: 0 | I78: 4.372736366 | J78: 5.428024254e+10 | K78: 40783361000 | L78: 5.631547141e+10 | M78: 3.086608471 | N78: 12.25053594 | O78: 216.4414944
A79: 2016-10-19 | B79: EOD | C79: 18.97889276 | D79: 140.4417979 | E79: 436.3260057 | F79: 125.6388481 | G79: 4.372736366 | H79: 0 | I79: 4.372736366 | J79: 5.42200174e+10 | K79: 40783361000 | L79: 5.631547141e+10 | M79: 3.094194256 | N79: 12.24215159 | O79: 217.9031607
A80: 2016-10-18 | B80: EOD | C80: 18.98163117 | D80: 140.2302035 | E80: 435.6339006 | F80: 125.4393148 | G80: 4.372736366 | H80: 0 | I80: 4.372736366 | J80: 5.413390788e+10 | K80: 40783361000 | L80: 5.631547141e+10 | M80: 3.1060242 | N80: 12.23565143 | O80: 219.1727021
A81: 2016-10-17 | B81: EOD | C81: 18.98436957 | D81: 139.5231137 | E81: 433.4342129 | F81: 124.8051466 | G81: 4.372736366 | H81: 0 | I81: 4.372736366 | J81: 5.386022971e+10 | K81: 40783361000 | L81: 5.631547141e+10 | M81: 3.146156615 | N81: 12.21170735 | O81: 217.4852861
A82: 2016-10-14 | B82: EOD | C82: 18.99258477 | D82: 139.5660587 | E82: 433.4199389 | F82: 124.8010314 | G82: 4.372736366 | H82: 0 | I82: 4.372736366 | J82: 5.385845378e+10 | K82: 40783361000 | L82: 5.631547141e+10 | M82: 3.143671635 | N82: 12.21671977 | O82: 218.6180893
A83: 2016-10-13 | B83: EOD | C83: 18.99532317 | D83: 140.5827012 | E83: 436.4648394 | F83: 125.6788737 | G83: 4.372736366 | H83: 0 | I83: 4.372736366 | J83: 5.423729065e+10 | K83: 40783361000 | L83: 5.631547141e+10 | M83: 3.085434929 | N83: 12.25270806 | O83: 223.1556692
A85: Fixing | C85: EU_EOD | D85: 2017-12-18
A86: Index | C86: iBoxx £ Non-Financials A 10+
A87: ISIN TRi | C87: DE000A0JY837
A89: DATE | B89: FIXINGFLAG | C89: Years to Maturity / Expected Remaining Life | D89: Price Return Index Level | E89: Total Return Index Level | F89: Gross Price Index Level | G89: Coupon Income Index Level | H89: Redemption Income Index Level | I89: Income Index Level | J89: Market Value | K89: Nominal Value | L89: Base Market Value | M89: Annual Yield in % | N89: Annual Modified Duration | O89: Index Asset Swap Margin
A90: 2016-11-09 | B90: EOD | C90: 23.54265976 | D90: 146.6318119 | E90: 422.2043407 | F90: 148.0173375 | G90: 4.629458709 | H90: 0 | I90: 4.629458709 | J90: 5.189529081e+10 | K90: 38708938000 | L90: 5.223697106e+10 | M90: 2.98043054 | N90: 13.63314092 | O90: 193.4046261
A91: 2016-11-08 | B91: EOD | C91: 23.54539802 | D91: 147.2901863 | E91: 424.0215877 | F91: 148.6548923 | G91: 4.629458709 | H91: 0 | I91: 4.629458709 | J91: 5.211881931e+10 | K91: 38708938000 | L91: 5.223697106e+10 | M91: 2.949759522 | N91: 13.67531055 | O91: 192.5890215
A92: 2016-11-07 | B92: EOD | C92: 23.54813627 | D92: 147.9826104 | E92: 425.9351199 | F92: 149.3262275 | G92: 4.629458709 | H92: 0 | I92: 4.629458709 | J92: 5.235419128e+10 | K92: 38708938000 | L92: 5.223697106e+10 | M92: 2.917032387 | N92: 13.70813257 | O92: 191.6110198
A93: 2016-11-04 | B93: EOD | C93: 23.55635104 | D93: 149.2457099 | E93: 429.3734107 | F93: 150.5325021 | G93: 4.629458709 | H93: 0 | I93: 4.629458709 | J93: 5.277711454e+10 | K93: 38708938000 | L93: 5.223697106e+10 | M93: 2.858540679 | N93: 13.77977605 | O93: 192.0818134
A94: 2016-11-03 | B94: EOD | C94: 23.55908914 | D94: 147.7468934 | E94: 425.0905881 | F94: 149.1368943 | G94: 4.522500061 | H94: 0 | I94: 4.522500061 | J94: 5.228781056e+10 | K94: 38708938000 | L94: 5.223697106e+10 | M94: 2.929070911 | N94: 13.697999 | O94: 189.1682821
A95: 2016-11-02 | B95: EOD | C95: 23.56182725 | D95: 148.1300398 | E95: 426.1295516 | F95: 149.5013997 | G95: 4.522500061 | H95: 0 | I95: 4.522500061 | J95: 5.241560715e+10 | K95: 38708938000 | L95: 5.223697106e+10 | M95: 2.911186441 | N95: 13.71809138 | O95: 190.9766582
A96: 2016-11-01 | B96: EOD | C96: 23.56456536 | D96: 146.6082482 | E96: 421.7817604 | F96: 147.9760399 | G96: 4.522500061 | H96: 0 | I96: 4.522500061 | J96: 5.188081177e+10 | K96: 38708938000 | L96: 5.223697106e+10 | M96: 2.984024783 | N96: 13.65156223 | O96: 187.9671636
A97: 2016-10-31 | B97: EOD | C97: 23.39415083 | D97: 147.6479325 | E97: 424.677272 | F97: 148.9918884 | G97: 4.522500061 | H97: 0 | I97: 4.522500061 | J97: 5.284095253e+10 | K97: 39208938000 | L97: 5.649206458e+10 | M97: 2.932969559 | N97: 13.6446544 | O97: 190.1781519
A98: 2016-10-28 | B98: EOD | C98: 23.40226471 | D98: 147.3099034 | E98: 423.5944186 | F98: 148.8068277 | G98: 4.326007157 | H98: 0 | I98: 4.326007157 | J98: 5.277531955e+10 | K98: 39208938000 | L98: 5.649206458e+10 | M98: 2.949397074 | N98: 13.61470606 | O98: 188.5959292
A99: 2016-10-27 | B99: EOD | C99: 23.4050026 | D99: 148.2019141 | E99: 426.0620665 | F99: 149.6763266 | G99: 4.326007157 | H99: 0 | I99: 4.326007157 | J99: 5.308369305e+10 | K99: 39208938000 | L99: 5.649206458e+10 | M99: 2.907793975 | N99: 13.6701211 | O99: 183.5131898
A100: 2016-10-26 | B100: EOD | C100: 23.4077404 | D100: 149.3663738 | E100: 429.2969574 | F100: 150.8866616 | G100: 4.255516429 | H100: 0 | I100: 4.255516429 | J100: 5.35129463e+10 | K100: 39208938000 | L100: 5.649206458e+10 | M100: 2.852677156 | N100: 13.7140012 | O100: 191.432159
A101: 2016-10-25 | B101: EOD | C101: 23.41047819 | D101: 150.9943935 | E101: 433.8372761 | F101: 152.4864855 | G101: 4.255516429 | H101: 0 | I101: 4.255516429 | J101: 5.408033438e+10 | K101: 39208938000 | L101: 5.649206458e+10 | M101: 2.777806202 | N101: 13.79777277 | O101: 191.3022005
A102: 2016-10-24 | B102: EOD | C102: 23.41321599 | D102: 150.8240713 | E102: 433.3132973 | F102: 152.3018566 | G102: 4.255516429 | H102: 0 | I102: 4.255516429 | J102: 5.401485454e+10 | K102: 39208938000 | L102: 5.649206458e+10 | M102: 2.785852664 | N102: 13.79404208 | O102: 189.5567419
A103: 2016-10-21 | B103: EOD | C103: 23.42142938 | D103: 151.1350675 | E103: 434.0560848 | F103: 152.5635848 | G103: 4.255516429 | H103: 0 | I103: 4.255516429 | J103: 5.410767816e+10 | K103: 39208938000 | L103: 5.649206458e+10 | M103: 2.772596717 | N103: 13.81738292 | O103: 194.6840773
A104: 2016-10-20 | B104: EOD | C104: 23.42416717 | D104: 150.9369452 | E104: 433.4538184 | F104: 152.3513706 | G104: 4.255516429 | H104: 0 | I104: 4.255516429 | J104: 5.403241499e+10 | K104: 39208938000 | L104: 5.649206458e+10 | M104: 2.781462419 | N104: 13.81111549 | O104: 189.9467801
A105: 2016-10-19 | B105: EOD | C105: 23.42690497 | D105: 150.7733667 | E105: 432.9488306 | F105: 152.1734334 | G105: 4.255516429 | H105: 0 | I105: 4.255516429 | J105: 5.396930839e+10 | K105: 39208938000 | L105: 5.649206458e+10 | M105: 2.788218543 | N105: 13.79196106 | O105: 191.0663963
A106: 2016-10-18 | B106: EOD | C106: 23.42964277 | D106: 150.6115571 | E106: 432.4488241 | F106: 151.9972514 | G106: 4.255516429 | H106: 0 | I106: 4.255516429 | J106: 5.390682429e+10 | K106: 39208938000 | L106: 5.649206458e+10 | M106: 2.795831768 | N106: 13.7855455 | O106: 191.9010519
A107: 2016-10-17 | B107: EOD | C107: 23.43238056 | D107: 149.9002162 | E107: 430.4012864 | F107: 151.2757822 | G107: 4.255516429 | H107: 0 | I107: 4.255516429 | J107: 5.365095051e+10 | K107: 39208938000 | L107: 5.649206458e+10 | M107: 2.829481269 | N107: 13.75791891 | O107: 189.673829
A108: 2016-10-14 | B108: EOD | C108: 23.44059309 | D108: 150.1016289 | E108: 430.8354913 | F108: 151.6613978 | G108: 4.022897027 | H108: 0 | I108: 4.022897027 | J108: 5.378771162e+10 | K108: 39208938000 | L108: 5.649206458e+10 | M108: 2.820334935 | N108: 13.74808054 | O108: 190.2127576
A109: 2016-10-13 | B109: EOD | C109: 23.44333055 | D109: 151.451419 | E109: 434.5922955 | F109: 153.0234184 | G109: 3.984621689 | H109: 0 | I109: 3.984621689 | J109: 5.427076117e+10 | K109: 39208938000 | L109: 5.649206458e+10 | M109: 2.758555453 | N109: 13.80733758 | O109: 194.6171595

Sheet Market data
A1: TEMPORARY 1
E2: Parameter | G2: Units | I2: Constant | K2: Annual values
E3: Project year | K3: =Input!K8 -> -10 | L3: =K3 + 1 -> -9 | M3: -8 | N3: -7 | O3: -6 | P3: -5 | Q3: -4 | R3: -3 | S3: -2 | T3: -1 | U3: 0 | V3: 1 | W3: 2 | X3: 3 | Y3: 4 | Z3: 5 | AA3: 6 | AB3: 7 | AC3: 8 | AD3: 9 | AE3: 10 | AF3: 11 | AG3: 12 | AH3: 13 | AI3: 14 | AJ3: 15 | AK3: 16 | AL3: 17 | AM3: 18 | AN3: 19 | AO3: 20 | AP3: 21 | AQ3: 22 | AR3: 23 | AS3: 24 | AT3: 25 | AU3: 26 | AV3: 27 | AW3: 28 | AX3: 29
E4: Year commencing | K4: =Input!K9 -> 2009-04-01 | L4: =+K5+1 -> 2010-04-01 | M4: =+L5+1 -> 2011-04-01 | N4: =+M5+1 -> 2012-04-01 | O4: 2013-04-01 | P4: 2014-04-01 | Q4: 2015-04-01 | R4: 2016-04-01 | S4: 2017-04-01 | T4: 2018-04-01 | U4: 2019-04-01 | V4: 2020-04-01 | W4: 2021-04-01 | X4: 2022-04-01 | Y4: 2023-04-01 | Z4: 2024-04-01 | AA4: 2025-04-01 | AB4: 2026-04-01 | AC4: 2027-04-01 | AD4: 2028-04-01 | AE4: 2029-04-01 | AF4: 2030-04-01 | AG4: 2031-04-01 | AH4: 2032-04-01 | AI4: 2033-04-01 | AJ4: 2034-04-01 | AK4: 2035-04-01 | AL4: 2036-04-01 | AM4: 2037-04-01 | AN4: 2038-04-01 | AO4: 2039-04-01 | AP4: 2040-04-01 | AQ4: 2041-04-01 | AR4: 2042-04-01 | AS4: 2043-04-01 | AT4: 2044-04-01 | AU4: 2045-04-01 | AV4: 2046-04-01 | AW4: 2047-04-01 | AX4: 2048-04-01
E5: Year ending | K5: =Input!K10 -> 2010-03-31 | L5: =DATE(YEAR(K5) + 1, MONTH(K5), DAY(K5)) -> 2011-03-31 | M5: 2012-03-31 | N5: 2013-03-31 | O5: 2014-03-31 | P5: 2015-03-31 | Q5: 2016-03-31 | R5: 2017-03-31 | S5: 2018-03-31 | T5: 2019-03-31 | U5: 2020-03-31 | V5: 2021-03-31 | W5: 2022-03-31 | X5: 2023-03-31 | Y5: 2024-03-31 | Z5: 2025-03-31 | AA5: 2026-03-31 | AB5: 2027-03-31 | AC5: 2028-03-31 | AD5: 2029-03-31 | AE5: 2030-03-31 | AF5: 2031-03-31 | AG5: 2032-03-31 | AH5: 2033-03-31 | AI5: 2034-03-31 | AJ5: 2035-03-31 | AK5: 2036-03-31 | AL5: 2037-03-31 | AM5: 2038-03-31 | AN5: 2039-03-31 | AO5: 2040-03-31 | AP5: 2041-03-31 | AQ5: 2042-03-31 | AR5: 2043-03-31 | AS5: 2044-03-31 | AT5: 2045-03-31 | AU5: 2046-03-31 | AV5: 2047-03-31 | AW5: 2048-03-31 | AX5: 2049-03-31
B7: Calculations - Cap and Floor returns
C9: Cap
D11: Beta
E13: Drax asset beta (2yr daily returns delevered with net debt & market cap) | G13: scalar | I13: =I15 / 2 -> 0.625
E14: Notional gearing | G14: % | I14: 0.5
E15: Relevered equity beta | G15: scalar | I15: 1.25
D17: CAPM
E19: GB risk-free rate | G19: real annual % | I19: 0.016
E22: UK total market returns (latest DMS aritmentic mean of equity market returns since 1900) | G22: real annual % | I22: 0.072
E23: UK RPI adjusment | G23: annual % | I23: 0.004
E25: GB market risk premium | G25: real annual % | I25: =I22 - I19 - I23 -> 0.052
E28: UK cap returns | G28: real annual % | I28: =I19 + I25 * I$15 -> 0.081
E31: Cap returns (rounded to 2dp) | G31: real annual % | I31: =I28 -> 0.081
C33: Floor
D35: GB
E37: Date | K37: =TRANSPOSE('Market data'!K278:K297) -> 2016-10-13 | L37: 2016-10-14 | M37: 2016-10-17 | N37: 2016-10-18 | O37: 2016-10-19 | P37: 2016-10-20 | Q37: 2016-10-21 | R37: 2016-10-24 | S37: 2016-10-25 | T37: 2016-10-26 | U37: 2016-10-27 | V37: 2016-10-28 | W37: 2016-10-31 | X37: 2016-11-01 | Y37: 2016-11-02 | Z37: 2016-11-03 | AA37: 2016-11-04 | AB37: 2016-11-07 | AC37: 2016-11-08 | AD37: 2016-11-09
E38: UK iBoxx non-financials 10+ broad A rating | G38: ppts | K38: =INDEX('Market data'!$L$119:$L$138, MATCH('Market data'!K$37, 'Market data'!$K$119:$K$138, 0), 0) -> 2.758555453 | L38: =INDEX('Market data'!$L$119:$L$138, MATCH('Market data'!L$37, 'Market data'!$K$119:$K$138, 0), 0) -> 2.820334935 | M38: =INDEX('Market data'!$L$119:$L$138, MATCH('Market data'!M$37, 'Market data'!$K$119:$K$138, 0), 0) -> 2.829481269 | N38: =INDEX('Market data'!$L$119:$L$138, MATCH('Market data'!N$37, 'Market data'!$K$119:$K$138, 0), 0) -> 2.795831768 | O38: =INDEX('Market data'!$L$119:$L$138, MATCH('Market data'!O$37, 'Market data'!$K$119:$K$138, 0), 0) -> 2.788218543 | P38: =INDEX('Market data'!$L$119:$L$138, MATCH('Market data'!P$37, 'Market data'!$K$119:$K$138, 0), 0) -> 2.781462419 | Q38: =INDEX('Market data'!$L$119:$L$138, MATCH('Market data'!Q$37, 'Market data'!$K$119:$K$138, 0), 0) -> 2.772596717 | R38: =INDEX('Market data'!$L$119:$L$138, MATCH('Market data'!R$37, 'Market data'!$K$119:$K$138, 0), 0) -> 2.785852664 | S38: =INDEX('Market data'!$L$119:$L$138, MATCH('Market data'!S$37, 'Market data'!$K$119:$K$138, 0), 0) -> 2.777806202 | T38: =INDEX('Market data'!$L$119:$L$138, MATCH('Market data'!T$37, 'Market data'!$K$119:$K$138, 0), 0) -> 2.852677156 | U38: =INDEX('Market data'!$L$119:$L$138, MATCH('Market data'!U$37, 'Market data'!$K$119:$K$138, 0), 0) -> 2.907793975 | V38: =INDEX('Market data'!$L$119:$L$138, MATCH('Market data'!V$37, 'Market data'!$K$119:$K$138, 0), 0) -> 2.949397074 | W38: =INDEX('Market data'!$L$119:$L$138, MATCH('Market data'!W$37, 'Market data'!$K$119:$K$138, 0), 0) -> 2.932969559 | X38: =INDEX('Market data'!$L$119:$L$138, MATCH('Market data'!X$37, 'Market data'!$K$119:$K$138, 0), 0) -> 2.984024783 | Y38: =INDEX('Market data'!$L$119:$L$138, MATCH('Market data'!Y$37, 'Market data'!$K$119:$K$138, 0), 0) -> 2.911186441 | Z38: =INDEX('Market data'!$L$119:$L$138, MATCH('Market data'!Z$37, 'Market data'!$K$119:$K$138, 0), 0) -> 2.929070911 | AA38: =INDEX('Market data'!$L$119:$L$138, MATCH('Market data'!AA$37, 'Market data'!$K$119:$K$138, 0), 0) -> 2.858540679 | AB38: =INDEX('Market data'!$L$119:$L$138, MATCH('Market data'!AB$37, 'Market data'!$K$119:$K$138, 0), 0) -> 2.917032387 | AC38: =INDEX('Market data'!$L$119:$L$138, MATCH('Market data'!AC$37, 'Market data'!$K$119:$K$138, 0), 0) -> 2.949759522 | AD38: =INDEX('Market data'!$L$119:$L$138, MATCH('Market data'!AD$37, 'Market data'!$K$119:$K$138, 0), 0) -> 2.98043054
E39: UK iBoxx non-financials 10+ broad BBB rating | G39: ppts | K39: =INDEX('Market data'!$L$90:$L$109, MATCH('Market data'!K$37, 'Market data'!$K$90:$K$109, 0), 0) -> 3.085434929 | L39: =INDEX('Market data'!$L$90:$L$109, MATCH('Market data'!L$37, 'Market data'!$K$90:$K$109, 0), 0) -> 3.143671635 | M39: =INDEX('Market data'!$L$90:$L$109, MATCH('Market data'!M$37, 'Market data'!$K$90:$K$109, 0), 0) -> 3.146156615 | N39: =INDEX('Market data'!$L$90:$L$109, MATCH('Market data'!N$37, 'Market data'!$K$90:$K$109, 0), 0) -> 3.1060242 | O39: =INDEX('Market data'!$L$90:$L$109, MATCH('Market data'!O$37, 'Market data'!$K$90:$K$109, 0), 0) -> 3.094194256 | P39: =INDEX('Market data'!$L$90:$L$109, MATCH('Market data'!P$37, 'Market data'!$K$90:$K$109, 0), 0) -> 3.086608471 | Q39: =INDEX('Market data'!$L$90:$L$109, MATCH('Market data'!Q$37, 'Market data'!$K$90:$K$109, 0), 0) -> 3.074749344 | R39: =INDEX('Market data'!$L$90:$L$109, MATCH('Market data'!R$37, 'Market data'!$K$90:$K$109, 0), 0) -> 3.11957217 | S39: =INDEX('Market data'!$L$90:$L$109, MATCH('Market data'!S$37, 'Market data'!$K$90:$K$109, 0), 0) -> 3.10533236 | T39: =INDEX('Market data'!$L$90:$L$109, MATCH('Market data'!T$37, 'Market data'!$K$90:$K$109, 0), 0) -> 3.180568714 | U39: =INDEX('Market data'!$L$90:$L$109, MATCH('Market data'!U$37, 'Market data'!$K$90:$K$109, 0), 0) -> 3.235564393 | V39: =INDEX('Market data'!$L$90:$L$109, MATCH('Market data'!V$37, 'Market data'!$K$90:$K$109, 0), 0) -> 3.273401899 | W39: =INDEX('Market data'!$L$90:$L$109, MATCH('Market data'!W$37, 'Market data'!$K$90:$K$109, 0), 0) -> 3.258860774 | X39: =INDEX('Market data'!$L$90:$L$109, MATCH('Market data'!X$37, 'Market data'!$K$90:$K$109, 0), 0) -> 3.308437206 | Y39: =INDEX('Market data'!$L$90:$L$109, MATCH('Market data'!Y$37, 'Market data'!$K$90:$K$109, 0), 0) -> 3.23632085 | Z39: =INDEX('Market data'!$L$90:$L$109, MATCH('Market data'!Z$37, 'Market data'!$K$90:$K$109, 0), 0) -> 3.25488561 | AA39: =INDEX('Market data'!$L$90:$L$109, MATCH('Market data'!AA$37, 'Market data'!$K$90:$K$109, 0), 0) -> 3.186547783 | AB39: =INDEX('Market data'!$L$90:$L$109, MATCH('Market data'!AB$37, 'Market data'!$K$90:$K$109, 0), 0) -> 3.240842968 | AC39: =INDEX('Market data'!$L$90:$L$109, MATCH('Market data'!AC$37, 'Market data'!$K$90:$K$109, 0), 0) -> 3.273254926 | AD39: =INDEX('Market data'!$L$90:$L$109, MATCH('Market data'!AD$37, 'Market data'!$K$90:$K$109, 0), 0) -> 3.306567837
E40: Yield from British Government Securities, 10 year Inflation Zero Coupon (IUDMIZC) | G40: ppts | K40: =INDEX('Market data'!$L$278:$L$297, MATCH(K37, 'Market data'!$K$278:$K$297, 0), 0) -> 3.17009531 | L40: =INDEX('Market data'!$L$278:$L$297, MATCH(L37, 'Market data'!$K$278:$K$297, 0), 0) -> 3.147506958 | M40: =INDEX('Market data'!$L$278:$L$297, MATCH(M37, 'Market data'!$K$278:$K$297, 0), 0) -> 3.147668674 | N40: =INDEX('Market data'!$L$278:$L$297, MATCH(N37, 'Market data'!$K$278:$K$297, 0), 0) -> 3.182811127 | O40: =INDEX('Market data'!$L$278:$L$297, MATCH(O37, 'Market data'!$K$278:$K$297, 0), 0) -> 3.191662945 | P40: =INDEX('Market data'!$L$278:$L$297, MATCH(P37, 'Market data'!$K$278:$K$297, 0), 0) -> 3.229208999 | Q40: =INDEX('Market data'!$L$278:$L$297, MATCH(Q37, 'Market data'!$K$278:$K$297, 0), 0) -> 3.211558128 | R40: =INDEX('Market data'!$L$278:$L$297, MATCH(R37, 'Market data'!$K$278:$K$297, 0), 0) -> 3.235594589 | S40: =INDEX('Market data'!$L$278:$L$297, MATCH(S37, 'Market data'!$K$278:$K$297, 0), 0) -> 3.246101471 | T40: =INDEX('Market data'!$L$278:$L$297, MATCH(T37, 'Market data'!$K$278:$K$297, 0), 0) -> 3.26273079 | U40: =INDEX('Market data'!$L$278:$L$297, MATCH(U37, 'Market data'!$K$278:$K$297, 0), 0) -> 3.31894576 | V40: =INDEX('Market data'!$L$278:$L$297, MATCH(V37, 'Market data'!$K$278:$K$297, 0), 0) -> 3.311642808 | W40: =INDEX('Market data'!$L$278:$L$297, MATCH(W37, 'Market data'!$K$278:$K$297, 0), 0) -> 3.329704338 | X40: =INDEX('Market data'!$L$278:$L$297, MATCH(X37, 'Market data'!$K$278:$K$297, 0), 0) -> 3.340847389 | Y40: =INDEX('Market data'!$L$278:$L$297, MATCH(Y37, 'Market data'!$K$278:$K$297, 0), 0) -> 3.307873179 | Z40: =INDEX('Market data'!$L$278:$L$297, MATCH(Z37, 'Market data'!$K$278:$K$297, 0), 0) -> 3.257322103 | AA40: =INDEX('Market data'!$L$278:$L$297, MATCH(AA37, 'Market data'!$K$278:$K$297, 0), 0) -> 3.223297666 | AB40: =INDEX('Market data'!$L$278:$L$297, MATCH(AB37, 'Market data'!$K$278:$K$297, 0), 0) -> 3.237354082 | AC40: =INDEX('Market data'!$L$278:$L$297, MATCH(AC37, 'Market data'!$K$278:$K$297, 0), 0) -> 3.249710896 | AD40: =INDEX('Market data'!$L$278:$L$297, MATCH(AD37, 'Market data'!$K$278:$K$297, 0), 0) -> 3.285781231
E42: Nominal cost of debt (UK) | G42: ppts | K42: =(K38 + K39) / 2 -> 2.921995191 | L42: 2.982003285 | M42: 2.987818942 | N42: 2.950927984 | O42: 2.941206399 | P42: 2.934035445 | Q42: 2.923673031 | R42: 2.952712417 | S42: 2.941569281 | T42: 3.016622935 | U42: 3.071679184 | V42: 3.111399487 | W42: 3.095915166 | X42: 3.146230994 | Y42: 3.073753645 | Z42: 3.09197826 | AA42: 3.022544231 | AB42: 3.078937677 | AC42: 3.111507224 | AD42: 3.143499189
E43: Real cost of debt (UK) | G43: real annual % | K43: =((1+K42/100)/(1+K40/100)-1) -> -0.00240476776 | L43: -0.001604533915 | M43: -0.001549717349 | N43: -0.002247303994 | O43: -0.002427100591 | P43: -0.002859399549 | Q43: -0.002789271882 | R43: -0.002740161208 | S43: -0.002949575687 | T43: -0.002383317318 | U43: -0.00239323557 | V43: -0.001938245446 | W43: -0.002262555311 | X43: -0.001883247518 | Y43: -0.002266231285 | Z43: -0.001601279596 | AA43: -0.001944846166 | AB43: -0.001534487261 | AC43: -0.001338538098 | AD43: -0.001377556918
E44: GB deflated floor (20 day average) | G44: real annual % | I44: =AVERAGE(K43:AD43) -> -0.002124768621
D46: This interconnector
E48: Floor returns | G48: real annual % | I48: =I44 -> -0.002124768621
E49: Floor returns (rounded to 2dp) | G49: real annual % | I49: =ROUND(I48,4) -> -0.0021
E51: GB inflation forecast | G51: % | I51: =AVERAGE(K40:AD40) / 100 -> 0.03244370922
E54: GB inflation forecast (rounded to 2dp) | G54: % | I54: =ROUND(AVERAGE(K40:AD40) / 100, 4) -> 0.0324
C57: IDC
D59: GB
E61: Cost of debt (real) | G61: real annual % | I61: =I44 -> -0.002124768621
E62: Risk-free rate (real) | G62: real annual % | I62: =AVERAGE('Market data'!L151:L270) / 100 -> 0.001365630104
E63: Market risk premium | G63: real annual % | I63: =I22-I23-I62 -> 0.0666343699
E64: Equity beta | G64: scalar | I64: 1.34
E65: Cost of equity (real) | G65: real annual % | I65: =I62 + I63 * I64 -> 0.09065568576
E66: Gearing | G66: % | I66: 0.4061
E67: Vanilla WACC (national basis) | G67: real annual % | I67: =I61 * I66 + I65 * (1 - I66) -> 0.05297754324
D69: This interconnector
E71: Average vanilla WACC | G71: real annual % | I71: =I67 -> 0.05297754324
E72: Development risk premium uplift % | G72: real annual % | I72: 0.0054
E73: Construction risk premium uplift % | G73: real annual % | I73: 0.0091
E74: IDC | G74: real annual % | I74: =I71 + I72 + I73 -> 0.06747754324
E75: IDC (rounded 2dp) | G75: real annual % | I75: =ROUND(I74, 4) -> 0.0675
E77: Pre-operational gearing (rounded to 2dp) | G77: % | I77: =ROUND(I66, 4) -> 0.4061
B81: Input - Bond Yields
D83: iBoxx £ Non-Financials BBB 10+
E85: Fixing | G85: EU_EOD | I85: =K90 -> 2016-11-09
E86: Index | I86: iBoxx £ Non-Financials BBB 10+
E87: ISIN TRi | I87: DE000A0JZAH1
I88: DE000A0JZAH1
I89: iBoxx € Non-Financials BBB 10+ | K89: DATE | L89: Annual Yield in %
K90: ='download from iBoxx'!A64 -> 2016-11-09 | L90: ='download from iBoxx'!M64 -> 3.306567837
K91: ='download from iBoxx'!A65 -> 2016-11-08 | L91: ='download from iBoxx'!M65 -> 3.273254926
K92: ='download from iBoxx'!A66 -> 2016-11-07 | L92: ='download from iBoxx'!M66 -> 3.240842968
K93: ='download from iBoxx'!A67 -> 2016-11-04 | L93: ='download from iBoxx'!M67 -> 3.186547783
K94: ='download from iBoxx'!A68 -> 2016-11-03 | L94: ='download from iBoxx'!M68 -> 3.25488561
K95: ='download from iBoxx'!A69 -> 2016-11-02 | L95: ='download from iBoxx'!M69 -> 3.23632085
K96: ='download from iBoxx'!A70 -> 2016-11-01 | L96: ='download from iBoxx'!M70 -> 3.308437206
K97: ='download from iBoxx'!A71 -> 2016-10-31 | L97: ='download from iBoxx'!M71 -> 3.258860774
K98: ='download from iBoxx'!A72 -> 2016-10-28 | L98: ='download from iBoxx'!M72 -> 3.273401899
K99: ='download from iBoxx'!A73 -> 2016-10-27 | L99: ='download from iBoxx'!M73 -> 3.235564393
K100: ='download from iBoxx'!A74 -> 2016-10-26 | L100: ='download from iBoxx'!M74 -> 3.180568714
K101: ='download from iBoxx'!A75 -> 2016-10-25 | L101: ='download from iBoxx'!M75 -> 3.10533236
K102: ='download from iBoxx'!A76 -> 2016-10-24 | L102: ='download from iBoxx'!M76 -> 3.11957217
K103: ='download from iBoxx'!A77 -> 2016-10-21 | L103: ='download from iBoxx'!M77 -> 3.074749344
K104: ='download from iBoxx'!A78 -> 2016-10-20 | L104: ='download from iBoxx'!M78 -> 3.086608471
K105: ='download from iBoxx'!A79 -> 2016-10-19 | L105: ='download from iBoxx'!M79 -> 3.094194256
K106: ='download from iBoxx'!A80 -> 2016-10-18 | L106: ='download from iBoxx'!M80 -> 3.1060242
K107: ='download from iBoxx'!A81 -> 2016-10-17 | L107: ='download from iBoxx'!M81 -> 3.146156615
K108: ='download from iBoxx'!A82 -> 2016-10-14 | L108: ='download from iBoxx'!M82 -> 3.143671635
K109: ='download from iBoxx'!A83 -> 2016-10-13 | L109: ='download from iBoxx'!M83 -> 3.085434929
D112: iBoxx £ Non-Financials A 10+
E114: Fixing | G114: EU_EOD | I114: =K119 -> 2016-11-09
E115: Index | I115: iBoxx £ Non-Financials A 10+
E116: ISIN TRi | I116: DE000A0JY837
I117: DE000A0JY837
K118: DATE | L118: Annual Yield in %
K119: ='download from iBoxx'!A90 -> 2016-11-09 | L119: ='download from iBoxx'!M90 -> 2.98043054
K120: ='download from iBoxx'!A91 -> 2016-11-08 | L120: ='download from iBoxx'!M91 -> 2.949759522
K121: ='download from iBoxx'!A92 -> 2016-11-07 | L121: ='download from iBoxx'!M92 -> 2.917032387
K122: ='download from iBoxx'!A93 -> 2016-11-04 | L122: ='download from iBoxx'!M93 -> 2.858540679
K123: ='download from iBoxx'!A94 -> 2016-11-03 | L123: ='download from iBoxx'!M94 -> 2.929070911
K124: ='download from iBoxx'!A95 -> 2016-11-02 | L124: ='download from iBoxx'!M95 -> 2.911186441
K125: ='download from iBoxx'!A96 -> 2016-11-01 | L125: ='download from iBoxx'!M96 -> 2.984024783
K126: ='download from iBoxx'!A97 -> 2016-10-31 | L126: ='download from iBoxx'!M97 -> 2.932969559
K127: ='download from iBoxx'!A98 -> 2016-10-28 | L127: ='download from iBoxx'!M98 -> 2.949397074
K128: ='download from iBoxx'!A99 -> 2016-10-27 | L128: ='download from iBoxx'!M99 -> 2.907793975
K129: ='download from iBoxx'!A100 -> 2016-10-26 | L129: ='download from iBoxx'!M100 -> 2.852677156
K130: ='download from iBoxx'!A101 -> 2016-10-25 | L130: ='download from iBoxx'!M101 -> 2.777806202
K131: ='download from iBoxx'!A102 -> 2016-10-24 | L131: ='download from iBoxx'!M102 -> 2.785852664
K132: ='download from iBoxx'!A103 -> 2016-10-21 | L132: ='download from iBoxx'!M103 -> 2.772596717
K133: ='download from iBoxx'!A104 -> 2016-10-20 | L133: ='download from iBoxx'!M104 -> 2.781462419
K134: ='download from iBoxx'!A105 -> 2016-10-19 | L134: ='download from iBoxx'!M105 -> 2.788218543
K135: ='download from iBoxx'!A106 -> 2016-10-18 | L135: ='download from iBoxx'!M106 -> 2.795831768
K136: ='download from iBoxx'!A107 -> 2016-10-17 | L136: ='download from iBoxx'!M107 -> 2.829481269
K137: ='download from iBoxx'!A108 -> 2016-10-14 | L137: ='download from iBoxx'!M108 -> 2.820334935
K138: ='download from iBoxx'!A109 -> 2016-10-13 | L138: ='download from iBoxx'!M109 -> 2.758555453
C143: Bank of England
D145: Monthly UK Govt yields
E147: SERIES | G147: DESCRIPTION | I147: =K270 -> 2016-11-30
E148: IUMAMRZC | G148: Monthly average yield from British Government Securities - 10 year Real Zero Coupon
K150: DATE | L150: IUMAMRZC
K151: ='download from BoE'!A34 -> 2006-12-29 | L151: ='download from BoE'!B34 -> 1.416510147
K152: ='download from BoE'!A35 -> 2007-01-31 | L152: ='download from BoE'!B35 -> 1.712989268
K153: ='download from BoE'!A36 -> 2007-02-28 | L153: ='download from BoE'!B36 -> 1.810324182
K154: ='download from BoE'!A37 -> 2007-03-30 | L154: ='download from BoE'!B37 -> 1.71368819
K155: ='download from BoE'!A38 -> 2007-04-30 | L155: ='download from BoE'!B38 -> 1.733833678
K156: ='download from BoE'!A39 -> 2007-05-31 | L156: ='download from BoE'!B39 -> 1.875968919
K157: ='download from BoE'!A40 -> 2007-06-29 | L157: ='download from BoE'!B40 -> 2.213376027
K158: ='download from BoE'!A41 -> 2007-07-31 | L158: ='download from BoE'!B41 -> 2.192937858
K159: ='download from BoE'!A42 -> 2007-08-31 | L159: ='download from BoE'!B42 -> 1.872153488
K160: ='download from BoE'!A43 -> 2007-09-28 | L160: ='download from BoE'!B43 -> 1.784728769
K161: ='download from BoE'!A44 -> 2007-10-31 | L161: ='download from BoE'!B44 -> 1.741102282
K162: ='download from BoE'!A45 -> 2007-11-30 | L162: ='download from BoE'!B45 -> 1.475967467
K163: ='download from BoE'!A46 -> 2007-12-31 | L163: ='download from BoE'!B46 -> 1.35078214
K164: ='download from BoE'!A47 -> 2008-01-31 | L164: ='download from BoE'!B47 -> 1.244225142
K165: ='download from BoE'!A48 -> 2008-02-29 | L165: ='download from BoE'!B48 -> 1.328984116
K166: ='download from BoE'!A49 -> 2008-03-31 | L166: ='download from BoE'!B49 -> 0.9290646801
K167: ='download from BoE'!A50 -> 2008-04-30 | L167: ='download from BoE'!B50 -> 1.203871791
K168: ='download from BoE'!A51 -> 2008-05-30 | L168: ='download from BoE'!B51 -> 1.231867397
K169: ='download from BoE'!A52 -> 2008-06-30 | L169: ='download from BoE'!B52 -> 1.352071242
K170: ='download from BoE'!A53 -> 2008-07-31 | L170: ='download from BoE'!B53 -> 1.282757109
K171: ='download from BoE'!A54 -> 2008-08-29 | L171: ='download from BoE'!B54 -> 1.099680998
K172: ='download from BoE'!A55 -> 2008-09-30 | L172: ='download from BoE'!B55 -> 1.246737189
K173: ='download from BoE'!A56 -> 2008-10-31 | L173: ='download from BoE'!B56 -> 2.05104115
K174: ='download from BoE'!A57 -> 2008-11-28 | L174: ='download from BoE'!B57 -> 2.557798101
K175: ='download from BoE'!A58 -> 2008-12-31 | L175: ='download from BoE'!B58 -> 1.969698129
K176: ='download from BoE'!A59 -> 2009-01-30 | L176: ='download from BoE'!B59 -> 1.444814319
K177: ='download from BoE'!A60 -> 2009-02-27 | L177: ='download from BoE'!B60 -> 1.226816293
K178: ='download from BoE'!A61 -> 2009-03-31 | L178: ='download from BoE'!B61 -> 1.17197513
K179: ='download from BoE'!A62 -> 2009-04-30 | L179: ='download from BoE'!B62 -> 0.9506526324
K180: ='download from BoE'!A63 -> 2009-05-29 | L180: ='download from BoE'!B63 -> 0.9491908154
K181: ='download from BoE'!A64 -> 2009-06-30 | L181: ='download from BoE'!B64 -> 1.036789328
K182: ='download from BoE'!A65 -> 2009-07-31 | L182: ='download from BoE'!B65 -> 1.16715348
K183: ='download from BoE'!A66 -> 2009-08-31 | L183: ='download from BoE'!B66 -> 1.04216176
K184: ='download from BoE'!A67 -> 2009-09-30 | L184: ='download from BoE'!B67 -> 1.003009858
K185: ='download from BoE'!A68 -> 2009-10-30 | L185: ='download from BoE'!B68 -> 0.6518182363
K186: ='download from BoE'!A69 -> 2009-11-30 | L186: ='download from BoE'!B69 -> 0.7194372961
K187: ='download from BoE'!A70 -> 2009-12-31 | L187: ='download from BoE'!B70 -> 0.6926075704
K188: ='download from BoE'!A71 -> 2010-01-29 | L188: ='download from BoE'!B71 -> 0.7986662926
K189: ='download from BoE'!A72 -> 2010-02-26 | L189: ='download from BoE'!B72 -> 1.009882828
K190: ='download from BoE'!A73 -> 2010-03-31 | L190: ='download from BoE'!B73 -> 0.8324551533
K191: ='download from BoE'!A74 -> 2010-04-30 | L191: ='download from BoE'!B74 -> 0.645881255
K192: ='download from BoE'!A75 -> 2010-05-31 | L192: ='download from BoE'!B75 -> 0.6570795974
K193: ='download from BoE'!A76 -> 2010-06-30 | L193: ='download from BoE'!B76 -> 0.7610160976
K194: ='download from BoE'!A77 -> 2010-07-30 | L194: ='download from BoE'!B77 -> 0.8591916777
K195: ='download from BoE'!A78 -> 2010-08-31 | L195: ='download from BoE'!B78 -> 0.635242437
K196: ='download from BoE'!A79 -> 2010-09-30 | L196: ='download from BoE'!B79 -> 0.4585281888
K197: ='download from BoE'!A80 -> 2010-10-29 | L197: ='download from BoE'!B80 -> 0.3731058306
K198: ='download from BoE'!A81 -> 2010-11-30 | L198: ='download from BoE'!B81 -> 0.4724408708
K199: ='download from BoE'!A82 -> 2010-12-31 | L199: ='download from BoE'!B82 -> 0.6096187713
K200: ='download from BoE'!A83 -> 2011-01-31 | L200: ='download from BoE'!B83 -> 0.6087139635
K201: ='download from BoE'!A84 -> 2011-02-28 | L201: ='download from BoE'!B84 -> 0.7246406716
K202: ='download from BoE'!A85 -> 2011-03-31 | L202: ='download from BoE'!B85 -> 0.5508602742
K203: ='download from BoE'!A86 -> 2011-04-29 | L203: ='download from BoE'!B86 -> 0.4920592283
K204: ='download from BoE'!A87 -> 2011-05-31 | L204: ='download from BoE'!B87 -> 0.3779374364
K205: ='download from BoE'!A88 -> 2011-06-30 | L205: ='download from BoE'!B88 -> 0.2648313872
K206: ='download from BoE'!A89 -> 2011-07-29 | L206: ='download from BoE'!B89 -> 0.1862029749
K207: ='download from BoE'!A90 -> 2011-08-31 | L207: ='download from BoE'!B90 -> -0.1408236919
K208: ='download from BoE'!A91 -> 2011-09-30 | L208: ='download from BoE'!B91 -> -0.2033944977
K209: ='download from BoE'!A92 -> 2011-10-31 | L209: ='download from BoE'!B92 -> -0.1198959977
K210: ='download from BoE'!A93 -> 2011-11-30 | L210: ='download from BoE'!B93 -> -0.3124639832
K211: ='download from BoE'!A94 -> 2011-12-30 | L211: ='download from BoE'!B94 -> -0.4286018069
K212: ='download from BoE'!A95 -> 2012-01-31 | L212: ='download from BoE'!B95 -> -0.5646145277
K213: ='download from BoE'!A96 -> 2012-02-29 | L213: ='download from BoE'!B96 -> -0.5791521404
K214: ='download from BoE'!A97 -> 2012-03-30 | L214: ='download from BoE'!B97 -> -0.5298439441
K215: ='download from BoE'!A98 -> 2012-04-30 | L215: ='download from BoE'!B98 -> -0.5343245189
K216: ='download from BoE'!A99 -> 2012-05-31 | L216: ='download from BoE'!B99 -> -0.6585320172
K217: ='download from BoE'!A100 -> 2012-06-29 | L217: ='download from BoE'!B100 -> -0.5411717237
K218: ='download from BoE'!A101 -> 2012-07-31 | L218: ='download from BoE'!B101 -> -0.6425240234
K219: ='download from BoE'!A102 -> 2012-08-31 | L219: ='download from BoE'!B102 -> -0.6634420971
K220: ='download from BoE'!A103 -> 2012-09-28 | L220: ='download from BoE'!B103 -> -0.6624232578
K221: ='download from BoE'!A104 -> 2012-10-31 | L221: ='download from BoE'!B104 -> -0.5891340272
K222: ='download from BoE'!A105 -> 2012-11-30 | L222: ='download from BoE'!B105 -> -0.6289671246
K223: ='download from BoE'!A106 -> 2012-12-31 | L223: ='download from BoE'!B106 -> -0.655845991
K224: ='download from BoE'!A107 -> 2013-01-31 | L224: ='download from BoE'!B107 -> -0.7893534379
K225: ='download from BoE'!A108 -> 2013-02-28 | L225: ='download from BoE'!B108 -> -1.010714686
K226: ='download from BoE'!A109 -> 2013-03-29 | L226: ='download from BoE'!B109 -> -1.192014549
K227: ='download from BoE'!A110 -> 2013-04-30 | L227: ='download from BoE'!B110 -> -1.257494102
K228: ='download from BoE'!A111 -> 2013-05-31 | L228: ='download from BoE'!B111 -> -0.9780239497
K229: ='download from BoE'!A112 -> 2013-06-28 | L229: ='download from BoE'!B112 -> -0.6341596466
K230: ='download from BoE'!A113 -> 2013-07-31 | L230: ='download from BoE'!B113 -> -0.5751328768
K231: ='download from BoE'!A114 -> 2013-08-30 | L231: ='download from BoE'!B114 -> -0.3571328643
K232: ='download from BoE'!A115 -> 2013-09-30 | L232: ='download from BoE'!B115 -> -0.2170825071
K233: ='download from BoE'!A116 -> 2013-10-31 | L233: ='download from BoE'!B116 -> -0.3776576162
K234: ='download from BoE'!A117 -> 2013-11-29 | L234: ='download from BoE'!B117 -> -0.2863908431
K235: ='download from BoE'!A118 -> 2013-12-31 | L235: ='download from BoE'!B118 -> -0.1751996555
K236: ='download from BoE'!A119 -> 2014-01-31 | L236: ='download from BoE'!B119 -> -0.1523684136
K237: ='download from BoE'!A120 -> 2014-02-28 | L237: ='download from BoE'!B120 -> -0.1814741753
K238: ='download from BoE'!A121 -> 2014-03-31 | L238: ='download from BoE'!B121 -> -0.2982326319
K239: ='download from BoE'!A122 -> 2014-04-30 | L239: ='download from BoE'!B122 -> -0.315982951
K240: ='download from BoE'!A123 -> 2014-05-30 | L240: ='download from BoE'!B123 -> -0.3476979123
K241: ='download from BoE'!A124 -> 2014-06-30 | L241: ='download from BoE'!B124 -> -0.2886056811
K242: ='download from BoE'!A125 -> 2014-07-31 | L242: ='download from BoE'!B125 -> -0.3071526053
K243: ='download from BoE'!A126 -> 2014-08-29 | L243: ='download from BoE'!B126 -> -0.4437423923
K244: ='download from BoE'!A127 -> 2014-09-30 | L244: ='download from BoE'!B127 -> -0.5304974456
... 51 more rows

Sheet RPI and currency
A1: TEMPORARY 3
E2: Parameter | G2: Units | I2: Constant | K2: Annual values
E3: Project year | K3: =Input!K8 -> -10 | L3: =K3 + 1 -> -9 | M3: -8 | N3: -7 | O3: -6 | P3: -5 | Q3: -4 | R3: -3 | S3: -2 | T3: -1 | U3: 0 | V3: 1 | W3: 2 | X3: 3 | Y3: 4 | Z3: 5 | AA3: 6 | AB3: 7 | AC3: 8 | AD3: 9 | AE3: 10 | AF3: 11 | AG3: 12 | AH3: 13 | AI3: 14 | AJ3: 15 | AK3: 16 | AL3: 17 | AM3: 18 | AN3: 19 | AO3: 20 | AP3: 21 | AQ3: 22 | AR3: 23 | AS3: 24 | AT3: 25 | AU3: 26 | AV3: 27 | AW3: 28 | AX3: 29
E4: Year commencing | K4: =Input!K9 -> 2009-04-01 | L4: =+K5+1 -> 2010-04-01 | M4: =+L5+1 -> 2011-04-01 | N4: =+M5+1 -> 2012-04-01 | O4: 2013-04-01 | P4: 2014-04-01 | Q4: 2015-04-01 | R4: 2016-04-01 | S4: 2017-04-01 | T4: 2018-04-01 | U4: 2019-04-01 | V4: 2020-04-01 | W4: 2021-04-01 | X4: 2022-04-01 | Y4: 2023-04-01 | Z4: 2024-04-01 | AA4: 2025-04-01 | AB4: 2026-04-01 | AC4: 2027-04-01 | AD4: 2028-04-01 | AE4: 2029-04-01 | AF4: 2030-04-01 | AG4: 2031-04-01 | AH4: 2032-04-01 | AI4: 2033-04-01 | AJ4: 2034-04-01 | AK4: 2035-04-01 | AL4: 2036-04-01 | AM4: 2037-04-01 | AN4: 2038-04-01 | AO4: 2039-04-01 | AP4: 2040-04-01 | AQ4: 2041-04-01 | AR4: 2042-04-01 | AS4: 2043-04-01 | AT4: 2044-04-01 | AU4: 2045-04-01 | AV4: 2046-04-01 | AW4: 2047-04-01 | AX4: 2048-04-01
E5: Year ending | K5: =Input!K10 -> 2010-03-31 | L5: =DATE(YEAR(K5) + 1, MONTH(K5), DAY(K5)) -> 2011-03-31 | M5: 2012-03-31 | N5: 2013-03-31 | O5: 2014-03-31 | P5: 2015-03-31 | Q5: 2016-03-31 | R5: 2017-03-31 | S5: 2018-03-31 | T5: 2019-03-31 | U5: 2020-03-31 | V5: 2021-03-31 | W5: 2022-03-31 | X5: 2023-03-31 | Y5: 2024-03-31 | Z5: 2025-03-31 | AA5: 2026-03-31 | AB5: 2027-03-31 | AC5: 2028-03-31 | AD5: 2029-03-31 | AE5: 2030-03-31 | AF5: 2031-03-31 | AG5: 2032-03-31 | AH5: 2033-03-31 | AI5: 2034-03-31 | AJ5: 2035-03-31 | AK5: 2036-03-31 | AL5: 2037-03-31 | AM5: 2038-03-31 | AN5: 2039-03-31 | AO5: 2040-03-31 | AP5: 2041-03-31 | AQ5: 2042-03-31 | AR5: 2043-03-31 | AS5: 2044-03-31 | AT5: 2045-03-31 | AU5: 2046-03-31 | AV5: 2047-03-31 | AW5: 2048-03-31 | AX5: 2049-03-31
B7: Inflation
C9: Key index values
E11: =E152 -> 2016/17 RPI inflation index value (CHAW) | G11: =G152 -> Jan 1987 = 100 | I11: =I152 -> 264.992
C13: UK Inflation
E14: http://www.ons.gov.uk/ons/datasets-and-tables/data-selector.html?cdid=CHAW&dataset=mm23&table-id=2.1
E16: 2006 JAN | G16: Jan 1987 = 100 | I16: 193.4 | K16: =IF(L28=1,1,0) -> 0 | L16: =IF(M28=1,1,0) -> 0 | M16: =IF(N28=1,1,0) -> 0 | N16: =IF(O28=1,1,0) -> 0 | O16: =IF(P28=1,1,0) -> 0 | P16: =IF(Q28=1,1,0) -> 0 | Q16: =IF(R28=1,1,0) -> 0 | R16: =IF(S28=1,1,0) -> 0
E17: 2006 FEB | G17: Jan 1987 = 100 | I17: 194.2 | K17: 0 | L17: 0 | M17: 0 | N17: 0 | O17: 0 | P17: 0 | Q17: 0 | R17: 0
E18: 2006 MAR | G18: Jan 1987 = 100 | I18: 195 | K18: 0 | L18: 0 | M18: 0 | N18: 0 | O18: 0 | P18: 0 | Q18: =IF(R30=1,1,0) -> 0 | R18: =IF(S30=1,1,0) -> 0
E19: 2006 APR | G19: Jan 1987 = 100 | I19: 196.5 | K19: 0 | L19: 0 | M19: 0 | N19: 0 | O19: 0 | P19: 0 | Q19: 0 | R19: 0
E20: 2006 MAY | G20: Jan 1987 = 100 | I20: 197.7 | K20: 0 | L20: 0 | M20: 0 | N20: 0 | O20: 0 | P20: 0 | Q20: 0 | R20: 0
E21: 2006 JUN | G21: Jan 1987 = 100 | I21: 198.5 | K21: 0 | L21: 0 | M21: 0 | N21: 0 | O21: 0 | P21: 0 | Q21: 0 | R21: 0
E22: 2006 JUL | G22: Jan 1987 = 100 | I22: 198.5 | K22: 0 | L22: 0 | M22: 0 | N22: 0 | O22: 0 | P22: 0 | Q22: 0 | R22: 0
E23: 2006 AUG | G23: Jan 1987 = 100 | I23: 199.2 | K23: 0 | L23: 0 | M23: 0 | N23: 0 | O23: 0 | P23: 0 | Q23: 0 | R23: 0
E24: 2006 SEP | G24: Jan 1987 = 100 | I24: 200.1 | K24: 0 | L24: 0 | M24: 0 | N24: 0 | O24: 0 | P24: 0 | Q24: 0 | R24: 0
E25: 2006 OCT | G25: Jan 1987 = 100 | I25: 200.4 | K25: 0 | L25: 0 | M25: 0 | N25: 0 | O25: 0 | P25: 0 | Q25: 0 | R25: 0
E26: 2006 NOV | G26: Jan 1987 = 100 | I26: 201.1 | K26: 0 | L26: 0 | M26: 0 | N26: 0 | O26: 0 | P26: 0 | Q26: 0 | R26: 0
E27: 2006 DEC | G27: Jan 1987 = 100 | I27: 202.7 | K27: 0 | L27: 0 | M27: 0 | N27: 0 | O27: 0 | P27: 0 | Q27: 0 | R27: 0
E28: 2007 JAN | G28: Jan 1987 = 100 | I28: 201.6 | K28: 0 | L28: 0 | M28: 0 | N28: 0 | O28: 0 | P28: 0 | Q28: 0 | R28: 0
E29: 2007 FEB | G29: Jan 1987 = 100 | I29: 203.1 | K29: 0 | L29: 0 | M29: 0 | N29: 0 | O29: 0 | P29: 0 | Q29: 0 | R29: 0
E30: 2007 MAR | G30: Jan 1987 = 100 | I30: 204.4 | K30: 0 | L30: 0 | M30: 0 | N30: 0 | O30: 0 | P30: 0 | Q30: 0 | R30: 0
E31: 2007 APR | G31: Jan 1987 = 100 | I31: 205.4 | K31: 0 | L31: 0 | M31: 0 | N31: 0 | O31: 0 | P31: 0 | Q31: 0 | R31: 0
E32: 2007 MAY | G32: Jan 1987 = 100 | I32: 206.2 | K32: 0 | L32: 0 | M32: 0 | N32: 0 | O32: 0 | P32: 0 | Q32: 0 | R32: 0
E33: 2007 JUN | G33: Jan 1987 = 100 | I33: 207.3 | K33: 0 | L33: 0 | M33: 0 | N33: 0 | O33: 0 | P33: 0 | Q33: 0 | R33: 0
E34: 2007 JUL | G34: Jan 1987 = 100 | I34: 206.1 | K34: 0 | L34: 0 | M34: 0 | N34: 0 | O34: 0 | P34: 0 | Q34: 0 | R34: 0
E35: 2007 AUG | G35: Jan 1987 = 100 | I35: 207.3 | K35: 0 | L35: 0 | M35: 0 | N35: 0 | O35: 0 | P35: 0 | Q35: 0 | R35: 0
E36: 2007 SEP | G36: Jan 1987 = 100 | I36: 208 | K36: 0 | L36: 0 | M36: 0 | N36: 0 | O36: 0 | P36: 0 | Q36: 0 | R36: 0
E37: 2007 OCT | G37: Jan 1987 = 100 | I37: 208.9 | K37: 0 | L37: 0 | M37: 0 | N37: 0 | O37: 0 | P37: 0 | Q37: 0 | R37: 0
E38: 2007 NOV | G38: Jan 1987 = 100 | I38: 209.7 | K38: 0 | L38: 0 | M38: 0 | N38: 0 | O38: 0 | P38: 0 | Q38: 0 | R38: 0
E39: 2007 DEC | G39: Jan 1987 = 100 | I39: 210.9 | K39: 0 | L39: 0 | M39: 0 | N39: 0 | O39: 0 | P39: 0 | Q39: 0 | R39: 0
E40: 2008 JAN | G40: Jan 1987 = 100 | I40: 209.8 | K40: 0 | L40: 0 | M40: 0 | N40: 0 | O40: 0 | P40: 0 | Q40: 0 | R40: 0
E41: 2008 FEB | G41: Jan 1987 = 100 | I41: 211.4 | K41: 0 | L41: 0 | M41: 0 | N41: 0 | O41: 0 | P41: 0 | Q41: 0 | R41: 0
E42: 2008 MAR | G42: Jan 1987 = 100 | I42: 212.1 | K42: 0 | L42: 0 | M42: 0 | N42: 0 | O42: 0 | P42: 0 | Q42: 0 | R42: 0
E43: 2008 APR | G43: Jan 1987 = 100 | I43: 214 | K43: 0 | L43: 0 | M43: 0 | N43: 0 | O43: 0 | P43: 0 | Q43: 0 | R43: 0
E44: 2008 MAY | G44: Jan 1987 = 100 | I44: 215.1 | K44: 0 | L44: 0 | M44: 0 | N44: 0 | O44: 0 | P44: 0 | Q44: 0 | R44: 0
E45: 2008 JUN | G45: Jan 1987 = 100 | I45: 216.8 | K45: 0 | L45: 0 | M45: 0 | N45: 0 | O45: 0 | P45: 0 | Q45: 0 | R45: 0
E46: 2008 JUL | G46: Jan 1987 = 100 | I46: 216.5 | K46: 0 | L46: 0 | M46: 0 | N46: 0 | O46: 0 | P46: 0 | Q46: 0 | R46: 0
E47: 2008 AUG | G47: Jan 1987 = 100 | I47: 217.2 | K47: 0 | L47: 0 | M47: 0 | N47: 0 | O47: 0 | P47: 0 | Q47: 0 | R47: 0
E48: 2008 SEP | G48: Jan 1987 = 100 | I48: 218.4 | K48: 0 | L48: 0 | M48: 0 | N48: 0 | O48: 0 | P48: 0 | Q48: 0 | R48: 0
E49: 2008 OCT | G49: Jan 1987 = 100 | I49: 217.7 | K49: 0 | L49: 0 | M49: 0 | N49: 0 | O49: 0 | P49: 0 | Q49: 0 | R49: 0
E50: 2008 NOV | G50: Jan 1987 = 100 | I50: 216 | K50: 0 | L50: 0 | M50: 0 | N50: 0 | O50: 0 | P50: 0 | Q50: 0 | R50: 0
E51: 2008 DEC | G51: Jan 1987 = 100 | I51: 212.9 | K51: 0 | L51: 0 | M51: 0 | N51: 0 | O51: 0 | P51: 0 | Q51: 0 | R51: 0
E52: 2009 JAN | G52: Jan 1987 = 100 | I52: 210.1 | K52: 0 | L52: 0 | M52: 0 | N52: 0 | O52: 0 | P52: 0 | Q52: 0 | R52: 0
E53: 2009 FEB | G53: Jan 1987 = 100 | I53: 211.4 | K53: 0 | L53: 0 | M53: 0 | N53: 0 | O53: 0 | P53: 0 | Q53: 0 | R53: 0
E54: 2009 MAR | G54: Jan 1987 = 100 | I54: 211.3 | K54: 0 | L54: 0 | M54: 0 | N54: 0 | O54: 0 | P54: 0 | Q54: 0 | R54: 0
E55: 2009 APR | G55: Jan 1987 = 100 | I55: 211.5 | K55: 1 | L55: 0 | M55: 0 | N55: 0 | O55: 0 | P55: 0 | Q55: 0 | R55: 0
E56: 2009 MAY | G56: Jan 1987 = 100 | I56: 212.8 | K56: 1 | L56: 0 | M56: 0 | N56: 0 | O56: 0 | P56: 0 | Q56: 0 | R56: 0
E57: 2009 JUN | G57: Jan 1987 = 100 | I57: 213.4 | K57: 1 | L57: 0 | M57: 0 | N57: 0 | O57: 0 | P57: 0 | Q57: 0 | R57: 0
E58: 2009 JUL | G58: Jan 1987 = 100 | I58: 213.4 | K58: 1 | L58: 0 | M58: 0 | N58: 0 | O58: 0 | P58: 0 | Q58: 0 | R58: 0
E59: 2009 AUG | G59: Jan 1987 = 100 | I59: 214.4 | K59: 1 | L59: 0 | M59: 0 | N59: 0 | O59: 0 | P59: 0 | Q59: 0 | R59: 0
E60: 2009 SEP | G60: Jan 1987 = 100 | I60: 215.3 | K60: 1 | L60: 0 | M60: 0 | N60: 0 | O60: 0 | P60: 0 | Q60: 0 | R60: 0
E61: 2009 OCT | G61: Jan 1987 = 100 | I61: 216 | K61: 1 | L61: 0 | M61: 0 | N61: 0 | O61: 0 | P61: 0 | Q61: 0 | R61: 0
E62: 2009 NOV | G62: Jan 1987 = 100 | I62: 216.6 | K62: 1 | L62: 0 | M62: 0 | N62: 0 | O62: 0 | P62: 0 | Q62: 0 | R62: 0
E63: 2009 DEC | G63: Jan 1987 = 100 | I63: 218 | K63: 1 | L63: 0 | M63: 0 | N63: 0 | O63: 0 | P63: 0 | Q63: 0 | R63: 0
E64: 2010 JAN | G64: Jan 1987 = 100 | I64: 217.9 | K64: 1 | L64: 0 | M64: 0 | N64: 0 | O64: 0 | P64: 0 | Q64: 0 | R64: 0
E65: 2010 FEB | G65: Jan 1987 = 100 | I65: 219.2 | K65: 1 | L65: 0 | M65: 0 | N65: 0 | O65: 0 | P65: 0 | Q65: 0 | R65: 0
E66: 2010 MAR | G66: Jan 1987 = 100 | I66: 220.7 | K66: 1 | L66: 0 | M66: 0 | N66: 0 | O66: 0 | P66: 0 | Q66: 0 | R66: 0
E67: 2010 APR | G67: Jan 1987 = 100 | I67: 222.8 | K67: =IF(L79=1,1,0) -> 0 | L67: 1 | M67: 0 | N67: 0 | O67: 0 | P67: 0 | Q67: 0 | R67: 0
E68: 2010 MAY | G68: Jan 1987 = 100 | I68: 223.6 | K68: =IF(L80=1,1,0) -> 0 | L68: 1 | M68: 0 | N68: 0 | O68: 0 | P68: 0 | Q68: 0 | R68: 0
E69: 2010 JUN | G69: Jan 1987 = 100 | I69: 224.1 | K69: =IF(L81=1,1,0) -> 0 | L69: 1 | M69: 0 | N69: 0 | O69: 0 | P69: 0 | Q69: 0 | R69: 0
E70: 2010 JUL | G70: Jan 1987 = 100 | I70: 223.6 | K70: =IF(L82=1,1,0) -> 0 | L70: 1 | M70: 0 | N70: 0 | O70: 0 | P70: 0 | Q70: 0 | R70: 0
E71: 2010 AUG | G71: Jan 1987 = 100 | I71: 224.5 | K71: =IF(L83=1,1,0) -> 0 | L71: 1 | M71: 0 | N71: 0 | O71: 0 | P71: 0 | Q71: 0 | R71: 0
E72: 2010 SEP | G72: Jan 1987 = 100 | I72: 225.3 | K72: =IF(L84=1,1,0) -> 0 | L72: 1 | M72: 0 | N72: 0 | O72: 0 | P72: 0 | Q72: 0 | R72: 0
E73: 2010 OCT | G73: Jan 1987 = 100 | I73: 225.8 | K73: =IF(L85=1,1,0) -> 0 | L73: 1 | M73: 0 | N73: 0 | O73: 0 | P73: 0 | Q73: 0 | R73: 0
E74: 2010 NOV | G74: Jan 1987 = 100 | I74: 226.8 | K74: =IF(L86=1,1,0) -> 0 | L74: 1 | M74: 0 | N74: 0 | O74: 0 | P74: 0 | Q74: 0 | R74: 0
E75: 2010 DEC | G75: Jan 1987 = 100 | I75: 228.4 | K75: =IF(L87=1,1,0) -> 0 | L75: 1 | M75: 0 | N75: 0 | O75: 0 | P75: 0 | Q75: 0 | R75: 0
E76: 2011 JAN | G76: Jan 1987 = 100 | I76: 229 | K76: =IF(L88=1,1,0) -> 0 | L76: 1 | M76: 0 | N76: 0 | O76: 0 | P76: 0 | Q76: 0 | R76: 0
E77: 2011 FEB | G77: Jan 1987 = 100 | I77: 231.3 | K77: =IF(L89=1,1,0) -> 0 | L77: 1 | M77: 0 | N77: 0 | O77: 0 | P77: 0 | Q77: 0 | R77: 0
E78: 2011 MAR | G78: Jan 1987 = 100 | I78: 232.5 | K78: =IF(L90=1,1,0) -> 0 | L78: 1 | M78: 0 | N78: 0 | O78: 0 | P78: 0 | Q78: 0 | R78: 0
E79: 2011 APR | G79: Jan 1987 = 100 | I79: 234.4 | K79: =IF(L91=1,1,0) -> 0 | L79: 0 | M79: 1 | N79: 0 | O79: 0 | P79: 0 | Q79: 0 | R79: 0
E80: 2011 MAY | G80: Jan 1987 = 100 | I80: 235.2 | K80: =IF(L92=1,1,0) -> 0 | L80: 0 | M80: 1 | N80: 0 | O80: 0 | P80: 0 | Q80: 0 | R80: 0
E81: 2011 JUN | G81: Jan 1987 = 100 | I81: 235.2 | K81: =IF(L93=1,1,0) -> 0 | L81: 0 | M81: 1 | N81: 0 | O81: 0 | P81: 0 | Q81: 0 | R81: 0
E82: 2011 JUL | G82: Jan 1987 = 100 | I82: 234.7 | K82: =IF(L94=1,1,0) -> 0 | L82: 0 | M82: 1 | N82: 0 | O82: 0 | P82: 0 | Q82: =IF(R94=1,1,0) -> 0 | R82: =IF(S94=1,1,0) -> 0
E83: 2011 AUG | G83: Jan 1987 = 100 | I83: 236.1 | K83: =IF(L95=1,1,0) -> 0 | L83: 0 | M83: 1 | N83: 0 | O83: 0 | P83: 0 | Q83: 0 | R83: 0
E84: 2011 SEP | G84: Jan 1987 = 100 | I84: 237.9 | K84: =IF(L96=1,1,0) -> 0 | L84: 0 | M84: 1 | N84: 0 | O84: 0 | P84: 0 | Q84: 0 | R84: 0
E85: 2011 OCT | G85: Jan 1987 = 100 | I85: 238 | K85: =IF(L97=1,1,0) -> 0 | L85: 0 | M85: 1 | N85: 0 | O85: 0 | P85: 0 | Q85: 0 | R85: 0
E86: 2011 NOV | G86: Jan 1987 = 100 | I86: 238.5 | K86: =IF(L98=1,1,0) -> 0 | L86: 0 | M86: 1 | N86: 0 | O86: 0 | P86: 0 | Q86: 0 | R86: 0
E87: 2011 DEC | G87: Jan 1987 = 100 | I87: 239.4 | K87: =IF(L99=1,1,0) -> 0 | L87: 0 | M87: 1 | N87: 0 | O87: 0 | P87: 0 | Q87: 0 | R87: 0
E88: 2012 JAN | G88: Jan 1987 = 100 | I88: 238 | K88: =IF(L100=1,1,0) -> 0 | L88: 0 | M88: 1 | N88: 0 | O88: 0 | P88: 0 | Q88: 0 | R88: 0
E89: 2012 FEB | G89: Jan 1987 = 100 | I89: 239.9 | K89: =IF(L101=1,1,0) -> 0 | L89: 0 | M89: 1 | N89: 0 | O89: 0 | P89: 0 | Q89: 0 | R89: 0
E90: 2012 MAR | G90: Jan 1987 = 100 | I90: 240.8 | K90: =IF(L102=1,1,0) -> 0 | L90: 0 | M90: 1 | N90: 0 | O90: 0 | P90: 0 | Q90: 0 | R90: 0
E91: 2012 APR | G91: Jan 1987 = 100 | I91: 242.5 | K91: =IF(L103=1,1,0) -> 0 | L91: 0 | M91: 0 | N91: 1 | O91: 0 | P91: 0 | Q91: 0 | R91: 0
E92: 2012 MAY | G92: Jan 1987 = 100 | I92: 242.4 | K92: =IF(L104=1,1,0) -> 0 | L92: 0 | M92: 0 | N92: 1 | O92: 0 | P92: 0 | Q92: 0 | R92: 0
E93: 2012 JUN | G93: Jan 1987 = 100 | I93: 241.8 | K93: =IF(L105=1,1,0) -> 0 | L93: 0 | M93: 0 | N93: 1 | O93: 0 | P93: 0 | Q93: 0 | R93: 0
E94: 2012 JUL | G94: Jan 1987 = 100 | I94: 242.1 | K94: =IF(L106=1,1,0) -> 0 | L94: 0 | M94: 0 | N94: 1 | O94: 0 | P94: 0 | Q94: 0 | R94: 0
E95: 2012 AUG | G95: Jan 1987 = 100 | I95: 243 | K95: =IF(L107=1,1,0) -> 0 | L95: 0 | M95: 0 | N95: 1 | O95: 0 | P95: 0 | Q95: 0 | R95: 0
E96: 2012 SEP | G96: Jan 1987 = 100 | I96: 244.2 | K96: =IF(L108=1,1,0) -> 0 | L96: 0 | M96: 0 | N96: 1 | O96: 0 | P96: 0 | Q96: 0 | R96: 0
E97: 2012 OCT | G97: Jan 1987 = 100 | I97: 245.6 | K97: =IF(L109=1,1,0) -> 0 | L97: 0 | M97: 0 | N97: 1 | O97: 0 | P97: 0 | Q97: 0 | R97: 0
E98: 2012 NOV | G98: Jan 1987 = 100 | I98: 245.6 | K98: =IF(L110=1,1,0) -> 0 | L98: 0 | M98: 0 | N98: 1 | O98: 0 | P98: 0 | Q98: 0 | R98: 0
E99: 2012 DEC | G99: Jan 1987 = 100 | I99: 246.8 | K99: =IF(L111=1,1,0) -> 0 | L99: 0 | M99: 0 | N99: 1 | O99: 0 | P99: 0 | Q99: 0 | R99: 0
E100: 2013 JAN | G100: Jan 1987 = 100 | I100: 245.8 | K100: =IF(L112=1,1,0) -> 0 | L100: 0 | M100: 0 | N100: 1 | O100: 0 | P100: 0 | Q100: 0 | R100: 0
E101: 2013 FEB | G101: Jan 1987 = 100 | I101: 247.6 | K101: =IF(L113=1,1,0) -> 0 | L101: 0 | M101: 0 | N101: 1 | O101: 0 | P101: 0 | Q101: 0 | R101: 0
E102: 2013 MAR | G102: Jan 1987 = 100 | I102: 248.7 | K102: =IF(L114=1,1,0) -> 0 | L102: 0 | M102: 0 | N102: 1 | O102: 0 | P102: 0 | Q102: 0 | R102: 0
E103: 2013 APR | G103: Jan 1987 = 100 | I103: 249.5 | K103: =IF(L115=1,1,0) -> 0 | L103: 0 | M103: 0 | N103: 0 | O103: 1 | P103: 0 | Q103: 0 | R103: 0
E104: 2013 MAY | G104: Jan 1987 = 100 | I104: 250 | K104: =IF(L116=1,1,0) -> 0 | L104: 0 | M104: 0 | N104: 0 | O104: 1 | P104: 0 | Q104: 0 | R104: 0
E105: 2013 JUN | G105: Jan 1987 = 100 | I105: 249.7 | K105: =IF(L117=1,1,0) -> 0 | L105: 0 | M105: 0 | N105: 0 | O105: 1 | P105: 0 | Q105: 0 | R105: 0
E106: 2013 JUL | G106: Jan 1987 = 100 | I106: 249.7 | K106: =IF(L118=1,1,0) -> 0 | L106: 0 | M106: 0 | N106: 0 | O106: 1 | P106: 0 | Q106: 0 | R106: 0
E107: 2013 AUG | G107: Jan 1987 = 100 | I107: 251 | K107: =IF(L119=1,1,0) -> 0 | L107: 0 | M107: 0 | N107: 0 | O107: 1 | P107: 0 | Q107: 0 | R107: 0
E108: 2013 SEP | G108: Jan 1987 = 100 | I108: 251.9 | K108: =IF(L120=1,1,0) -> 0 | L108: 0 | M108: 0 | N108: 0 | O108: 1 | P108: 0 | Q108: 0 | R108: 0
E109: 2013 OCT | G109: Jan 1987 = 100 | I109: 251.9 | K109: =IF(L121=1,1,0) -> 0 | L109: 0 | M109: 0 | N109: 0 | O109: 1 | P109: 0 | Q109: 0 | R109: 0
E110: 2013 NOV | G110: Jan 1987 = 100 | I110: 252.1 | K110: =IF(L122=1,1,0) -> 0 | L110: 0 | M110: 0 | N110: 0 | O110: 1 | P110: 0 | Q110: 0 | R110: 0
E111: 2013 DEC | G111: Jan 1987 = 100 | I111: 253.4 | K111: =IF(L123=1,1,0) -> 0 | L111: 0 | M111: 0 | N111: 0 | O111: 1 | P111: 0 | Q111: 0 | R111: 0
E112: 2014 JAN | G112: Jan 1987 = 100 | I112: 252.6 | K112: =IF(L124=1,1,0) -> 0 | L112: 0 | M112: 0 | N112: 0 | O112: 1 | P112: 0 | Q112: 0 | R112: 0
E113: 2014 FEB | G113: Jan 1987 = 100 | I113: 254.2 | K113: =IF(L125=1,1,0) -> 0 | L113: =IF(M125=1,1,0) -> 0 | M113: =IF(N125=1,1,0) -> 0 | N113: =IF(O125=1,1,0) -> 0 | O113: =IF(P125=1,1,0) -> 1 | P113: =IF(Q125=1,1,0) -> 0 | Q113: =IF(R125=1,1,0) -> 0 | R113: =IF(S125=1,1,0) -> 0
E114: 2014 MAR | G114: Jan 1987 = 100 | I114: 254.8 | K114: 0 | L114: 0 | M114: 0 | N114: 0 | O114: 1 | P114: 0 | Q114: 0 | R114: 0
E115: 2014 APR | G115: Jan 1987 = 100 | I115: 255.7 | K115: 0 | L115: 0 | M115: 0 | N115: 0 | O115: 0 | P115: 1 | Q115: 0 | R115: 0
E116: 2014 MAY | G116: Jan 1987 = 100 | I116: 255.9 | K116: 0 | L116: 0 | M116: 0 | N116: 0 | O116: 0 | P116: 1 | Q116: 0 | R116: 0
E117: 2014 JUN | G117: Jan 1987 = 100 | I117: 256.3 | K117: 0 | L117: 0 | M117: 0 | N117: 0 | O117: 0 | P117: 1 | Q117: 0 | R117: 0
E118: 2014 JUL | G118: Jan 1987 = 100 | I118: 256 | K118: 0 | L118: 0 | M118: 0 | N118: 0 | O118: 0 | P118: 1 | Q118: 0 | R118: 0
E119: 2014 AUG | G119: Jan 1987 = 100 | I119: 257 | K119: 0 | L119: 0 | M119: 0 | N119: 0 | O119: 0 | P119: 1 | Q119: 0 | R119: 0
E120: 2014 SEP | G120: Jan 1987 = 100 | I120: 257.6 | K120: 0 | L120: 0 | M120: 0 | N120: 0 | O120: 0 | P120: 1 | Q120: 0 | R120: 0
E121: 2014 OCT | G121: Jan 1987 = 100 | I121: 257.7 | K121: 0 | L121: 0 | M121: 0 | N121: 0 | O121: 0 | P121: 1 | Q121: 0 | R121: 0
E122: 2014 NOV | G122: Jan 1987 = 100 | I122: 257.1 | K122: 0 | L122: 0 | M122: 0 | N122: 0 | O122: 0 | P122: 1 | Q122: 0 | R122: 0
E123: 2014 DEC | G123: Jan 1987 = 100 | I123: 257.5 | K123: 0 | L123: 0 | M123: 0 | N123: 0 | O123: 0 | P123: 1 | Q123: 0 | R123: 0
E124: 2015 JAN | G124: Jan 1987 = 100 | I124: 255.4 | K124: 0 | L124: 0 | M124: 0 | N124: 0 | O124: 0 | P124: 1 | Q124: 0 | R124: 0
E125: 2015 FEB | G125: Jan 1987 = 100 | I125: 256.7 | K125: 0 | L125: 0 | M125: 0 | N125: 0 | O125: 0 | P125: 1 | Q125: 0 | R125: 0
E126: 2015 MAR | G126: Jan 1987 = 100 | I126: 257.1 | K126: 0 | L126: 0 | M126: 0 | N126: 0 | O126: 0 | P126: 1 | Q126: 0 | R126: 0
E127: 2015 APL | G127: Jan 1987 = 100 | I127: 258 | K127: =IF(L139=1,1,0) -> 0 | L127: =IF(M139=1,1,0) -> 0 | M127: =IF(N139=1,1,0) -> 0 | N127: =IF(O139=1,1,0) -> 0 | O127: =IF(P139=1,1,0) -> 0 | P127: =IF(Q139=1,1,0) -> 0 | Q127: =IF(R139=1,1,0) -> 1 | R127: =IF(S139=1,1,0) -> 0
E128: 2015 MAY | G128: Jan 1987 = 100 | I128: 258.5 | K128: 0 | L128: 0 | M128: 0 | N128: 0 | O128: 0 | P128: 0 | Q128: 1 | R128: 0
E129: 2015 JUN | G129: Jan 1987 = 100 | I129: 258.9 | K129: 0 | L129: 0 | M129: 0 | N129: 0 | O129: 0 | P129: 0 | Q129: 1 | R129: 0
E130: 2015 JUL | G130: Jan 1987 = 100 | I130: 258.6 | K130: 0 | L130: 0 | M130: 0 | N130: 0 | O130: 0 | P130: 0 | Q130: 1 | R130: 0
E131: 2015 AUG | G131: Jan 1987 = 100 | I131: 259.8 | K131: 0 | L131: 0 | M131: 0 | N131: 0 | O131: 0 | P131: 0 | Q131: 1 | R131: 0
E132: 2015 OCT | G132: Jan 1987 = 100 | I132: 259.6 | K132: 0 | L132: 0 | M132: 0 | N132: 0 | O132: 0 | P132: 0 | Q132: 1 | R132: 0
E133: 2015 NOV | G133: Jan 1987 = 100 | I133: 259.5 | K133: 0 | L133: 0 | M133: 0 | N133: 0 | O133: 0 | P133: 0 | Q133: 1 | R133: 0
E134: 2015 NOV | G134: Jan 1987 = 100 | I134: 259.8 | K134: 0 | L134: 0 | M134: 0 | N134: 0 | O134: 0 | P134: 0 | Q134: 1 | R134: 0
E135: 2015 DEC | G135: Jan 1987 = 100 | I135: 260.6 | K135: 0 | L135: 0 | M135: 0 | N135: 0 | O135: 0 | P135: 0 | Q135: 1 | R135: 0
E136: 2016 JAN | G136: Jan 1987 = 100 | I136: 258.8 | K136: 0 | L136: 0 | M136: 0 | N136: 0 | O136: 0 | P136: 0 | Q136: 1 | R136: 0
E137: 2016 FEB | G137: Jan 1987 = 100 | I137: 260 | K137: 0 | L137: 0 | M137: 0 | N137: 0 | O137: 0 | P137: 0 | Q137: 1 | R137: 0
E138: 2016 MAR | G138: Jan 1987 = 100 | I138: 261.1 | K138: 0 | L138: 0 | M138: 0 | N138: 0 | O138: 0 | P138: 0 | Q138: 1 | R138: 0
E139: 2016 APR | G139: Jan 1987 = 100 | I139: 261.4 | K139: =IF(L151=1,1,0) -> 0 | L139: =IF(M151=1,1,0) -> 0 | M139: =IF(N151=1,1,0) -> 0 | N139: =IF(O151=1,1,0) -> 0 | O139: =IF(P151=1,1,0) -> 0 | P139: =IF(Q151=1,1,0) -> 0 | Q139: =IF(R151=1,1,0) -> 0 | R139: 1
E140: 2016 MAY | G140: Jan 1987 = 100 | I140: 262.1 | K140: 0 | L140: 0 | M140: 0 | N140: 0 | O140: 0 | P140: 0 | Q140: 0 | R140: 1
E141: 2016 JUN | G141: Jan 1987 = 100 | I141: 263.1 | K141: 0 | L141: 0 | M141: 0 | N141: 0 | O141: 0 | P141: 0 | Q141: 0 | R141: 1
E142: 2016 JUL | G142: Jan 1987 = 100 | I142: 263.4 | K142: 0 | L142: 0 | M142: 0 | N142: 0 | O142: 0 | P142: 0 | Q142: 0 | R142: 1
E143: 2016 AUG | G143: Jan 1987 = 100 | I143: 264.4 | K143: 0 | L143: 0 | M143: 0 | N143: 0 | O143: 0 | P143: 0 | Q143: 0 | R143: 1
E144: 2016 SEP | G144: Jan 1987 = 100 | I144: 264.9 | K144: 0 | L144: 0 | M144: 0 | N144: 0 | O144: 0 | P144: 0 | Q144: 0 | R144: 1
E145: 2016 OCT | G145: Jan 1987 = 100 | I145: 264.8 | K145: 0 | L145: 0 | M145: 0 | N145: 0 | O145: 0 | P145: 0 | Q145: 0 | R145: 1
E146: 2016 NOV | G146: Jan 1987 = 100 | I146: 265.5 | K146: 0 | L146: 0 | M146: 0 | N146: 0 | O146: 0 | P146: 0 | Q146: 0 | R146: 1
E147: 2016 DEC | G147: Jan 1987 = 100 | I147: 267.1 | K147: 0 | L147: 0 | M147: 0 | N147: 0 | O147: 0 | P147: 0 | Q147: 0 | R147: 1
E148: 2017 JAN | G148: Jan 1987 = 100 | I148: 265.5 | K148: 0 | L148: 0 | M148: 0 | N148: 0 | O148: 0 | P148: 0 | Q148: 0 | R148: 1
E149: 2017 FEB | G149: Jan 1987 = 100 | I149: 268.4 | K149: 0 | L149: 0 | M149: 0 | N149: 0 | O149: 0 | P149: 0 | Q149: 0 | R149: 1
E150: 2017 MAR | G150: Jan 1987 = 100 | I150: 269.3 | K150: 0 | L150: 0 | M150: 0 | N150: 0 | O150: 0 | P150: 0 | Q150: 0 | R150: 1
E152: 2016/17 RPI inflation index value (CHAW) | G152: Jan 1987 = 100 | I152: =R153 -> 264.992
E153: 12 month average UK RPI inflation index value (CHAW) | G153: Jan 1987 = 100 | K153: =ROUND(SUMPRODUCT($I16:$I150, K16:K150) / SUM(K16:K150), 3) -> 215.767 | L153: =ROUND(SUMPRODUCT($I16:$I150, L16:L150) / SUM(L16:L150), 3) -> 226.475 | M153: 237.342 | N153: 244.675 | O153: 251.733 | P153: 256.667 | Q153: 259.433 | R153: 264.992
B163: End of sheet
